Workbook

Sheet Cover
T4: Edition Date : | U4: =TODAY() -> 2025-11-06
D7: DOSSIER FINANCIER
E9: Key Presentation Parameters
E10: Language | L10: FR
E11: Scenario
E12: Last Update | L12: 2025-04-24
D14: Item | J14: Base | N14: Description
D16: Dashboard
E17: Scenarii | P17: Définition et sélection des Bear, Base, Bull Cases
E18: Board | P18: Résumé hypothèses de bases : main profitability drivers à identifer
P19: B LIfe SA - Business plan synthétique à 5 ans
D20: Assumptions
E21: Primes | L21: Annual
E22: Sinistres | L22: Annual
E23: Loyer/Bureautique
E24: Logiciels Pro
E25: Prestataires
E26: RH
E27: Garantie Plancher
E28: Actifs
E29: Scenarii eco
E30: Personnel
E31: Apporteurs Partenariats
D33: BP
E34: BP Financier
E35: BP Assurance
D37: Output
E39: BPI_Annexe Technique (B) | K39: Monthly | P39: Présentation du programme de Recherche, Développement et Innovation
E40: BPI_CR (D) | K40: Monthly | P40: Comptes de résultats prévisionnels de l'entreprise au format reporting BPI
E41: BPI_Plan de trésorerie (F) | K41: Monthly | P41: Plan de trésorerie prévisionnel sur 24 mois (format reporting BPI)
E42: BPI_Annexe financière | P42: Détail des dépenses à engager dans le cadre du programme (format reporting BPI)
E43: BPI_Fiche de demande (I) | P43: Formulaire
E44: BPI_Plan de financement (F) | P44: Plan de financement prévisionnel de l'entreprise (Format BPI)
D46: Appendix
E47: BPI_Param | P47: Définition des catégories de charges éligibles à une demande de subvention ou prêt R&D
K50: Monthly | O50: - | P50: Saisonnalité trésorerie
K51: Annual | O51: - | P51: Projections de Perrine
K52: Annual | O52: - | P52: Debt terms summary et schedules

Sheet To Do
A2: # | B2: Onglet | C2: Tache | D2: Resp. | E2: Priorité | F2: % Complétion | G2: Commentaires
A3: 1 | B3: Nouvel Onglet | C3: Prévisionnel du Canal/produit bottum up
C4: Etude benchmarck des distributeurs (courtier en ligne CGP, banque privées, neo banques, muttuelles) - DRESS
A6: 4 | B6: Scenarii | C6: détailler les presta à couts fixes dans un nouveau onglet et ventiller par destination
C7: A côté du BP, ne pas oublier de pricer les coûts d’adhésion pour l’association nécessaire pour le PER
C9: Persona, age, panier moyen ... pour pricer garantie plancher
B11: RH | C11: scinder et réallouer les section portant sur : hypothèses, calculs intermédiaires (allocation des frais de personnel par destination), output
B12: Personnel | C12: Attention aux salariés de moins d'un 1 an peut etre pas pris en compte
C16: EBE intermédiaire
C19: detaillé dans BP variation de valeur et produit financier

Sheet Scenarii
A2: Calendrier Estimatif
A3: Date agrément | B3: 2026-07-01
A4: Capitaux propres | B4: 15,000,000
A6: Choix scenario | B6: Base Case | C6: =MATCH(B6,B8:B10,0) -> 2
A8: Scénario 1 | B8: Worst Case | C8: Description : ...
A9: Scénario 2 | B9: Base Case | C9: Description : ...
A10: Scénario 3 | B10: Best Case | C10: Description : ...
A12: Variables indépendantes du scenario
A13: Produits
A14: Proportion Fonds Euro / Actif Général | G14: =SUM(B14:F14) -> 0% | I14: 65% | J14: 6309
A15: Quote part participation aux bénéfices | G15: 0% | I15: 15% | J15: 6309 | K15: !! charge créditrice !! cf Participation bénéfice
A16: Chargement sur activité de gestion actif UC | G16: 0% | I16: 0.39% | J16: 762
A17: Chargement sur activité de gestion actif Fonds Euro | G17: 0% | I17: 0.45% | J17: 762
A18: Commission percue Private Asset | G18: 0% | I18: 0.30% | J18: 762 | K18: Frais de traitements (revenus)
A19: Commission traitement Produits Structurés | G19: 0% | I19: 0.50% | J19: 762 | K19: Frais de traitements (revenus)
A21: Charges | B21: Destination - Acquisition | C21: Destination - Admin | D21: Destination - Sinistre | E21: Destination - Placements | F21: Destination - Autres charges techniques | G21: Total | J21: Compte
A22: C3S | B22: 50% | C22: 50% | G22: =SUM(B22:F22) -> 100% | I22: 0.16% | J22: 9371
A23: FGAP | C23: 100% | I23: 0.050% | J23: 93732 | K23: Appelé en N+4 : 100% FG + 1/4 UC
A24: Contribution pour frais de contrôle ACPR | F24: 100% | G24: =SUM(B24:F24) -> 100% | I24: 0.023% | J24: 93721 | K24: Assiette Primes
A25: Commission distributeur UC | B25: 100% | G25: 100% | I25: 0.60% | J25: 9222 | K25: frais sur encours reversés aux distributeurs
A26: Commission distributeur Fonds Euro | B26: 100% | G26: 100% | I26: 0.60% | J26: 9222 | K26: frais sur encours reversés aux distributeurs
A27: Participation aux bénéfices | G27: 0% | I27: 100% | J27: 6306 | K27: !! PB et Quote Part PB vont s'addtionner pour faire apparaitre les 85%
A28: Dépositaire UC | G28: 0% | I28: 0.02% | J28: 662 | K28: frais dépositaire : UC non gérées par Izness, UC Izness gratuit et FG déduit des produits financiers
A29: Frais mandat et depositaire FG | G29: 0% | I29: 0.10% | J29: 662
A30: Frais Comptabilité | G30: 0% | I30: 0.02% | J30: 662 | K30: CACEIS (sur AuM). A capper.
A31: Frais RTO | G31: 0% | I31: 0.01% | J31: 662 | K31: sur volume
A32: Taux moyen IS | G32: 0% | I32: 20% | J32: 695
A33: Inflation des charges | G33: 0% | I33: 1% | J33: NA
A38: Description des hypothèses du scenario sélectionné | J38: Description et hypothèses des différents scenari disponibles
A40: Scenario choisi en B6 | B40: =B6 -> Base Case | C40: =C6-1 -> 1 | D40: 8 | I40: Worst case | Q40: Base case | Y40: Best case
A42: Stress sur taux de rachat | B42: =OFFSET(J42,0,$C$40*$D$40) -> 0% | I42: Stress sur taux de rachat | J42: 10% | Q42: Stress sur taux de rachat | R42: 0% | Y42: Stress sur taux de rachat | Z42: -5%
A44: Année | B44: Progression collecte en% du tableau pivot | C44: Rendement Fonds propres | D44: Rendement Fonds Général | E44: Volume Structurés en % encours | F44: Private Assets en % encours | J44: Progression collecte | K44: Rendement Fonds propres | L44: Rendement Fonds Général | M44: Volume Structurés | N44: Private Equity | R44: Progression collecte | S44: Rendement Fonds propres | T44: Rendement Fonds Général | U44: Volume Structurés | V44: Private Equity | Z44: Progression collecte | AA44: Rendement Fonds propres | AB44: Rendement Fonds Général | AC44: Volume Structurés | AD44: Private Equity
A45: 1 | B45: =OFFSET(J45,0,$C$40*$D$40) -> 100% | C45: 3% | D45: 3% | E45: 5% | F45: 5% | I45: 1 | J45: 80% | K45: 2% | L45: 2% | M45: 2% | N45: 2% | Q45: 1 | R45: 100% | S45: 3% | T45: 3% | U45: 5% | V45: 5% | Y45: 1 | Z45: 110% | AA45: 3% | AB45: 3% | AC45: 10% | AD45: 10%
A46: 2 | B46: =OFFSET(J46,0,$C$40*$D$40) -> 100% | C46: 3% | D46: 3% | E46: 5% | F46: 5% | I46: 2 | J46: 80% | K46: 2% | L46: 2% | M46: 2% | N46: 2% | Q46: 2 | R46: 100% | S46: 3% | T46: 3% | U46: 5% | V46: 5% | Y46: 2 | Z46: 120% | AA46: 3% | AB46: 3% | AC46: 10% | AD46: 10%
A47: 3 | B47: =OFFSET(J47,0,$C$40*$D$40) -> 100% | C47: 3% | D47: 3% | E47: 5% | F47: 5% | I47: 3 | J47: 80% | K47: 2% | L47: 2% | M47: 2% | N47: 2% | Q47: 3 | R47: 100% | S47: 3% | T47: 3% | U47: 5% | V47: 5% | Y47: 3 | Z47: 120% | AA47: 3% | AB47: 3% | AC47: 10% | AD47: 10%
A48: 4 | B48: =OFFSET(J48,0,$C$40*$D$40) -> 100% | C48: 3% | D48: 3% | E48: 5% | F48: 5% | I48: 4 | J48: 80% | K48: 2% | L48: 2% | M48: 2% | N48: 2% | Q48: 4 | R48: 100% | S48: 3% | T48: 3% | U48: 5% | V48: 5% | Y48: 4 | Z48: 120% | AA48: 3% | AB48: 3% | AC48: 10% | AD48: 10%
A49: 5 | B49: =OFFSET(J49,0,$C$40*$D$40) -> 100% | C49: 3% | D49: 3% | E49: 5% | F49: 5% | I49: 5 | J49: 80% | K49: 2% | L49: 2% | M49: 2% | N49: 2% | Q49: 5 | R49: 100% | S49: 3% | T49: 3% | U49: 5% | V49: 5% | Y49: 5 | Z49: 120% | AA49: 3% | AB49: 3% | AC49: 10% | AD49: 10%
A50: 6 | B50: =OFFSET(J50,0,$C$40*$D$40) -> 100% | C50: 3% | D50: 3% | E50: 5% | F50: 5% | I50: 6 | J50: 80% | K50: 2% | L50: 2% | M50: 2% | N50: 2% | Q50: 6 | R50: 100% | S50: 3% | T50: 3% | U50: 5% | V50: 5% | Y50: 6 | Z50: 120% | AA50: 3% | AB50: 3% | AC50: 10% | AD50: 10%
A51: 7 | B51: =OFFSET(J51,0,$C$40*$D$40) -> 100% | C51: 3% | D51: 3% | E51: 5% | F51: 5% | I51: 7 | J51: 80% | K51: 2% | L51: 2% | M51: 2% | N51: 2% | Q51: 7 | R51: 100% | S51: 3% | T51: 3% | U51: 5% | V51: 5% | Y51: 7 | Z51: 120% | AA51: 3% | AB51: 3% | AC51: 10% | AD51: 10%
A52: 8 | B52: =OFFSET(J52,0,$C$40*$D$40) -> 100% | C52: 3% | D52: 3% | E52: 5% | F52: 5% | I52: 8 | J52: 80% | K52: 2% | L52: 2% | M52: 2% | N52: 2% | Q52: 8 | R52: 100% | S52: 3% | T52: 3% | U52: 5% | V52: 5% | Y52: 8 | Z52: 120% | AA52: 3% | AB52: 3% | AC52: 10% | AD52: 10%
A53: 9 | B53: =OFFSET(J53,0,$C$40*$D$40) -> 100% | C53: 3% | D53: 3% | E53: 5% | F53: 5% | I53: 9 | J53: 80% | K53: 2% | L53: 2% | M53: 2% | N53: 2% | Q53: 9 | R53: 100% | S53: 3% | T53: 3% | U53: 5% | V53: 5% | Y53: 9 | Z53: 120% | AA53: 3% | AB53: 3% | AC53: 10% | AD53: 10%
A54: 10 | B54: =OFFSET(J54,0,$C$40*$D$40) -> 100% | C54: 3% | D54: 3% | E54: 5% | F54: 5% | I54: 10 | J54: 80% | K54: 2% | L54: 2% | M54: 2% | N54: 2% | Q54: 10 | R54: 100% | S54: 3% | T54: 3% | U54: 5% | V54: 5% | Y54: 10 | Z54: 120% | AA54: 3% | AB54: 3% | AC54: 10% | AD54: 10%
A59: Hypothèses RH
A61: Salaire | D61: Primes (Bonus discrétionnaires)
A62: Payables en 12 mois | D62: C Level | E62: 15%
A63: Prime contractuelle 13ème mois | B63: 12 | D63: Operations | E63: 10%
A64: Prime vacances 1/2 mois | B64: 6 | D64: Non-cadre | E64: 5%
A66: Charges Sociales | D66: Avantages
A67: Mandataires sociaux | B67: 35% | D67: Ticket Restau | E67: =7.26*20*10 -> 1452
A68: Employés Cadres | B68: 41% | D68: Mutuelle | E68: =120*12 -> 1440
A69: Employés Non-Cadres | B69: 41% | D69: Prévoyance
D70: Pass Navigo (50%) | E70: =900*50% -> 450
D71: Chèques-Vacances | E71: 1000
D72: Total annuel | E72: =SUM(E67:E71) -> 4342

Sheet Hypothèses =>
B4: Hypotheses | C4: contient les onglets pris en hypothese pour le BP financier
B6: Scenari | C6: permet de changer de scenario avec des chocs sur les hypotheses
B7: Prestations

Sheet Sinistres
A1: Sinistres | E1: Scenario | F1: =Scenarii!B6 -> Base Case | N1: Mini biais sur contrat de capi car calcul en prorata FG et contrat de de capi est à 100% UC / pas grave car frequence de rachat plus forte
E2: Stress appliqué au taux de rachat | G2: =tx_rachat_stress -> 0%
A3: Sinistres (mortalité) | N3: Prestations de l'année
A4: Cf Prime pour statistique | E4: Prestations rachats (structurels) | I4: Taux de chute global | N4: N+1 | O4: N+2 | P4: N+3 | Q4: N+4 | R4: N+5 | S4: N+6 | T4: N+7 | U4: N+8 | V4: N+9 | W4: N+10 | X4: N+11 | Y4: N+12 | Z4: N+13 | AA4: N+14 | AB4: N+15 | AC4: N+16 | AD4: N+17 | AE4: N+18 | AF4: N+19 | AG4: N+20
A5: Age moyen pondéré des assurés : | B5: =AVERAGE(Primes!M16:Q16) -> 44.6 | C5: ans | E5: Année | F5: Taux de rachat | G5: Avec stress | I5: Année | J5: Taux de chute | L5: Décollecte | M5: Total | N5: =Primes!M15 -> 97,940,000 | O5: =Primes!N15 -> 132,940,000 | P5: =Primes!O15 -> 206,450,000 | Q5: =Primes!P15 -> 291,540,000 | R5: =Primes!Q15 -> 358,780,000 | S5: =Primes!R15 -> 0 | T5: =#REF! ->  | X5: =Primes!W15 -> 0 | Y5: #REF! | Z5: #REF! | AA5: #REF! | AB5: #REF! | AC5: #REF! | AD5: #REF! | AE5: #REF! | AF5: #REF! | AG5: #REF!
A6: Genre moyen pondéré des assurés : | B6: =AVERAGE(Primes!M19:Q19,Primes!M21:Q21) -> 60% | C6: homme | E6: 1 | F6: 7.0% | G6: =F6*(1+tx_rachat_stress) -> 7.0% | I6: 1 | J6: =G6+$B$9 -> 7.078% | L6: 1 | M6: =SUM(N6:AG6) -> 6,931,732 | N6: =N$5*$J6 -> 6,931,732
B7: =1-B6 -> 40% | C7: femme | E7: 2 | F7: 6.0% | G7: 6.0% | I7: 2 | J7: 6.078% | L7: 2 | M7: 14,031,799 | N7: =N$5*J7 -> 5,952,332 | O7: =O$5*$J7 -> 8,079,467
E8: 3 | F8: 6.0% | G8: 6.0% | I8: 3 | J8: 6.078% | L8: 3 | M8: 26,578,858 | N8: 5,952,332 | O8: 8,079,467 | P8: =P$5*$J8 -> 12,547,059
A9: Taux de sinistre annuel implicite | B9: =((B14-B15)/B14*B6)+((C14-C15)/C15*B7) -> 0.08% | E9: 4 | F9: 5.0% | G9: 5.0% | I9: 4 | J9: 5.078% | L9: 4 | M9: 37,008,586 | N9: 4,972,932 | O9: 6,750,067 | P9: 10,482,559 | Q9: =Q$5*$J9 -> 14,803,028
E10: 5 | F10: 4.8% | G10: 4.8% | I10: 5 | J10: 4.878% | L10: 5 | M10: 53,050,444 | N10: 4,777,052 | O10: 6,484,187 | P10: 10,069,659 | Q10: 14,219,948 | R10: =R$5*$J10 -> 17,499,599
A11: Tables de mortalité génération née en 2000 | E11: 6 | F11: 4.6% | G11: 4.6% | I11: 6 | J11: 4.678% | L11: 6 | M11: 50,875,144 | N11: 4,581,172 | O11: 6,218,307 | P11: 9,656,759 | Q11: 13,636,868 | R11: 16,782,039 | S11: =S$5*$J11 -> 0
A12: TG H/F 2005 | B12: H | C12: F | E12: 7 | F12: 4.0% | G12: 4.0% | I12: 7 | J12: 4.078% | L12: 7 | N12: 3,993,532 | O12: 5,420,667 | P12: 8,418,059 | Q12: 11,887,628 | R12: 14,629,359 | S12: 0 | T12: =T$5*$J12 -> 
A13: 40 ans | B13: 98.836 | C13: 98.841 | E13: 8 | F13: 5.0% | G13: 5.0% | I13: 8 | J13: 5.078% | L13: 8 | N13: 4,972,932 | O13: 6,750,067 | P13: 10,482,559 | Q13: 14,803,028 | R13: 18,217,159 | S13: 0 | U13: =U$5*$J13 -> 
A14: 50 ans | B14: 98.417 | C14: 98.146 | E14: 9 | F14: 6.0% | G14: 6.0% | I14: 9 | J14: 6.078% | L14: 9 | N14: 5,952,332 | O14: 8,079,467 | P14: 12,547,059 | Q14: 17,718,428 | R14: 21,804,959 | S14: 0 | V14: =V$5*$J14 -> 
A15: 51 ans | B15: 98.360 | C15: 98.041 | E15: 10 | F15: 7.0% | G15: 7.0% | I15: 10 | J15: 7.078% | L15: 10 | N15: 6,931,732 | O15: 9,408,867 | P15: 14,611,559 | Q15: 20,633,828 | R15: 25,392,759 | S15: 0 | W15: =W$5*$J15 -> 
E16: 11 | F16: 6.0% | G16: 6.0% | I16: 11 | J16: 6.078% | L16: 11 | N16: 5,952,332 | O16: 8,079,467 | P16: 12,547,059 | Q16: 17,718,428 | R16: 21,804,959 | S16: 0 | X16: =X$5*$J16 -> 0
E17: 12 | F17: 5.5% | G17: 5.5% | I17: 12 | J17: 5.578% | L17: 12 | N17: 5,462,632 | O17: 7,414,767 | P17: 11,514,809 | Q17: 16,260,728 | R17: 20,011,059 | S17: 0 | X17: 0 | Y17: =Y$5*$J17 -> 
E18: 13 | F18: 5.0% | G18: 5.0% | I18: 13 | J18: 5.078% | L18: 13 | N18: 4,972,932 | O18: 6,750,067 | P18: 10,482,559 | Q18: 14,803,028 | R18: 18,217,159 | S18: 0 | X18: 0 | Z18: =Z$5*$J18 -> 
E19: 14 | F19: 4.5% | G19: 4.5% | I19: 14 | J19: 4.578% | L19: 14 | N19: 4,483,232 | O19: 6,085,367 | P19: 9,450,309 | Q19: 13,345,328 | R19: 16,423,259 | S19: 0 | X19: 0 | AA19: =AA$5*$J19 -> 
E20: 15 | F20: 4.0% | G20: 4.0% | I20: 15 | J20: 4.078% | L20: 15 | N20: 3,993,532 | O20: 5,420,667 | P20: 8,418,059 | Q20: 11,887,628 | R20: 14,629,359 | S20: 0 | X20: 0 | AB20: =AB$5*$J20 -> 
E21: 16 | F21: 3.7% | G21: 3.7% | I21: 16 | J21: 3.778% | L21: 16 | N21: 3,699,712 | O21: 5,021,847 | P21: 7,798,709 | Q21: 11,013,008 | R21: 13,553,019 | S21: 0 | X21: 0 | AC21: =AC$5*$J21 -> 
E22: 17 | F22: 3.4% | G22: 3.4% | I22: 17 | J22: 3.478% | L22: 17 | N22: 3,405,892 | O22: 4,623,027 | P22: 7,179,359 | Q22: 10,138,388 | R22: 12,476,679 | S22: 0 | X22: 0 | AD22: =AD$5*$J22 -> 
E23: 18 | F23: 3.0% | G23: 3.0% | I23: 18 | J23: 3.078% | L23: 18 | N23: 3,014,132 | O23: 4,091,267 | P23: 6,353,559 | Q23: 8,972,228 | R23: 11,041,559 | S23: 0 | X23: 0 | AE23: =AE$5*$J23 -> 
E24: 19 | F24: 2.7% | G24: 2.7% | I24: 19 | J24: 2.778% | L24: 19 | N24: 2,720,312 | O24: 3,692,447 | P24: 5,734,209 | Q24: 8,097,608 | R24: 9,965,219 | S24: 0 | X24: 0 | AF24: =AF$5*$J24 -> 
E25: 20 | F25: 2.5% | G25: 2.5% | I25: 20 | J25: 2.578% | L25: 20 | N25: 2,524,432 | O25: 3,426,567 | P25: 5,321,309 | Q25: 7,514,528 | R25: 9,247,659 | S25: 0 | X25: 0 | AG25: =AG$5*$J25 -> 

Sheet LoyerBureautique
A1: Loyer + bureautique / an / employé | B1: =SUM(B3:B16) -> 5,928 €
A3: Loyer | B3: =350*12 -> 4,200 €
A4: Ordinateur | B4: =1200/3 -> 400 €
A5: Ecran | B5: =180/3 -> 60 €
A6: Casque | B6: =300/3 -> 100 €
A7: Bravas | B7: =7*12 -> 84 €
A8: Protonmail | B8: 160 €
A9: Google Business | B9: =14*12 -> 168 €
A10: Linear | B10: =12*8 -> 96 €
A11: Notion | B11: =12*10 -> 120 €
A12: Figma
A13: Chatgpt (ou Claude...). Il existe des sites qui permet d'avoir des credits parout | B13: =25*12 -> 300 €
A14: Telephone (C Level) | C14: rbt forfaitaire 40 EUR / mois (a verifier)
A15: Imprimante | C15: non a priori
A16: Thé/Café | B16: =2*12*20*0.5 -> 240 €

Sheet Logiciels pro
A1: Priorité | C1: Fixe | D1: Variable
B2: Total | C2: =SUM(C4:C30) -> 39,214
A4: 0 | B4: Sage FRP 1000 | C4: 2,000 | E4: pour 1 à 4 postes
B5: Sage : module assurance
A6: 0 | B6: Invoke | C6: 10,000 | E6: https://www.regnology.net/fr/ | G6: Premier QRT triemstriel
A7: 2 | B7: Transpa | E7: à redevelopper | F7: 800 EUR par fonds par trimestres | H7: TEEPI | I7: Eurnoext Fund 360 | K7: Sequantis | M7: boulot conseil Blondel Avertim ?
A8: 0 | B8: Memobank | C8: =800*1.2 -> 960 | E8: API Pay in/ Pay out
A9: 0 | B9: Qonto | C9: 600 | E9: Corpo TPE
A10: 0 | B10: Efficial | C10: 5000 | E10: LCB-FT
A11: 0 | B11: DotFile | C11: 10000 | D11: 2 | E11: LCB-FT | F11: assiette : nb de nouveaux contrats
A12: 0 | B12: Axiocap | C12: =(120+425)*1.2 -> 654 | E12: gestion registre titre + registre personnel + AG | F12: Holding + SA + Asso ?
A13: 0 | B13: Signature electronique | E13: Dot file ? ou Fourthline
B14: Formation reglementaire | C14: 10,000

Sheet Prestataires
A1: Priorité | B1: Departement | C1: Fonction | D1: SoW | E1: ID | F1: Date arrivée | G1: Onboarding | H1: Salaire brut annuel | I1: Primes | J1: Charges Sociales | K1: Avantage | L1: Total recurring | M1: Destination - Acquisition | N1: Destination - Admin | O1: Destination - Sinistre | P1: Destination - Placements | Q1: Destination - Autres charges techniques | R1: Total | S1: CIR | T1: Destination en euros | Y1: =X1+1 -> 1 | Z1: 2 | AA1: 3 | AB1: 4 | AC1: 5 | AD1: 6 | AE1: 7 | AF1: 8
T2: Acquisition | U2: Admin | V2: Sinistre - Frais de prestations | W2: Frais interne de gestions des placements | X2: Autres charges techniques
D3: classé en autres charges techniques | R3: =SUM(M3:Q3) -> 0% | T3: =SUM(T4:T16) -> 392801.2044 | U3: 99000.48176 | V3: 64400.24088 | W3: 199000.4818 | X3: 364800 | Y3: =SUM(T3:X3) -> 1120002.409
A4: 0 | B4: Expert Comptable | C4: 25,000 | D4: Burette ou DBA | M4: 20% | N4: 20% | O4: 20% | P4: 20% | Q4: 20% | R4: 100% | T4: =C4*M4 -> 5000 | U4: =C4*N4 -> 5000 | V4: =C4*O4 -> 5000 | W4: =C4*P4 -> 5000 | X4: =C4*Q4 -> 5000
A5: 0 | B5: CAC | C5: 50,000 | D5: Mazars ou EY ? | M5: 20% | N5: 20% | O5: 20% | P5: 20% | Q5: 20% | R5: 100% | T5: 10000 | U5: 10000 | V5: 10000 | W5: 10000 | X5: 10000
A6: 0 | B6: Audit interne | C6: 30,000 | D6: Une mission coute de 15 à 20k par mission et on fait 2 à 3 missions dans le plan triennal | M6: 20% | N6: 20% | O6: 20% | P6: 20% | Q6: 20% | R6: 100% | T6: 6000 | U6: 6000 | V6: 6000 | W6: 6000 | X6: 6000
B7: Juridique | C7: 30,000 | D7: Validation CG ou autres documents, la redaction est chez nous | M7: 50% | Q7: 50% | R7: 100% | T7: 15000 | U7: 0 | V7: 0 | W7: 0 | X7: 15000
A8: 2 | B8: Frais généraux | C8: 30,000 | D8: hors salarié deplacement, restaurants | M8: 50% | Q8: 50% | R8: 100% | T8: 15000 | U8: 0 | V8: 0 | W8: 0 | X8: 15000
A9: 3 | B9: Licences | C9: 20,000 | D9: SAGE, Invok, etc. à détailler | M9: 20% | N9: 20% | O9: 20% | P9: 20% | Q9: 20% | R9: 100% | T9: 4000 | U9: 4000 | V9: 4000 | W9: 4000 | X9: 4000
A10: 3 | B10: Location Cloud | C10: 24,000 | D10: Numspot / Algoan paie 20k/mois | M10: 20% | N10: 20% | O10: 20% | P10: 20% | Q10: 20% | R10: 100% | T10: 4800 | U10: 4800 | V10: 4800 | W10: 4800 | X10: 4800
B11: Communication | C11: 100,000 | D11: €5K/mois, à compléter Paid (publireportage, etc.) | M11: 100% | R11: 100% | T11: 100000 | U11: 0 | V11: 0 | W11: 0 | X11: 0
B12: Marketing | C12: 60,000 | M12: 100% | R12: 100% | T12: 60000 | U12: 0 | V12: 0 | W12: 0 | X12: 0
A13: 1 | B13: Fournisseurs données/transpa | C13: 100,000 | D13: indices, VL, etc. à détailler 50k + transparisation 500 UC x 100 EUR/UC = 50k | P13: 100% | R13: 100% | T13: 0 | U13: 0 | V13: 0 | W13: 100000 | X13: 0
A14: 1 | B14: Frais de structure B-Life tech | C14: 300,000 | M14: 50% | N14: 20% | O14: 10% | P14: 20% | Q14: 100% | R14: 200% | T14: 150000 | U14: 60000 | V14: 30000 | W14: 60000 | X14: 300000
A15: 1 | B15: Externalisation IT | C15: 0.05% | D15: Ludotech, à détailler | M15: 50% | N15: 20% | O15: 10% | P15: 20% | R15: 100% | T15: =(C15*'BP Financier'!C50)*M15 -> 23001 | U15: =(C15*'BP Financier'!C50)*N15 -> 9200 | V15: =(C15*'BP Financier'!C50)*O15 -> 4600 | W15: =(C15*'BP Financier'!C50)*P15 -> 9200 | X15: =(C15*'BP Financier'!C50)*Q15 -> 0
A16: 1 | B16: Frais holding | C16: 5,000 | Q16: 100% | R16: 100% | T16: =C16*M16 -> 0 | U16: =C16*N16 -> 0 | V16: =C16*O16 -> 0 | W16: =C16*P16 -> 0 | X16: =C16*Q16 -> 5000
R17: 0%
B18: Juridique | R18: 0%
A19: 1 | B19: Juridique Corporate | R19: 0%
A20: 1 | B20: Contentieux | R20: 0%
B21: RH | R21: 0%
A22: 1 | B22: Chasseur de tête | R22: 0%
A23: 1 | B23: Gestion paie
B24: MarkCom
A25: 2 | B25: Conseil Marketing
A26: 2 | B26: Budget Marketing
A27: 1 | B27: Agence de Communication
B28: Finance
B30: Acturiat
A31: 1 | B31: Reporting Prudentiel | C31: Optmind
B32: Assurance
B34: Controles
B36: Risques
B37: Pilotge gestion risques, ORSA | C37: Optmind

Sheet Personnel
F1: Renseigner ETP, date entrée et sortie
T3: Destination en % | AA3: Destination en euros | AG3: Destination prorata embauche | AM3: Destination prorata débauche
A4: Priorité | B4: Departement | C4: Titre | D4: Descriptif | E4: Scorecard | F4: ETP | G4: Date entrée | H4: Prorata | I4: Date sortie | J4: Prorata | K4: Salaire brut annuel | L4: Primes | M4: Charges Sociales | N4: Avantage | O4: Loyer + bureautique | P4: Total recurring | R4: R&D | T4: Acquisition | U4: Admin | V4: Sinistre - Frais de prestations | W4: Frais interne gestion placements | X4: Autres charges techniques | Y4: Total | AA4: Acquisition | AB4: Admin | AC4: Sinistre - Frais de prestations | AD4: Frais interne de gestions des placements | AE4: Autres charges techniques | AG4: Acquisition | AH4: Admin | AI4: Sinistre - Frais de prestations | AJ4: Frais interne de gestions des placements | AK4: Autres charges techniques | AM4: Acquisition | AN4: Admin | AO4: Sinistre - Frais de prestations | AP4: Frais interne de gestions des placements | AQ4: Autres charges techniques
P5: =SUM(P13:P90) -> 1,746,981 | AA5: =SUM(AA13:AA90) -> 929,835 | AB5: 146,073 | AC5: 39,078 | AD5: 146,604 | AE5: 485,390 | AG5: =SUM(AG13:AG90) -> 585,362 | AH5: 86,056 | AI5: 19,438 | AJ5: 62,733 | AK5: 294,938 | AM5: =SUM(AM13:AM90) -> 0 | AN5: 0 | AO5: 0 | AP5: 0 | AQ5: 0
B6: Conseil d'Administration | AG6: =$H6*AA6 -> 0 | AH6: 0 | AI6: 0 | AJ6: 0 | AK6: 0 | AM6: =$J6*AA6 -> 0 | AN6: 0 | AO6: 0 | AP6: 0 | AQ6: 0
B7: CA | C7: Président CA | D7: fixe de 5k | G7: =Date_Agrement -> 2026-07-01 | H7: 1.00 | I7: 2050-01-01 | J7: =IF(ISBLANK(I7),0, YEARFRAC(DATE(YEAR(I7),1,1),I7,1)) -> 0.00 | K7: 5,000 | P7: =SUM(K7,M7,N7,O7,L7*K7) -> 5,000 | T7: 50% | U7: 10% | V7: 10% | W7: 20% | X7: 10% | Y7: =SUM(T7:X7) -> 100% | AA7: =T7*$P7 -> 2,500 | AB7: 500 | AC7: 500 | AD7: 1,000 | AE7: 500 | AG7: =$H7*AA7 -> 2,500 | AH7: 500 | AI7: 500 | AJ7: 1,000 | AK7: 500 | AM7: =$J7*AA7 -> 0 | AN7: 0 | AO7: 0 | AP7: 0 | AQ7: 0
B8: CA | C8: Président CAR + RFC Audit | D8: fixe de 5k | G8: =Date_Agrement -> 2026-07-01 | H8: 1.00 | I8: 2050-01-01 | J8: 0.00 | K8: 5,000 | T8: 20% | U8: 20% | V8: 20% | W8: 20% | X8: 20% | Y8: 100%
B9: CA | C9: Membre CA | D9: 5 membres dont président => 6 réunions / an | G9: =Date_Agrement -> 2026-07-01 | H9: 5.00 | I9: 2050-01-01 | J9: 0.00 | K9: =5*(2000+6*500) -> 25,000 | P9: =SUM(K9,M9,N9,O9,L9*K9) -> 25,000 | T9: 20% | U9: 20% | V9: 20% | W9: 20% | X9: 20% | Y9: 100% | AA9: =T9*$P9 -> 5,000 | AB9: 5,000 | AC9: 5,000 | AD9: 5,000 | AE9: 5,000 | AG9: =$H9*AA9 -> 25,000 | AH9: 25,000 | AI9: 25,000 | AJ9: 25,000 | AK9: 25,000 | AM9: =$J9*AA9 -> 0 | AN9: 0 | AO9: 0 | AP9: 0 | AQ9: 0
B10: CA | C10: Membre CAR | D10: 3 membres dont président => 3 réunions / an | G10: =Date_Agrement -> 2026-07-01 | H10: 3.00 | I10: 2050-01-01 | J10: 0.00 | K10: =3*(3*500) -> 4,500 | P10: 4,500 | T10: 20% | U10: 20% | V10: 20% | W10: 20% | X10: 20% | Y10: 100% | AA10: =T10*$P10 -> 900 | AB10: 900 | AC10: 900 | AD10: 900 | AE10: 900 | AG10: =$H10*AA10 -> 2,700 | AH10: 2,700 | AI10: 2,700 | AJ10: 2,700 | AK10: 2,700 | AM10: =$J10*AA10 -> 0 | AN10: 0 | AO10: 0 | AP10: 0 | AQ10: 0
B11: CA | C11: Frais fixe | D11: Salles, restaurants, déplacement... | G11: =Date_Agrement -> 2026-07-01 | H11: 0.00 | I11: 2050-01-01 | J11: 0.00 | K11: 3,000 | P11: 3,000 | T11: 20% | U11: 20% | V11: 20% | W11: 20% | X11: 20% | Y11: 100% | AA11: =T11*$P11 -> 600 | AB11: 600 | AC11: 600 | AD11: 600 | AE11: 600 | AG11: =$H11*AA11 -> 0 | AH11: 0 | AI11: 0 | AJ11: 0 | AK11: 0 | AM11: =$J11*AA11 -> 0 | AN11: 0 | AO11: 0 | AP11: 0 | AQ11: 0
B12: DGE
A13: 0 | B13: DGE | C13: DG | D13: Conformité/juridique produit CGV, Animation de la gouvernance (CA et CRA), Création et suivi de dashboard, Risques (opérationnel), solvalibité solva/ORSA | F13: 1 | G13: =Date_Agrement -> 2026-07-01 | H13: =IF(ISBLANK(G13),0, YEARFRAC(G13, DATE(YEAR(G13),12,31),1)) -> 0.50 | I13: 2050-01-01 | J13: =IF(ISBLANK(I13),0, YEARFRAC(DATE(YEAR(I13),1,1),I13,1)) -> 0.00 | K13: 120,000 | L13: =Bonus_Clevel -> 15% | M13: =taux_charges_patronales*K13 -> 49200 | O13: =cout_par_salarié -> 5,928 | P13: =SUM(K13,M13,N13,O13,L13*K13)*F13 -> 193,128 | T13: 50% | U13: 10% | W13: 10% | X13: 30% | Y13: =SUM(T13:X13) -> 100% | AA13: =T13*$P13 -> 96,564 | AB13: 19,313 | AC13: 0 | AD13: 19,313 | AE13: 57,938 | AG13: =$H13*AA13 -> 48,414 | AH13: 9,683 | AI13: 0 | AJ13: 9,683 | AK13: 29,049 | AM13: =$J13*AA13 -> 0 | AN13: 0 | AO13: 0 | AP13: 0 | AQ13: 0
A14: 0 | B14: DGE | C14: DGD - CPTO | D14: Tech, Produit, Cyber, Office Management Supervision UC, Définition politque Invest fonds Euro | F14: 1 | G14: =Date_Agrement -> 2026-07-01 | H14: 0.50 | I14: 2050-01-01 | J14: 0.00 | K14: 60,000 | L14: =Bonus_Clevel -> 15% | M14: =taux_charges_patronales*K14 -> 24600 | O14: =cout_par_salarié -> 5,928 | P14: 99,528 | R14: 80% | T14: 75% | W14: 25% | Y14: 100% | AA14: =T14*$P14 -> 74,646 | AB14: 0 | AC14: 0 | AD14: 24,882 | AE14: 0 | AG14: =$H14*AA14 -> 37,425 | AH14: 0 | AI14: 0 | AJ14: 12,475 | AK14: 0 | AM14: =$J14*AA14 -> 0 | AN14: 0 | AO14: 0 | AP14: 0 | AQ14: 0
A15: 0 | B15: DGE | C15: DGD - CFO / COO | D15: Communication financière / relation investisseur, compta corpo, revue prestataires clefs, Juridique affaires et corporate, MarCom, PR, Relation distributeurs, Recrutement, RH, | F15: 1 | G15: =Date_Agrement -> 2026-07-01 | H15: 0.50 | I15: 2050-01-01 | J15: 0.00 | K15: 120,000 | L15: =Bonus_Clevel -> 15% | M15: =taux_charges_patronales*K15 -> 49200 | O15: =cout_par_salarié -> 5,928 | P15: 193,128 | R15: 50% | T15: 80% | X15: 20% | Y15: 100% | AA15: =T15*$P15 -> 154,502 | AB15: 0 | AC15: 0 | AD15: 0 | AE15: 38,626 | AG15: =$H15*AA15 -> 77,463 | AH15: 0 | AI15: 0 | AJ15: 0 | AK15: 19,366 | AM15: =$J15*AA15 -> 0 | AN15: 0 | AO15: 0 | AP15: 0 | AQ15: 0
B16: FINANCES | AG16: =$H16*AA16 -> 0 | AH16: 0 | AI16: 0 | AJ16: 0 | AK16: 0 | AM16: =$J16*AA16 -> 0 | AN16: 0 | AO16: 0 | AP16: 0 | AQ16: 0
A17: 1 | B17: FINANCES | C17: Responsable comptable assurance | D17: Comptable placement et opérations assurance | E17: Opérationnelen lien avec Burette, en lien avec CAEIS | F17: 0.5 | G17: =EOMONTH(Date_Agrement,1)+1 -> 2026-09-01 | H17: =IF(ISBLANK(G17),0, YEARFRAC(G17, DATE(YEAR(G17),12,31),1)) -> 0.33 | I17: 2050-01-01 | J17: =IF(ISBLANK(I17),0, YEARFRAC(DATE(YEAR(I17),1,1),I17,1)) -> 0.00 | K17: 60,000 | L17: =Bonus_Ops -> 10% | M17: =taux_charges_patronales*K17 -> 24600 | O17: =cout_par_salarié -> 5,928 | P17: =SUM(K17,M17,N17,O17,L17*K17)*F17 -> 48,264 | U17: 20% | W17: 20% | X17: 60% | Y17: =SUM(T17:X17) -> 100% | AA17: =T17*$P17 -> 0 | AB17: 9,653 | AC17: 0 | AD17: 9,653 | AE17: 28,958 | AG17: =$H17*AA17 -> 0 | AH17: 3,200 | AI17: 0 | AJ17: 3,200 | AK17: 9,600 | AM17: =$J17*AA17 -> 0 | AN17: 0 | AO17: 0 | AP17: 0 | AQ17: 0
A18: 3 | B18: FINANCES | C18: Contrôleur de gestion | D18: Contrôle gestion budgets reporting | F18: 1 | G18: 2028-01-01 | H18: 1.00 | I18: 2050-01-01 | J18: 0.00 | K18: 50,000 | L18: =Bonus_Ops -> 10% | M18: =taux_charges_patronales*K18 -> 20500 | O18: =cout_par_salarié -> 5,928 | P18: 81,428 | U18: 40% | X18: 60% | Y18: 100% | AA18: =T18*$P18 -> 0 | AB18: 32,571 | AC18: 0 | AD18: 0 | AE18: 48,857 | AG18: =$H18*AA18 -> 0 | AH18: 32,482 | AI18: 0 | AJ18: 0 | AK18: 48,723 | AM18: =$J18*AA18 -> 0 | AN18: 0 | AO18: 0 | AP18: 0 | AQ18: 0
B19: ACTURIAT | AG19: =$H19*AA19 -> 0 | AH19: 0 | AI19: 0 | AJ19: 0 | AK19: 0 | AM19: =$J19*AA19 -> 0 | AN19: 0 | AO19: 0 | AP19: 0 | AQ19: 0
A20: 1 | B20: ACTUARIAT | C20: Responsable actuariat | D20: actuariat et solva & RFC Actuariat | E20: suivi reassurance, tarification sur garantie, provisinnenment, Best Estimate, reporting prudentiel | F20: 0.5 | G20: =EOMONTH(Date_Agrement,1)+1 -> 2026-09-01 | H20: =IF(ISBLANK(G20),0, YEARFRAC(G20, DATE(YEAR(G20),12,31),1)) -> 0.33 | I20: 2050-01-01 | J20: =IF(ISBLANK(I20),0, YEARFRAC(DATE(YEAR(I20),1,1),I20,1)) -> 0.00 | K20: 85,000 | L20: =Bonus_Ops -> 10% | M20: =taux_charges_patronales*K20 -> 34850 | O20: =cout_par_salarié -> 5,928 | P20: =SUM(K20,M20,N20,O20,L20*K20)*F20 -> 67,139 | X20: 100% | Y20: =SUM(T20:X20) -> 100% | AA20: =T20*$P20 -> 0 | AB20: 0 | AC20: 0 | AD20: 0 | AE20: 67,139 | AG20: =$H20*AA20 -> 0 | AH20: 0 | AI20: 0 | AJ20: 0 | AK20: 22,257 | AM20: =$J20*AA20 -> 0 | AN20: 0 | AO20: 0 | AP20: 0 | AQ20: 0
B21: CONTROLES | AG21: =$H21*AA21 -> 0 | AH21: 0 | AI21: 0 | AJ21: 0 | AK21: 0 | AM21: =$J21*AA21 -> 0 | AN21: 0 | AO21: 0 | AP21: 0 | AQ21: 0
A22: 1 | B22: CONTROLES | C22: Data Analyst | D22: Gestion de la donnée et sa qualité | E22: données à vérifier : dpt controle + actuariat + placements | F22: 0.5 | G22: =EOMONTH(Date_Agrement,1)+1 -> 2026-09-01 | H22: =IF(ISBLANK(G22),0, YEARFRAC(G22, DATE(YEAR(G22),12,31),1)) -> 0.33 | I22: 2050-01-01 | J22: =IF(ISBLANK(I22),0, YEARFRAC(DATE(YEAR(I22),1,1),I22,1)) -> 0.00 | K22: 50,000 | L22: =Bonus_Ops -> 10% | M22: =taux_charges_patronales*K22 -> 20500 | O22: =cout_par_salarié -> 5,928 | P22: =SUM(K22,M22,N22,O22,L22*K22)*F22 -> 40,714 | T22: 20% | U22: 20% | W22: 30% | X22: 30% | Y22: =SUM(T22:X22) -> 100% | AA22: =T22*$P22 -> 8,143 | AB22: 8,143 | AC22: 0 | AD22: 12,214 | AE22: 12,214 | AG22: =$H22*AA22 -> 2,699 | AH22: 2,699 | AI22: 0 | AJ22: 4,049 | AK22: 4,049 | AM22: =$J22*AA22 -> 0 | AN22: 0 | AO22: 0 | AP22: 0 | AQ22: 0
A23: 2 | B23: CONTROLES | C23: RCCI + DPO + RFC Conformité | D23: Conformité & contrôle interne interne, RFC | E23: deploiement et suivi régulier du dispositif de controle interne + conformité, controle des delagataires et tiers (TPRM), | F23: 1 | G23: 2026-10-01 | H23: 0.25 | I23: 2050-01-01 | J23: 0.00 | K23: 80,000 | L23: =Bonus_Ops -> 10% | M23: =taux_charges_patronales*K23 -> 32800 | O23: =cout_par_salarié -> 5,928 | P23: 126,728 | T23: 60% | U23: 20% | V23: 10% | X23: 10% | Y23: 100% | AA23: =T23*$P23 -> 76,037 | AB23: 25,346 | AC23: 12,673 | AD23: 0 | AE23: 12,673 | AG23: =$H23*AA23 -> 18,957 | AH23: 6,319 | AI23: 3,160 | AJ23: 0 | AK23: 3,160 | AM23: =$J23*AA23 -> 0 | AN23: 0 | AO23: 0 | AP23: 0 | AQ23: 0
B24: RISQUES | AG24: =$H24*AA24 -> 0 | AH24: 0 | AI24: 0 | AJ24: 0 | AK24: 0 | AM24: =$J24*AA24 -> 0 | AN24: 0 | AO24: 0 | AP24: 0 | AQ24: 0
A25: 1 | B25: RISQUES | D25: processus ORSA sur projection des provisions techniques, fournit les calculs que le RCCI ne eut pas faire | E25: en lien avec actuariat | F25: 0.1 | G25: =G20 -> 2026-09-01 | H25: 0.33 | I25: 2050-01-01 | J25: 0.00 | K25: 85,000 | L25: =Bonus_Ops -> 10% | M25: =taux_charges_patronales*K25 -> 34850 | O25: =cout_par_salarié -> 5,928 | P25: =SUM(K25,M25,N25,O25,L25*K25)*F25 -> 13,428 | W25: 0% | X25: 100% | Y25: =SUM(T25:X25) -> 100% | AA25: =T25*$P25 -> 0 | AB25: 0 | AC25: 0 | AD25: 0 | AE25: 13,428 | AG25: =$H25*AA25 -> 0 | AH25: 0 | AI25: 0 | AJ25: 0 | AK25: 4,451 | AM25: =$J25*AA25 -> 0 | AN25: 0 | AO25: 0 | AP25: 0 | AQ25: 0
A26: 1 | B26: RISQUES | C26: Responsable risque + RFC RISQUES | D26: suivi appetence au risque KRI, PCA, DORA, gestion de la solva, verification des reportings reglementaires, suivi des ratios de couvertures, pilotage gestion risque ORSA, risque de marché, risque technique, risque opérationnel, risque stratégiques | E26: 3 à 5 ans d'XP | F26: 1 | G26: =EOMONTH(Date_Agrement,1)+1 -> 2026-09-01 | H26: =IF(ISBLANK(G26),0, YEARFRAC(G26, DATE(YEAR(G26),12,31),1)) -> 0.33 | I26: 2050-01-01 | J26: =IF(ISBLANK(I26),0, YEARFRAC(DATE(YEAR(I26),1,1),I26,1)) -> 0.00 | K26: 70,000 | L26: =Bonus_Ops -> 10% | M26: =taux_charges_patronales*K26 -> 28700 | O26: =cout_par_salarié -> 5,928 | P26: 111,628 | T26: 25% | U26: 20% | V26: 10% | W26: 20% | X26: 25% | Y26: 100% | AA26: =T26*$P26 -> 27,907 | AB26: 22,326 | AC26: 11,163 | AD26: 22,326 | AE26: 27,907 | AG26: =$H26*AA26 -> 9,251 | AH26: 7,401 | AI26: 3,701 | AJ26: 7,401 | AK26: 9,251 | AM26: =$J26*AA26 -> 0 | AN26: 0 | AO26: 0 | AP26: 0 | AQ26: 0
B27: PLACEMENTS | AG27: =$H27*AA27 -> 0 | AH27: 0 | AI27: 0 | AJ27: 0 | AK27: 0 | AM27: =$J27*AA27 -> 0 | AN27: 0 | AO27: 0 | AP27: 0 | AQ27: 0
A28: 1 | B28: PLACEMENTS | C28: MO | D28: Middle office client/investissement : suivi du carnet d'ordres des UC + referentiel UC | F28: 1 | G28: =EOMONTH(Date_Agrement,1)+1 -> 2026-09-01 | H28: =IF(ISBLANK(G28),0, YEARFRAC(G28, DATE(YEAR(G28),12,31),1)) -> 0.33 | I28: 2050-01-01 | J28: =IF(ISBLANK(I28),0, YEARFRAC(DATE(YEAR(I28),1,1),I28,1)) -> 0.00 | K28: 60,000 | L28: =Bonus_Ops -> 10% | M28: =taux_charges_patronales*K28 -> 24600 | O28: =cout_par_salarié -> 5,928 | P28: =SUM(K28,M28,N28,O28,L28*K28)*F28 -> 96,528 | W28: 50% | X28: 50% | Y28: =SUM(T28:X28) -> 100% | AA28: =T28*$P28 -> 0 | AB28: 0 | AC28: 0 | AD28: 48,264 | AE28: 48,264 | AG28: =$H28*AA28 -> 0 | AH28: 0 | AI28: 0 | AJ28: 16,000 | AK28: 16,000 | AM28: =$J28*AA28 -> 0 | AN28: 0 | AO28: 0 | AP28: 0 | AQ28: 0
B29: ASSURANCES | AG29: =$H29*AA29 -> 0 | AH29: 0 | AI29: 0 | AJ29: 0 | AK29: 0 | AM29: =$J29*AA29 -> 0 | AN29: 0 | AO29: 0 | AP29: 0 | AQ29: 0
A30: 1 | B30: ASSURANCES | C30: Responsable gestion assurance | D30: Relation delagataire sur les dossiers | F30: 0.3 | G30: =Date_Agrement -> 2026-07-01 | H30: =IF(ISBLANK(G30),0, YEARFRAC(G30, DATE(YEAR(G30),12,31),1)) -> 0.50 | I30: 2050-01-01 | J30: =IF(ISBLANK(I30),0, YEARFRAC(DATE(YEAR(I30),1,1),I30,1)) -> 0.00 | K30: 35,000 | L30: =Bonus_Ops -> 10% | M30: =taux_charges_patronales*K30 -> 14350 | O30: =cout_par_salarié -> 5,928 | P30: =SUM(K30,M30,N30,O30,L30*K30)*F30 -> 17,633 | T30: 70% | U30: 20% | V30: 10% | X30: 0% | Y30: =SUM(T30:X30) -> 100% | AA30: =T30*$P30 -> 12,343 | AB30: 3,527 | AC30: 1,763 | AD30: 0 | AE30: 0 | AG30: =$H30*AA30 -> 6,189 | AH30: 1,768 | AI30: 884 | AJ30: 0 | AK30: 0 | AM30: =$J30*AA30 -> 0 | AN30: 0 | AO30: 0 | AP30: 0 | AQ30: 0
A31: 1 | B31: ASSURANCES | C31: CUSTOMER SUCCESS | D31: Relation delagataire sur le produit Tech et relation commerciale | F31: 0.3 | G31: =Date_Agrement -> 2026-07-01 | H31: 0.50 | I31: 2050-01-01 | J31: 0.00 | K31: 35,000 | L31: =Bonus_Ops -> 10% | M31: =taux_charges_patronales*K31 -> 14350 | O31: =cout_par_salarié -> 5,928 | P31: 17,633 | T31: 70% | U31: 20% | V31: 10% | Y31: 100% | AA31: =T31*$P31 -> 12,343 | AB31: 3,527 | AC31: 1,763 | AD31: 0 | AE31: 0 | AG31: =$H31*AA31 -> 6,189 | AH31: 1,768 | AI31: 884 | AJ31: 0 | AK31: 0 | AM31: =$J31*AA31 -> 0 | AN31: 0 | AO31: 0 | AP31: 0 | AQ31: 0
A32: 1 | B32: ASSURANCES | C32: Responsable produit | D32: Gouvernance produit | F32: 0.3 | G32: =Date_Agrement -> 2026-07-01 | H32: 0.50 | I32: 2050-01-01 | J32: 0.00 | K32: 35,000 | L32: =Bonus_Ops -> 10% | M32: =taux_charges_patronales*K32 -> 14350 | O32: =cout_par_salarié -> 5,928 | P32: 17,633 | T32: 80% | U32: 10% | V32: 10% | Y32: 100% | AA32: =T32*$P32 -> 14,107 | AB32: 1,763 | AC32: 1,763 | AD32: 0 | AE32: 0 | AG32: =$H32*AA32 -> 7,073 | AH32: 884 | AI32: 884 | AJ32: 0 | AK32: 0 | AM32: =$J32*AA32 -> 0 | AN32: 0 | AO32: 0 | AP32: 0 | AQ32: 0
B33: INFORMATIQUE | AA33: =T33*$P33 -> 0 | AB33: 0 | AC33: 0 | AD33: 0 | AE33: 0 | AG33: =$H33*AA33 -> 0 | AH33: 0 | AI33: 0 | AJ33: 0 | AK33: 0 | AM33: =$J33*AA33 -> 0 | AN33: 0 | AO33: 0 | AP33: 0 | AQ33: 0
A34: 0 | B34: INFORMATIQUE | C34: CTO | D34: Supervisera une partie interne + une partie externalisée | F34: 1 | G34: =Date_Agrement -> 2026-07-01 | H34: =IF(ISBLANK(G34),0, YEARFRAC(G34, DATE(YEAR(G34),12,31),1)) -> 0.50 | I34: 2050-01-01 | J34: =IF(ISBLANK(I34),0, YEARFRAC(DATE(YEAR(I34),1,1),I34,1)) -> 0.00 | L34: =Bonus_Clevel -> 15% | M34: =taux_charges_patronales*K34 -> 0 | P34: =SUM(K34,M34,N34,O34,L34*K34)*F34 -> 0 | T34: 30% | U34: 20% | V34: 20% | W34: 20% | X34: 10% | Y34: =SUM(T34:X34) -> 100% | AA34: =T34*$P34 -> 0 | AB34: 0 | AC34: 0 | AD34: 0 | AE34: 0 | AG34: =$H34*AA34 -> 0 | AH34: 0 | AI34: 0 | AJ34: 0 | AK34: 0 | AM34: =$J34*AA34 -> 0 | AN34: 0 | AO34: 0 | AP34: 0 | AQ34: 0
A35: 1 | B35: INFORMATIQUE | C35: FULLSTACK Lead | F35: 1 | G35: =EOMONTH(Date_Agrement,1)+1 -> 2026-09-01 | H35: 0.33 | I35: 2050-01-01 | J35: 0.00 | L35: =Bonus_Ops -> 10% | M35: =taux_charges_patronales*K35 -> 0 | P35: 0 | T35: 30% | U35: 20% | V35: 20% | W35: 20% | X35: 10% | Y35: 100% | AA35: =T35*$P35 -> 0 | AB35: 0 | AC35: 0 | AD35: 0 | AE35: 0 | AG35: =$H35*AA35 -> 0 | AH35: 0 | AI35: 0 | AJ35: 0 | AK35: 0 | AM35: =$J35*AA35 -> 0 | AN35: 0 | AO35: 0 | AP35: 0 | AQ35: 0
A36: 1 | B36: INFORMATIQUE | C36: FULLSTACK Junior+ | F36: 1 | G36: =EOMONTH(Date_Agrement,1)+1 -> 2026-09-01 | H36: 0.33 | I36: 2050-01-01 | J36: 0.00 | L36: =Bonus_Ops -> 10% | M36: =taux_charges_patronales*K36 -> 0 | P36: 0 | T36: 30% | U36: 20% | V36: 20% | W36: 20% | X36: 10% | Y36: 100% | AA36: =T36*$P36 -> 0 | AB36: 0 | AC36: 0 | AD36: 0 | AE36: 0 | AG36: =$H36*AA36 -> 0 | AH36: 0 | AI36: 0 | AJ36: 0 | AK36: 0 | AM36: =$J36*AA36 -> 0 | AN36: 0 | AO36: 0 | AP36: 0 | AQ36: 0
B37: COMMERCIAL | AA37: =T37*$P37 -> 0 | AB37: 0 | AC37: 0 | AD37: 0 | AE37: 0 | AG37: =$H37*AA37 -> 0 | AH37: 0 | AI37: 0 | AJ37: 0 | AK37: 0 | AM37: =$J37*AA37 -> 0 | AN37: 0 | AO37: 0 | AP37: 0 | AQ37: 0
A38: 1 | B38: COMMERCIAL | C38: Directeur Commercial | D38: Commercial | F38: 1 | G38: =Date_Agrement -> 2026-07-01 | H38: =IF(ISBLANK(G38),0, YEARFRAC(G38, DATE(YEAR(G38),12,31),1)) -> 0.50 | I38: 2050-01-01 | J38: =IF(ISBLANK(I38),0, YEARFRAC(DATE(YEAR(I38),1,1),I38,1)) -> 0.00 | K38: 100,000 | L38: 15% | M38: =taux_charges_patronales*K38 -> 41000 | O38: =cout_par_salarié -> 5,928 | P38: =SUM(K38,M38,N38,O38,L38*K38)*F38 -> 161,928 | T38: 100% | Y38: =SUM(T38:X38) -> 100% | AA38: =T38*$P38 -> 161,928 | AB38: 0 | AC38: 0 | AD38: 0 | AE38: 0 | AG38: =$H38*AA38 -> 81,186 | AH38: 0 | AI38: 0 | AJ38: 0 | AK38: 0 | AM38: =$J38*AA38 -> 0 | AN38: 0 | AO38: 0 | AP38: 0 | AQ38: 0
A39: 4 | B39: COMMERCIAL | C39: INTERNATIONAL EXPANSION | D39: Implantation international | F39: 1 | G39: 2029-01-01 | H39: 1.00 | I39: 2050-01-01 | J39: 0.00 | K39: 80,000 | L39: 15% | M39: =taux_charges_patronales*K39 -> 32800 | O39: =cout_par_salarié -> 5,928 | P39: 130,728 | T39: 100% | Y39: 100% | AA39: =T39*$P39 -> 130,728 | AB39: 0 | AC39: 0 | AD39: 0 | AE39: 0 | AG39: =$H39*AA39 -> 130,370 | AH39: 0 | AI39: 0 | AJ39: 0 | AK39: 0 | AM39: =$J39*AA39 -> 0 | AN39: 0 | AO39: 0 | AP39: 0 | AQ39: 0
A40: 2 | B40: COMMERCIAL | C40: PARTNERSHIP | D40: Responsable partenariat | F40: 1 | G40: 2029-01-01 | H40: 1.00 | I40: 2050-01-01 | J40: 0.00 | K40: 80,000 | L40: 15% | M40: =taux_charges_patronales*K40 -> 32800 | O40: =cout_par_salarié -> 5,928 | P40: 130,728 | T40: 100% | Y40: 100% | AA40: =T40*$P40 -> 130,728 | AB40: 0 | AC40: 0 | AD40: 0 | AE40: 0 | AG40: =$H40*AA40 -> 130,370 | AH40: 0 | AI40: 0 | AJ40: 0 | AK40: 0 | AM40: =$J40*AA40 -> 0 | AN40: 0 | AO40: 0 | AP40: 0 | AQ40: 0
B41: CORPORATE & MIDDLE OFFICE | P41: 0 | AA41: =T41*$P41 -> 0 | AB41: 0 | AC41: 0 | AD41: 0 | AE41: 0 | AG41: =$H41*AA41 -> 0 | AH41: 0 | AI41: 0 | AJ41: 0 | AK41: 0 | AM41: =$J41*AA41 -> 0 | AN41: 0 | AO41: 0 | AP41: 0 | AQ41: 0
A42: 3 | C42: LEGAL | D42: Juriste | F42: 1 | G42: 2029-01-01 | H42: =IF(ISBLANK(G42),0, YEARFRAC(G42, DATE(YEAR(G42),12,31),1)) -> 0.997260274 | I42: 2050-01-01 | J42: =IF(ISBLANK(I42),0, YEARFRAC(DATE(YEAR(I42),1,1),I42,1)) -> 0.00 | K42: 60,000 | L42: 15% | M42: =taux_charges_patronales*K42 -> 24600 | O42: =cout_par_salarié -> 5,928 | P42: 99,528 | T42: 30% | U42: 20% | V42: 10% | W42: 10% | X42: 30% | Y42: =SUM(T42:X42) -> 100% | AA42: =T42*$P42 -> 29,858 | AB42: 19,906 | AC42: 9,953 | AD42: 9,953 | AE42: 29,858 | AG42: =$H42*AA42 -> 29,777 | AH42: 19,851 | AI42: 9,926 | AJ42: 9,926 | AK42: 29,777 | AM42: =$J42*AA42 -> 0 | AN42: 0 | AO42: 0 | AP42: 0 | AQ42: 0
A43: 3 | C43: HR & PAYROLL | D43: Ressource humaine et paie | F43: 1 | G43: 2029-01-01 | H43: 1.00 | I43: 2050-01-01 | J43: 0.00 | K43: 60,000 | L43: 15% | M43: =taux_charges_patronales*K43 -> 24600 | O43: =cout_par_salarié -> 5,928 | P43: 99,528 | T43: 0% | U43: 0% | V43: 0% | W43: 0% | X43: 100% | Y43: 100% | AA43: =T43*$P43 -> 0 | AB43: 0 | AC43: 0 | AD43: 0 | AE43: 99,528 | AG43: =$H43*AA43 -> 0 | AH43: 0 | AI43: 0 | AJ43: 0 | AK43: 99,255 | AM43: =$J43*AA43 -> 0 | AN43: 0 | AO43: 0 | AP43: 0 | AQ43: 0

Sheet Chrono Personnel

Sheet Garantie plancher
A1: Garantie plancher
A3: Caracteristiques | B3: Capital net investi sur les UC (donc les frais ne sont pas remobursé) garanti si décès
B4: Max garantie : 100k | C4: parametre à pouvoir modifier
B5: S'arrete à 65 ans | C5: parametre à pouvoir modifier
B6: Le garantie porte uniquement sur les UC mais est calculé sur l'encours gloable | J6: lien table
J7: https://www.spac-actuaires.fr/lexique/table-de-mortalite/
A8: coût / encours global | B8: 0.05%
J10: TH
B11: =Primes!L2 -> 0 | C11: =Primes!M2 -> 2026-2027 | D11: =Primes!N2 -> 2028 | E11: =Primes!O2 -> 2029 | F11: =Primes!P2 -> 2030 | G11: =Primes!Q2 -> 2031 | I11: 45 | J11: 97966
B12: =Primes!L3 -> Année | C12: =Primes!M3 -> 1 | D12: =Primes!N3 -> 2 | E12: =Primes!O3 -> 3 | F12: =Primes!P3 -> 4 | G12: =Primes!Q3 -> 5 | I12: 50 | J12: 96792
B13: =Primes!L4 -> # contrats AV | C13: =Primes!M4 -> 3,332 | D13: =Primes!N4 -> 4,460 | E13: =Primes!O4 -> 6,840 | F13: =Primes!P4 -> 9,504 | G13: =Primes!Q4 -> 11,390
B14: =Primes!L5 -> Panier moy. AV | C14: =Primes!M5 -> 27,191 | D14: =Primes!N5 -> 27,410 | E14: =Primes!O5 -> 27,339 | F14: =Primes!P5 -> 27,483 | G14: =Primes!Q5 -> 27,919 | I14: 0│5q 45 = | J14: =(J11-J12)/J11 -> 1.198%
B15: =Primes!L6 -> Prime AV | C15: =Primes!M6 -> 90,600,000 | D15: =Primes!N6 -> 122,250,000 | E15: =Primes!O6 -> 187,000,000 | F15: =Primes!P6 -> 261,200,000 | G15: =Primes!Q6 -> 318,000,000
B16: =Primes!L7 -> # contrats PER | C16: =Primes!M7 -> 302 | D16: =Primes!N7 -> 430 | E16: =Primes!O7 -> 700 | F16: =Primes!P7 -> 1,028 | G16: =Primes!Q7 -> 1,340 | J16: 0│10q 40 = (l 40 - l 50 ) / l 40 = (98 242 - 96 546) / 98 242 = 1,726%
B17: =Primes!L8 -> Panier moy. PER | C17: =Primes!M8 -> 22,914 | D17: =Primes!N8 -> 23,581 | E17: =Primes!O8 -> 25,429 | F17: =Primes!P8 -> 26,304 | G17: =Primes!Q8 -> 26,776
B18: =Primes!L9 -> Prime PER | C18: =Primes!M9 -> 6,920,000 | D18: =Primes!N9 -> 10,140,000 | E18: =Primes!O9 -> 17,800,000 | F18: =Primes!P9 -> 27,040,000 | G18: =Primes!Q9 -> 35,880,000 | J18: On obtient ainsi la propriété suivante : t│t’q x = t px – t+t’px
J19: La probabilité de décéder entre t et t’ ans pour une personne d’âge x est égale à la
B20: =Primes!L16 -> Age moyen | C20: =Primes!M16 -> 45 | D20: =Primes!N16 -> 45 | E20: =Primes!O16 -> 44 | F20: =Primes!P16 -> 44 | G20: =Primes!Q16 -> 45 | J20: probabilité de survivre au-delà de t moins la probabilité de survivre au delà de t+t’.
B22: Hypothèses :
B23: 1% de frais de gestion / an (non garanti)
B24: Classiquement, 20% des contrats concentrent 80% de la prime
B25: Plus on est agé, plus les primes par contrat sont élévés
B26: Les UC sous jacentes sont données en J29
B27: On peut considérer 30% de pertes comme un extreme pour les actions | H27: Repartition
B28: On peut considérer 15% de pertes comme un extreme pour les obligations | I28: Euro+UC | J28: hors Euro | K28: volatilité
B29: Un meme assuré peut verser sur plusieurs années donc sur se retrouver dans plusieurs cohortes | H29: Fonds Euro | I29: 28.9
B30: Taux moyen de croissance des actifs (actions ou obligations) net de frais 3% | H30: Obligation CT | I30: 2.8 | J30: =I30/SUM($I$30:$I$34) -> 3.9% | K30: =Actif!F29 -> 2%
H31: Obligation | I31: 9.1 | J31: 12.7% | K31: =Actif!F30 -> 7%
B32: Cas à considérer : | H32: Dette Privéee | I32: 6.1 | J32: 8.5% | K32: =Actif!F31 -> 6%
B33: En regime normal de marché, de mortalité donc pas de forte baisse des marché | H33: Action | I33: 47.4 | J33: 66.6% | K33: =Actif!F32 -> 17%
B34: En risque extreme de marché | H34: PE | I34: 5.9 | J34: 8.2% | K34: =Actif!F33 -> 7%
B35: En risque extreme de mortalité
B36: En risque extreme de mortalité et de marché | H36: Total | I36: 100.0
B37: Vraiment pas de chance : mortalité, marché et taille des contrats dans les extrêmes
C39: en moyenne | D39: risque extreme | E39: pas de chance !
B40: Cohorte année | C40: 4
B41: # contrat AV | C41: =OFFSET($C$13,0,$C$40-1) -> 9,504 | D41: =C41 -> 9,504 | E41: 9,504
B42: Taux de sinistre sur 5 ans | C42: =J14/3 -> 0.40% | D42: =C42*2 -> 0.80% | E42: =C42*4 -> 1.60%
B43: # contrat | C43: =C42*C41 -> 37.96 | D43: 75.93 | E43: 151.86
B44: Max capital garantie | C44: =C14 -> 27,191 € | D44: 80,000 € | E44: 100,000 €
B45: Max perte sur 5 ans | C45: =(J33*30%+(1-J33)*15%)*50% -> 12% | D45: =(K33*30%+(1-K33)*15%)*70% -> 12% | E45: 30%
B47: Max loss | C47: =C43*C44*C45 -> 128,982 € | D47: 746,231 € | E47: 4,555,742 €
B48: %encours | C48: =C47/OFFSET($C$15,0,$C$40-1) -> 0.05% | D48: 0.29% | E48: 1.74%

Sheet Actif
L1: rdt fg | M1: =rdt_FG -> 3%
A3: Fonds Euro + Fonds propres | D3: Min | E3: Max | F3: Cible | G3: Rating moyen | H3: Modified duration | M3: Cpn | N3: Distribué | O3: PMVL
C4: Monétaire | D4: 0 | E4: 20 | F4: 5 | G4: NA | H4: 1 | M4: ='Capital Market Assumptions'!G6 -> 2% | N4: 0.0% | O4: =M4-N4 -> 2%
C5: Govies & Supra 0% SCR | D5: 70 | E5: 90 | F5: 75 | G5: A | H5: 5-9 ans | I5: possibilité de variabiliser une partie des taux | M5: =AVERAGE('Capital Market Assumptions'!G10:G12) -> 2.97%
C6: Dettes privées NR | D6: 0 | E6: 20 | F6: 20 | G6: NR | H6: Taux variable | I6: diversification => pas de SCR concentration | M6: ='Capital Market Assumptions'!G19 -> 6% | N6: 3.0% | O6: =M6-N6 -> 3%
A7: Fonds Euro PERI
C8: idem Fonds Euro avec duration un peu plus longue | M8: =SUMPRODUCT(M4:M6,F4:F6) -> 3.53 | O8: =SUMPRODUCT(O4:O6,F4:F6)/100 -> 0.71%
I9: https://www.yomoni.fr/performances
A10: Gestion piloté | D10: Fonds Euro | E10: UC
D11: Fonds Euro | E11: Obligation CT | F11: Obligation | G11: Dette Privéee | H11: Action OCDE | I11: PE / Autres actions | J11: Total
A12: 0 | B12: Fonds Euro | C12: Quasi identique sécurisé | D12: 100 | J12: =SUM(D12:I12) -> 100
A13: 1 | B13: Sécurisé | C13: Sécuriser son capital à 2 ans max | D13: 80 | E13: 20 | J13: 100
A14: 2 | B14: Prudent | D14: 50 | E14: 10 | F14: 10 | H14: 25 | I14: 5 | J14: 100
A15: 3 | B15: Equilibré | D15: 30 | F15: 15 | G15: 5 | H15: 45 | I15: 5 | J15: 100
A16: 4 | B16: Dynamique | D16: 20 | F16: 15 | G16: 10 | H16: 50 | I16: 5 | J16: 100
A17: 5 | B17: Offensif | D17: 0 | G17: 10 | H17: 80 | I17: 10 | J17: 100
A18: Obligation | B18: BBB à 7 ans
A19: Oblig Court Terme | B19: BB à 2 ans
A20: Dette privée | B20: NR / taux variable / 4 ans moyenne
A21: Pas d'immobilier en UC
A23: Arrêté du 1er juillet 2024 instaurant une gestion pilotée profilée
A24: https://www.legifrance.gouv.fr/jorf/id/JORFTEXT000049888609
A26: Répartition des actifs / gestion pilotée
A27: type gestion | B27: % client | E27: Repartition | F27: Volatilité annuelle | H27: Expected return for UC (cf Capital market assumption)
A28: 0 | B28: 4% | D28: Fonds Euro | E28: =SUMPRODUCT(B28:B33,D12:D17) -> 28.9
A29: 1 | B29: 4% | D29: Obligation CT | E29: =SUMPRODUCT(B28:B33,E12:E17) -> 2.8 | F29: 2% | H29: ='Capital Market Assumptions'!G6 -> 2.10%
A30: 2 | B30: 20% | D30: Obligation | E30: =SUMPRODUCT(B28:B33,F12:F17) -> 9.1 | F30: =20%*12%+80%*6% -> 7% | H30: =('Capital Market Assumptions'!G14+'Capital Market Assumptions'!G17)/2 -> 2.95%
A31: 3 | B31: 23% | D31: Dette Privéee | E31: =SUMPRODUCT(B28:B33,G12:G17) -> 6.1 | F31: 6% | H31: ='Capital Market Assumptions'!G19 -> 6.00%
A32: 4 | B32: 24% | D32: Action | E32: =SUMPRODUCT(B28:B33,H12:H17) -> 47.4 | F32: 17% | H32: =('Capital Market Assumptions'!G21+'Capital Market Assumptions'!G22)/2 -> 7.10%
A33: 5 | B33: 25% | D33: PE | E33: =SUMPRODUCT(B28:B33,I12:I17) -> 5.9 | F33: 7% | H33: ='Capital Market Assumptions'!G23 -> 9.40%
A35: Total | B35: =SUM(B28:B33) -> 100% | D35: Total | E35: =SUM(E28:E33) -> 100.0 | G35: Expected return UC | H35: =SUMPRODUCT(E29:E33,H29:H33/E35) -> 4.60%
C38: Profil « Prudent » : 6% jusqu’à 20 ans avant la date de liquidation envisagée et 2% jusqu’à 10 ans avant l’échéance (progressivité sur 20, 15 et 10 ans) ;
C39: Profil « Equilibré » : 8% jusqu’à 20 ans avant la date de liquidation envisagée et 3% jusqu’à 5 ans avant l’échéance (progressivité sur 20, 15, 10 et 5 ans) ;
C40: Profil « Dynamique » : 12% jusqu’à 20 ans avant la date de liquidation envisagée et 5% jusqu’à 5 ans avant l’échéance (progressivité sur 20, 15, 10 et 5 ans) ;
C41: Profil « Offensif » : 15% jusqu’à 20 ans avant la date de liquidation envisagée et 6% jusqu’à 5 ans avant l’échéance (progressivité sur 20, 15, 10 et 5 ans).
A42: https://www.goodvalueformoney.eu/documentation/ventilation-2025-des-offres-de-gestion-profilee-du-marche-selon-leur-niveau-d-exposition

Sheet Capital Market Assumptions
G2: Average Annualised GEOMETRIC
B4: Index | C4: Index Google | D4: Currency | E4: Duration | F4: Current Cpn/retun | G4: 5Y Expected returns
A5: Cash
A6: Euro Cash | D6: EUR | E6: 0.2 | G6: 2.10%
A7: USD Cash | D7: USD | E7: 0.2 | G7: 3.20%
A8: Government Bonds
A9: US Bond | B9: JPMTUS Index | D9: USD | E9: 6 | G9: 4.30%
A10: Emu Bond - Core | D10: EUR | E10: 7 | G10: 2.40%
A11: France Bond | B11: JPMTEUFR Index | D11: EUR | E11: 7 | G11: 3.20%
A12: Italy Bond | D12: EUR | E12: 6 | G12: 3.30%
A13: Credit Investment Grade
A14: Euro Corporate IG | D14: EUR | E14: 4.4 | G14: 2.80%
A15: US Corporate IG | D15: USD | E15: 6.5 | G15: 5.10%
A16: Credit High Yield
A17: Euro Corporate | B17: HY HE00 index | D17: EUR | G17: 3.10%
A18: US Corporate HY | D18: USD | G18: 4.50%
A19: Dette privée | D19: EUR | G19: 6%
A20: Equity
A21: SP500 | C21: .INX | D21: USD | F21: =IFERROR(__xludf.DUMMYFUNCTION("GOOGLEFINANCE(C21)"),6822.4) -> 6822.4 | G21: 6.80%
A22: Eurostoxx50 | C22: SX5E | D22: EUR | F22: =IFERROR(__xludf.DUMMYFUNCTION("GOOGLEFINANCE(C22)"),5669.13) -> 5669.13 | G22: 7.40%
A23: PE | D23: EUR | G23: =G22+2% -> 9.40%

Sheet Scenario Eco
A1: Capital Market Assumptions
A3: Amundi | B3: p 17 | C3: https://research-center.amundi.com/article/capital-market-assumptions-2025#section-title-19692
A4: JP AM | C4: https://am.jpmorgan.com/gb/en/asset-management/institutional/insights/portfolio-insights/ltcma/
A5: Blackrock | B5: page interactive | C5: https://www.blackrock.com/institutions/en-us/insights/charts/capital-market-assumptions?utm_source=chatgpt.com
A6: NothernTrust | C6: https://www.northerntrust.com/content/dam/northerntrust/investment-management/global/en/documents/thought-leadership/2025/cma/2025-capital-market-assumptions-research-paper.pdf?utm_source=chatgpt.com
A7: Invesco | C7: https://www.invesco.com/content/dam/invesco/apac/en/pdf/insights/2024/december/2025-invesco-capital-market-assumptions-USD.pdf?utm_source=chatgpt.com
A8: SSGA | B8: p5 prevision à 5 ans | C8: https://www.ssga.com/library-content/assets/pdf/global/ltacf/2025/long-term-asset-class-forecasts-q2-2025.pdf?utm_source=chatgpt.com

Sheet Primes
A1: Home
M2: 2026-2027 | N2: =2026+N3 -> 2028 | O2: 2029 | P2: 2030 | Q2: 2031 | S2: Données marché | T2: Assurance-vie ind. | U2: Epargne retraite PERin | V2: Contrats de capitalisation
A3: Année | B3: Courtier | C3: PER/AV/Capi | D3: Age 30 / 50 | E3: H/F | F3: Nb contrat | G3: Nb Contrat Stressé | H3: Panier Moyen | I3: Prime | L3: Année | M3: 1 | N3: 2 | O3: 3 | P3: 4 | Q3: 5 | S3: Primes 2023 | T3: 123,700,000,000 € | U3: 8,729,000,000 € | V3: 8,114,000,000 €
A4: 1 | B4: Courtier Internet | C4: AV | D4: 30 | E4: H | F4: 390 | G4: =ROUND(F4*OFFSET(stress_nb_contrat,A4-1,0),0) -> 390 | H4: 15,000 | I4: =G4*H4 -> 5,850,000 | L4: # contrats AV | M4: =SUMIFS($G$4:$G$100,$C$4:$C$100,"AV",$A$4:$A$100,M$3) -> 3,332 | N4: 4,460 | O4: 6,840 | P4: 9,504 | Q4: 11,390 | S4: Stock contrats | T4: 46465000 | U4: 3534000 | V4: 878000
A5: 1 | B5: Courtier Internet | C5: AV | D5: 50 | E5: H | F5: 1575 | G5: 1,575 | H5: 30,000 | I5: =F5*H5 -> 47,250,000 | L5: Panier moy. AV | M5: =M6/M4 -> 27,191 | N5: 27,410 | O5: 27,339 | P5: 27,483 | Q5: 27,919 | S5: Nouveaux contrats 2023 | T5: 2534000 | U5: 633000 | V5: 35000
A6: 1 | B6: Courtier Internet | C6: AV | D6: 30 | E6: F | F6: 300 | G6: 300 | H6: 15,000 | I6: 4,500,000 | L6: Prime AV | M6: =SUMIFS($I$4:$I$100,$C$4:$C$100,"AV",$A$4:$A$100,M$3) -> 90,600,000 | N6: 122,250,000 | O6: 187,000,000 | P6: 261,200,000 | Q6: 318,000,000 | S6: Panier moyen 2023 | T6: =T3/T4 -> 2,662 € | U6: 2,470 € | V6: 9,241 €
A7: 1 | B7: Courtier Internet | C7: AV | D7: 50 | E7: F | F7: 1050 | G7: 1,050 | H7: 30,000 | I7: 31,500,000 | L7: # contrats PER | M7: =SUMIFS($G$4:$G$100,$C$4:$C$100,"PER",$A$4:$A$100,M$3) -> 302 | N7: 430 | O7: 700 | P7: 1,028 | Q7: 1,340
A8: 1 | B8: Courtier Internet | C8: PER | D8: 30 | E8: H | F8: 75 | G8: 75 | H8: 10,000 | I8: 750,000 | L8: Panier moy. PER | M8: =M9/M7 -> 22,914 | N8: 23,581 | O8: 25,429 | P8: 26,304 | Q8: 26,776 | S8: Nombre de contrats / an | T8: Assurance-vie | U8: Epargne retraite | V8: Contrats de capitalisation
A9: 1 | B9: Courtier Internet | C9: PER | D9: 50 | E9: H | F9: 105 | G9: 105 | H9: 30,000 | I9: 3,150,000 | L9: Prime PER | M9: =SUMIFS($I$4:$I$100,$C$4:$C$100,"PER",$A$4:$A$100,M$3) -> 6,920,000 | N9: 10,140,000 | O9: 17,800,000 | P9: 27,040,000 | Q9: 35,880,000 | S9: Courtiers | T9: 10,000 | U9: 1,500 | V9: 50
A10: 1 | B10: Courtier Internet | C10: PER | D10: 30 | E10: F | F10: 45 | G10: 45 | H10: 10,000 | I10: 450,000 | L10: # contrats Capi | M10: =SUMIFS($G$4:$G$100,$C$4:$C$100,"Capi",$A$4:$A$100,M$3) -> 10 | N10: 15 | O10: 45 | P10: 90 | Q10: 130 | S10: CGP/CIF | T10: 1,000 | U10: 150 | V10: 75
A11: 1 | B11: Courtier Internet | C11: PER | D11: 50 | E11: F | F11: 60 | G11: 60 | H11: 30,000 | I11: 1,800,000 | L11: Panier moy. Capi | M11: =M12/M10 -> 42,000 | N11: 36,667 | O11: 36,667 | P11: 36,667 | Q11: 37,692
A12: 1 | B12: Courtier Internet | C12: Capi | D12: NA | E12: NA | F12: 2 | G12: 2 | H12: 10,000 | I12: 20,000 | L12: Prime Capi | M12: =SUMIFS($I$4:$I$100,$C$4:$C$100,"Capi",$A$4:$A$100,M$3) -> 420,000 | N12: 550,000 | O12: 1,650,000 | P12: 3,300,000 | Q12: 4,900,000 | S12: Paniers moyens B_Life | T12: Assurance-vie | U12: Epargne retraite | V12: Contrats de capitalisation
A13: 1 | B13: CGP/FO/CIF | C13: AV | D13: 30 | E13: H | F13: 2 | G13: 2 | H13: 50,000 | I13: 100,000 | S13: Courtiers | T13: 30,000 | U13: 10,000 | V13: 10,000
A14: 1 | B14: CGP/FO/CIF | C14: AV | D14: 50 | E14: H | F14: 8 | G14: 8 | H14: 100,000 | I14: 800,000 | L14: Total # contrats | M14: =SUM(M4,M7,M10) -> 3,644 | N14: 4,905 | O14: 7,585 | P14: 10,622 | Q14: 12,860 | S14: CGP/CIF | T14: 100,000 | U14: 50,000 | V14: 50,000
A15: 1 | B15: CGP/FO/CIF | C15: AV | D15: 30 | E15: F | F15: 2 | G15: 2 | H15: 50,000 | I15: 100,000 | L15: Total prime | M15: =SUM(M6,M9,M12) -> 97,940,000 | N15: 132,940,000 | O15: 206,450,000 | P15: 291,540,000 | Q15: 358,780,000
A16: 1 | B16: CGP/FO/CIF | C16: AV | D16: 50 | E16: F | F16: 5 | G16: 5 | H16: 100,000 | I16: 500,000 | L16: Age moyen | M16: =ROUND( (SUMIFS($G$4:$G$100,$D$4:$D$100,"30",$A$4:$A$100,M$3)*30 + SUMIFS($G$4:$G$100,$D$4:$D$100,"50",$A$4:$A$100,M$3)*50)/M14,0) -> 45 | N16: 45 | O16: 44 | P16: 44 | Q16: 45
A17: 1 | B17: CGP/FO/CIF | C17: PER | D17: 30 | E17: H | F17: 2 | G17: 2 | H17: 30,000 | I17: 60,000 | N17: =N15-M15 -> 35,000,000 | O17: 73,510,000 | P17: 85,090,000 | Q17: 67,240,000
A18: 1 | B18: CGP/FO/CIF | C18: PER | D18: 50 | E18: H | F18: 8 | G18: 8 | H18: 50,000 | I18: 400,000
A19: 1 | B19: CGP/FO/CIF | C19: PER | D19: 30 | E19: F | F19: 2 | G19: 2 | H19: 30,000 | I19: 60,000 | L19: AV H | M19: =SUMIFS($F$4:$F$100,$C$4:$C$100,"AV",$A$4:$A$100,M$3,$E$4:$E$100,"H")/M4 -> 59% | N19: 59% | O19: 60% | P19: 57% | Q19: 54%
A20: 1 | B20: CGP/FO/CIF | C20: PER | D20: 50 | E20: F | F20: 5 | G20: 5 | H20: 50,000 | I20: 250,000 | L20: AV F | M20: =SUMIFS($F$4:$F$100,$C$4:$C$100,"AV",$A$4:$A$100,M$3,$E$4:$E$100,"F")/M4 -> 41% | N20: 41% | O20: 40% | P20: 43% | Q20: 46%
A21: 1 | B21: CGP/FO/CIF | C21: Capi | D21: NA | E21: NA | F21: 8 | G21: 8 | H21: 50,000 | I21: 400,000 | L21: PER H | M21: =SUMIFS($F$4:$F$100,$C$4:$C$100,"PER",$A$4:$A$100,M$3,$E$4:$E$100,"H")/M7 -> 63% | N21: 61% | O21: 63% | P21: 62% | Q21: 63%
A22: 2 | B22: Courtier Internet | C22: AV | D22: 30 | E22: H | F22: 600 | G22: 600 | H22: 15,000 | I22: 9,000,000 | L22: PER F | M22: =SUMIFS($F$4:$F$100,$C$4:$C$100,"PER",$A$4:$A$100,M$3,$E$4:$E$100,"F")/M7 -> 37% | N22: 39% | O22: 37% | P22: 38% | Q22: 37%
A23: 2 | B23: Courtier Internet | C23: AV | D23: 50 | E23: H | F23: 2,000 | G23: 2,000 | H23: 30,000 | I23: 60,000,000
A24: 2 | B24: Courtier Internet | C24: AV | D24: 30 | E24: F | F24: 400 | G24: 400 | H24: 15,000 | I24: 6,000,000 | L24: Evolution
A25: 2 | B25: Courtier Internet | C25: AV | D25: 50 | E25: F | F25: 1,400 | G25: 1,400 | H25: 30,000 | I25: 42,000,000 | L25: Courtier Internet | M25: AV | N25: F | O25: 30
A26: 2 | B26: Courtier Internet | C26: PER | D26: 30 | E26: H | F26: 100 | G26: 100 | H26: 10,000 | I26: 1,000,000
A27: 2 | B27: Courtier Internet | C27: PER | D27: 50 | E27: H | F27: 140 | G27: 140 | H27: 30,000 | I27: 4,200,000 | L27: Année | M27: 1 | N27: 2 | O27: 3 | P27: 4 | Q27: 5
A28: 2 | B28: Courtier Internet | C28: PER | D28: 30 | E28: F | F28: 70 | G28: 70 | H28: 10,000 | I28: 700,000 | L28: # contrats stressé | M28: =SUMIFS($G$4:$G$100,$A$4:$A$100,M$27,$B$4:$B$100,$L$25,$C$4:$C$100,$M$25,$D$4:$D$100,$O$25,$E$4:$E$100,$N$25) -> 300 | N28: 400 | O28: 700 | P28: 1000 | Q28: 1200
A29: 2 | B29: Courtier Internet | C29: PER | D29: 50 | E29: F | F29: 80 | G29: 80 | H29: 30,000 | I29: 2,400,000 | L29: % progression | N29: =N28/M28-1 -> 33% | O29: 75% | P29: 43% | Q29: 20%
A30: 2 | B30: Courtier Internet | C30: Capi | D30: NA | E30: NA | F30: 5 | G30: 5 | H30: 10,000 | I30: 50,000 | L30: Panier moy. | M30: =SUMIFS($H$4:$H$100,$A$4:$A$100,M$27,$B$4:$B$100,$L$25,$C$4:$C$100,$M$25,$D$4:$D$100,$O$25,$E$4:$E$100,$N$25) -> 15,000 | N30: 15,000 | O30: 15,000 | P30: 15,000 | Q30: 15,000
A31: 2 | B31: CGP/FO/CIF | C31: AV | D31: 30 | E31: H | F31: 10 | G31: 10 | H31: 50,000 | I31: 500,000 | L31: Prime | M31: =SUMIFS($I$4:$I$100,$A$4:$A$100,M$27,$B$4:$B$100,$L$25,$C$4:$C$100,$M$25,$D$4:$D$100,$O$25,$E$4:$E$100,$N$25) -> 4,500,000 | N31: 6,000,000 | O31: 10,500,000 | P31: 15,000,000 | Q31: 18,000,000
A32: 2 | B32: CGP/FO/CIF | C32: AV | D32: 50 | E32: H | F32: 30 | G32: 30 | H32: 100,000 | I32: 3,000,000 | L32: % progression | N32: =N31/M31-1 -> 33% | O32: 75% | P32: 43% | Q32: 20%
A33: 2 | B33: CGP/FO/CIF | C33: AV | D33: 30 | E33: F | F33: 5 | G33: 5 | H33: 50,000 | I33: 250,000
A34: 2 | B34: CGP/FO/CIF | C34: AV | D34: 50 | E34: F | F34: 15 | G34: 15 | H34: 100,000 | I34: 1,500,000
A35: 2 | B35: CGP/FO/CIF | C35: PER | D35: 30 | E35: H | F35: 4 | G35: 4 | H35: 30,000 | I35: 120,000
A36: 2 | B36: CGP/FO/CIF | C36: PER | D36: 50 | E36: H | F36: 20 | G36: =ROUND(F36*OFFSET(stress_nb_contrat,A36-1,0),0) -> 20 | H36: 50,000 | I36: 1,000,000
A37: 2 | B37: CGP/FO/CIF | C37: PER | D37: 30 | E37: F | F37: 4 | G37: 4 | H37: 30,000 | I37: 120,000
A38: 2 | B38: CGP/FO/CIF | C38: PER | D38: 50 | E38: F | F38: 12 | G38: 12 | H38: 50,000 | I38: 600,000
A39: 2 | B39: CGP/FO/CIF | C39: Capi | D39: NA | E39: NA | F39: 10 | G39: 10 | H39: 50,000 | I39: 500,000
A40: 3 | B40: Courtier Internet | C40: AV | D40: 30 | E40: H | F40: 1000 | G40: 1,000 | H40: 15,000 | I40: 15,000,000
A41: 3 | B41: Courtier Internet | C41: AV | D41: 50 | E41: H | F41: 3000 | G41: 3,000 | H41: 30,000 | I41: 90,000,000
A42: 3 | B42: Courtier Internet | C42: AV | D42: 30 | E42: F | F42: 700 | G42: 700 | H42: 15,000 | I42: 10,500,000
A43: 3 | B43: Courtier Internet | C43: AV | D43: 50 | E43: F | F43: 2000 | G43: 2,000 | H43: 30,000 | I43: 60,000,000
A44: 3 | B44: Courtier Internet | C44: PER | D44: 30 | E44: H | F44: 150 | G44: 150 | H44: 10,000 | I44: 1,500,000
A45: 3 | B45: Courtier Internet | C45: PER | D45: 50 | E45: H | F45: 230 | G45: 230 | H45: 30,000 | I45: 6,900,000
A46: 3 | B46: Courtier Internet | C46: PER | D46: 30 | E46: F | F46: 90 | G46: 90 | H46: 10,000 | I46: 900,000
A47: 3 | B47: Courtier Internet | C47: PER | D47: 50 | E47: F | F47: 130 | G47: 130 | H47: 30,000 | I47: 3,900,000
A48: 3 | B48: Courtier Internet | C48: Capi | D48: NA | E48: NA | F48: 15 | G48: 15 | H48: 10,000 | I48: 150,000
A49: 3 | B49: CGP/FO/CIF | C49: AV | D49: 30 | E49: H | F49: 30 | G49: 30 | H49: 50,000 | I49: 1,500,000
A50: 3 | B50: CGP/FO/CIF | C50: AV | D50: 50 | E50: H | F50: 50 | G50: 50 | H50: 100,000 | I50: 5,000,000
A51: 3 | B51: CGP/FO/CIF | C51: AV | D51: 30 | E51: F | F51: 20 | G51: 20 | H51: 50,000 | I51: 1,000,000
A52: 3 | B52: CGP/FO/CIF | C52: AV | D52: 50 | E52: F | F52: 40 | G52: 40 | H52: 100,000 | I52: 4,000,000
A53: 3 | B53: CGP/FO/CIF | C53: PER | D53: 30 | E53: H | F53: 10 | G53: 10 | H53: 30,000 | I53: 300,000
A54: 3 | B54: CGP/FO/CIF | C54: PER | D54: 50 | E54: H | F54: 50 | G54: 50 | H54: 50,000 | I54: 2,500,000
A55: 3 | B55: CGP/FO/CIF | C55: PER | D55: 30 | E55: F | F55: 10 | G55: 10 | H55: 30,000 | I55: 300,000
A56: 3 | B56: CGP/FO/CIF | C56: PER | D56: 50 | E56: F | F56: 30 | G56: 30 | H56: 50,000 | I56: 1,500,000
A57: 3 | B57: CGP/FO/CIF | C57: Capi | D57: NA | E57: NA | F57: 30 | G57: 30 | H57: 50,000 | I57: 1,500,000
A58: 4 | B58: Courtier Internet | C58: AV | D58: 30 | E58: H | F58: 1300 | G58: 1,300 | H58: 15,000 | I58: 19,500,000
A59: 4 | B59: Courtier Internet | C59: AV | D59: 50 | E59: H | F59: 4000 | G59: 4,000 | H59: 30,000 | I59: 120,000,000
A60: 4 | B60: Courtier Internet | C60: AV | D60: 30 | E60: F | F60: 1000 | G60: 1,000 | H60: 15,000 | I60: 15,000,000
A61: 4 | B61: Courtier Internet | C61: AV | D61: 50 | E61: F | F61: 3000 | G61: 3,000 | H61: 30,000 | I61: 90,000,000
A62: 4 | B62: Courtier Internet | C62: PER | D62: 30 | E62: H | F62: 150 | G62: 150 | H62: 10,000 | I62: 1,500,000
A63: 4 | B63: Courtier Internet | C63: PER | D63: 50 | E63: H | F63: 400 | G63: 400 | H63: 30,000 | I63: 12,000,000
A64: 4 | B64: Courtier Internet | C64: PER | D64: 30 | E64: F | F64: 150 | G64: 150 | H64: 10,000 | I64: 1,500,000
A65: 4 | B65: Courtier Internet | C65: PER | D65: 50 | E65: F | F65: 190 | G65: 190 | H65: 30,000 | I65: 5,700,000
A66: 4 | B66: Courtier Internet | C66: Capi | D66: NA | E66: NA | F66: 30 | G66: 30 | H66: 10,000 | I66: 300,000
A67: 4 | B67: CGP/FO/CIF | C67: AV | D67: 30 | E67: H | F67: 60 | G67: 60 | H67: 50,000 | I67: 3,000,000
A68: 4 | B68: CGP/FO/CIF | C68: AV | D68: 50 | E68: H | F68: 90 | G68: =ROUND(F68*OFFSET(stress_nb_contrat,A68-1,0),0) -> 90 | H68: 100,000 | I68: 9,000,000
A69: 4 | B69: CGP/FO/CIF | C69: AV | D69: 30 | E69: F | F69: 14 | G69: 14 | H69: 50,000 | I69: 700,000
A70: 4 | B70: CGP/FO/CIF | C70: AV | D70: 50 | E70: F | F70: 40 | G70: 40 | H70: 100,000 | I70: 4,000,000
A71: 4 | B71: CGP/FO/CIF | C71: PER | D71: 30 | E71: H | F71: 14 | G71: 14 | H71: 30,000 | I71: 420,000
A72: 4 | B72: CGP/FO/CIF | C72: PER | D72: 50 | E72: H | F72: 70 | G72: 70 | H72: 50,000 | I72: 3,500,000
A73: 4 | B73: CGP/FO/CIF | C73: PER | D73: 30 | E73: F | F73: 14 | G73: 14 | H73: 30,000 | I73: 420,000
A74: 4 | B74: CGP/FO/CIF | C74: PER | D74: 50 | E74: F | F74: 40 | G74: 40 | H74: 50,000 | I74: 2,000,000
A75: 4 | B75: CGP/FO/CIF | C75: Capi | D75: NA | E75: NA | F75: 60 | G75: 60 | H75: 50,000 | I75: 3,000,000
A76: 5 | B76: Courtier Internet | C76: AV | D76: 30 | E76: H | F76: 1400 | G76: 1,400 | H76: 15,000 | I76: 21,000,000
A77: 5 | B77: Courtier Internet | C77: AV | D77: 50 | E77: H | F77: 4500 | G77: 4,500 | H77: 30,000 | I77: 135,000,000
A78: 5 | B78: Courtier Internet | C78: AV | D78: 30 | E78: F | F78: 1200 | G78: 1,200 | H78: 15,000 | I78: 18,000,000
A79: 5 | B79: Courtier Internet | C79: AV | D79: 50 | E79: F | F79: 4000 | G79: 4,000 | H79: 30,000 | I79: 120,000,000
A80: 5 | B80: Courtier Internet | C80: PER | D80: 30 | E80: H | F80: 190 | G80: 190 | H80: 10,000 | I80: 1,900,000
A81: 5 | B81: Courtier Internet | C81: PER | D81: 50 | E81: H | F81: 550 | G81: 550 | H81: 30,000 | I81: 16,500,000
A82: 5 | B82: Courtier Internet | C82: PER | D82: 30 | E82: F | F82: 170 | G82: 170 | H82: 10,000 | I82: 1,700,000
A83: 5 | B83: Courtier Internet | C83: PER | D83: 50 | E83: F | F83: 250 | G83: 250 | H83: 30,000 | I83: 7,500,000
A84: 5 | B84: Courtier Internet | C84: Capi | D84: NA | E84: NA | F84: 40 | G84: 40 | H84: 10,000 | I84: 400,000
A85: 5 | B85: CGP/FO/CIF | C85: AV | D85: 30 | E85: H | F85: 80 | G85: 80 | H85: 50,000 | I85: 4,000,000
A86: 5 | B86: CGP/FO/CIF | C86: AV | D86: 50 | E86: H | F86: 130 | G86: 130 | H86: 100,000 | I86: 13,000,000
A87: 5 | B87: CGP/FO/CIF | C87: AV | D87: 30 | E87: F | F87: 20 | G87: 20 | H87: 50,000 | I87: 1,000,000
A88: 5 | B88: CGP/FO/CIF | C88: AV | D88: 50 | E88: F | F88: 60 | G88: 60 | H88: 100,000 | I88: 6,000,000
A89: 5 | B89: CGP/FO/CIF | C89: PER | D89: 30 | E89: H | F89: 18 | G89: 18 | H89: 30,000 | I89: 540,000
A90: 5 | B90: CGP/FO/CIF | C90: PER | D90: 50 | E90: H | F90: 90 | G90: 90 | H90: 50,000 | I90: 4,500,000
A91: 5 | B91: CGP/FO/CIF | C91: PER | D91: 30 | E91: F | F91: 18 | G91: 18 | H91: 30,000 | I91: 540,000
A92: 5 | B92: CGP/FO/CIF | C92: PER | D92: 50 | E92: F | F92: 54 | G92: 54 | H92: 50,000 | I92: 2,700,000
A93: 5 | B93: CGP/FO/CIF | C93: Capi | D93: NA | E93: NA | F93: 90 | G93: 90 | H93: 50,000 | I93: 4,500,000

Sheet Apporteur partenariats
A1: Marge brute = Marge perçue par l'assureur sur les frais de gestions après redistribution de la commission du distributeur
A2: Marge nette = 50% x Marge brute
A4: Ex : Frais de gestion d'un contrat souscrit par le client à 1% (100bp)
A5: Philosophie
A6: Marge brute distributeur = 70bp
A7: Marge brute assureur = 30bp
A8: Marge nette pour les calculs des commissions d'apporteurs d'affaires = 30x50% = 15 bp
A9: Le prélèvement des frais serait trimestriel chez B Life, en post compte. Votre commission sera versée à cette occasion.
A12: Marge brute | B12: =frais_gestion_UC -> 0.39%
A13: Marge nette | B13: =50%*B12 -> 0.20% | C13: => En pratique devra être figé contractuellement car difficile à calculer de façon précise et peut petre volatile
A15: Report BP
A16: Année | B16: 1 | C16: 2 | D16: 3 | E16: 4 | F16: 5 | G16: 6 | H16: 7
A17: commission | B17: =E22 -> 48,750 | C17: =E23 -> 73,125 | D17: =E24 -> 87,750 | E17: =E25 -> 48,750 | F17: =AVERAGE(B17:E17) -> 64,594 | G17: 68,555 | H17: 67,412
A20: Pour un distributeur 1 | D20: Commission | G20: Pour un distributeur 2 | J20: Commission
B21: Flux | C21: Stock | D21: en % marge | E21: en € | H21: Flux | I21: Stock | J21: en % marge | K21: en €
A22: Année 1 | B22: 50,000,000 | C22: =B22 -> 50,000,000 | D22: 50% | E22: =D22*C22*$B$13 -> 48,750 | G22: Année 2 | H22: 50,000,000 | I22: =H22 -> 50,000,000 | J22: 50% | K22: =J22*I22*$B$13 -> 48,750
A23: Année 2 | B23: 100,000,000 | C23: =C22+B23 -> 150,000,000 | D23: 25% | E23: 73,125 | G23: Année 3 | H23: 100,000,000 | I23: =I22+H23 -> 150,000,000 | J23: 25% | K23: 73,125
A24: Année 3 | B24: 150,000,000 | C24: 300,000,000 | D24: 15% | E24: 87,750 | G24: Année 4 | H24: 150,000,000 | I24: 300,000,000 | J24: 15% | K24: 87,750
A25: Année 4 | B25: 200,000,000 | C25: 500,000,000 | D25: 5% | E25: 48,750 | G25: Année 5 | H25: 200,000,000 | I25: 500,000,000 | J25: 5% | K25: 48,750
A27: Total | D27: =SUM(D22:D26) -> 95% | E27: 258,375 | G27: Total | J27: =SUM(J22:J26) -> 95% | K27: 258,375

Sheet --> Calculs

Sheet RH
A1: Home | B1: Headcount
A3: Fonction | B3: Classification | C3: Salaire brut kEUR
A4: Service client, MO | B4: T1 | C4: 40
A5: Cadre Junior | B5: T2 | C5: 60
A6: Cadre Senior | B6: T3 | C6: 80
A7: C Level | B7: T4 | C7: 110
A9: Coeff brut salarié -> total employeur | C9: 41%
A10: Nombre de contrats gérés par gestionnaire : | C10: 10,000 | K10: Clé de ventilation pour année 3 et plus
K11: =SUM(K15:K16)/SUM($K$15:$O$16) -> 54% | L11: 7% | M11: 2% | N11: 11% | O11: 25%
C12: cf RH - Detail pour année 1 & 2, par grande masse année 3 et plus
K13: Destination montant par année
B14: Année | C14: T1 | D14: T2 | E14: T3 | F14: T4 | G14: Nb salarié au 31.12 | H14: cout additionnel /an | K14: Acquisition | L14: Admin | M14: Sinistre - Frais de prestations | N14: Frais interne de gestions des placements | O14: Autres charges techniques | P14: cout total
A15: année partielle | B15: 2026 | G15: =SUMIFS(Personnel!F$13:F$91,Personnel!$G$13:$G$91,"<" & DATE($B16,1,1),Personnel!$I$13:$I$91,">" & DATE($B16,12,31)) -> 13 | K15: =SUMIFS(Personnel!AA$13:AA$91,Personnel!$G$13:$G$91,"<" & DATE($B15,1,1),Personnel!$I$13:$I$91,">" & DATE($B15,12,31))+SUMIFS(Personnel!AG$13:AG$91,Personnel!$G$13:$G$91,">" & DATE($B15,1,1),Personnel!$G$13:$G$91,"<" & DATE($B15,12,31)) +SUMIFS(Personnel!AM$13:AM$91,Personnel!$G$13:$G$91,">" & DATE($B15,1,1),Personnel!$G$13:$G$91,"<" & DATE($B15,12,31)) -> 294,846 | L15: =SUMIFS(Personnel!AB$13:AB$91,Personnel!$G$13:$G$91,"<" & DATE($B15,1,1),Personnel!$I$13:$I$91,">" & DATE($B15,12,31))+SUMIFS(Personnel!AH$13:AH$91,Personnel!$G$13:$G$91,">" & DATE($B15,1,1),Personnel!$G$13:$G$91,"<" & DATE($B15,12,31)) -> 33,723 | M15: =SUMIFS(Personnel!AC$13:AC$91,Personnel!$G$13:$G$91,"<" & DATE($B15,1,1),Personnel!$I$13:$I$91,">" & DATE($B15,12,31))+SUMIFS(Personnel!AI$13:AI$91,Personnel!$G$13:$G$91,">" & DATE($B15,1,1),Personnel!$G$13:$G$91,"<" & DATE($B15,12,31)) -> 9,512 | N15: =SUMIFS(Personnel!AD$13:AD$91,Personnel!$G$13:$G$91,"<" & DATE($B15,1,1),Personnel!$I$13:$I$91,">" & DATE($B15,12,31))+SUMIFS(Personnel!AJ$13:AJ$91,Personnel!$G$13:$G$91,">" & DATE($B15,1,1),Personnel!$G$13:$G$91,"<" & DATE($B15,12,31)) -> 52,808 | O15: =SUMIFS(Personnel!AE$13:AE$91,Personnel!$G$13:$G$91,"<" & DATE($B15,1,1),Personnel!$I$13:$I$91,">" & DATE($B15,12,31))+SUMIFS(Personnel!AK$13:AK$91,Personnel!$G$13:$G$91,">" & DATE($B15,1,1),Personnel!$G$13:$G$91,"<" & DATE($B15,12,31)) -> 117,182 | P15: =SUM(K15:O15) -> 508,071
B16: =B15+1 -> 2027 | G16: =SUMIFS(Personnel!F$13:F$91,Personnel!$G$13:$G$91,"<" & DATE($B17,1,1),Personnel!$I$13:$I$91,">" & DATE($B17,12,31)) -> 13 | K16: =SUMIFS(Personnel!AA$13:AA$91,Personnel!$G$13:$G$91,"<" & DATE($B16,1,1),Personnel!$I$13:$I$91,">" & DATE($B16,12,31)) -> 638,520 | L16: =SUMIFS(Personnel!AB$13:AB$91,Personnel!$G$13:$G$91,"<" & DATE($B16,1,1),Personnel!$I$13:$I$91,">" & DATE($B16,12,31)) -> 93,596 | M16: =SUMIFS(Personnel!AC$13:AC$91,Personnel!$G$13:$G$91,"<" & DATE($B16,1,1),Personnel!$I$13:$I$91,">" & DATE($B16,12,31)) -> 29,126 | N16: =SUMIFS(Personnel!AD$13:AD$91,Personnel!$G$13:$G$91,"<" & DATE($B16,1,1),Personnel!$I$13:$I$91,">" & DATE($B16,12,31)) -> 136,651 | O16: =SUMIFS(Personnel!AE$13:AE$91,Personnel!$G$13:$G$91,"<" & DATE($B16,1,1),Personnel!$I$13:$I$91,">" & DATE($B16,12,31)) -> 307,147 | P16: 1,205,041
B17: 2028 | D17: 2 | G17: =SUM(C17:F17)+G16 -> 15 | H17: =(C17*$C$4+D17*$C$5+E17*$C$6+F17*$C$7)*(1+taux_charges_patronales)*1000 -> 169,200 | K17: =K16+$K$11*$H17 -> 730,707 | L17: =L16+$L$11*$H17 -> 106,171 | M17: =M16+$M$11*$H17 -> 32,942 | N17: =N16+$N$11*$H17 -> 155,364 | O17: =O16+$O$11*$H17 -> 349,057 | P17: 1,374,241
B18: 2029 | D18: 2 | E18: 1 | G18: 18 | H18: 282,000 | K18: 884,351 | L18: 127,130 | M18: 39,302 | N18: 186,551 | O18: 418,907 | P18: 1,656,241
B19: 2030 | C19: 1 | D19: 1 | E19: 1 | G19: 21 | H19: 253,800 | K19: 1,022,630 | L19: 145,992 | M19: 45,026 | N19: 214,620 | O19: 481,772 | P19: 1,910,041
B20: 2031 | C20: 1 | D20: 1 | G20: 23 | H20: 141,000 | K20: 1,099,452 | L20: 156,471 | M20: 48,207 | N20: 230,214 | O20: 516,697 | P20: 2,051,041
B21: 2032 | C21: 1 | D21: 1 | G21: 25 | H21: 141,000 | K21: 1,176,274 | L21: 166,950 | M21: 51,387 | N21: 245,807 | O21: 551,622 | P21: 2,192,041
B22: 2033 | C22: 1 | E22: 1 | G22: 27 | H22: 169,200 | K22: 1,268,461 | L22: 179,525 | M22: 55,203 | N22: 264,520 | O22: 593,532 | P22: 2,361,241
B23: 2034 | C23: 1 | D23: 1 | G23: 29 | H23: 141,000 | K23: 1,345,283 | L23: 190,005 | M23: 58,383 | N23: 280,113 | O23: 628,457 | P23: 2,502,241
B24: 2035 | C24: 1 | E24: 1 | G24: 31 | H24: 169,200 | K24: 1,437,469 | L24: 202,580 | M24: 62,199 | N24: 298,826 | O24: 670,367 | P24: 2,671,441
B25: 2036 | C25: 1 | D25: 1 | G25: 33 | H25: 141,000 | K25: 1,514,291 | L25: 213,059 | M25: 65,379 | N25: 314,420 | O25: 705,292 | P25: 2,812,441
B26: 2037 | C26: 1 | E26: 1 | G26: 35 | H26: 169,200 | K26: 1,606,477 | L26: 225,634 | M26: 69,195 | N26: 333,132 | O26: 747,202 | P26: 2,981,641

Sheet BP=>

Sheet BP Financier
B1: B-Life Business Plan
B2: Année | C2: 2026-2027 | D2: 2028 | E2: =D2+1 -> 2029 | F2: 2030 | G2: 2031
B3: Année | C3: 1 | D3: =C3+1 -> 2 | E3: 3 | F3: 4 | G3: 5
B5: ="Scenario : " & Scenarii!B6 -> Scenario : Base Case | C5: =OFFSET(Scenarii!C6,Scenarii!C6,0) -> Description : ...
B6: Rendement Fonds propres | C6: =Scenarii!C45 -> 3% | E6: Commission assureur UC
B7: Rendement Fonds Général | C7: =Scenarii!D45 -> 3% | E7: Commission assureur FG
B8: Proportion Fonds Général en % encours | C8: =pct_encours_FG -> 65% | E8: Quote part participation aux bénéfices
B9: Les coûts des prestataires sont TTC, pas de récupération de la TVA
B11: Build-up Encours
C13: 2026-2027 | D13: 2028 | E13: =D13+1 -> 2029 | F13: 2030 | G13: 2031
B14: Nb contrats AV | C14: =Primes!M4 -> 3,332 | D14: =Primes!N4 -> 4,460 | E14: =Primes!O4 -> 6,840 | F14: =Primes!P4 -> 9,504 | G14: =Primes!Q4 -> 11,390
B15: Panier moy. AV (€) | C15: =Primes!M5 -> 27,191 | D15: =Primes!N5 -> 27,410 | E15: =Primes!O5 -> 27,339 | F15: =Primes!P5 -> 27,483 | G15: =Primes!Q5 -> 27,919
B16: Prime AV (€) | C16: =Primes!M6 -> 90,600,000 | D16: =Primes!N6 -> 122,250,000 | E16: =Primes!O6 -> 187,000,000 | F16: =Primes!P6 -> 261,200,000 | G16: =Primes!Q6 -> 318,000,000
B17: Nb contrats PER | C17: =Primes!M7 -> 302 | D17: =Primes!N7 -> 430 | E17: =Primes!O7 -> 700 | F17: =Primes!P7 -> 1,028 | G17: =Primes!Q7 -> 1,340
B18: Panier moy. PER (€) | C18: =Primes!M8 -> 22,914 | D18: =Primes!N8 -> 23,581 | E18: =Primes!O8 -> 25,429 | F18: =Primes!P8 -> 26,304 | G18: =Primes!Q8 -> 26,776
B19: Prime PER (€) | C19: =Primes!M9 -> 6,920,000 | D19: =Primes!N9 -> 10,140,000 | E19: =Primes!O9 -> 17,800,000 | F19: =Primes!P9 -> 27,040,000 | G19: =Primes!Q9 -> 35,880,000
B20: Nb contrats Capi | C20: =Primes!M10 -> 10 | D20: =Primes!N10 -> 15 | E20: =Primes!O10 -> 45 | F20: =Primes!P10 -> 90 | G20: =Primes!Q10 -> 130
B21: Panier moy. Capi (€) | C21: =Primes!M11 -> 42,000 | D21: =Primes!N11 -> 36,667 | E21: =Primes!O11 -> 36,667 | F21: =Primes!P11 -> 36,667 | G21: =Primes!Q11 -> 37,692
B22: Prime Capi (€) | C22: =Primes!M12 -> 420,000 | D22: =Primes!N12 -> 550,000 | E22: =Primes!O12 -> 1,650,000 | F22: =Primes!P12 -> 3,300,000 | G22: =Primes!Q12 -> 4,900,000
B23: Total primes (€) | C23: =SUM(C16,C19,C22) -> 97,940,000 | D23: =SUM(D16,D19,D22) -> 132,940,000 | E23: =SUM(E16,E19,E22) -> 206,450,000 | F23: =SUM(F16,F19,F22) -> 291,540,000 | G23: =SUM(G16,G19,G22) -> 358,780,000
B25: Fonds Général & Fonds Propres
B26: Encours Fonds Général BOB | C26: 0 | D26: =C33 -> 59,298,967 | E26: 137,615,178 | F26: 256,225,770 | G26: 424,307,134
B27: + Prime | C27: =SUM(C16,C19) * pct_encours_FG -> 63,388,000 | D27: =SUM(D16,D19) * pct_encours_FG -> 86,053,500 | E27: =SUM(E16,E19) * pct_encours_FG -> 133,120,000 | F27: =SUM(F16,F19) * pct_encours_FG -> 187,356,000 | G27: =SUM(G16,G19) * pct_encours_FG -> 230,022,000
B28: - Sinistre (rachats+décès) | C28: =-OFFSET(Sinistres!$M$6, COLUMN(C5)-COLUMN($C$5),0)* pct_encours_FG -> (4,505,626) | D28: =-OFFSET(Sinistres!$M$6, COLUMN(D5)-COLUMN($C$5),0)* pct_encours_FG -> (9,120,669) | E28: =-OFFSET(Sinistres!$M$6, COLUMN(E5)-COLUMN($C$5),0)* pct_encours_FG -> (17,276,257) | F28: =-OFFSET(Sinistres!$M$6, COLUMN(F5)-COLUMN($C$5),0)* pct_encours_FG -> (24,055,581) | G28: =-OFFSET(Sinistres!$M$6, COLUMN(G5)-COLUMN($C$5),0)* pct_encours_FG -> (34,482,789)
B29: + Quote part produit financier FG assuré | C29: =C57-C64 -> 725,725 | D29: 2,409,917 | E29: 4,819,988 | F29: 8,328,643 | G29: 12,869,192
B30: - Prélèvement frais assureur | C30: =-C60 -> (132,485) | D30: (439,944) | E30: (879,917) | F30: (1,520,442) | G30: (2,349,345)
B31: - Prélèvement frais distributeur | C31: =-C62 -> (176,647) | D31: (586,592) | E31: (1,173,222) | F31: (2,027,256) | G31: (3,132,460)
B32: = Collecte nette FG | C32: =SUM(C27:C31) -> 59,298,967 | D32: 78,316,211 | E32: 118,610,592 | F32: 168,081,365 | G32: 202,926,597
B33: Encours Fonds Général EOB | C33: =C32+C26 -> 59,298,967 | D33: 137,615,178 | E33: 256,225,770 | F33: 424,307,134 | G33: 627,233,732
B34: Encours Moyen FG pour calcul frais et performance | C34: =(C26+SUM(C27:C28)/2) -> 29,441,187 | D34: 97,765,382 | E34: 195,537,049 | F34: 337,875,979 | G34: 522,076,740
B36: UC
B37: Encours UC BOB | C37: 0 | D37: =C44 -> 32,705,851 | E37: 76,619,839 | F37: 144,569,480 | G37: 242,667,152
B38: + Prime | C38: =SUM(C16,C19) * (1-pct_encours_FG) + C22 -> 34,552,000 | D38: =SUM(D16,D19) * (1-pct_encours_FG) + D22 -> 46,886,500 | E38: =SUM(E16,E19) * (1-pct_encours_FG) + E22 -> 73,330,000 | F38: =SUM(F16,F19) * (1-pct_encours_FG) + F22 -> 104,184,000 | G38: =SUM(G16,G19) * (1-pct_encours_FG) + G22 -> 128,758,000
B39: - Sinistre (rachats+décès) | C39: =-OFFSET(Sinistres!$M$6, COLUMN(C5)-COLUMN($C$5),0)* (1-pct_encours_FG) -> (2,426,106) | D39: =-OFFSET(Sinistres!$M$6, COLUMN(D5)-COLUMN($C$5),0)* (1-pct_encours_FG) -> (4,911,130) | E39: =-OFFSET(Sinistres!$M$6, COLUMN(E5)-COLUMN($C$5),0)* (1-pct_encours_FG) -> (9,302,600) | F39: =-OFFSET(Sinistres!$M$6, COLUMN(F5)-COLUMN($C$5),0)* (1-pct_encours_FG) -> (12,953,005) | G39: =-OFFSET(Sinistres!$M$6, COLUMN(G5)-COLUMN($C$5),0)* (1-pct_encours_FG) -> (18,567,655)
B40: + Plus-value des UC / Ajustement ACAV | C40: =C45* rdt_UC -> 738,980 | D40: =D45* rdt_UC -> 2,470,185 | E40: =E45* rdt_UC -> 4,997,713 | F40: =F45* rdt_UC -> 8,749,507 | G40: =G45* rdt_UC -> 13,698,630
B41: - Prélèvement frais assureur | C41: =-C61 -> (62,645) | D41: (209,405) | E41: (423,671) | F41: (741,721) | G41: (1,161,273)
B42: - Prélèvement frais distributeur | C42: =-C63 -> (96,378) | D42: (322,161) | E42: (651,801) | F42: (1,141,110) | G42: (1,786,574)
B43: = Collecte nette | C43: =SUM(C38:C42) -> 32,705,851 | D43: 43,913,989 | E43: 67,949,641 | F43: 98,097,671 | G43: 120,941,128
B44: Encours UC EOB | C44: =C43+C37 -> 32,705,851 | D44: 76,619,839 | E44: 144,569,480 | F44: 242,667,152 | G44: 363,608,279
B45: Encours Moyen UC pour calcul frais & performance | C45: =(C37+SUM(C38:C39)/2) -> 16,062,947 | D45: 53,693,536 | E45: 108,633,539 | F45: 190,184,978 | G45: 297,762,324
B46: Flux Produits Structurés (New Money et recyclage)
B47: Flux Private Assets
B48: Encours Nantissement / Crédit Lombard
B50: Encours Total cumulés EOB | C50: =C33+C44 -> 92,004,818 | D50: 214,235,017 | E50: 400,795,250 | F50: 666,974,286 | G50: 990,842,011
B52: Produits
B53: Intérêts du Fonds Général
B54: + Produits financiers brut Fonds Général | C54: =C34*OFFSET(rdt_FG, COLUMN(C5)-COLUMN($C$5),0) -> 883,236 | D54: =(D26+SUM(D27:D28)/2)*OFFSET(rdt_FG, COLUMN(D5)-COLUMN($C$5),0) -> 2,932,961 | E54: =(E26+SUM(E27:E28)/2)*OFFSET(rdt_FG, COLUMN(E5)-COLUMN($C$5),0) -> 5,866,111 | F54: =(F26+SUM(F27:F28)/2)*OFFSET(rdt_FG, COLUMN(F5)-COLUMN($C$5),0) -> 10,136,279 | G54: =(G26+SUM(G27:G28)/2)*OFFSET(rdt_FG, COLUMN(G5)-COLUMN($C$5),0) -> 15,662,302
B55: - Frais mandat et dépositaire FG | C55: =-frais_mandat_FG*C34 -> (29,441) | D55: =-frais_mandat_FG*D34 -> (97,765) | E55: =-frais_mandat_FG*E34 -> (195,537) | F55: =-frais_mandat_FG*F34 -> (337,876) | G55: =-frais_mandat_FG*G34 -> (522,077)
B56: - Intérets dette subordonnée | C56: 0 | D56: =-C147*10%*Quote_part_PB_Fonds_General -> 0 | E56: =-D147*10%*Quote_part_PB_Fonds_General -> 0 | F56: =-E147*10%*Quote_part_PB_Fonds_General -> 0 | G56: =-F147*10%*Quote_part_PB_Fonds_General -> 0
B57: = Produits financiers Fonds Général (N) | C57: =SUM(C54:C56) -> 853,794 | D57: 2,835,196 | E57: 5,670,574 | F57: 9,798,403 | G57: 15,140,225
B59: Produits Assurantiels
B60: + Frais de Gestion Assureur (FG) | C60: =frais_gestion_Euro*C34 -> 132,485 | D60: =frais_gestion_Euro*D34 -> 439,944 | E60: =frais_gestion_Euro*E34 -> 879,917 | F60: =frais_gestion_Euro*F34 -> 1,520,442 | G60: =frais_gestion_Euro*G34 -> 2,349,345
B61: + Frais de Gestion Assureur (UC) | C61: =frais_gestion_UC*C45 -> 62,645 | D61: =frais_gestion_UC*D45 -> 209,405 | E61: =frais_gestion_UC*E45 -> 423,671 | F61: =frais_gestion_UC*F45 -> 741,721 | G61: =frais_gestion_UC*G45 -> 1,161,273
B62: + Frais de Distribution FG (reversés aux distributeurs) | C62: =frais_distribution_FG*C34 -> 176,647 | D62: =frais_distribution_FG*D34 -> 586,592 | E62: =frais_distribution_FG*E34 -> 1,173,222 | F62: =frais_distribution_FG*F34 -> 2,027,256 | G62: =frais_distribution_FG*G34 -> 3,132,460
B63: + Frais de Distribution UC (reversés aux distributeurs) | C63: =frais_distribution_UC*C45 -> 96,378 | D63: =frais_distribution_UC*D45 -> 322,161 | E63: =frais_distribution_UC*E45 -> 651,801 | F63: =frais_distribution_UC*F45 -> 1,141,110 | G63: =frais_distribution_UC*G45 -> 1,786,574
B64: + Quote-part produits financiers Fonds Général | C64: =Quote_part_PB_Fonds_General*C57 -> 128,069 | D64: =Quote_part_PB_Fonds_General*D57 -> 425,279 | E64: =Quote_part_PB_Fonds_General*E57 -> 850,586 | F64: =Quote_part_PB_Fonds_General*F57 -> 1,469,761 | G64: =Quote_part_PB_Fonds_General*G57 -> 2,271,034
B65: + Primes encaissées Garantie Prévoyance
B66: + Intérêts nantissement / crédit lombard
B67: + Prime Garantie Plancher Optionnelle | C67: 0 | D67: 0 | E67: 0 | F67: 0 | G67: 0
B68: Brokerage
B69: + Commission brokerage Produits Structurés | C69: =commission_upfront_produits_structures*C50*OFFSET(pct_encours_produits_structures, COLUMN(C5)-COLUMN($C$5),0) -> 23,001 | D69: =commission_upfront_produits_structures*D50*OFFSET(pct_encours_produits_structures, COLUMN(D5)-COLUMN($C$5),0) -> 53,559 | E69: =commission_upfront_produits_structures*E50*OFFSET(pct_encours_produits_structures, COLUMN(E5)-COLUMN($C$5),0) -> 100,199 | F69: =commission_upfront_produits_structures*F50*OFFSET(pct_encours_produits_structures, COLUMN(F5)-COLUMN($C$5),0) -> 166,744 | G69: =commission_upfront_produits_structures*G50*OFFSET(pct_encours_produits_structures, COLUMN(G5)-COLUMN($C$5),0) -> 247,711
B70: + Commission primaire non-coté | C70: =commission_upfront_private_assets*C50*OFFSET(pct_encours_private_assets, COLUMN(C5)-COLUMN($C$5),0) -> 13,801 | D70: =commission_upfront_private_assets*D50*OFFSET(pct_encours_private_assets, COLUMN(D5)-COLUMN($C$5),0) -> 32,135 | E70: =commission_upfront_private_assets*E50*OFFSET(pct_encours_private_assets, COLUMN(E5)-COLUMN($C$5),0) -> 60,119 | F70: =commission_upfront_private_assets*F50*OFFSET(pct_encours_private_assets, COLUMN(F5)-COLUMN($C$5),0) -> 100,046 | G70: =commission_upfront_private_assets*G50*OFFSET(pct_encours_private_assets, COLUMN(G5)-COLUMN($C$5),0) -> 148,626
B71: + Commission secondaire non-coté
B72: Autres
B73: + Référencement AM
B74: + Publicité vitrines
B75: + Intérêts Fonds Propres LT | C75: =C156*OFFSET(rdt_FP, COLUMN(C5)-COLUMN($C$5),0) -> 420,000 | D75: =D156*OFFSET(rdt_FP, COLUMN(D5)-COLUMN($C$5),0) -> 372,452 | E75: =E156*OFFSET(rdt_FP, COLUMN(E5)-COLUMN($C$5),0) -> 798,587 | F75: =F156*OFFSET(rdt_FP, COLUMN(F5)-COLUMN($C$5),0) -> 805,754 | G75: =G156*OFFSET(rdt_FP, COLUMN(G5)-COLUMN($C$5),0) -> 840,817
B76: + Tréso opérationnelle | C76: =C157*1% -> 10,000 | D76: 10,000 | E76: 10,000 | F76: 10,000 | G76: 10,000
B77: + Production immobilisée
B79: = Total produits | C79: =SUM(C60:C77) -> 1,063,027 | D79: 2,451,528 | E79: 4,948,103 | F79: 7,982,833 | G79: 11,947,841
B80: = Total produits (sans frais de distribution) | C80: =C79-SUM(C62:C63) -> 790,002 | D80: 1,542,775 | E80: 3,123,079 | F80: 4,814,467 | G80: 7,028,806
B81: en % encours (sans frais de distrib) = RoA | C81: =C80/C50 -> 0.86% | D81: 0.72% | E81: 0.78% | F81: 0.72% | G81: 0.71%
B83: Charges
B84: Charges variables
B85: + Dépositaire (part FG) | C85: 0 | D85: 0 | E85: 0 | F85: 0 | G85: 0
B86: + Dépositaire (part UC) | C86: =MAX(40000,frais_depositaire*C45) -> 40,000 | D86: =MAX(40000,frais_depositaire*D45) -> 40,000 | E86: =MAX(40000,frais_depositaire*E45) -> 40,000 | F86: =MAX(40000,frais_depositaire*F45) -> 40,000 | G86: =MAX(40000,frais_depositaire*G45) -> 59,552
B87: + Commission frais de gestion du distributeur UC & FG | C87: =SUM(C62:C63) -> 273,025 | D87: 908,754 | E87: 1,825,024 | F87: 3,168,366 | G87: 4,919,034
B88: + Commission Apporteur Partenariats | C88: ='Apporteur partenariats'!B17 -> 48,750 | D88: ='Apporteur partenariats'!C17 -> 73,125 | E88: ='Apporteur partenariats'!D17 -> 87,750 | F88: ='Apporteur partenariats'!E17 -> 48,750 | G88: ='Apporteur partenariats'!F17 -> 64,594
B89: + Commission B-Life tech | C89: =(Prestataires!C15*C50) -> 46,002 | D89: =(Prestataires!C15*D50) -> 107,118 | E89: =(Prestataires!C15*E50) -> 200,398 | F89: =(Prestataires!C15*F50) -> 333,487 | G89: =(Prestataires!C15*G50) -> 495,421
B90: + RTO, Trading (proxy sur collecte) | C90: =frais_RTO*C43 -> 3,271 | D90: =frais_RTO*D43 -> 4,391 | E90: =frais_RTO*E43 -> 6,795 | F90: =frais_RTO*F43 -> 9,810 | G90: =frais_RTO*G43 -> 12,094
B91: + Comptabilité assurantielle/cac | C91: 0 | D91: 0 | E91: 0 | F91: 0 | G91: 0
B92: ="+ Réassurance Garantie Plancher (" & frais_garantie_plancher *10000 & " bp)" -> + Réassurance Garantie Plancher (5 bp)
B93: + C3S | C93: 0 | D93: =IF(SUM(D27,D38)>19000000,taxe_C3S*(SUM(D27,D38)-19000000),0) -> 182,304 | E93: =IF(SUM(E27,E38)>19000000,taxe_C3S*(SUM(E27,E38)-19000000),0) -> 299,920 | F93: =IF(SUM(F27,F38)>19000000,taxe_C3S*(SUM(F27,F38)-19000000),0) -> 436,064 | G93: =IF(SUM(G27,G38)>19000000,taxe_C3S*(SUM(G27,G38)-19000000),0) -> 543,648
B94: + Contribution pour frais de contrôle ACPR | C94: =frais_ACPR*SUM(D27,D38) -> 30,576 | D94: =frais_ACPR*SUM(E27,E38) -> 47,484 | E94: =frais_ACPR*SUM(F27,F38) -> 67,054 | F94: =frais_ACPR*SUM(G27,G38) -> 82,519 | G94: =frais_ACPR*SUM(H27,H38) -> 0
B95: + Cotisations FGAP FG | C95: 0 | D95: 0 | E95: 0 | F95: =frais_FGAP*F33 -> 212,154 | G95: =frais_FGAP*G33 -> 313,617
B96: + Cotisations FGAP UC | C96: 0 | D96: 0 | E96: 0 | F96: =frais_FGAP*F44/4 -> 30,333 | G96: =frais_FGAP*G44/4 -> 45,451
B97: - Reprise cotisation FGAP N-1 | C97: 0 | D97: =SUM(C95:C96) -> 0 | E97: 0 | F97: =-SUM(E95:E96) -> 0 | G97: (242,487)
B99: = Charges variables | C99: =SUM(C85:C97) -> 441,624 | D99: 1,363,175 | E99: 2,526,940 | F99: 4,361,483 | G99: 6,210,925
B100: = Charges variables (sans frais de distribution) | C100: =C99-C87 -> 168,599 | D100: 454,421 | E100: 701,917 | F100: 1,193,117 | G100: 1,291,890
B101: en % encours (sans retro) | C101: =C100/C50 -> 0.18% | D101: 0.21% | E101: 0.18% | F101: 0.18% | G101: 0.13%
B103: Charges fixes
B104: + Personnel + Gouvernance + Loyer + Bureautique | C104: =SUM(RH!P15:P16) -> 1,713,112 | D104: =OFFSET(RH!$P$16, COLUMN(D5)-COLUMN($C$5),0) -> 1,374,241 | E104: =OFFSET(RH!$P$16, COLUMN(E5)-COLUMN($C$5),0) -> 1,656,241 | F104: =OFFSET(RH!$P$16, COLUMN(F5)-COLUMN($C$5),0) -> 1,910,041 | G104: =OFFSET(RH!$P$16, COLUMN(G5)-COLUMN($C$5),0) -> 2,051,041
B105: # ETP | C105: =OFFSET(nb_salariés, COLUMN(C5)-COLUMN($C$5),0) -> 13 | D105: =OFFSET(nb_salariés, COLUMN(D5)-COLUMN($C$5),0) -> 15 | E105: =OFFSET(nb_salariés, COLUMN(E5)-COLUMN($C$5),0) -> 18 | F105: =OFFSET(nb_salariés, COLUMN(F5)-COLUMN($C$5),0) -> 21 | G105: =OFFSET(nb_salariés, COLUMN(G5)-COLUMN($C$5),0) -> 23
B106: Coût moyen / salarié (k€) | C106: =SUM(C104)/C105*0.001 -> 137 | D106: 95 | E106: 95 | F106: 93 | G106: 91
B107: SG&A
B108: + Marketing | C108: =frais_marketing*(1+taux_inflation_charges)^(C3-1) -> 60,000 | D108: =frais_marketing*(1+taux_inflation_charges)^(D3-1) -> 60,600 | E108: =frais_marketing*(1+taux_inflation_charges)^(E3-1) -> 61,206 | F108: =frais_marketing*(1+taux_inflation_charges)^(F3-1) -> 61,818 | G108: =frais_marketing*(1+taux_inflation_charges)^(G3-1) -> 62,436
B109: + Communication | C109: =frais_communication*(1+taux_inflation_charges)^(C3-1) -> 100,000 | D109: =frais_communication*(1+taux_inflation_charges)^(D3-1) -> 101,000 | E109: =frais_communication*(1+taux_inflation_charges)^(E3-1) -> 102,010 | F109: =frais_communication*(1+taux_inflation_charges)^(F3-1) -> 103,030 | G109: =frais_communication*(1+taux_inflation_charges)^(G3-1) -> 104,060
B110: + Fournisseurs données / transparisation | C110: =data_provider *(1+taux_inflation_charges)^(C3-1) -> 100,000 | D110: =data_provider *(1+taux_inflation_charges)^(D3-1) -> 101,000 | E110: =data_provider *(1+taux_inflation_charges)^(E3-1) -> 102,010 | F110: =data_provider *(1+taux_inflation_charges)^(F3-1) -> 103,030 | G110: =data_provider *(1+taux_inflation_charges)^(G3-1) -> 104,060
B111: + Logiciels | C111: ='Logiciels pro'!$C$2*(1+taux_inflation_charges)^(C3-1) -> 39,214 | D111: ='Logiciels pro'!$C$2*(1+taux_inflation_charges)^(D3-1) -> 39,606 | E111: ='Logiciels pro'!$C$2*(1+taux_inflation_charges)^(E3-1) -> 40,002 | F111: ='Logiciels pro'!$C$2*(1+taux_inflation_charges)^(F3-1) -> 40,402 | G111: ='Logiciels pro'!$C$2*(1+taux_inflation_charges)^(G3-1) -> 40,806
B112: + Location Cloud | C112: =frais_cloud*(1+taux_inflation_charges)^(C3-1) -> 24,000 | D112: =C112+6000 -> 30,000 | E112: 36,000 | F112: 42,000 | G112: 48,000
B113: + Frais généraux (dont déplacement) | C113: =frais_generaux *(1+taux_inflation_charges)^(C3-1) -> 30,000 | D113: =frais_generaux *(1+taux_inflation_charges)^(D3-1) -> 30,300 | E113: =frais_generaux *(1+taux_inflation_charges)^(E3-1) -> 30,603 | F113: =frais_generaux *(1+taux_inflation_charges)^(F3-1) -> 30,909 | G113: =frais_generaux *(1+taux_inflation_charges)^(G3-1) -> 31,218
B114: + Frais holding | C114: =frais_holding*(1+taux_inflation_charges)^(C3-1) -> 5,000 | D114: =frais_holding*(1+taux_inflation_charges)^(D3-1) -> 5,050 | E114: =frais_holding*(1+taux_inflation_charges)^(E3-1) -> 5,101 | F114: =frais_holding*(1+taux_inflation_charges)^(F3-1) -> 5,152 | G114: =frais_holding*(1+taux_inflation_charges)^(G3-1) -> 5,203
B115: + Juridique | C115: =frais_juridique *(1+taux_inflation_charges)^(C3-1) -> 30,000 | D115: =C115+6000 -> 36,000 | E115: 42,000 | F115: 48,000 | G115: 54,000
B116: + Expert-Comptable | C116: =frais_expert_comptable*(1+taux_inflation_charges)^(C3-1) -> 25,000 | D116: =frais_expert_comptable*(1+taux_inflation_charges)^(D3-1) -> 25,250 | E116: =frais_expert_comptable*(1+taux_inflation_charges)^(E3-1) -> 25,503 | F116: =frais_expert_comptable*(1+taux_inflation_charges)^(F3-1) -> 25,758 | G116: =frais_expert_comptable*(1+taux_inflation_charges)^(G3-1) -> 26,015
B117: + CAC (cf charges variables aussi) | C117: =frais_CAC_Compta*(1+taux_inflation_charges)^(C3-1) -> 50,000 | D117: =frais_CAC_Compta*(1+taux_inflation_charges)^(D3-1) -> 50,500 | E117: =frais_CAC_Compta*(1+taux_inflation_charges)^(E3-1) -> 51,005 | F117: =frais_CAC_Compta*(1+taux_inflation_charges)^(F3-1) -> 51,515 | G117: =frais_CAC_Compta*(1+taux_inflation_charges)^(G3-1) -> 52,030
B118: + Audit | C118: =frais_audit*(1+taux_inflation_charges)^(C3-1) -> 30,000 | D118: =frais_audit*(1+taux_inflation_charges)^(D3-1) -> 30,300 | E118: =frais_audit*(1+taux_inflation_charges)^(E3-1) -> 30,603 | F118: =frais_audit*(1+taux_inflation_charges)^(F3-1) -> 30,909 | G118: =frais_audit*(1+taux_inflation_charges)^(G3-1) -> 31,218
B119: + Prestations B-Life tech
B121: = Charges fixes | C121: =SUM(C104,C108:C119) -> 2,206,326 | D121: 1,883,847 | E121: 2,182,283 | F121: 2,452,564 | G121: 2,610,089
B122: en % encours | C122: =C121/C50 -> 2.40% | D122: 0.88% | E122: 0.54% | F122: 0.37% | G122: 0.26%
B124: = Charges variables + fixes | C124: =C99+C121 -> 2,647,950 | D124: 3,247,022 | E124: 4,709,224 | F124: 6,814,047 | G124: 8,821,014
B125: = Charges variables (sans frais de distribution) + fixes | C125: =C124-C87 -> 2,374,926 | D125: 2,338,269 | E125: 2,884,200 | F125: 3,645,681 | G125: 3,901,979
B126: en % encours | C126: =C125/C50 -> 2.58% | D126: 1.09% | E126: 0.72% | F126: 0.55% | G126: 0.39%
B128: P&L synthétique & Cash Flow Projections
B130: Total produits | C130: =C79 -> 1,063,027 | D130: 2,451,528 | E130: 4,948,103 | F130: 7,982,833 | G130: 11,947,841
B131: Total produits (sans frais de distribution) | C131: =C80 -> 790,002 | D131: 1,542,775 | E131: 3,123,079 | F131: 4,814,467 | G131: 7,028,806
B132: Charges variables | C132: =C99 -> 441,624 | D132: 1,363,175 | E132: 2,526,940 | F132: 4,361,483 | G132: 6,210,925
B133: Charges variables (sans frais de distribution) | C133: =C100 -> 168,599 | D133: 454,421 | E133: 701,917 | F133: 1,193,117 | G133: 1,291,890
B134: Marge brute | C134: =C130-C132 -> 621,403 | D134: 1,088,353 | E134: 2,421,162 | F134: 3,621,350 | G134: 5,736,916
B136: Charges fixes | C136: =-C121 -> (2,206,326) | D136: (1,883,847) | E136: (2,182,283) | F136: (2,452,564) | G136: (2,610,089)
B138: Amortissements
B140: + Résultat courant avant impôt | C140: =SUM(C134,C136,C138) -> (1,584,924) | D140: (795,494) | E140: 238,879 | F140: 1,168,787 | G140: 3,126,827
B141: - IS | C141: =-IF(SUM($C$140:C140)>0,1,0)*taux_impot_societe*MIN(C140, SUM($C$140:C140)) -> 0 | D141: =-IF(SUM($C$140:D140)>0,1,0)*taux_impot_societe*MIN(D140, SUM($C$140:D140)) -> 0 | E141: =-IF(SUM($C$140:E140)>0,1,0)*taux_impot_societe*MIN(E140, SUM($C$140:E140)) -> 0 | F141: =-IF(SUM($C$140:F140)>0,1,0)*taux_impot_societe*MIN(F140, SUM($C$140:F140)) -> 0 | G141: =-IF(SUM($C$140:G140)>0,1,0)*taux_impot_societe*MIN(G140, SUM($C$140:G140)) -> (430,815)
B142: = Résultat net | C142: =C140+C141 -> (1,584,924) | D142: (795,494) | E142: 238,879 | F142: 1,168,787 | G142: 2,696,012
B144: + Résultat net | C144: =C142 -> (1,584,924) | D144: (795,494) | E144: 238,879 | F144: 1,168,787 | G144: 2,696,012
B145: - Dividende versé | C145: 0 | D145: 0 | E145: 0 | F145: 0 | G145: 0
B146: + Emission dette subordonnée (10% intérêt) | C146: 0 | D146: 0 | E146: 0 | F146: 0 | G146: 0
B147: Stock de dettes subordonnées | C147: =SUM($C$146:C146) -> 0 | D147: =SUM($C$146:D146) -> 0 | E147: =SUM($C$146:E146) -> 0 | F147: =SUM($C$146:F146) -> 0 | G147: =SUM($C$146:G146) -> 0
B149: Trésorerie BOB | C149: =SUM(C156:C157) -> 15,000,000 | D149: =C152 -> 13,415,076 | E149: 12,619,582 | F149: 12,858,462 | G149: 14,027,248
B150: + Résultat net | C150: =C142 -> (1,584,924) | D150: (795,494) | E150: 238,879 | F150: 1,168,787 | G150: 2,696,012
B151: - Immobilisation côut direct
B152: Trésorerie FOB | C152: =SUM(C149:C151) -> 13,415,076 | D152: 12,619,582 | E152: 12,858,462 | F152: 14,027,248 | G152: 16,723,260
B154: Capitaux Propres
B155: Cash burn avant Seed = Année 1
B156: Fonds Propres BOB | C156: =capitaux_propres-SUM(C155,C157) -> 14,000,000 | D156: =C158 -> 12,415,076 | E156: =D158+15000000 -> 26,619,582 | F156: =E158 -> 26,858,462 | G156: 28,027,248
B157: Tréso opérationnelle BOB | C157: 1,000,000 | D157: 1,000,000 | E157: =D159 -> 1,000,000 | F157: 1,000,000 | G157: 1,000,000
B158: Fonds Propres EOB | C158: =C156+SUM(C150:C151) -> 12,415,076 | D158: 11,619,582 | E158: 26,858,462 | F158: 28,027,248 | G158: 30,723,260
B159: Tréso opérationnelle EOB | C159: =C157 -> 1,000,000 | D159: 1,000,000 | E159: 1,000,000 | F159: 1,000,000 | G159: 1,000,000
B161: Capitaux propres | C161: =$C$155 + C152-C147 -> 13,415,076 | D161: 12,619,582 | E161: 12,858,462 | F161: 14,027,248 | G161: 16,723,260
B162: RoC | C162: =C144/C152 -> -11.8% | D162: -6.3% | E162: 1.9% | F162: 8.3% | G162: 16.1%
B163: RoE | C163: =C144/C161 -> -11.8% | D163: -6.3% | E163: 1.9% | F163: 8.3% | G163: 16.1%
B164: Coefficient d’exploitation (sans distrib) | C164: =C125/C80 -> 300.62% | D164: 151.56% | E164: 92.35% | F164: 75.72% | G164: 55.51%
B165: RoA (Return on Assets) | C165: =C81 -> 0.86% | D165: 0.72% | E165: 0.78% | F165: 0.72% | G165: 0.71%
B167: Treso/Encours | C167: =C152/C33 -> 22.62% | D167: 9.17% | E167: 5.02% | F167: 3.31% | G167: 2.67%

Sheet BP Assurance
I3: =C9+C12 -> 5,773,527
A4: COMPTE DE RESULTAT TECHNIQUE OPERATIONS VIE | B4: ='BP Financier'!C2 -> 2026-2027 | C4: 2028 | D4: 2029 | E4: 2030 | F4: 2031
A5: + Primes | B5: =SUM(B6:B8) -> 97,940,000 | C5: 132,940,000 | D5: 206,450,000 | E5: 291,540,000 | F5: 358,780,000
A6: Assurance-vie | B6: ='BP Financier'!C16 -> 90,600,000 | C6: ='BP Financier'!D16 -> 122,250,000 | D6: ='BP Financier'!E16 -> 187,000,000 | E6: ='BP Financier'!F16 -> 261,200,000 | F6: ='BP Financier'!G16 -> 318,000,000
A7: Epargne retraite | B7: ='BP Financier'!C19 -> 6,920,000 | C7: ='BP Financier'!D19 -> 10,140,000 | D7: ='BP Financier'!E19 -> 17,800,000 | E7: ='BP Financier'!F19 -> 27,040,000 | F7: ='BP Financier'!G19 -> 35,880,000
A8: Contrats de capitalisation | B8: ='BP Financier'!C22 -> 420,000 | C8: ='BP Financier'!D22 -> 550,000 | D8: ='BP Financier'!E22 -> 1,650,000 | E8: ='BP Financier'!F22 -> 3,300,000 | F8: ='BP Financier'!G22 -> 4,900,000
A9: + Produits de placements | B9: =SUM(B10:B11) -> 1,320,596 | C9: 3,303,342 | D9: 6,639,480 | E9: 10,880,947 | F9: 16,387,380
A10: Revenus de placements | B10: ='BP Financier'!C57+'BP Financier'!C75+'BP Financier'!C76 -> 1,283,794 | C10: ='BP Financier'!D57+'BP Financier'!D75+'BP Financier'!D76 -> 3,217,648 | D10: ='BP Financier'!E57+'BP Financier'!E75+'BP Financier'!E76 -> 6,479,162 | E10: ='BP Financier'!F57+'BP Financier'!F75+'BP Financier'!F76 -> 10,614,157 | F10: ='BP Financier'!G57+'BP Financier'!G75+'BP Financier'!G76 -> 15,991,043 | H10: Intérêts FG + RDT FP
A11: Honoraires et commissions reçues | B11: ='BP Financier'!C69+'BP Financier'!C70 -> 36,802 | C11: ='BP Financier'!D69+'BP Financier'!D70 -> 85,694 | D11: ='BP Financier'!E69+'BP Financier'!E70 -> 160,318 | E11: ='BP Financier'!F69+'BP Financier'!F70 -> 266,790 | F11: ='BP Financier'!G69+'BP Financier'!G70 -> 396,337 | H11: Comm produits structurés + non coté
A12: + Ajustement ACAV (plus-values) | B12: ='BP Financier'!C40 -> 738,980 | C12: ='BP Financier'!D40 -> 2,470,185 | D12: ='BP Financier'!E40 -> 4,997,713 | E12: ='BP Financier'!F40 -> 8,749,507 | F12: ='BP Financier'!G40 -> 13,698,630
A13: + Autres produits techniques | B13: ='BP Financier'!C77 -> 0 | C13: ='BP Financier'!D77 -> 0 | D13: ='BP Financier'!E77 -> 0 | E13: ='BP Financier'!F77 -> 0 | F13: ='BP Financier'!G77 -> 0
A14: - Charges des sinistres | B14: =SUM(B15:B18) -> -7,008,613 | C14: -14,110,584 | D14: -26,674,822 | E14: -37,125,077 | F14: -53,187,807
A15: Capitaux décès assurance-vie | B15: =-('BP Financier'!C16*Sinistres!$B$9) -> -70,241 | C15: =-('BP Financier'!D16*Sinistres!$B$9) -> -94,779 | D15: =-('BP Financier'!E16*Sinistres!$B$9) -> -144,979 | E15: =-('BP Financier'!F16*Sinistres!$B$9) -> -202,506 | F15: =-('BP Financier'!G16*Sinistres!$B$9) -> -246,542
A16: Rachats | B16: =('BP Financier'!C28+'BP Financier'!C39)-B15 -> -6,861,491 | C16: =('BP Financier'!D28+'BP Financier'!D39)-C15 -> -13,937,020 | D16: =('BP Financier'!E28+'BP Financier'!E39)-D15 -> -26,433,878 | E16: =('BP Financier'!F28+'BP Financier'!F39)-E15 -> -36,806,080 | F16: =('BP Financier'!G28+'BP Financier'!G39)-F15 -> -52,803,902
A17: Frais de prestations (destination) | B17: =-(RH!M15+RH!M16)-(20%*'BP Financier'!C116)-(20%*'BP Financier'!C117)-(20%*'BP Financier'!C118)-(20%*'BP Financier'!C111)-(20%*'BP Financier'!C112)-(10%*'BP Financier'!C89) -> -76,881 | C17: =-(RH!M17)-(20%*'BP Financier'!D116)-(20%*'BP Financier'!D117)-(20%*'BP Financier'!D118)-(20%*'BP Financier'!D111)-(20%*'BP Financier'!D112)-(10%*'BP Financier'!D89) -> -78,785 | D17: =-(RH!M18)-(20%*'BP Financier'!E116)-(20%*'BP Financier'!E117)-(20%*'BP Financier'!E118)-(20%*'BP Financier'!E111)-(20%*'BP Financier'!E112)-(10%*'BP Financier'!E89) -> -95,964 | E17: =-(RH!M19)-(20%*'BP Financier'!F116)-(20%*'BP Financier'!F117)-(20%*'BP Financier'!F118)-(20%*'BP Financier'!F111)-(20%*'BP Financier'!F112)-(10%*'BP Financier'!F89) -> -116,492 | F17: =-(RH!M20)-(20%*'BP Financier'!G116)-(20%*'BP Financier'!G117)-(20%*'BP Financier'!G118)-(20%*'BP Financier'!G111)-(20%*'BP Financier'!G112)-(10%*'BP Financier'!G89) -> -137,363 | H17: =B17+B25+B26+B29+B30+B33 -> -2,477,788
A18: Charges des provisions pour sinistres à payer | H18: 2322417
A19: - Charges des provisions d'assurance vie et autres provisions techniques | B19: =SUM(B20:B22) -> -92,004,818 | C19: -122,230,200 | D19: -186,560,233 | E19: -266,179,036 | F19: -323,867,725 | H19: =H18+H17 -> -155,371
A20: Provisions mathématiques vie | B20: =-'BP Financier'!C32 -> -59,298,967 | C20: =-'BP Financier'!D32 -> -78,316,211 | D20: =-'BP Financier'!E32 -> -118,610,592 | E20: =-'BP Financier'!F32 -> -168,081,365 | F20: =-'BP Financier'!G32 -> -202,926,597
A21: Provisions sur contrats en UC | B21: =-'BP Financier'!C43 -> -32,705,851 | C21: =-'BP Financier'!D43 -> -43,913,989 | D21: =-'BP Financier'!E43 -> -67,949,641 | E21: =-'BP Financier'!F43 -> -98,097,671 | F21: =-'BP Financier'!G43 -> -120,941,128
A22: Autres provisions techniques
A23: - Participation aux résultats
A24: - Frais d'acquisition | B24: =SUM(B25:B26) -> -1,501,785 | C24: -1,996,025 | D24: -3,133,463 | E24: -4,648,909 | F24: -6,579,511
A25: Commissions distribution et apporteurs d'affaires | B25: =-('BP Financier'!C87+'BP Financier'!C88) -> -321,775 | C25: =-('BP Financier'!D87+'BP Financier'!D88) -> -981,879 | D25: =-('BP Financier'!E87+'BP Financier'!E88) -> -1,912,774 | E25: =-('BP Financier'!F87+'BP Financier'!F88) -> -3,217,116 | F25: =-('BP Financier'!G87+'BP Financier'!G88) -> -4,983,628
A26: Frais d'acquisition (destination) | B26: =-(RH!K15+RH!K16+'BP Financier'!C108+'BP Financier'!C109+(20%*'BP Financier'!C116)+(20%*'BP Financier'!C117)+(20%*'BP Financier'!C118)+(20%*'BP Financier'!C111)+(20%*'BP Financier'!C112)+(50%*'BP Financier'!C115)+(50%*'BP Financier'!C113)+(50%*'BP Financier'!C89)) -> -1,180,010 | C26: =-(RH!K17+'BP Financier'!D108+'BP Financier'!D109+(20%*'BP Financier'!D116)+(20%*'BP Financier'!D117)+(20%*'BP Financier'!D118)+(20%*'BP Financier'!D111)+(20%*'BP Financier'!D112)+(50%*'BP Financier'!D115)+(50%*'BP Financier'!D113)+(50%*'BP Financier'!D89)) -> -1,014,147 | D26: =-(RH!K18+'BP Financier'!E108+'BP Financier'!E109+(20%*'BP Financier'!E116)+(20%*'BP Financier'!E117)+(20%*'BP Financier'!E118)+(20%*'BP Financier'!E111)+(20%*'BP Financier'!E112)+(50%*'BP Financier'!E115)+(50%*'BP Financier'!E113)+(50%*'BP Financier'!E89)) -> -1,220,690 | E26: =-(RH!K19+'BP Financier'!F108+'BP Financier'!F109+(20%*'BP Financier'!F116)+(20%*'BP Financier'!F117)+(20%*'BP Financier'!F118)+(20%*'BP Financier'!F111)+(20%*'BP Financier'!F112)+(50%*'BP Financier'!F115)+(50%*'BP Financier'!F113)+(50%*'BP Financier'!F89)) -> -1,431,793 | F26: =-(RH!K20+'BP Financier'!G108+'BP Financier'!G109+(20%*'BP Financier'!G116)+(20%*'BP Financier'!G117)+(20%*'BP Financier'!G118)+(20%*'BP Financier'!G111)+(20%*'BP Financier'!G112)+(50%*'BP Financier'!G115)+(50%*'BP Financier'!G113)+(50%*'BP Financier'!G89)) -> -1,595,882 | H26: Acq + mark + comm
A27: - Frais d'administration | B27: =-(RH!L15+RH!L16+(20%*'BP Financier'!C116)+(20%*'BP Financier'!C117)+(20%*'BP Financier'!C118)+(20%*'BP Financier'!C111)+(20%*'BP Financier'!C112)+(20%*'BP Financier'!C89)) -> -170,162 | C27: =-RH!L17-(20%*'BP Financier'!D116)-(20%*'BP Financier'!D117)-(20%*'BP Financier'!D118)-(20%*'BP Financier'!D111)-(20%*'BP Financier'!D112)-(20%*'BP Financier'!D89) -> -162,726 | D27: =-RH!L18-(20%*'BP Financier'!E116)-(20%*'BP Financier'!E117)-(20%*'BP Financier'!E118)-(20%*'BP Financier'!E111)-(20%*'BP Financier'!E112)-(20%*'BP Financier'!E89) -> -203,832 | E27: =-RH!L19-(20%*'BP Financier'!F116)-(20%*'BP Financier'!F117)-(20%*'BP Financier'!F118)-(20%*'BP Financier'!F111)-(20%*'BP Financier'!F112)-(20%*'BP Financier'!F89) -> -250,806 | F27: =-RH!L20-(20%*'BP Financier'!G116)-(20%*'BP Financier'!G117)-(20%*'BP Financier'!G118)-(20%*'BP Financier'!G111)-(20%*'BP Financier'!G112)-(20%*'BP Financier'!G89) -> -295,169
A28: - Charges des placements | B28: =SUM(B29:B30) -> -375,573 | C28: -357,310 | D28: -412,058 | E28: -472,274 | F28: -544,619
A29: Frais internes de gestion des placements (destination) | B29: =-(RH!N15+RH!N16+(20%*'BP Financier'!C116)+(20%*'BP Financier'!C117)+(20%*'BP Financier'!C118)+(20%*'BP Financier'!C111)+(20%*'BP Financier'!C112)+'BP Financier'!C110+(20%*'BP Financier'!C89)) -> -332,303 | C29: =-RH!N17-(20%*'BP Financier'!D116)-(20%*'BP Financier'!D117)-(20%*'BP Financier'!D118)-(20%*'BP Financier'!D111)-(20%*'BP Financier'!D112)-'BP Financier'!D110-(20%*'BP Financier'!D89) -> -312,919 | D29: =-RH!N18-(20%*'BP Financier'!E116)-(20%*'BP Financier'!E117)-(20%*'BP Financier'!E118)-(20%*'BP Financier'!E111)-(20%*'BP Financier'!E112)-'BP Financier'!E110-(20%*'BP Financier'!E89) -> -365,263 | E29: =-RH!N19-(20%*'BP Financier'!F116)-(20%*'BP Financier'!F117)-(20%*'BP Financier'!F118)-(20%*'BP Financier'!F111)-(20%*'BP Financier'!F112)-'BP Financier'!F110-(20%*'BP Financier'!F89) -> -422,464 | F29: =-RH!N20-(20%*'BP Financier'!G116)-(20%*'BP Financier'!G117)-(20%*'BP Financier'!G118)-(20%*'BP Financier'!G111)-(20%*'BP Financier'!G112)-'BP Financier'!G110-(20%*'BP Financier'!G89) -> -472,972
A30: Autres charges de placements | B30: =-('BP Financier'!C86+'BP Financier'!C90) -> -43,271 | C30: =-('BP Financier'!D86+'BP Financier'!D90) -> -44,391 | D30: =-('BP Financier'!E86+'BP Financier'!E90) -> -46,795 | E30: =-('BP Financier'!F86+'BP Financier'!F90) -> -49,810 | F30: =-('BP Financier'!G86+'BP Financier'!G90) -> -71,647
A31: - Ajustement ACAV (moins-values)
A32: - Autres charges techniques | B32: =B33+B34 -> -523,549 | C32: -652,176 | D32: -863,906 | E32: -1,325,565 | F32: -1,264,352
A33: Frais interne charges techniques (destination) | B33: =-RH!O15-RH!O16-SUM('BP Financier'!C91:C97)-(20%*'BP Financier'!C116)-(20%*'BP Financier'!C117)-(20%*'BP Financier'!C118)-(20%*'BP Financier'!C111)-(20%*'BP Financier'!C112)-(50%*'BP Financier'!C115)-(50%*'BP Financier'!C113)-'BP Financier'!C114-'BP Financier'!C119 -> -523,549 | C33: =-RH!O17-SUM('BP Financier'!D91:D97)-(20%*'BP Financier'!D116)-(20%*'BP Financier'!D117)-(20%*'BP Financier'!D118)-(20%*'BP Financier'!D111)-(20%*'BP Financier'!D112)-(50%*'BP Financier'!D115)-(50%*'BP Financier'!D113)-'BP Financier'!D114-'BP Financier'!D119 -> -652,176 | D33: =-RH!O18-SUM('BP Financier'!E91:E97)-(20%*'BP Financier'!E116)-(20%*'BP Financier'!E117)-(20%*'BP Financier'!E118)-(20%*'BP Financier'!E111)-(20%*'BP Financier'!E112)-(50%*'BP Financier'!E115)-(50%*'BP Financier'!E113)-'BP Financier'!E114-'BP Financier'!E119 -> -863,906 | E33: =-RH!O19-SUM('BP Financier'!F91:F97)-(20%*'BP Financier'!F116)-(20%*'BP Financier'!F117)-(20%*'BP Financier'!F118)-(20%*'BP Financier'!F111)-(20%*'BP Financier'!F112)-(50%*'BP Financier'!F115)-(50%*'BP Financier'!F113)-'BP Financier'!F114-'BP Financier'!F119 -> -1,325,565 | F33: =-RH!O20-SUM('BP Financier'!G91:G97)-(20%*'BP Financier'!G116)-(20%*'BP Financier'!G117)-(20%*'BP Financier'!G118)-(20%*'BP Financier'!G111)-(20%*'BP Financier'!G112)-(50%*'BP Financier'!G115)-(50%*'BP Financier'!G113)-'BP Financier'!G114-'BP Financier'!G119 -> -1,264,352
A34: Amortissements actifs incorporels | B34: ='BP Financier'!C138 -> 0 | C34: ='BP Financier'!D138 -> 0 | D34: ='BP Financier'!E138 -> 0 | E34: ='BP Financier'!F138 -> 0 | F34: ='BP Financier'!G138 -> 0
A35: - Produits des placements transférés au compte non-technique | B35: =-('BP Financier'!C75+'BP Financier'!C76) -> -430,000 | C35: =-('BP Financier'!D75+'BP Financier'!D76) -> -382,452 | D35: =-('BP Financier'!E75+'BP Financier'!E76) -> -808,587 | E35: =-('BP Financier'!F75+'BP Financier'!F76) -> -815,754 | F35: =-('BP Financier'!G75+'BP Financier'!G76) -> -850,817
A36: Résultat technique des opérations vie | B36: =SUM(B5,B9,B12,B13,B14,B19,B23,B24,B27,B28,B32,B31,B35) -> -2,014,924 | C36: -1,177,946 | D36: -569,708 | E36: 353,033 | F36: 2,276,010
A38: COMPTE NON TECHNIQUE | B38: =B4 -> 2026-2027 | C38: 2028 | D38: 2029 | E38: 2030 | F38: 2031
A39: Résultat technique de l'assurance non vie
A40: Résultat technique de l'assurance vie | B40: =B36 -> -2,014,924 | C40: -1,177,946 | D40: -569,708 | E40: 353,033 | F40: 2,276,010
A41: Produits des placements
A42: Produits des placements alloués du compte technique vie | B42: =-B35 -> 430,000 | C42: 382,452 | D42: 808,587 | E42: 815,754 | F42: 850,817
A43: Charges des placements
A44: Produits des placements transférés au compte technique non vie
A45: Autres produits non techniques
A46: Autres charges non techniques
A47: Résultat exceptionnel
A48: Participation des salariés
A49: Impôt sur les bénéfices | B49: ='BP Financier'!C141 -> 0 | C49: ='BP Financier'!D141 -> 0 | D49: ='BP Financier'!E141 -> 0 | E49: ='BP Financier'!F141 -> 0 | F49: ='BP Financier'!G141 -> -430,815
A51: RESULTAT NET | B51: =SUM(B39:B49) -> -1,584,924 | C51: -795,494 | D51: 238,879 | E51: 1,168,787 | F51: 2,696,012
B53: ='BP Financier'!C142 -> (1,584,924) | C53: ='BP Financier'!D142 -> (795,494) | D53: ='BP Financier'!E142 -> 238,879 | E53: ='BP Financier'!F142 -> 1,168,787 | F53: ='BP Financier'!G142 -> 2,696,012
A55: Ecart avec BP Financier | B55: =B51-B53 -> 0 | C55: -0 | D55: 0 | E55: 0 | F55: 0
B61: =SUM(B56:B60) -> 0 | C61: 0 | D61: 0 | E61: 0 | F61: 0
B62: =B55-B61 -> 0 | C62: -0 | D62: 0 | E62: 0 | F62: 0
A64: (en k €) | B64: =B4 -> 2026-2027 | C64: 2028 | D64: 2029 | E64: 2030 | F64: 2031
A65: Primes | B65: =B5/1000 -> 97,940 | C65: 132,940 | D65: 206,450 | E65: 291,540 | F65: 358,780
A67: Produits de placements (et ajustement ACAV) | B67: =(B9+B12)/1000 -> 2,060 | C67: 5,774 | D67: 11,637 | E67: 19,630 | F67: 30,086 | J67: =493125-465917 -> 27208
A68: Autres produits techniques | B68: =B13/1000 -> 0 | C68: 0 | D68: 0 | E68: 0 | F68: 0
A70: Charges des sinistres | B70: =B14/1000 -> -7,009 | C70: -14,111 | D70: -26,675 | E70: -37,125 | F70: -53,188
A71: Charges des provisions d'assurance vie | B71: =B19/1000 -> -92,005 | C71: -122,230 | D71: -186,560 | E71: -266,179 | F71: -323,868
A72: Participation aux résultats | B72: =B23/1000 -> 0 | C72: 0 | D72: 0 | E72: 0 | F72: 0
A73: Frais d'acquisition et d'administration (yc commissions) | B73: =(B24+B27)/1000 -> -1,672 | C73: -2,159 | D73: -3,337 | E73: -4,900 | F73: -6,875
A74: Charges de placements | B74: =B28/1000 -> -376 | C74: -357 | D74: -412 | E74: -472 | F74: -545
A75: Autres charges techniques | B75: =B32/1000 -> -524 | C75: -652 | D75: -864 | E75: -1,326 | F75: -1,264
H76: Worst case
A77: Résultat net | B77: =B65+B67+B68+SUM(B70:B75) -> -1,585 | C77: -795 | D77: 239 | E77: 1,169 | F77: 3,127 | H77: -701 | I77: -442 | J77: 429 | K77: 1,944 | L77: 4,374
A79: Encours du Fonds Euro (en k €) | B79: ='BP Financier'!C33 -> 59,298,967 | C79: ='BP Financier'!D33 -> 137,615,178 | D79: ='BP Financier'!E33 -> 256,225,770 | E79: ='BP Financier'!F33 -> 424,307,134 | F79: ='BP Financier'!G33 -> 627,233,732
A80: Encours des Unités de Compte (en k €) | B80: ='BP Financier'!C44 -> 32,705,851 | C80: ='BP Financier'!D44 -> 76,619,839 | D80: ='BP Financier'!E44 -> 144,569,480 | E80: ='BP Financier'!F44 -> 242,667,152 | F80: ='BP Financier'!G44 -> 363,608,279
H81: CANTON PER
B82: =B4 -> 2026-2027 | C82: 2028 | D82: 2029 | E82: 2030 | F82: 2031 | I82: 2026-2027 | J82: 2028 | K82: 2029 | L82: 2030 | M82: 2031
A83: ACTIF | H83: ACTIF
A84: Capital souscrit non appelé ou compte de liaison avec le siège | H84: Capital souscrit non appelé ou compte de liaison avec le siège
A85: Actifs incorporels | H85: Actifs incorporels
A86: Placements | B86: ='BP Financier'!C33+'BP Financier'!C158+'BP Financier'!C159 -> 72,714,043 | C86: ='BP Financier'!D33+'BP Financier'!D158+'BP Financier'!D159 -> 150,234,760 | D86: ='BP Financier'!E33+'BP Financier'!E158+'BP Financier'!E159 -> 284,084,232 | E86: ='BP Financier'!F33+'BP Financier'!F158+'BP Financier'!F159 -> 453,334,383 | F86: ='BP Financier'!G33+'BP Financier'!G158+'BP Financier'!G159 -> 658,956,992 | H86: Placements | I86: =B86*(B7/B5) -> 5,137,647 | J86: 11,459,158 | K86: 24,493,579 | L86: 42,046,243 | M86: 65,899,373
A87: Placements représentant les provisions techniques afférentes aux contrats en UC | B87: ='BP Financier'!C44 -> 32,705,851 | C87: ='BP Financier'!D44 -> 76,619,839 | D87: ='BP Financier'!E44 -> 144,569,480 | E87: ='BP Financier'!F44 -> 242,667,152 | F87: ='BP Financier'!G44 -> 363,608,279 | H87: Placements représentant les provisions techniques afférentes aux contrats en UC | I87: =B87*(B7/B5) -> 2,310,848 | J87: 5,844,179 | K87: 12,464,697 | L87: 22,507,099 | M87: 36,362,855
A88: Part des cessionnaires et rétrocessionnaires dans les provisions techniques | H88: Part des cessionnaires et rétrocessionnaires dans les provisions techniques
A89: Créances | H89: Créances
A90: Autres actifs | H90: Autres actifs
A91: Comptes de régularisation Actif | H91: Comptes de régularisation Actif
B92: =SUM(B84:B91) -> 105,419,894 | C92: 226,854,600 | D92: 428,653,712 | E92: 696,001,534 | F92: 1,022,565,271 | I92: =SUM(I84:I91) -> 7,448,496 | J92: 17,303,337 | K92: 36,958,276 | L92: 64,553,343 | M92: 102,262,227
B93: 2026-2027 | C93: 2028 | D93: 2029 | E93: 2030 | F93: 2031
A94: PASSIF | H94: PASSIF
A95: Capitaux propres | B95: ='BP Financier'!C156+'BP Financier'!C157 -> 15,000,000 | C95: ='BP Financier'!D156+'BP Financier'!D157 -> 13,415,076 | D95: ='BP Financier'!E156+'BP Financier'!E157 -> 27,619,582 | E95: ='BP Financier'!F156+'BP Financier'!F157 -> 27,858,462 | F95: ='BP Financier'!G156+'BP Financier'!G157 -> 29,027,248 | H95: Capitaux propres | I95: 1,271,799 | J95: 1,251,040 | K95: 1,163,337 | L95: 1,134,886 | M95: 1,187,621
A96: Résultat de l'exercice | B96: =B51 -> -1,584,924 | C96: =C51 -> -795,494 | D96: =D51 -> 238,879 | E96: =E51 -> 1,168,787 | F96: =F51 -> 2,696,012 | H96: Résultat de l'exercice
A97: Passifs subordonnés | H97: Passifs subordonnés
A98: Provisions techniques brutes | B98: ='BP Financier'!C33 -> 59,298,967 | C98: ='BP Financier'!D33 -> 137,615,178 | D98: ='BP Financier'!E33 -> 256,225,770 | E98: ='BP Financier'!F33 -> 424,307,134 | F98: ='BP Financier'!G33 -> 627,233,732 | H98: Provisions techniques brutes | I98: =B98*(B7/B5) -> 4,189,798 | J98: =C98*(C7/C5) -> 10,496,599 | K98: =D98*(D7/D5) -> 22,091,638 | L98: =E98*(E7/E5) -> 39,353,999 | M98: =F98*(F7/F5) -> 62,726,870
A99: Provisions techniques des contrats en UC | B99: ='BP Financier'!C44 -> 32,705,851 | C99: ='BP Financier'!D44 -> 76,619,839 | D99: ='BP Financier'!E44 -> 144,569,480 | E99: ='BP Financier'!F44 -> 242,667,152 | F99: ='BP Financier'!G44 -> 363,608,279 | H99: Provisions techniques des contrats en UC | I99: =I87 -> 2,310,848 | J99: =J87 -> 5,844,179 | K99: =K87 -> 12,464,697 | L99: =L87 -> 22,507,099 | M99: =M87 -> 36,362,855
A100: Autres provisions techniques | H100: Autres provisions techniques
A101: Provisions (autres que techniques) | H101: Provisions (autres que techniques)
A102: Dettes pour dépôts en espèces reçues des cessionnaires | H102: Dettes pour dépôts en espèces reçues des cessionnaires
A103: Autres dettes | H103: Autres dettes
A104: Comptes de régularisation passive | H104: Comptes de régularisation passive
B105: =SUM(B95:B104) -> 105,419,894 | C105: 226,854,600 | D105: 428,653,712 | E105: 696,001,534 | F105: 1,022,565,271 | I105: =SUM(I95:I104) -> 7,772,446 | J105: 17,591,819 | K105: 35,719,672 | L105: 62,995,985 | M105: 100,277,345
B107: =B92-B105 -> 0 | C107: =C92-C105 -> 0 | D107: =D92-D105 -> 0 | E107: =E92-E105 -> 0 | F107: =F92-F105 -> 0 | I107: =I92-I105 -> -323,950 | J107: =J92-J105 -> -288,481 | K107: =K92-K105 -> 1,238,604 | L107: =L92-L105 -> 1,557,358 | M107: =M92-M105 -> 1,984,882

Sheet Solva et resultat
D4: 2026-2027 | E4: 2028 | F4: 2029 | G4: 2030 | H4: 2031
C5: Résultat | D5: -1,951,692 € | E5: -1,277,755 € | F5: -1,053,977 € | G5: -644,526 € | H5: 82,052 €
C6: Solva (8) | D6: 1223% | E6: 609% | F6: 325% | G6: 206% | H6: 176%
L28: Year | M28: Revenues (€) | N28: Notes
L29: 2027 | M29: 50 000 | N29: Internal beta-client phase
L30: 2028 | M30: 100 000 | N30: MVP scaling
L31: 2029 | M31: 200 000 | N31: Platform commercialization readiness
L32: 2030 | M32: 375 000 | N32: Full SaaS model rollout
O35: Year (€ m) | P35: 2026-27 | Q35: 2028 | R35: 2029 | S35: 2030 | T35: 2031
O36: Life / Savings (AV) | P36: 90.6 | Q36: 122.3 | R36: 215.5 | S36: 312.2 | T36: 375.0
O37: Retirement (PER) | P37: 45,906 | Q37: 45,667 | R37: 45,886 | S37: 27.0 | T37: 35.9
O38: Capitalisation (CAPI) | P38: 0.4 | Q38: 0.6 | R38: 45,839 | S38: 45,719 | T38: 45,904
O39: Total Annual Premiums | P39: 97.9 | Q39: 132.9 | R39: 234.9 | S39: 342.5 | T39: 415.8
O41: Year-end (€ m) | P41: 2026-27 | Q41: 2028 | R41: 2029 | S41: 2030 | T41: 2031
O42: General Fund (Eurofund) | P42: 45,773 | Q42: 61.2 | R42: 121.8 | S42: 210.3 | T42: 315.6
O43: Unit-Linked Funds (UC) | P43: 66.0 | Q43: 154.6 | R43: 310.2 | S43: 540.6 | T43: 819.2
O44: Total AuM | P44: 92.4 | Q44: 215.8 | R44: 432.0 | S44: 750.9 | T44: 1 134.8
O47: Year-end (€ m) | P47: 2026-27 | Q47: 2028 | R47: 2029 | S47: 2030 | T47: 2031 | V47: ='BP Financier'!C50 -> 92,004,818 | W47: ='BP Financier'!D50 -> 214,235,017 | X47: ='BP Financier'!E50 -> 400,795,250 | Y47: ='BP Financier'!F50 -> 666,974,286 | Z47: ='BP Financier'!G50 -> 990,842,011
O48: Total income | P48: ='BP Financier'!C80 -> 790,002 | Q48: ='BP Financier'!D80 -> 1,542,775 | R48: ='BP Financier'!E80 -> 3,123,079 | S48: ='BP Financier'!F80 -> 4,814,467 | T48: ='BP Financier'!G80 -> 7,028,806 | Z48: =T52/Z47 -> 0.003155727459
O49: as a % of AUM | P49: ='BP Financier'!C81 -> 0.86% | Q49: ='BP Financier'!D81 -> 0.72% | R49: ='BP Financier'!E81 -> 0.78% | S49: ='BP Financier'!F81 -> 0.72% | T49: ='BP Financier'!G81 -> 0.71% | Z49: =T50/Z47 -> 0.003938043683
O50: Fixed and variable cost | P50: ='BP Financier'!C125 -> 2,374,926 | Q50: ='BP Financier'!D125 -> 2,338,269 | R50: ='BP Financier'!E125 -> 2,884,200 | S50: ='BP Financier'!F125 -> 3,645,681 | T50: ='BP Financier'!G125 -> 3,901,979 | Z50: =T48/Z47 -> 0.007093771142
O51: as a % of AUM | P51: ='BP Financier'!C126 -> 2.58% | Q51: ='BP Financier'!D126 -> 1.09% | R51: ='BP Financier'!E126 -> 0.72% | S51: ='BP Financier'!F126 -> 0.55% | T51: ='BP Financier'!G126 -> 0.39%
O52: Margin | P52: =P48-P50 -> (1,584,924) | Q52: (795,494) | R52: 238,879 | S52: 1,168,787 | T52: 3,126,827
O53: as a % of AUM | P53: =P52/'BP Financier'!C50 -> -1.72% | Q53: =Q52/'BP Financier'!D50 -> -0.37% | R53: =R52/'BP Financier'!E50 -> 0.06% | S53: =S52/'BP Financier'!F50 -> 0.18% | T53: =T52/'BP Financier'!G50 -> 0.32%
O56: Metric | P56: 2026-27 | Q56: 2028 | R56: 2029 | S56: 2030 | T56: 2031
O57: Headcount (FTEs) | P57: 13 | Q57: 15 | R57: 18 | S57: 21 | T57: 23
O58: Total Personnel & Governance (€) | P58: ='BP Financier'!C104 -> 1,713,112 | Q58: ='BP Financier'!D104 -> 1,374,241 | R58: ='BP Financier'!E104 -> 1,656,241 | S58: ='BP Financier'!F104 -> 1,910,041 | T58: ='BP Financier'!G104 -> 2,051,041
O59: Average Cost per FTE (k€) | P59: ='BP Financier'!C106 -> 137 | Q59: ='BP Financier'!D106 -> 95 | R59: ='BP Financier'!E106 -> 95 | S59: ='BP Financier'!F106 -> 93 | T59: ='BP Financier'!G106 -> 91

Sheet Amortissement
A1: Home
C2: 2026-2027 | D2: 2028 | E2: 2029 | F2: 2030 | G2: 2031
B3: Année | C3: 1 | D3: 2 | E3: 3 | F3: 4 | G3: 5
B4: Cout indirect | E4: =30%*RH!Q17 -> 0 | F4: =30%*RH!R17 -> 0 | G4: =30%*RH!S17 -> 0
B5: Salaire des personnes qui travaillent sur le projet | C5: =30%*SUM(RH!P15:P16) -> 513,934 | D5: =30%*OFFSET(RH!$P$17, COLUMN(D1)-COLUMN($D$1),0) -> 412,272 | E5: =30%*OFFSET(RH!$P$17, COLUMN(E1)-COLUMN($D$1),0) -> 496,872 | F5: =30%*OFFSET(RH!$P$17, COLUMN(F1)-COLUMN($D$1),0) -> 573,012 | G5: =30%*OFFSET(RH!$P$17, COLUMN(G1)-COLUMN($D$1),0) -> 615,312
B7: Total cout indirect | C7: =SUM(C5:C6) -> 513,934 | D7: 412,272 | E7: 496,872 | F7: 573,012 | G7: 615,312
B9: Cout direct
B10: Prestation IT | C10: 500,000 | D10: 300,000 | E10: 300,000 | F10: 300,000 | G10: 300,000
B12: Total cout direct | C12: =SUM(C10:C11) -> 500,000 | D12: 300,000 | E12: 300,000 | F12: 300,000 | G12: 300,000
B14: Immobilisation | C14: =SUM(C7,C12) -> 1,013,934 | D14: 712,272 | E14: 796,872 | F14: 873,012 | G14: 915,312
B15: Immobilisation (cumul) | C15: =SUM($C$14:C14) -> 1,013,934 | D15: 1,726,206 | E15: 2,523,078 | F15: 3,396,091 | G15: 4,311,403
A17: Année de mise en service
A18: 1 | B18: Amortissement (20%) | D18: =20%*$C$14 -> 202,787 | E18: 202,787 | F18: 202,787 | G18: 202,787 | H18: 202,787
A19: 2 | B19: Amortissement (20%) | E19: =20%*$D$14 -> 142,454 | F19: 142,454 | G19: 142,454 | H19: 142,454 | I19: 142,454
A20: 3 | B20: Amortissement (20%) | F20: =20%*$E14 -> 159,374 | G20: 159,374 | H20: 159,374 | I20: 159,374 | J20: 159,374
A21: 4 | B21: Amortissement (20%) | G21: =20%*$F14 -> 174,602 | H21: 174,602 | I21: 174,602 | J21: 174,602 | K21: 174,602
A22: 5 | B22: Amortissement (20%) | H22: =20%*$G14 -> 183,062 | I22: 183,062 | J22: 183,062 | K22: 183,062 | L22: 183,062
B24: Dotation annuelle | C24: =C25 -> 0 | D24: =SUM(D18:D22)-C25 -> 202,787 | E24: 142,454 | F24: 159,374 | G24: 174,602 | H24: 183,062 | I24: -202,787 | J24: -142,454
B25: Total Amortissement cumulés | C25: =SUM(C18:C23) -> 0 | D25: 202,787 | E25: 345,241 | F25: 504,616 | G25: 679,218 | H25: 862,281 | I25: 659,494 | J25: 517,039 | K25: 357,665
B26: VNC Actif incorporel | C26: =C15-C25 -> 1,013,934 | D26: 1,523,419 | E26: 2,177,837 | F26: 2,891,475 | G26: 3,632,185 | H26: -862,281 | I26: -659,494 | J26: -517,039
B85: =Amortissement!C15-C25 -> 1,013,934

Sheet Pipe_S2=>

Sheet Bilan_Social
B2: I) Bilan Social
B4: AVIE + PER + CAPI + FP | C4: 2027-12-31 | H4: CTRL ACTIF | I4: CTRL PASSIF
B6: ACTIF | C6: VNC | D6: VM | F6: PASSIF
B7: Capital souscrit non appelé ou compte de liaison avec le siège | C7: ='BP Assurance'!$B$84 -> 0 | D7: =C7 -> 0 | F7: Capitaux Propres | G7: ='BP Assurance'!$B$95 -> 15,000,000
B8: Actifs Incorporels | C8: ='BP Assurance'!$B$85 -> 0 | D8: =C8 -> 0 | F8: Résultat de l'exercice | G8: ='BP Assurance'!$B$96 -> -1,584,924
B9: Obligation Govies | C9: ='BP Assurance'!$B$86*Actif!$F$5/100 -> 54,535,533 | D9: =C9*(1+Actif!$O$5) -> 54,535,533 | F9: Passifs subordonnés | G9: ='BP Assurance'!$B$97 -> 0
B10: Obligation Corporate | C10: ='BP Assurance'!$B$86*Actif!$F$6/100 -> 14,542,809 | D10: =C10*(1+Actif!$O$6) -> 14,979,093 | F10: Provisions techniques brutes | G10: =SUM(G11:G13) -> 59,298,967
B11: Action | C11: 0 | D11: 0 | F11: PM | G11: ='BP Assurance'!$B$98 -> 59,298,967 | J11: =G11=SUM(Model_Points!$C$7:$C$11,Model_Points!$C$15:$C$19) -> FALSE
B12: Monétaire | C12: ='BP Assurance'!$B$86*Actif!$F$4/100 -> 3,635,702 | D12: 3,635,702 | F12: PSAP | G12: 0
B13: UC | C13: ='BP Assurance'!$B$87 -> 32,705,851 | D13: 32,705,851 | F13: PPE | G13: 0 | I13: =C13=G14 -> TRUE
B14: Provisions sur placements | C14: =C15 -> 0 | D14: 0 | F14: Provision techniques des contrats en unité de comptes | G14: ='BP Assurance'!$B$99 -> 32,705,851 | J14: =ROUND(G14,5)=ROUND(SUM(Model_Points!$L$7:$L$11,Model_Points!$L$15:$L$19),5) -> TRUE
B15: PDD | C15: 0 | D15: 0 | F15: Autres provisions techniques | G15: =G16+G17 -> 0
B16: Part des cessionnaires et rétrocessionnaires dans les provisions techniques | C16: ='BP Assurance'!$B$88 -> 0 | D16: 0 | F16: RC | G16: 0
B17: Créances | C17: ='BP Assurance'!$B$89 -> 0 | D17: 0 | F17: PRE | G17: 0
B18: Autres Actifs | C18: ='BP Assurance'!$B$90 -> 0 | D18: 0 | F18: Provisions (autres que techniques) | G18: ='BP Assurance'!$B$101 -> 0
B19: Comptes de régularisation Actif | C19: ='BP Assurance'!$B$91 -> 0 | D19: 0 | F19: Dettes pour dépôts en espèces reçues des cessionnaires | G19: ='BP Assurance'!$B$102 -> 0
F20: Autres Dettes | G20: ='BP Assurance'!$B$103 -> 0
F21: Comptes de régularisation Passif | G21: ='BP Assurance'!$B$104 -> 0
B23: AVIE + PER + CAPI + FP | C23: 2028-12-31
B25: ACTIF | C25: VNC | D25: VM | F25: PASSIF
B26: Capital souscrit non appelé ou compte de liaison avec le siège | C26: ='BP Assurance'!$C$84 -> 0 | D26: =C26 -> 0 | F26: Capitaux Propres | G26: ='BP Assurance'!$C$95 -> 13,415,076
B27: Actifs Incorporels | C27: ='BP Assurance'!$C$85 -> 0 | D27: =C27 -> 0 | F27: Résultat de l'exercice | G27: ='BP Assurance'!$C$96 -> -795,494
B28: Obligation Govies | C28: ='BP Assurance'!$C$86*Actif!$F$5/100 -> 112,676,070 | D28: =C28*(1+Actif!$O$5) -> 112,676,070 | F28: Passifs subordonnés | G28: ='BP Assurance'!$C$97 -> 0
B29: Obligation Corporate | C29: ='BP Assurance'!$C$86*Actif!$F$6/100 -> 30,046,952 | D29: =C29*(1+Actif!$O$6) -> 30,948,361 | F29: Provisions techniques brutes | G29: =SUM(G30:G32) -> 137,615,178
B30: Action | C30: 0 | D30: 0 | F30: PM | G30: ='BP Assurance'!$C$98 -> 137,615,178 | J30: =ROUND(G30,2)=ROUND(SUM(Model_Points!$C$23:$C$27,Model_Points!$C$31:$C$35),2) -> TRUE
B31: Monétaire | C31: ='BP Assurance'!$C$86*Actif!$F$4/100 -> 7,511,738 | D31: 7,511,738 | F31: PSAP | G31: 0
B32: UC | C32: ='BP Assurance'!$C$87 -> 76,619,839 | D32: 76,619,839 | F32: PPE | G32: 0 | I32: =C32=G33 -> TRUE
B33: Provisions sur placements | C33: =C34 -> 0 | D33: 0 | F33: Provision techniques des contrats en unité de comptes | G33: ='BP Assurance'!$C$99 -> 76,619,839 | J33: =ROUND(G33,5)=ROUND(SUM(Model_Points!$L$23:$L$27,Model_Points!$L$31:$L$35),5) -> TRUE
B34: PDD | C34: 0 | D34: 0 | F34: Autres provisions techniques | G34: =G35+G36 -> 0
B35: Part des cessionnaires et rétrocessionnaires dans les provisions techniques | C35: ='BP Assurance'!$C$88 -> 0 | D35: 0 | F35: RC | G35: 0
B36: Créances | C36: ='BP Assurance'!$C$89 -> 0 | D36: 0 | F36: PRE | G36: 0
B37: Autres Actifs | C37: ='BP Assurance'!$C$90 -> 0 | D37: 0 | F37: Provisions (autres que techniques) | G37: ='BP Assurance'!$C$101 -> 0
B38: Comptes de régularisation Actif | C38: ='BP Assurance'!$C$91 -> 0 | D38: 0 | F38: Dettes pour dépôts en espèces reçues des cessionnaires | G38: ='BP Assurance'!$C$102 -> 0
F39: Autres Dettes | G39: ='BP Assurance'!$C$103 -> 0
F40: Comptes de régularisation Passif | G40: ='BP Assurance'!$C$104 -> 0
B42: AVIE + PER + CAPI + FP | C42: 2029-12-31
B44: ACTIF | C44: VNC | D44: VM | F44: PASSIF
B45: Capital souscrit non appelé ou compte de liaison avec le siège | C45: ='BP Assurance'!$D$84 -> 0 | D45: =C45 -> 0 | F45: Capitaux Propres | G45: ='BP Assurance'!$D$95 -> 27,619,582
B46: Actifs Incorporels | C46: ='BP Assurance'!$D$85 -> 0 | D46: =C46 -> 0 | F46: Résultat de l'exercice | G46: ='BP Assurance'!$D$96 -> 238,879
B47: Obligation Govies | C47: ='BP Assurance'!$D$86*Actif!$F$5/100 -> 213,063,174 | D47: =C47*(1+Actif!$O$5) -> 213,063,174 | F47: Passifs subordonnés | G47: ='BP Assurance'!$D$97 -> 0
B48: Obligation Corporate | C48: ='BP Assurance'!$D$86*Actif!$F$6/100 -> 56,816,846 | D48: =C48*(1+Actif!$O$6) -> 58,521,352 | F48: Provisions techniques brutes | G48: =SUM(G49:G51) -> 256,225,770
B49: Action | C49: 0 | D49: 0 | F49: PM | G49: ='BP Assurance'!$D$98 -> 256,225,770 | J49: =ROUND(G49,2)=ROUND(SUM(Model_Points!$C$39:$C$43,Model_Points!$C$47:$C$51),2) -> TRUE
B50: Monétaire | C50: ='BP Assurance'!$D$86*Actif!$F$4/100 -> 14,204,212 | D50: 14,204,212 | F50: PSAP | G50: 0
B51: UC | C51: ='BP Assurance'!$D$87 -> 144,569,480 | D51: 144,569,480 | F51: PPE | G51: 0 | I51: =C51=G52 -> TRUE
B52: Provisions sur placements | C52: =C53 -> 0 | D52: 0 | F52: Provision techniques des contrats en unité de comptes | G52: ='BP Assurance'!$D$99 -> 144,569,480 | J52: =ROUND(G52,4)=ROUND(SUM(Model_Points!$L$39:$L$43,Model_Points!$L$47:$L$51),4) -> TRUE
B53: PDD | C53: 0 | D53: 0 | F53: Autres provisions techniques | G53: =G54+G55 -> 0
B54: Part des cessionnaires et rétrocessionnaires dans les provisions techniques | C54: ='BP Assurance'!$D$88 -> 0 | D54: 0 | F54: RC | G54: 0
B55: Créances | C55: ='BP Assurance'!$D$89 -> 0 | D55: 0 | F55: PRE | G55: 0
B56: Autres Actifs | C56: ='BP Assurance'!$D$90 -> 0 | D56: 0 | F56: Provisions (autres que techniques) | G56: ='BP Assurance'!$D$101 -> 0
B57: Comptes de régularisation Actif | C57: ='BP Assurance'!$D$91 -> 0 | D57: 0 | F57: Dettes pour dépôts en espèces reçues des cessionnaires | G57: ='BP Assurance'!$D$102 -> 0
F58: Autres Dettes | G58: ='BP Assurance'!$D$103 -> 0
F59: Comptes de régularisation Passif | G59: ='BP Assurance'!$D$104 -> 0
B61: AVIE + PER + CAPI + FP | C61: 2030-12-31
B63: ACTIF | C63: VNC | D63: VM | F63: PASSIF
B64: Capital souscrit non appelé ou compte de liaison avec le siège | C64: ='BP Assurance'!$E$84 -> 0 | D64: =C64 -> 0 | F64: Capitaux Propres | G64: ='BP Assurance'!$E$95 -> 27,858,462
B65: Actifs Incorporels | C65: ='BP Assurance'!$E$85 -> 0 | D65: =C65 -> 0 | F65: Résultat de l'exercice | G65: ='BP Assurance'!$E$96 -> 1,168,787
B66: Obligation Govies | C66: ='BP Assurance'!$E$86*Actif!$F$5/100 -> 340,000,787 | D66: =C66*(1+Actif!$O$5) -> 340,000,787 | F66: Passifs subordonnés | G66: ='BP Assurance'!$E$97 -> 0
B67: Obligation Corporate | C67: ='BP Assurance'!$E$86*Actif!$F$6/100 -> 90,666,877 | D67: =C67*(1+Actif!$O$6) -> 93,386,883 | F67: Provisions techniques brutes | G67: =SUM(G68:G70) -> 424,307,134
B68: Action | C68: 0 | D68: 0 | F68: PM | G68: ='BP Assurance'!$E$98 -> 424,307,134 | J68: =ROUND(G68,2)=ROUND(SUM(Model_Points!$C$55:$C$59,Model_Points!$C$63:$C$67),2) -> TRUE
B69: Monétaire | C69: ='BP Assurance'!$E$86*Actif!$F$4/100 -> 22,666,719 | D69: 22,666,719 | F69: PSAP | G69: 0
B70: UC | C70: ='BP Assurance'!$E$87 -> 242,667,152 | D70: 242,667,152 | F70: PPE | G70: 0 | I70: =C70=G71 -> TRUE
B71: Provisions sur placements | C71: =C72 -> 0 | D71: 0 | F71: Provision techniques des contrats en unité de comptes | G71: ='BP Assurance'!$E$99 -> 242,667,152 | J71: =ROUND(G71,4)=ROUND(SUM(Model_Points!$L$55:$L$59,Model_Points!$L$63:$L$67),4) -> TRUE
B72: PDD | C72: 0 | D72: 0 | F72: Autres provisions techniques | G72: =G73+G74 -> 0
B73: Part des cessionnaires et rétrocessionnaires dans les provisions techniques | C73: ='BP Assurance'!$E$88 -> 0 | D73: 0 | F73: RC | G73: 0
B74: Créances | C74: ='BP Assurance'!$E$89 -> 0 | D74: 0 | F74: PRE | G74: 0
B75: Autres Actifs | C75: ='BP Assurance'!$E$90 -> 0 | D75: 0 | F75: Provisions (autres que techniques) | G75: ='BP Assurance'!$E$101 -> 0
B76: Comptes de régularisation Actif | C76: ='BP Assurance'!$E$91 -> 0 | D76: 0 | F76: Dettes pour dépôts en espèces reçues des cessionnaires | G76: ='BP Assurance'!$E$102 -> 0
F77: Autres Dettes | G77: ='BP Assurance'!$E$103 -> 0
F78: Comptes de régularisation Passif | G78: ='BP Assurance'!$E$104 -> 0
B80: AVIE + PER + CAPI + FP | C80: 2031-12-31
B82: ACTIF | C82: VNC | D82: VM | F82: PASSIF
B83: Capital souscrit non appelé ou compte de liaison avec le siège | C83: ='BP Assurance'!$F$84 -> 0 | D83: =C83 -> 0 | F83: Capitaux Propres | G83: ='BP Assurance'!$F$95 -> 29,027,248
B84: Actifs Incorporels | C84: ='BP Assurance'!$F$85 -> 0 | D84: =C84 -> 0 | F84: Résultat de l'exercice | G84: ='BP Assurance'!$F$96 -> 2,696,012
B85: Obligation Govies | C85: ='BP Assurance'!$F$86*Actif!$F$5/100 -> 494,217,744 | D85: =C85*(1+Actif!$O$5) -> 494,217,744 | F85: Passifs subordonnés | G85: ='BP Assurance'!$F$97 -> 0
B86: Obligation Corporate | C86: ='BP Assurance'!$F$86*Actif!$F$6/100 -> 131,791,398 | D86: =C86*(1+Actif!$O$6) -> 135,745,140 | F86: Provisions techniques brutes | G86: =SUM(G87:G89) -> 627,233,732
B87: Action | C87: 0 | D87: =C87 -> 0 | F87: PM | G87: ='BP Assurance'!$F$98 -> 627,233,732 | J87: =ROUND(G87,2)=ROUND(SUM(Model_Points!C71:C75,Model_Points!C79:C83),2) -> TRUE
B88: Monétaire | C88: ='BP Assurance'!$F$86*Actif!$F$4/100 -> 32,947,850 | D88: 32,947,850 | F88: PSAP | G88: 0
B89: UC | C89: ='BP Assurance'!$F$87 -> 363,608,279 | D89: 363,608,279 | F89: PPE | G89: 0 | I89: =C89=G90 -> TRUE
B90: Provisions sur placements | C90: =C91 -> 0 | D90: 0 | F90: Provision techniques des contrats en unité de comptes | G90: ='BP Assurance'!$F$99 -> 363,608,279 | J90: =ROUND(G90,4)=ROUND(SUM(Model_Points!L71:L75,Model_Points!L79:L83),4) -> TRUE
B91: PDD | C91: 0 | D91: 0 | F91: Autres provisions techniques | G91: =G92+G93 -> 0
B92: Part des cessionnaires et rétrocessionnaires dans les provisions techniques | C92: ='BP Assurance'!$F$88 -> 0 | D92: 0 | F92: RC | G92: 0
B93: Créances | C93: ='BP Assurance'!$F$89 -> 0 | D93: 0 | F93: PRE | G93: 0
B94: Autres Actifs | C94: ='BP Assurance'!$F$90 -> 0 | D94: 0 | F94: Provisions (autres que techniques) | G94: ='BP Assurance'!$F$101 -> 0
B95: Comptes de régularisation Actif | C95: ='BP Assurance'!$F$91 -> 0 | D95: 0 | F95: Dettes pour dépôts en espèces reçues des cessionnaires | G95: ='BP Assurance'!$F$102 -> 0
F96: Autres Dettes | G96: ='BP Assurance'!$F$103 -> 0
F97: Comptes de régularisation Passif | G97: ='BP Assurance'!$F$104 -> 0

Sheet Frais
B2: I) Frais et commissions
B5: AVIE / PER / CAPI | D5: 2027-12-31
B6: Frais | C6: Taux | D6: Driver
B7: Frais Acquisition | C7: =(-'BP Assurance'!$B$24-'BP Financier'!$C$87)/'BP Assurance'!$B$5 -> 1.255% | D7: Primes
B8: Frais Gestion Sinistres | C8: ='BP Assurance'!$B$17/('BP Assurance'!$B$15+'BP Assurance'!$B$16) -> 1.109% | D8: Prestations
B9: Frais Administration | C9: =-('BP Assurance'!$B$27+'BP Assurance'!$B$32+'BP Financier'!$C$92+'BP Assurance'!$B$28)/('BP Financier'!$C$50) -> 1.162% | D9: PM | E9: exclusion C3S sur primes
B10: Frais Financiers | C10: =-'BP Financier'!$C$55/SUM(Model_Points!$D$7:$D$11,Model_Points!$D$15:$D$19) -> 0.049% | D10: VM
B11: Prélèvements Sociaux | C11: 17.200% | D11: PB
B12: Clause PB | C12: 85.000% | D12: Produits financiers
B13: Frais d'acquisition : hors comm. distribution intégrées directement dans la projection des frais dans la maquette S2
B14: Frais Administration / Frais acq : montant de frais sur l'ensemble des périmètres => tx unique tout produit
B16: AVIE / PER / CAPI | D16: 2028-12-31
B17: Frais | C17: Taux | D17: Driver
B18: Frais Acquisition | C18: =(-'BP Assurance'!$C$24-'BP Financier'!$D$87)/'BP Assurance'!$C$5 -> 0.818% | D18: Primes
B19: Frais Gestion Sinistres | C19: ='BP Assurance'!$C$17/('BP Assurance'!$C$15+'BP Assurance'!$C$16) -> 0.561% | D19: Prestations
B20: Frais Administration | C20: =-('BP Assurance'!$C$27+'BP Assurance'!$C$32+'BP Financier'!$D$92+'BP Assurance'!$C$28)/('BP Financier'!$D$50) -> 0.547% | D20: PM | E20: exclusion C3S sur primes
B21: Frais Financiers | C21: =-'BP Financier'!$D$55/SUM(Model_Points!$D$23:$D$27,Model_Points!$D$31:$D$35) -> 0.071% | D21: VM
B22: Prélèvements Sociaux | C22: 17.200% | D22: PB
B23: Clause PB | C23: 85.000% | D23: Produits financiers
B24: Frais d'acquisition : hors comm. distribution intégrées directement dans la projection des frais dans la maquette S2
B25: Frais Administration / Frais acq : montant de frais sur l'ensemble des périmètres => tx unique tout produit
B27: AVIE / PER / CAPI | D27: 2029-12-31
B28: Frais | C28: Taux | D28: Driver
B29: Frais Acquisition | C29: =(-'BP Assurance'!$D$24-'BP Financier'!$E$87)/'BP Assurance'!$D$5 -> 0.634% | D29: Primes
B30: Frais Gestion Sinistres | C30: ='BP Assurance'!$D$17/('BP Assurance'!$D$15+'BP Assurance'!$D$16) -> 0.361% | D30: Prestations
B31: Frais Administration | C31: =-('BP Assurance'!$D$27+'BP Assurance'!$D$32+'BP Financier'!$E$92+'BP Assurance'!$D$28)/('BP Financier'!$E$50) -> 0.369% | D31: PM | E31: exclusion C3S sur primes
B32: Frais Financiers | C32: =-'BP Financier'!$E$55/SUM(Model_Points!$D$39:$D$43,Model_Points!$D$47:$D$51) -> 0.076% | D32: VM
B33: Prélèvements Sociaux | C33: 17.200% | D33: PB
B34: Clause PB | C34: 85.000% | D34: Produits financiers
B35: Frais d'acquisition : hors comm. distribution intégrées directement dans la projection des frais dans la maquette S2
B36: Frais Administration / Frais acq : montant de frais sur l'ensemble des périmètres => tx unique tout produit
B38: AVIE / PER / CAPI | D38: 2030-12-31
B39: Frais | C39: Taux | D39: Driver
B40: Frais Acquisition | C40: =(-'BP Assurance'!$E$24-'BP Financier'!$F$87)/'BP Assurance'!$E$5 -> 0.508% | D40: Primes
B41: Frais Gestion Sinistres | C41: ='BP Assurance'!$E$17/('BP Assurance'!$E$15+'BP Assurance'!$E$16) -> 0.315% | D41: Prestations
B42: Frais Administration | C42: =-('BP Assurance'!$E$27+'BP Assurance'!$E$32+'BP Financier'!$F$92+'BP Assurance'!$E$28)/('BP Financier'!$F$50) -> 0.307% | D42: PM | E42: exclusion C3S sur primes
B43: Frais Financiers | C43: =C32 -> 0.076% | D43: VM | E43: MP 2029 car 2030 non calculés
B44: Prélèvements Sociaux | C44: 17.200% | D44: PB
B45: Clause PB | C45: 85.000% | D45: Produits financiers
B46: Frais d'acquisition : hors comm. distribution intégrées directement dans la projection des frais dans la maquette S2
B47: Frais Administration / Frais acq : montant de frais sur l'ensemble des périmètres => tx unique tout produit
B49: AVIE / PER / CAPI | D49: 2031-12-31
B50: Frais | C50: Taux | D50: Driver
B51: Frais Acquisition | C51: =(-'BP Assurance'!$F$24-'BP Financier'!$G$87)/'BP Assurance'!$F$5 -> 0.463% | D51: Primes | G51: =(-'BP Assurance'!$F$24-'BP Financier'!$G$87) -> 1,660,476
B52: Frais Gestion Sinistres | C52: ='BP Assurance'!$F$17/('BP Assurance'!$F$15+'BP Assurance'!$F$16) -> 0.259% | D52: Prestations | G52: =G51-[3]Frais!$G$51 -> 1,148,360
B53: Frais Administration | C53: =-('BP Assurance'!$F$27+'BP Assurance'!$F$32+'BP Financier'!$G$92+'BP Assurance'!$F$28)/('BP Financier'!$G$50) -> 0.212% | D53: PM | E53: exclusion C3S sur primes | G53: =-('BP Assurance'!$F$27+'BP Assurance'!$F$32+'BP Financier'!$G$92+'BP Assurance'!$F$28) -> 2,104,140
B54: Frais Financiers | C54: =C43 -> 0.076% | D54: VM | E54: MP 2029 car 2030 non calculés | G54: =G53-Frais!$G$53 -> 0
B55: Prélèvements Sociaux | C55: 17.200% | D55: PB
B56: Clause PB | C56: 85.000% | D56: Produits financiers
B57: Frais d'acquisition : hors comm. distribution intégrées directement dans la projection des frais dans la maquette S2
B58: Frais Administration / Frais acq : montant de frais sur l'ensemble des périmètres => tx unique tout produit
B65: Chargements | C65: Taux
B66: Frais Gestion Euro | C66: 0.42%
B67: Commissions Distributeur Euro | C67: 0.60%
B68: Frais Gestion UC | C68: 0.40%
B69: Commissions Distributeur UC | C69: 0.60%
B71: Chargements | C71: Taux
B72: Frais Gestion Euro | C72: 0.40%
B73: Commissions Distributeur Euro | C73: 0.60%
B74: Frais Gestion UC | C74: 0.34%
B75: Commissions Distributeur UC | C75: 0.60%

Sheet Model_Points
B2: I) Model Points Actifs
B5: AVIE | C5: Euro | D5: 2027-12-31 | K5: AVIE / CAPI | L5: UC | M5: 2027-12-31 | Q5: AVIE / CAPI | R5: 2027-12-31 | S5: TEST PM EURO | T5: A VIE | U5: PER | V5: CAPI
B6: Asset Type | C6: VNC | D6: VM | E6: COUPON_PC | F6: NOMINAL | G6: MATURITY_RESID | H6: SPREAD_PC | I6: DIV_PC | K6: Asset Type | L6: VNC | M6: VM | N6: DIV_PC | O6: UC_TYPE | Q6: Asset Type | R6: VNC | S6: 2027 | T6: =SUM($C$7:$C$11)=('BP Financier'!$C$33*SCR_Op!$L$12) -> FALSE | U6: =SUM($C$15:$C$19)=('BP Financier'!$C$33*SCR_Op!$L$13) -> FALSE
B7: BONDS_GOV | C7: =SUM($N$90:$N$195)*Actif!$F$5/100 -> 41318343.03 | D7: =C7*(1+Actif!$O$5) -> 41318343.03 | E7: 0 | F7: =C7 -> 41318343.03 | G7: 7 | K7: OBLIG_CORP | L7: =SUM($P$90:$P$195) -> 3,868,843 | M7: =L7 -> 3868843.461 | N7: 0 | O7: 1 | Q7: PPE | R7: 0 | S7: 2028 | T7: =ROUND(SUM($C$23:$C$27),2)=ROUND(('BP Financier'!$D$33*SCR_Op!$M$12),2) -> TRUE | U7: =SUM($C$31:$C$35)=('BP Financier'!$D$33*SCR_Op!$M$13) -> FALSE
B8: BONDS_CORP | C8: =SUM($N$90:$N$195)*Actif!$F$6/100 -> 11018224.81 | D8: =C8*(1+Actif!$O$6) -> 11348771.55 | E8: 0 | F8: =C8 -> 11018224.81 | G8: 7 | K8: OBLIG_CORP_NR | L8: =SUM($Q$90:$Q$195) -> 2,586,354 | M8: =L8 -> 2586353.916 | N8: 0 | O8: 2 | Q8: RC | R8: 0 | S8: 2029 | T8: =ROUND(SUM($C$39:$C$43),2)=ROUND(('BP Financier'!$E$33*SCR_Op!$N$12),2) -> TRUE | U8: =ROUND(SUM($C$47:$C$51),2)=ROUND(('BP Financier'!$E$33*SCR_Op!$N$13),2) -> TRUE
B9: EQ_TYPE_1 | C9: 0 | D9: =C9 -> 0 | E9: 0 | I9: 0 | K9: EQ_TYPE_1 | L9: =SUM($R$90:$R$195) -> 20,241,960 | M9: 20241959.99 | N9: 0 | O9: 3 | S9: 2030 | T9: =ROUND(SUM($C$55:$C$59),2)=ROUND(('BP Financier'!$F$33*SCR_Op!$O$12),2) -> TRUE | U9: =ROUND(SUM($C$63:$C$67),2)=ROUND(('BP Financier'!$F$33*SCR_Op!$O$13),2) -> TRUE
B10: EQ_TYPE_2 | C10: 0 | D10: =C10 -> 0 | E10: 0 | I10: 0 | K10: EQ_TYPE_2 | L10: =SUM($S$90:$S$195) -> 2,500,855 | M10: 2500854.613 | N10: 0 | O10: 4 | S10: 2031 | T10: =ROUND(SUM($C$71:$C$75),5)=ROUND(('BP Financier'!$G$33*SCR_Op!$P$12),5) -> TRUE | U10: =ROUND(SUM($C$79:$C$83),3)=ROUND(('BP Financier'!$G$33*SCR_Op!$P$13),3) -> TRUE
B11: CASH | C11: =SUM($N$90:$N$195)*Actif!$F$4/100 -> 2754556.202 | D11: =C11 -> 2754556.202 | E11: 0 | K11: MONETAIRE | L11: =SUM($T$90:$T$195) -> 1,196,990 | M11: 1196990.242 | N11: 0 | O11: 5
S12: TEST PM UC | T12: A VIE / CAPI | U12: PER
B13: PER | C13: Euro | D13: 2027-12-31 | K13: PER | L13: UC | M13: 2027-12-31 | Q13: PER | R13: 2027-12-31 | S13: 2027 | T13: =ROUND(SUM($L$7:$L$11),5)=ROUND(('BP Financier'!$C$44*(SCR_Op!$L$6+SCR_Op!$L$8)),5) -> TRUE | U13: =SUM($L$15:$L$19)=('BP Financier'!$C$44*(SCR_Op!$L$7)) -> TRUE
B14: Asset Type | C14: VNC | D14: VM | E14: COUPON_PC | F14: NOMINAL | G14: MATURITY_RESID | H14: SPREAD_PC | I14: DIV_PC | K14: Asset Type | L14: VNC | M14: VM | N14: DIV_PC | O14: UC_TYPE | Q14: Asset Type | R14: VNC | S14: 2028 | T14: =ROUND(SUM($L$23:$L$27),3)=ROUND(('BP Financier'!$D$44*(SCR_Op!$M$6+SCR_Op!$M$8)),3) -> TRUE | U14: =SUM($L$31:$L$35)=('BP Financier'!$D$44*(SCR_Op!$M$7)) -> TRUE
B15: BONDS_GOV | C15: =SUM($N$1093:$N$1135)*Actif!$F$5/100 -> 3155882.271 | D15: =C15*(1+Actif!$O$5) -> 3155882.271 | E15: 0 | F15: =C15 -> 3155882.271 | G15: 7 | K15: OBLIG_CORP | L15: =SUM($P$1093:$P$1135) -> 294137.5165 | M15: =L15 -> 294137.5165 | N15: 0 | O15: 1 | Q15: PPE | R15: 0 | S15: 2029 | T15: =ROUND(SUM($L$39:$L$43),5)=ROUND(('BP Financier'!$E$44*(SCR_Op!$N$6+SCR_Op!$N$8)),5) -> TRUE | U15: =SUM($L$47:$L$51)=('BP Financier'!$E$44*(SCR_Op!$N$7)) -> TRUE
B16: BONDS_CORP | C16: =SUM($N$1093:$N$1135)*Actif!$F$6/100 -> 841568.6057 | D16: =C16*(1+Actif!$O$6) -> 866815.6638 | E16: 0 | F16: =C16 -> 841568.6057 | G16: 7 | K16: OBLIG_CORP_NR | L16: =SUM($Q$1093:$Q$1135) -> 196633.3674 | M16: =L16 -> 196633.3674 | N16: 0 | O16: 2 | Q16: RC | R16: 0 | S16: 2030 | T16: =ROUND(SUM($L$55:$L$59),5)=ROUND(('BP Financier'!$F$44*(SCR_Op!$O$6+SCR_Op!$O$8)),5) -> TRUE | U16: =ROUND(SUM($L$63:$L$67),5)=ROUND(('BP Financier'!$F$44*(SCR_Op!$O$7)),5) -> TRUE
B17: EQ_TYPE_1 | C17: 0 | D17: =C17 -> 0 | E17: 0 | I17: 0 | K17: EQ_TYPE_1 | L17: =SUM($R$1093:$R$1135) -> 1538940.487 | M17: 1538940.487 | N17: 0 | O17: 3 | S17: 2031 | T17: =ROUND(SUM($L$71:$L$75),4)=ROUND(('BP Financier'!$G$44*(SCR_Op!$P$6+SCR_Op!$P$8)),4) -> TRUE | U17: =ROUND(SUM($L$79:$L$83),5)=ROUND(('BP Financier'!$G$44*(SCR_Op!$P$7)),5) -> TRUE
B18: EQ_TYPE_2 | C18: 0 | D18: =C18 -> 0 | E18: 0 | I18: 0 | K18: EQ_TYPE_2 | L18: =SUM($S$1093:$S$1135) -> 190133.0908 | M18: 190133.0908 | N18: 0 | O18: 4
B19: CASH | C19: =SUM($N$1093:$N$1135)*Actif!$F$4/100 -> 210392.1514 | D19: =C19 -> 210392.1514 | E19: 0 | K19: MONETAIRE | L19: =SUM($T$1093:$T$1135) -> 91003.8725 | M19: 91003.8725 | N19: 0 | O19: 5
B21: AVIE | C21: Euro | D21: 2028-12-31 | K21: AVIE / CAPI | L21: UC | M21: 2028-12-31 | Q21: AVIE / CAPI | R21: 2028-12-31
B22: Asset Type | C22: VNC | D22: VM | E22: COUPON_PC | F22: NOMINAL | G22: MATURITY_RESID | H22: SPREAD_PC | I22: DIV_PC | K22: Asset Type | L22: VNC | M22: VM | N22: DIV_PC | O22: UC_TYPE | Q22: Asset Type | R22: VNC
B23: BONDS_GOV | C23: =SUM($N$2096:$N$2201)*Actif!$F$5/100 -> 95552794.43 | D23: =C23*(1+Actif!$O$5) -> 95552794.43 | E23: 0 | F23: =C23 -> 95552794.43 | G23: 7 | K23: OBLIG_CORP | L23: =SUM($P$2096:$P$2307) -> 9,031,965 | M23: =L23 -> 9031964.618 | N23: 0 | O23: 1 | Q23: PPE | R23: 0
B24: BONDS_CORP | C24: =SUM($N$2096:$N$2201)*Actif!$F$6/100 -> 25480745.18 | D24: =C24*(1+Actif!$O$6) -> 26245167.54 | E24: 0 | F24: =C24 -> 25480745.18 | G24: 7 | K24: OBLIG_CORP_NR | L24: =SUM($Q$2096:$Q$2307) -> 6,037,943 | M24: =L24 -> 6037943.198 | N24: 0 | O24: 2 | Q24: RC | R24: 0
B25: EQ_TYPE_1 | C25: 0 | D25: =C25 -> 0 | E25: 0 | I25: 0 | K25: EQ_TYPE_1 | L25: =SUM($R$2096:$R$2307) -> 47,255,638 | M25: 47255638.08 | N25: 0 | O25: 3
B26: EQ_TYPE_2 | C26: 0 | D26: =C26 -> 0 | E26: 0 | I26: 0 | K26: EQ_TYPE_2 | L26: =SUM($S$2096:$S$2307) -> 5,838,342 | M26: 5838341.77 | N26: 0 | O26: 4
B27: CASH | C27: =SUM($N$2096:$N$2201)*Actif!$F$4/100 -> 6370186.295 | D27: =C27 -> 6370186.295 | E27: 0 | K27: MONETAIRE | L27: =SUM($T$2096:$T$2307) -> 2,794,420 | M27: 2794419.992 | N27: 0 | O27: 5
B29: PER | C29: Euro | D29: 2028-12-31 | K29: PER | L29: UC | M29: 2028-12-31 | Q29: PER | R29: 2028-12-31
B30: Asset Type | C30: VNC | D30: VM | E30: COUPON_PC | F30: NOMINAL | G30: MATURITY_RESID | H30: SPREAD_PC | I30: DIV_PC | K30: Asset Type | L30: VNC | M30: VM | N30: DIV_PC | O30: UC_TYPE | Q30: Asset Type | R30: VNC
B31: BONDS_GOV | C31: =SUM($N$3099:$N$3184)*Actif!$F$5/100 -> 7658589.02 | D31: =C31*(1+Actif!$O$5) -> 7658589.02 | E31: 0 | F31: =C31 -> 7658589.02 | G31: 7 | K31: OBLIG_CORP | L31: =SUM($P$3099:$P$3184) -> 720630.9811 | M31: =L31 -> 720630.9811 | N31: 0 | O31: 1 | Q31: PPE | R31: 0
B32: BONDS_CORP | C32: =SUM($N$3099:$N$3184)*Actif!$F$6/100 -> 2042290.405 | D32: =C32*(1+Actif!$O$6) -> 2103559.117 | E32: 0 | F32: =C32 -> 2042290.405 | G32: 7 | K32: OBLIG_CORP_NR | L32: =SUM($Q$3099:$Q$3184) -> 481747.783 | M32: =L32 -> 481747.783 | N32: 0 | O32: 2 | Q32: RC | R32: 0
B33: EQ_TYPE_1 | C33: 0 | D33: =C33 -> 0 | E33: 0 | I33: 0 | K33: EQ_TYPE_1 | L33: =SUM($R$3099:$R$3184) -> 3770373.144 | M33: 3770373.144 | N33: 0 | O33: 3
B34: EQ_TYPE_2 | C34: 0 | D34: =C34 -> 0 | E34: 0 | I34: 0 | K34: EQ_TYPE_2 | L34: =SUM($S$3099:$S$3184) -> 465822.2364 | M34: 465822.2364 | N34: 0 | O34: 4
B35: CASH | C35: =SUM($N$3099:$N$3184)*Actif!$F$4/100 -> 510572.6013 | D35: =C35 -> 510572.6013 | E35: 0 | K35: MONETAIRE | L35: =SUM($T$3099:$T$3184) -> 222957.6516 | M35: 222957.6516 | N35: 0 | O35: 5
B37: AVIE | C37: Euro | D37: 2029-12-31 | K37: AVIE / CAPI | L37: UC | M37: 2029-12-31 | Q37: AVIE / CAPI | R37: 2029-12-31
B38: Asset Type | C38: VNC | D38: VM | E38: COUPON_PC | F38: NOMINAL | G38: MATURITY_RESID | H38: SPREAD_PC | I38: DIV_PC | K38: Asset Type | L38: VNC | M38: VM | N38: DIV_PC | O38: UC_TYPE | Q38: Asset Type | R38: VNC
B39: BONDS_GOV | C39: =SUM($N$4102:$N$4260)*Actif!$F$5/100 -> 176759001.5 | D39: =C39*(1+Actif!$O$5) -> 176759001.5 | E39: 0 | F39: =C39 -> 176759001.5 | G39: 7 | K39: OBLIG_CORP | L39: =SUM($P$4102:$P$4419) -> 16,934,791 | M39: =L39 -> 16934791.04 | N39: 0 | O39: 1 | Q39: PPE | R39: 0
B40: BONDS_CORP | C40: =SUM($N$4102:$N$4260)*Actif!$F$6/100 -> 47135733.73 | D40: =C40*(1+Actif!$O$6) -> 48549805.74 | E40: 0 | F40: =C40 -> 47135733.73 | G40: 7 | K40: OBLIG_CORP_NR | L40: =SUM($Q$4102:$Q$4419) -> 11,321,048 | M40: =L40 -> 11321048.15 | N40: 0 | O40: 2 | Q40: RC | R40: 0
B41: EQ_TYPE_1 | C41: 0 | D41: =C41 -> 0 | E41: 0 | I41: 0 | K41: EQ_TYPE_1 | L41: =SUM($R$4102:$R$4419) -> 88,603,575 | M41: 88603575.23 | N41: 0 | O41: 3
B42: EQ_TYPE_2 | C42: 0 | D42: =C42 -> 0 | E42: 0 | I42: 0 | K42: EQ_TYPE_2 | L42: =SUM($S$4102:$S$4419) -> 10,946,799 | M42: 10946798.63 | N42: 0 | O42: 4
B43: CASH | C43: =SUM($N$4102:$N$4260)*Actif!$F$4/100 -> 11783933.43 | D43: =C43 -> 11783933.43 | E43: 0 | K43: MONETAIRE | L43: =SUM($T$4102:$T$4419) -> 5,239,493 | M43: 5239493.361 | N43: 0 | O43: 5
B45: PER | C45: Euro | D45: 2029-12-31 | K45: PER | L45: UC | M45: 2029-12-31 | Q45: PER | R45: 2029-12-31
B46: Asset Type | C46: VNC | D46: VM | E46: COUPON_PC | F46: NOMINAL | G46: MATURITY_RESID | H46: SPREAD_PC | I46: DIV_PC | K46: Asset Type | L46: VNC | M46: VM | N46: DIV_PC | O46: UC_TYPE | Q46: Asset Type | R46: VNC
B47: BONDS_GOV | C47: =SUM($N$5105:$N$5233)*Actif!$F$5/100 -> 15410325.85 | D47: =C47*(1+Actif!$O$5) -> 15410325.85 | E47: 0 | F47: =C47 -> 15410325.85 | G47: 7 | K47: OBLIG_CORP | L47: =SUM($P$5105:$P$5233) -> 1466809.491 | M47: =L47 -> 1466809.491 | N47: 0 | O47: 1 | Q47: PPE | R47: 0
B48: BONDS_CORP | C48: =SUM($N$5105:$N$5233)*Actif!$F$6/100 -> 4109420.227 | D48: =C48*(1+Actif!$O$6) -> 4232702.834 | E48: 0 | F48: =C48 -> 4109420.227 | G48: 7 | K48: OBLIG_CORP_NR | L48: =SUM($Q$5105:$Q$5233) -> 980574.3004 | M48: =L48 -> 980574.3004 | N48: 0 | O48: 2 | Q48: RC | R48: 0
B49: EQ_TYPE_1 | C49: 0 | D49: =C49 -> 0 | E49: 0 | I49: 0 | K49: EQ_TYPE_1 | L49: =SUM($R$5105:$R$5233) -> 7674412.087 | M49: 7674412.087 | N49: 0 | O49: 3
B50: EQ_TYPE_2 | C50: 0 | D50: =C50 -> 0 | E50: 0 | I50: 0 | K50: EQ_TYPE_2 | L50: =SUM($S$5105:$S$5233) -> 948158.621 | M50: 948158.621 | N50: 0 | O50: 4
B51: CASH | C51: =SUM($N$5105:$N$5233)*Actif!$F$4/100 -> 1027355.057 | D51: =C51 -> 1027355.057 | E51: 0 | K51: MONETAIRE | L51: =SUM($T$5105:$T$5233) -> 453819.5109 | M51: 453819.5109 | N51: 0 | O51: 5
B53: AVIE | C53: Euro | D53: 2030-12-31 | K53: AVIE / CAPI | L53: UC | M53: 2030-12-31 | Q53: AVIE / CAPI | R53: 2030-12-31
B54: Asset Type | C54: VNC | D54: VM | E54: COUPON_PC | F54: NOMINAL | G54: MATURITY_RESID | H54: SPREAD_PC | I54: DIV_PC | K54: Asset Type | L54: VNC | M54: VM | N54: DIV_PC | O54: UC_TYPE | Q54: Asset Type | R54: VNC
B55: BONDS_GOV | C55: =SUM($N$6108:$N$6319)*Actif!$F$5/100 -> 290983018.7 | D55: =C55*(1+Actif!$O$5) -> 290983018.7 | E55: 0 | F55: =C55 -> 290983018.7 | G55: 7 | K55: OBLIG_CORP | L55: =SUM($P$6108:$P$6531) -> 28,264,818 | M55: =L55 -> 28264818.16 | N55: 0 | O55: 1 | Q55: PPE | R55: 0
B56: BONDS_CORP | C56: =SUM($N$6108:$N$6319)*Actif!$F$6/100 -> 77595471.64 | D56: =C56*(1+Actif!$O$6) -> 79923335.79 | E56: 0 | F56: =C56 -> 77595471.64 | G56: 7 | K56: OBLIG_CORP_NR | L56: =SUM($Q$6108:$Q$6531) -> 18,895,265 | M56: =L56 -> 18895265.18 | N56: 0 | O56: 2 | Q56: RC | R56: 0
B57: EQ_TYPE_1 | C57: 0 | D57: =C57 -> 0 | E57: 0 | I57: 0 | K57: EQ_TYPE_1 | L57: =SUM($R$6108:$R$6531) -> 147,882,778 | M57: 147882777.9 | N57: 0 | O57: 3
B58: EQ_TYPE_2 | C58: 0 | D58: =C58 -> 0 | E58: 0 | I58: 0 | K58: EQ_TYPE_2 | L58: =SUM($S$6108:$S$6531) -> 18,270,628 | M58: 18270628.32 | N58: 0 | O58: 4
B59: CASH | C59: =SUM($N$6108:$N$6319)*Actif!$F$4/100 -> 19398867.91 | D59: =C59 -> 19398867.91 | E59: 0 | K59: MONETAIRE | L59: =SUM($T$6108:$T$6531) -> 8,744,916 | M59: 8744916.117 | N59: 0 | O59: 5
B61: PER | C61: Euro | D61: 2030-12-31 | K61: PER | L61: UC | M61: 2030-12-31 | Q61: PER | R61: 2030-12-31
B62: Asset Type | C62: VNC | D62: VM | E62: COUPON_PC | F62: NOMINAL | G62: MATURITY_RESID | H62: SPREAD_PC | I62: DIV_PC | K62: Asset Type | L62: VNC | M62: VM | N62: DIV_PC | O62: UC_TYPE | Q62: Asset Type | R62: VNC
B63: BONDS_GOV | C63: =SUM($N$7111:$N$7282)*Actif!$F$5/100 -> 27247332.06 | D63: =C63*(1+Actif!$O$5) -> 27247332.06 | E63: 0 | F63: =C63 -> 27247332.06 | G63: 7 | K63: OBLIG_CORP | L63: =SUM($P$7111:$P$7282) -> 2,623,195 | M63: =L63 -> 2623194.813 | N63: 0 | O63: 1 | Q63: PPE | R63: 0
B64: BONDS_CORP | C64: =SUM($N$7111:$N$7282)*Actif!$F$6/100 -> 7265955.215 | D64: =C64*(1+Actif!$O$6) -> 7483933.871 | E64: 0 | F64: =C64 -> 7265955.215 | G64: 7 | K64: OBLIG_CORP_NR | L64: =SUM($Q$7111:$Q$7282) -> 1,753,627 | M64: =L64 -> 1753627.472 | N64: 0 | O64: 2 | Q64: RC | R64: 0
B65: EQ_TYPE_1 | C65: 0 | D65: =C65 -> 0 | E65: 0 | I65: 0 | K65: EQ_TYPE_1 | L65: =SUM($R$7111:$R$7282) -> 13,724,671 | M65: 13724671.2 | N65: 0 | O65: 3
B66: EQ_TYPE_2 | C66: 0 | D66: =C66 -> 0 | E66: 0 | I66: 0 | K66: EQ_TYPE_2 | L66: =SUM($S$7111:$S$7282) -> 1,695,656 | M66: 1695656.315 | N66: 0 | O66: 4
B67: CASH | C67: =SUM($N$7111:$N$7282)*Actif!$F$4/100 -> 1816488.804 | D67: =C67 -> 1816488.804 | E67: 0 | K67: MONETAIRE | L67: =SUM($T$7111:$T$7282) -> 811,596 | M67: 811596.1852 | N67: 0 | O67: 5
B69: AVIE | C69: Euro | D69: 2031-12-31 | K69: AVIE / CAPI | L69: UC | M69: 2031-12-31 | Q69: AVIE / CAPI | R69: 2031-12-31
B70: Asset Type | C70: VNC | D70: VM | E70: COUPON_PC | F70: NOMINAL | G70: MATURITY_RESID | H70: SPREAD_PC | I70: DIV_PC | K70: Asset Type | L70: VNC | M70: VM | N70: DIV_PC | O70: UC_TYPE | Q70: Asset Type | R70: VNC
B71: BONDS_GOV | C71: =SUM($N$8114:$N$8378)*Actif!$F$5/100 -> 427709005.7 | D71: =C71*(1+Actif!$O$5) -> 427709005.7 | E71: 0 | F71: =C71 -> 427709005.7 | G71: 7 | K71: OBLIG_CORP | L71: =SUM($P$8114:$P$8643) -> 42,121,297 | M71: =L71 -> 42121297.45 | N71: 0 | O71: 1 | Q71: PPE | R71: 0
B72: BONDS_CORP | C72: =SUM($N$8114:$N$8378)*Actif!$F$6/100 -> 114055734.9 | D72: =C72*(1+Actif!$O$6) -> 117477406.9 | E72: 0 | F72: =C72 -> 114055734.9 | G72: 7 | K72: OBLIG_CORP_NR | L72: =SUM($Q$8114:$Q$8643) -> 28,158,436 | M72: =L72 -> 28158436.42 | N72: 0 | O72: 2 | Q72: RC | R72: 0
B73: EQ_TYPE_1 | C73: 0 | D73: =C73 -> 0 | E73: 0 | I73: 0 | K73: EQ_TYPE_1 | L73: =SUM($R$8114:$R$8643) -> 220,380,490 | M73: 220380490 | N73: 0 | O73: 3
B74: EQ_TYPE_2 | C74: 0 | D74: =C74 -> 0 | E74: 0 | I74: 0 | K74: EQ_TYPE_2 | L74: =SUM($S$8114:$S$8643) -> 27,227,579 | M74: 27227579.01 | N74: 0 | O74: 4
B75: CASH | C75: =SUM($N$8114:$N$8378)*Actif!$F$4/100 -> 28513933.72 | D75: =C75 -> 28513933.72 | E75: 0 | K75: MONETAIRE | L75: =SUM($T$8114:$T$8643) -> 13,032,004 | M75: 13032003.63 | N75: 0 | O75: 5
B77: PER | C77: Euro | D77: 2031-12-31 | K77: PER | L77: UC | M77: 2031-12-31 | Q77: PER | R77: 2031-12-31
B78: Asset Type | C78: VNC | D78: VM | E78: COUPON_PC | F78: NOMINAL | G78: MATURITY_RESID | H78: SPREAD_PC | I78: DIV_PC | K78: Asset Type | L78: VNC | M78: VM | N78: DIV_PC | O78: UC_TYPE | Q78: Asset Type | R78: VNC
B79: BONDS_GOV | C79: =SUM($N$9117:$N$9331)*Actif!$F$5/100 -> 42716292.92 | D79: =C79*(1+Actif!$O$5) -> 42716292.92 | E79: 0 | F79: =C79 -> 42716292.92 | G79: 7 | K79: OBLIG_CORP | L79: =SUM($P$9117:$P$9331) -> 4,160,769 | M79: =L79 -> 4160769.055 | N79: 0 | O79: 1 | Q79: PPE | R79: 0
B80: BONDS_CORP | C80: =SUM($N$9117:$N$9331)*Actif!$F$6/100 -> 11391011.44 | D80: =C80*(1+Actif!$O$6) -> 11732741.79 | E80: 0 | F80: =C80 -> 11391011.44 | G80: 7 | K80: OBLIG_CORP_NR | L80: =SUM($Q$9117:$Q$9331) -> 2,781,509 | M80: =L80 -> 2781508.595 | N80: 0 | O80: 2 | Q80: RC | R80: 0
B81: EQ_TYPE_1 | C81: 0 | D81: =C81 -> 0 | E81: 0 | I81: 0 | K81: EQ_TYPE_1 | L81: =SUM($R$9117:$R$9331) -> 21,769,328 | M81: 21769327.6 | N81: 0 | O81: 3
B82: EQ_TYPE_2 | C82: 0 | D82: =C82 -> 0 | E82: 0 | I82: 0 | K82: EQ_TYPE_2 | L82: =SUM($S$9117:$S$9331) -> 2,689,558 | M82: 2689557.898 | N82: 0 | O82: 4
B83: CASH | C83: =SUM($N$9117:$N$9331)*Actif!$F$4/100 -> 2847752.861 | D83: =C83 -> 2847752.861 | E83: 0 | K83: MONETAIRE | L83: =SUM($T$9117:$T$9331) -> 1,287,310 | M83: 1287309.763 | N83: 0 | O83: 5
B85: II) Model Points Passif
X87: OBLIG_CORP | Y87: OBLIG_CORP_NR | Z87: EQ_TYPE_1 | AA87: EQ_TYPE_2 | AB87: MONETAIRE
B88: AVIE / CAPI | C88: Euro - UC | D88: 2027-12-31 | X88: Obligation | Y88: Dette Privée | Z88: Action | AA88: Private Equity | AB88: Obligation CT
B89: ID | C89: AGE | D89: SOUSCRIPTION_YR | E89: SEXE | F89: PDT | G89: CHGT_GEST_EURO_PC | H89: CHGT_GEST_UC_PC | I89: COMM_DIST_EURO_PC | J89: COMM_DIST_UC_PC | K89: CLAUSE_PB_PC | L89: TMG_PC | M89: NO_POLS | N89: PM_EURO | O89: PM_UC_TOT | P89: PM_UC_1 | Q89: PM_UC_2 | R89: PM_UC_3 | S89: PM_UC_4 | T89: PM_UC_5 | V89: Pondération | W89: %Euro | X89: %UC1 | Y89: %UC2 | Z89: %UC3 | AA89: %UC4 | AB89: %UC5
B90: #1 | C90: 18 | D90: 2026 | E90: H | F90: A_VIE | G90: =frais_gestion_Euro*100 -> 0.45 | H90: =frais_gestion_UC*100 -> 0.39 | I90: =frais_distribution_FG*100 -> 0.6 | J90: =frais_distribution_UC*100 -> 0.6 | K90: 85 | L90: 0 | M90: =ROUND(Primes!$M$4*V90,0) -> 17 | N90: ='BP Financier'!$C$33*('BP Financier'!$C$16/('BP Financier'!$C$16+'BP Financier'!$C$19))*V90 -> 275,456 | O90: =SUM(P90:T90) -> 151,274 | P90: ='BP Financier'!$C$44*('BP Financier'!$C$16/('BP Financier'!$C$16+'BP Financier'!$C$19+'BP Financier'!$C$22))*$V90*X90/(1-$W90) -> 19,255 | Q90: ='BP Financier'!$C$44*('BP Financier'!$C$16/('BP Financier'!$C$16+'BP Financier'!$C$19+'BP Financier'!$C$22))*$V90*Y90/(1-$W90) -> 12,872 | R90: ='BP Financier'!$C$44*('BP Financier'!$C$16/('BP Financier'!$C$16+'BP Financier'!$C$19+'BP Financier'!$C$22))*$V90*Z90/(1-$W90) -> 100,743 | S90: ='BP Financier'!$C$44*('BP Financier'!$C$16/('BP Financier'!$C$16+'BP Financier'!$C$19+'BP Financier'!$C$22))*$V90*AA90/(1-$W90) -> 12,447 | T90: ='BP Financier'!$C$44*('BP Financier'!$C$16/('BP Financier'!$C$16+'BP Financier'!$C$19+'BP Financier'!$C$22))*$V90*AB90/(1-$W90) -> 5,957 | V90: 0.50% | W90: =Actif!$E$28/100 -> 28.90% | X90: =Actif!$E$30/100 -> 9.05% | Y90: =Actif!$E$31/100 -> 6.05% | Z90: =Actif!$E$32/100 -> 47.35% | AA90: =Actif!$E$33/100 -> 5.85% | AB90: =Actif!$E$29/100 -> 2.80%
B91: #2 | C91: 19 | D91: 2026 | E91: H | F91: A_VIE | G91: 0.45 | H91: 0.39 | I91: 0.6 | J91: 0.6 | K91: 85 | L91: 0 | M91: =ROUND(Primes!$M$4*V91,0) -> 17 | N91: ='BP Financier'!$C$33*('BP Financier'!$C$16/('BP Financier'!$C$16+'BP Financier'!$C$19))*V91 -> 275,456 | O91: =SUM(P91:T91) -> 151,274 | P91: ='BP Financier'!$C$44*('BP Financier'!$C$16/('BP Financier'!$C$16+'BP Financier'!$C$19+'BP Financier'!$C$22))*$V91*X91/(1-$W91) -> 19,255 | Q91: ='BP Financier'!$C$44*('BP Financier'!$C$16/('BP Financier'!$C$16+'BP Financier'!$C$19+'BP Financier'!$C$22))*$V91*Y91/(1-$W91) -> 12,872 | R91: ='BP Financier'!$C$44*('BP Financier'!$C$16/('BP Financier'!$C$16+'BP Financier'!$C$19+'BP Financier'!$C$22))*$V91*Z91/(1-$W91) -> 100,743 | S91: ='BP Financier'!$C$44*('BP Financier'!$C$16/('BP Financier'!$C$16+'BP Financier'!$C$19+'BP Financier'!$C$22))*$V91*AA91/(1-$W91) -> 12,447 | T91: ='BP Financier'!$C$44*('BP Financier'!$C$16/('BP Financier'!$C$16+'BP Financier'!$C$19+'BP Financier'!$C$22))*$V91*AB91/(1-$W91) -> 5,957 | V91: 0.50% | W91: =Actif!$E$28/100 -> 28.90% | X91: =Actif!$E$30/100 -> 9.05% | Y91: =Actif!$E$31/100 -> 6.05% | Z91: =Actif!$E$32/100 -> 47.35% | AA91: =Actif!$E$33/100 -> 5.85% | AB91: =Actif!$E$29/100 -> 2.80%
B92: #3 | C92: 20 | D92: 2026 | E92: F | F92: A_VIE | G92: 0.45 | H92: 0.39 | I92: 0.6 | J92: 0.6 | K92: 85 | L92: 0 | M92: =ROUND(Primes!$M$4*V92,0) -> 33 | N92: ='BP Financier'!$C$33*('BP Financier'!$C$16/('BP Financier'!$C$16+'BP Financier'!$C$19))*V92 -> 550,911 | O92: 302,547 | P92: ='BP Financier'!$C$44*('BP Financier'!$C$16/('BP Financier'!$C$16+'BP Financier'!$C$19+'BP Financier'!$C$22))*$V92*X92/(1-$W92) -> 38,510 | Q92: ='BP Financier'!$C$44*('BP Financier'!$C$16/('BP Financier'!$C$16+'BP Financier'!$C$19+'BP Financier'!$C$22))*$V92*Y92/(1-$W92) -> 25,744 | R92: ='BP Financier'!$C$44*('BP Financier'!$C$16/('BP Financier'!$C$16+'BP Financier'!$C$19+'BP Financier'!$C$22))*$V92*Z92/(1-$W92) -> 201,486 | S92: ='BP Financier'!$C$44*('BP Financier'!$C$16/('BP Financier'!$C$16+'BP Financier'!$C$19+'BP Financier'!$C$22))*$V92*AA92/(1-$W92) -> 24,893 | T92: ='BP Financier'!$C$44*('BP Financier'!$C$16/('BP Financier'!$C$16+'BP Financier'!$C$19+'BP Financier'!$C$22))*$V92*AB92/(1-$W92) -> 11,915 | V92: 1.00% | W92: =Actif!$E$28/100 -> 28.90% | X92: =Actif!$E$30/100 -> 9.05% | Y92: =Actif!$E$31/100 -> 6.05% | Z92: =Actif!$E$32/100 -> 47.35% | AA92: =Actif!$E$33/100 -> 5.85% | AB92: =Actif!$E$29/100 -> 2.80%
B93: #4 | C93: 21 | D93: 2026 | E93: H | F93: A_VIE | G93: 0.45 | H93: 0.39 | I93: 0.6 | J93: 0.6 | K93: 85 | L93: 0 | M93: =ROUND(Primes!$M$4*V93,0) -> 33 | N93: ='BP Financier'!$C$33*('BP Financier'!$C$16/('BP Financier'!$C$16+'BP Financier'!$C$19))*V93 -> 550,911 | O93: 302,547 | P93: ='BP Financier'!$C$44*('BP Financier'!$C$16/('BP Financier'!$C$16+'BP Financier'!$C$19+'BP Financier'!$C$22))*$V93*X93/(1-$W93) -> 38,510 | Q93: ='BP Financier'!$C$44*('BP Financier'!$C$16/('BP Financier'!$C$16+'BP Financier'!$C$19+'BP Financier'!$C$22))*$V93*Y93/(1-$W93) -> 25,744 | R93: ='BP Financier'!$C$44*('BP Financier'!$C$16/('BP Financier'!$C$16+'BP Financier'!$C$19+'BP Financier'!$C$22))*$V93*Z93/(1-$W93) -> 201,486 | S93: ='BP Financier'!$C$44*('BP Financier'!$C$16/('BP Financier'!$C$16+'BP Financier'!$C$19+'BP Financier'!$C$22))*$V93*AA93/(1-$W93) -> 24,893 | T93: ='BP Financier'!$C$44*('BP Financier'!$C$16/('BP Financier'!$C$16+'BP Financier'!$C$19+'BP Financier'!$C$22))*$V93*AB93/(1-$W93) -> 11,915 | V93: 1.00% | W93: =Actif!$E$28/100 -> 28.90% | X93: =Actif!$E$30/100 -> 9.05% | Y93: =Actif!$E$31/100 -> 6.05% | Z93: =Actif!$E$32/100 -> 47.35% | AA93: =Actif!$E$33/100 -> 5.85% | AB93: =Actif!$E$29/100 -> 2.80%
B94: #5 | C94: 22 | D94: 2026 | E94: H | F94: A_VIE | G94: 0.45 | H94: 0.39 | I94: 0.6 | J94: 0.6 | K94: 85 | L94: 0 | M94: =ROUND(Primes!$M$4*V94,0) -> 33 | N94: ='BP Financier'!$C$33*('BP Financier'!$C$16/('BP Financier'!$C$16+'BP Financier'!$C$19))*V94 -> 550,911 | O94: 302,547 | P94: ='BP Financier'!$C$44*('BP Financier'!$C$16/('BP Financier'!$C$16+'BP Financier'!$C$19+'BP Financier'!$C$22))*$V94*X94/(1-$W94) -> 38,510 | Q94: ='BP Financier'!$C$44*('BP Financier'!$C$16/('BP Financier'!$C$16+'BP Financier'!$C$19+'BP Financier'!$C$22))*$V94*Y94/(1-$W94) -> 25,744 | R94: ='BP Financier'!$C$44*('BP Financier'!$C$16/('BP Financier'!$C$16+'BP Financier'!$C$19+'BP Financier'!$C$22))*$V94*Z94/(1-$W94) -> 201,486 | S94: ='BP Financier'!$C$44*('BP Financier'!$C$16/('BP Financier'!$C$16+'BP Financier'!$C$19+'BP Financier'!$C$22))*$V94*AA94/(1-$W94) -> 24,893 | T94: ='BP Financier'!$C$44*('BP Financier'!$C$16/('BP Financier'!$C$16+'BP Financier'!$C$19+'BP Financier'!$C$22))*$V94*AB94/(1-$W94) -> 11,915 | V94: 1.00% | W94: =Actif!$E$28/100 -> 28.90% | X94: =Actif!$E$30/100 -> 9.05% | Y94: =Actif!$E$31/100 -> 6.05% | Z94: =Actif!$E$32/100 -> 47.35% | AA94: =Actif!$E$33/100 -> 5.85% | AB94: =Actif!$E$29/100 -> 2.80%
B95: #6 | C95: 23 | D95: 2026 | E95: F | F95: A_VIE | G95: 0.45 | H95: 0.39 | I95: 0.6 | J95: 0.6 | K95: 85 | L95: 0 | M95: =ROUND(Primes!$M$4*V95,0) -> 33 | N95: ='BP Financier'!$C$33*('BP Financier'!$C$16/('BP Financier'!$C$16+'BP Financier'!$C$19))*V95 -> 550,911 | O95: 302,547 | P95: ='BP Financier'!$C$44*('BP Financier'!$C$16/('BP Financier'!$C$16+'BP Financier'!$C$19+'BP Financier'!$C$22))*$V95*X95/(1-$W95) -> 38,510 | Q95: ='BP Financier'!$C$44*('BP Financier'!$C$16/('BP Financier'!$C$16+'BP Financier'!$C$19+'BP Financier'!$C$22))*$V95*Y95/(1-$W95) -> 25,744 | R95: ='BP Financier'!$C$44*('BP Financier'!$C$16/('BP Financier'!$C$16+'BP Financier'!$C$19+'BP Financier'!$C$22))*$V95*Z95/(1-$W95) -> 201,486 | S95: ='BP Financier'!$C$44*('BP Financier'!$C$16/('BP Financier'!$C$16+'BP Financier'!$C$19+'BP Financier'!$C$22))*$V95*AA95/(1-$W95) -> 24,893 | T95: ='BP Financier'!$C$44*('BP Financier'!$C$16/('BP Financier'!$C$16+'BP Financier'!$C$19+'BP Financier'!$C$22))*$V95*AB95/(1-$W95) -> 11,915 | V95: 1.00% | W95: =Actif!$E$28/100 -> 28.90% | X95: =Actif!$E$30/100 -> 9.05% | Y95: =Actif!$E$31/100 -> 6.05% | Z95: =Actif!$E$32/100 -> 47.35% | AA95: =Actif!$E$33/100 -> 5.85% | AB95: =Actif!$E$29/100 -> 2.80%
B96: #7 | C96: 24 | D96: 2026 | E96: H | F96: A_VIE | G96: 0.45 | H96: 0.39 | I96: 0.6 | J96: 0.6 | K96: 85 | L96: 0 | M96: =ROUND(Primes!$M$4*V96,0) -> 33 | N96: ='BP Financier'!$C$33*('BP Financier'!$C$16/('BP Financier'!$C$16+'BP Financier'!$C$19))*V96 -> 550,911 | O96: 302,547 | P96: ='BP Financier'!$C$44*('BP Financier'!$C$16/('BP Financier'!$C$16+'BP Financier'!$C$19+'BP Financier'!$C$22))*$V96*X96/(1-$W96) -> 38,510 | Q96: ='BP Financier'!$C$44*('BP Financier'!$C$16/('BP Financier'!$C$16+'BP Financier'!$C$19+'BP Financier'!$C$22))*$V96*Y96/(1-$W96) -> 25,744 | R96: ='BP Financier'!$C$44*('BP Financier'!$C$16/('BP Financier'!$C$16+'BP Financier'!$C$19+'BP Financier'!$C$22))*$V96*Z96/(1-$W96) -> 201,486 | S96: ='BP Financier'!$C$44*('BP Financier'!$C$16/('BP Financier'!$C$16+'BP Financier'!$C$19+'BP Financier'!$C$22))*$V96*AA96/(1-$W96) -> 24,893 | T96: ='BP Financier'!$C$44*('BP Financier'!$C$16/('BP Financier'!$C$16+'BP Financier'!$C$19+'BP Financier'!$C$22))*$V96*AB96/(1-$W96) -> 11,915 | V96: 1.00% | W96: =Actif!$E$28/100 -> 28.90% | X96: =Actif!$E$30/100 -> 9.05% | Y96: =Actif!$E$31/100 -> 6.05% | Z96: =Actif!$E$32/100 -> 47.35% | AA96: =Actif!$E$33/100 -> 5.85% | AB96: =Actif!$E$29/100 -> 2.80%
B97: #8 | C97: 25 | D97: 2026 | E97: H | F97: A_VIE | G97: 0.45 | H97: 0.39 | I97: 0.6 | J97: 0.6 | K97: 85 | L97: 0 | M97: =ROUND(Primes!$M$4*V97,0) -> 167 | N97: ='BP Financier'!$C$33*('BP Financier'!$C$16/('BP Financier'!$C$16+'BP Financier'!$C$19))*V97 -> 2,754,556 | O97: 1,512,737 | P97: ='BP Financier'!$C$44*('BP Financier'!$C$16/('BP Financier'!$C$16+'BP Financier'!$C$19+'BP Financier'!$C$22))*$V97*X97/(1-$W97) -> 192,550 | Q97: ='BP Financier'!$C$44*('BP Financier'!$C$16/('BP Financier'!$C$16+'BP Financier'!$C$19+'BP Financier'!$C$22))*$V97*Y97/(1-$W97) -> 128,721 | R97: ='BP Financier'!$C$44*('BP Financier'!$C$16/('BP Financier'!$C$16+'BP Financier'!$C$19+'BP Financier'!$C$22))*$V97*Z97/(1-$W97) -> 1,007,428 | S97: ='BP Financier'!$C$44*('BP Financier'!$C$16/('BP Financier'!$C$16+'BP Financier'!$C$19+'BP Financier'!$C$22))*$V97*AA97/(1-$W97) -> 124,466 | T97: ='BP Financier'!$C$44*('BP Financier'!$C$16/('BP Financier'!$C$16+'BP Financier'!$C$19+'BP Financier'!$C$22))*$V97*AB97/(1-$W97) -> 59,573 | V97: 5.00% | W97: =Actif!$E$28/100 -> 28.90% | X97: =Actif!$E$30/100 -> 9.05% | Y97: =Actif!$E$31/100 -> 6.05% | Z97: =Actif!$E$32/100 -> 47.35% | AA97: =Actif!$E$33/100 -> 5.85% | AB97: =Actif!$E$29/100 -> 2.80%
B98: #9 | C98: 26 | D98: 2026 | E98: F | F98: A_VIE | G98: 0.45 | H98: 0.39 | I98: 0.6 | J98: 0.6 | K98: 85 | L98: 0 | M98: =ROUND(Primes!$M$4*V98,0) -> 100 | N98: ='BP Financier'!$C$33*('BP Financier'!$C$16/('BP Financier'!$C$16+'BP Financier'!$C$19))*V98 -> 1,652,734 | O98: 907,642 | P98: ='BP Financier'!$C$44*('BP Financier'!$C$16/('BP Financier'!$C$16+'BP Financier'!$C$19+'BP Financier'!$C$22))*$V98*X98/(1-$W98) -> 115,530 | Q98: ='BP Financier'!$C$44*('BP Financier'!$C$16/('BP Financier'!$C$16+'BP Financier'!$C$19+'BP Financier'!$C$22))*$V98*Y98/(1-$W98) -> 77,233 | R98: ='BP Financier'!$C$44*('BP Financier'!$C$16/('BP Financier'!$C$16+'BP Financier'!$C$19+'BP Financier'!$C$22))*$V98*Z98/(1-$W98) -> 604,457 | S98: ='BP Financier'!$C$44*('BP Financier'!$C$16/('BP Financier'!$C$16+'BP Financier'!$C$19+'BP Financier'!$C$22))*$V98*AA98/(1-$W98) -> 74,679 | T98: ='BP Financier'!$C$44*('BP Financier'!$C$16/('BP Financier'!$C$16+'BP Financier'!$C$19+'BP Financier'!$C$22))*$V98*AB98/(1-$W98) -> 35,744 | V98: 3.00% | W98: =Actif!$E$28/100 -> 28.90% | X98: =Actif!$E$30/100 -> 9.05% | Y98: =Actif!$E$31/100 -> 6.05% | Z98: =Actif!$E$32/100 -> 47.35% | AA98: =Actif!$E$33/100 -> 5.85% | AB98: =Actif!$E$29/100 -> 2.80%
B99: #10 | C99: 27 | D99: 2026 | E99: H | F99: A_VIE | G99: 0.45 | H99: 0.39 | I99: 0.6 | J99: 0.6 | K99: 85 | L99: 0 | M99: =ROUND(Primes!$M$4*V99,0) -> 100 | N99: ='BP Financier'!$C$33*('BP Financier'!$C$16/('BP Financier'!$C$16+'BP Financier'!$C$19))*V99 -> 1,652,734 | O99: 907,642 | P99: ='BP Financier'!$C$44*('BP Financier'!$C$16/('BP Financier'!$C$16+'BP Financier'!$C$19+'BP Financier'!$C$22))*$V99*X99/(1-$W99) -> 115,530 | Q99: ='BP Financier'!$C$44*('BP Financier'!$C$16/('BP Financier'!$C$16+'BP Financier'!$C$19+'BP Financier'!$C$22))*$V99*Y99/(1-$W99) -> 77,233 | R99: ='BP Financier'!$C$44*('BP Financier'!$C$16/('BP Financier'!$C$16+'BP Financier'!$C$19+'BP Financier'!$C$22))*$V99*Z99/(1-$W99) -> 604,457 | S99: ='BP Financier'!$C$44*('BP Financier'!$C$16/('BP Financier'!$C$16+'BP Financier'!$C$19+'BP Financier'!$C$22))*$V99*AA99/(1-$W99) -> 74,679 | T99: ='BP Financier'!$C$44*('BP Financier'!$C$16/('BP Financier'!$C$16+'BP Financier'!$C$19+'BP Financier'!$C$22))*$V99*AB99/(1-$W99) -> 35,744 | V99: 3.00% | W99: =Actif!$E$28/100 -> 28.90% | X99: =Actif!$E$30/100 -> 9.05% | Y99: =Actif!$E$31/100 -> 6.05% | Z99: =Actif!$E$32/100 -> 47.35% | AA99: =Actif!$E$33/100 -> 5.85% | AB99: =Actif!$E$29/100 -> 2.80%
B100: #11 | C100: 28 | D100: 2026 | E100: H | F100: A_VIE | G100: 0.45 | H100: 0.39 | I100: 0.6 | J100: 0.6 | K100: 85 | L100: 0 | M100: =ROUND(Primes!$M$4*V100,0) -> 100 | N100: ='BP Financier'!$C$33*('BP Financier'!$C$16/('BP Financier'!$C$16+'BP Financier'!$C$19))*V100 -> 1,652,734 | O100: 907,642 | P100: ='BP Financier'!$C$44*('BP Financier'!$C$16/('BP Financier'!$C$16+'BP Financier'!$C$19+'BP Financier'!$C$22))*$V100*X100/(1-$W100) -> 115,530 | Q100: ='BP Financier'!$C$44*('BP Financier'!$C$16/('BP Financier'!$C$16+'BP Financier'!$C$19+'BP Financier'!$C$22))*$V100*Y100/(1-$W100) -> 77,233 | R100: ='BP Financier'!$C$44*('BP Financier'!$C$16/('BP Financier'!$C$16+'BP Financier'!$C$19+'BP Financier'!$C$22))*$V100*Z100/(1-$W100) -> 604,457 | S100: ='BP Financier'!$C$44*('BP Financier'!$C$16/('BP Financier'!$C$16+'BP Financier'!$C$19+'BP Financier'!$C$22))*$V100*AA100/(1-$W100) -> 74,679 | T100: ='BP Financier'!$C$44*('BP Financier'!$C$16/('BP Financier'!$C$16+'BP Financier'!$C$19+'BP Financier'!$C$22))*$V100*AB100/(1-$W100) -> 35,744 | V100: 3.00% | W100: =Actif!$E$28/100 -> 28.90% | X100: =Actif!$E$30/100 -> 9.05% | Y100: =Actif!$E$31/100 -> 6.05% | Z100: =Actif!$E$32/100 -> 47.35% | AA100: =Actif!$E$33/100 -> 5.85% | AB100: =Actif!$E$29/100 -> 2.80%
B101: #12 | C101: 29 | D101: 2026 | E101: F | F101: A_VIE | G101: 0.45 | H101: 0.39 | I101: 0.6 | J101: 0.6 | K101: 85 | L101: 0 | M101: =ROUND(Primes!$M$4*V101,0) -> 100 | N101: ='BP Financier'!$C$33*('BP Financier'!$C$16/('BP Financier'!$C$16+'BP Financier'!$C$19))*V101 -> 1,652,734 | O101: 907,642 | P101: ='BP Financier'!$C$44*('BP Financier'!$C$16/('BP Financier'!$C$16+'BP Financier'!$C$19+'BP Financier'!$C$22))*$V101*X101/(1-$W101) -> 115,530 | Q101: ='BP Financier'!$C$44*('BP Financier'!$C$16/('BP Financier'!$C$16+'BP Financier'!$C$19+'BP Financier'!$C$22))*$V101*Y101/(1-$W101) -> 77,233 | R101: ='BP Financier'!$C$44*('BP Financier'!$C$16/('BP Financier'!$C$16+'BP Financier'!$C$19+'BP Financier'!$C$22))*$V101*Z101/(1-$W101) -> 604,457 | S101: ='BP Financier'!$C$44*('BP Financier'!$C$16/('BP Financier'!$C$16+'BP Financier'!$C$19+'BP Financier'!$C$22))*$V101*AA101/(1-$W101) -> 74,679 | T101: ='BP Financier'!$C$44*('BP Financier'!$C$16/('BP Financier'!$C$16+'BP Financier'!$C$19+'BP Financier'!$C$22))*$V101*AB101/(1-$W101) -> 35,744 | V101: 3.00% | W101: =Actif!$E$28/100 -> 28.90% | X101: =Actif!$E$30/100 -> 9.05% | Y101: =Actif!$E$31/100 -> 6.05% | Z101: =Actif!$E$32/100 -> 47.35% | AA101: =Actif!$E$33/100 -> 5.85% | AB101: =Actif!$E$29/100 -> 2.80%
B102: #13 | C102: 30 | D102: 2026 | E102: H | F102: A_VIE | G102: 0.45 | H102: 0.39 | I102: 0.6 | J102: 0.6 | K102: 85 | L102: 0 | M102: =ROUND(Primes!$M$4*V102,0) -> 100 | N102: ='BP Financier'!$C$33*('BP Financier'!$C$16/('BP Financier'!$C$16+'BP Financier'!$C$19))*V102 -> 1,652,734 | O102: 907,642 | P102: ='BP Financier'!$C$44*('BP Financier'!$C$16/('BP Financier'!$C$16+'BP Financier'!$C$19+'BP Financier'!$C$22))*$V102*X102/(1-$W102) -> 115,530 | Q102: ='BP Financier'!$C$44*('BP Financier'!$C$16/('BP Financier'!$C$16+'BP Financier'!$C$19+'BP Financier'!$C$22))*$V102*Y102/(1-$W102) -> 77,233 | R102: ='BP Financier'!$C$44*('BP Financier'!$C$16/('BP Financier'!$C$16+'BP Financier'!$C$19+'BP Financier'!$C$22))*$V102*Z102/(1-$W102) -> 604,457 | S102: ='BP Financier'!$C$44*('BP Financier'!$C$16/('BP Financier'!$C$16+'BP Financier'!$C$19+'BP Financier'!$C$22))*$V102*AA102/(1-$W102) -> 74,679 | T102: ='BP Financier'!$C$44*('BP Financier'!$C$16/('BP Financier'!$C$16+'BP Financier'!$C$19+'BP Financier'!$C$22))*$V102*AB102/(1-$W102) -> 35,744 | V102: 3.00% | W102: =Actif!$E$28/100 -> 28.90% | X102: =Actif!$E$30/100 -> 9.05% | Y102: =Actif!$E$31/100 -> 6.05% | Z102: =Actif!$E$32/100 -> 47.35% | AA102: =Actif!$E$33/100 -> 5.85% | AB102: =Actif!$E$29/100 -> 2.80%
B103: #14 | C103: 31 | D103: 2026 | E103: H | F103: A_VIE | G103: 0.45 | H103: 0.39 | I103: 0.6 | J103: 0.6 | K103: 85 | L103: 0 | M103: =ROUND(Primes!$M$4*V103,0) -> 100 | N103: ='BP Financier'!$C$33*('BP Financier'!$C$16/('BP Financier'!$C$16+'BP Financier'!$C$19))*V103 -> 1,652,734 | O103: 907,642 | P103: ='BP Financier'!$C$44*('BP Financier'!$C$16/('BP Financier'!$C$16+'BP Financier'!$C$19+'BP Financier'!$C$22))*$V103*X103/(1-$W103) -> 115,530 | Q103: ='BP Financier'!$C$44*('BP Financier'!$C$16/('BP Financier'!$C$16+'BP Financier'!$C$19+'BP Financier'!$C$22))*$V103*Y103/(1-$W103) -> 77,233 | R103: ='BP Financier'!$C$44*('BP Financier'!$C$16/('BP Financier'!$C$16+'BP Financier'!$C$19+'BP Financier'!$C$22))*$V103*Z103/(1-$W103) -> 604,457 | S103: ='BP Financier'!$C$44*('BP Financier'!$C$16/('BP Financier'!$C$16+'BP Financier'!$C$19+'BP Financier'!$C$22))*$V103*AA103/(1-$W103) -> 74,679 | T103: ='BP Financier'!$C$44*('BP Financier'!$C$16/('BP Financier'!$C$16+'BP Financier'!$C$19+'BP Financier'!$C$22))*$V103*AB103/(1-$W103) -> 35,744 | V103: 3.00% | W103: =Actif!$E$28/100 -> 28.90% | X103: =Actif!$E$30/100 -> 9.05% | Y103: =Actif!$E$31/100 -> 6.05% | Z103: =Actif!$E$32/100 -> 47.35% | AA103: =Actif!$E$33/100 -> 5.85% | AB103: =Actif!$E$29/100 -> 2.80%
B104: #15 | C104: 32 | D104: 2026 | E104: F | F104: A_VIE | G104: 0.45 | H104: 0.39 | I104: 0.6 | J104: 0.6 | K104: 85 | L104: 0 | M104: =ROUND(Primes!$M$4*V104,0) -> 100 | N104: ='BP Financier'!$C$33*('BP Financier'!$C$16/('BP Financier'!$C$16+'BP Financier'!$C$19))*V104 -> 1,652,734 | O104: 907,642 | P104: ='BP Financier'!$C$44*('BP Financier'!$C$16/('BP Financier'!$C$16+'BP Financier'!$C$19+'BP Financier'!$C$22))*$V104*X104/(1-$W104) -> 115,530 | Q104: ='BP Financier'!$C$44*('BP Financier'!$C$16/('BP Financier'!$C$16+'BP Financier'!$C$19+'BP Financier'!$C$22))*$V104*Y104/(1-$W104) -> 77,233 | R104: ='BP Financier'!$C$44*('BP Financier'!$C$16/('BP Financier'!$C$16+'BP Financier'!$C$19+'BP Financier'!$C$22))*$V104*Z104/(1-$W104) -> 604,457 | S104: ='BP Financier'!$C$44*('BP Financier'!$C$16/('BP Financier'!$C$16+'BP Financier'!$C$19+'BP Financier'!$C$22))*$V104*AA104/(1-$W104) -> 74,679 | T104: ='BP Financier'!$C$44*('BP Financier'!$C$16/('BP Financier'!$C$16+'BP Financier'!$C$19+'BP Financier'!$C$22))*$V104*AB104/(1-$W104) -> 35,744 | V104: 3.00% | W104: =Actif!$E$28/100 -> 28.90% | X104: =Actif!$E$30/100 -> 9.05% | Y104: =Actif!$E$31/100 -> 6.05% | Z104: =Actif!$E$32/100 -> 47.35% | AA104: =Actif!$E$33/100 -> 5.85% | AB104: =Actif!$E$29/100 -> 2.80%
B105: #16 | C105: 33 | D105: 2026 | E105: H | F105: A_VIE | G105: 0.45 | H105: 0.39 | I105: 0.6 | J105: 0.6 | K105: 85 | L105: 0 | M105: =ROUND(Primes!$M$4*V105,0) -> 100 | N105: ='BP Financier'!$C$33*('BP Financier'!$C$16/('BP Financier'!$C$16+'BP Financier'!$C$19))*V105 -> 1,652,734 | O105: 907,642 | P105: ='BP Financier'!$C$44*('BP Financier'!$C$16/('BP Financier'!$C$16+'BP Financier'!$C$19+'BP Financier'!$C$22))*$V105*X105/(1-$W105) -> 115,530 | Q105: ='BP Financier'!$C$44*('BP Financier'!$C$16/('BP Financier'!$C$16+'BP Financier'!$C$19+'BP Financier'!$C$22))*$V105*Y105/(1-$W105) -> 77,233 | R105: ='BP Financier'!$C$44*('BP Financier'!$C$16/('BP Financier'!$C$16+'BP Financier'!$C$19+'BP Financier'!$C$22))*$V105*Z105/(1-$W105) -> 604,457 | S105: ='BP Financier'!$C$44*('BP Financier'!$C$16/('BP Financier'!$C$16+'BP Financier'!$C$19+'BP Financier'!$C$22))*$V105*AA105/(1-$W105) -> 74,679 | T105: ='BP Financier'!$C$44*('BP Financier'!$C$16/('BP Financier'!$C$16+'BP Financier'!$C$19+'BP Financier'!$C$22))*$V105*AB105/(1-$W105) -> 35,744 | V105: 3.00% | W105: =Actif!$E$28/100 -> 28.90% | X105: =Actif!$E$30/100 -> 9.05% | Y105: =Actif!$E$31/100 -> 6.05% | Z105: =Actif!$E$32/100 -> 47.35% | AA105: =Actif!$E$33/100 -> 5.85% | AB105: =Actif!$E$29/100 -> 2.80%
B106: #17 | C106: 34 | D106: 2026 | E106: H | F106: A_VIE | G106: 0.45 | H106: 0.39 | I106: 0.6 | J106: 0.6 | K106: 85 | L106: 0 | M106: =ROUND(Primes!$M$4*V106,0) -> 100 | N106: ='BP Financier'!$C$33*('BP Financier'!$C$16/('BP Financier'!$C$16+'BP Financier'!$C$19))*V106 -> 1,652,734 | O106: 907,642 | P106: ='BP Financier'!$C$44*('BP Financier'!$C$16/('BP Financier'!$C$16+'BP Financier'!$C$19+'BP Financier'!$C$22))*$V106*X106/(1-$W106) -> 115,530 | Q106: ='BP Financier'!$C$44*('BP Financier'!$C$16/('BP Financier'!$C$16+'BP Financier'!$C$19+'BP Financier'!$C$22))*$V106*Y106/(1-$W106) -> 77,233 | R106: ='BP Financier'!$C$44*('BP Financier'!$C$16/('BP Financier'!$C$16+'BP Financier'!$C$19+'BP Financier'!$C$22))*$V106*Z106/(1-$W106) -> 604,457 | S106: ='BP Financier'!$C$44*('BP Financier'!$C$16/('BP Financier'!$C$16+'BP Financier'!$C$19+'BP Financier'!$C$22))*$V106*AA106/(1-$W106) -> 74,679 | T106: ='BP Financier'!$C$44*('BP Financier'!$C$16/('BP Financier'!$C$16+'BP Financier'!$C$19+'BP Financier'!$C$22))*$V106*AB106/(1-$W106) -> 35,744 | V106: 3.00% | W106: =Actif!$E$28/100 -> 28.90% | X106: =Actif!$E$30/100 -> 9.05% | Y106: =Actif!$E$31/100 -> 6.05% | Z106: =Actif!$E$32/100 -> 47.35% | AA106: =Actif!$E$33/100 -> 5.85% | AB106: =Actif!$E$29/100 -> 2.80%
B107: #18 | C107: 35 | D107: 2026 | E107: F | F107: A_VIE | G107: 0.45 | H107: 0.39 | I107: 0.6 | J107: 0.6 | K107: 85 | L107: 0 | M107: =ROUND(Primes!$M$4*V107,0) -> 100 | N107: ='BP Financier'!$C$33*('BP Financier'!$C$16/('BP Financier'!$C$16+'BP Financier'!$C$19))*V107 -> 1,652,734 | O107: 907,642 | P107: ='BP Financier'!$C$44*('BP Financier'!$C$16/('BP Financier'!$C$16+'BP Financier'!$C$19+'BP Financier'!$C$22))*$V107*X107/(1-$W107) -> 115,530 | Q107: ='BP Financier'!$C$44*('BP Financier'!$C$16/('BP Financier'!$C$16+'BP Financier'!$C$19+'BP Financier'!$C$22))*$V107*Y107/(1-$W107) -> 77,233 | R107: ='BP Financier'!$C$44*('BP Financier'!$C$16/('BP Financier'!$C$16+'BP Financier'!$C$19+'BP Financier'!$C$22))*$V107*Z107/(1-$W107) -> 604,457 | S107: ='BP Financier'!$C$44*('BP Financier'!$C$16/('BP Financier'!$C$16+'BP Financier'!$C$19+'BP Financier'!$C$22))*$V107*AA107/(1-$W107) -> 74,679 | T107: ='BP Financier'!$C$44*('BP Financier'!$C$16/('BP Financier'!$C$16+'BP Financier'!$C$19+'BP Financier'!$C$22))*$V107*AB107/(1-$W107) -> 35,744 | V107: 3.00% | W107: =Actif!$E$28/100 -> 28.90% | X107: =Actif!$E$30/100 -> 9.05% | Y107: =Actif!$E$31/100 -> 6.05% | Z107: =Actif!$E$32/100 -> 47.35% | AA107: =Actif!$E$33/100 -> 5.85% | AB107: =Actif!$E$29/100 -> 2.80%
B108: #19 | C108: 36 | D108: 2026 | E108: H | F108: A_VIE | G108: 0.45 | H108: 0.39 | I108: 0.6 | J108: 0.6 | K108: 85 | L108: 0 | M108: =ROUND(Primes!$M$4*V108,0) -> 17 | N108: ='BP Financier'!$C$33*('BP Financier'!$C$16/('BP Financier'!$C$16+'BP Financier'!$C$19))*V108 -> 275,456 | O108: 151,274 | P108: ='BP Financier'!$C$44*('BP Financier'!$C$16/('BP Financier'!$C$16+'BP Financier'!$C$19+'BP Financier'!$C$22))*$V108*X108/(1-$W108) -> 19,255 | Q108: ='BP Financier'!$C$44*('BP Financier'!$C$16/('BP Financier'!$C$16+'BP Financier'!$C$19+'BP Financier'!$C$22))*$V108*Y108/(1-$W108) -> 12,872 | R108: ='BP Financier'!$C$44*('BP Financier'!$C$16/('BP Financier'!$C$16+'BP Financier'!$C$19+'BP Financier'!$C$22))*$V108*Z108/(1-$W108) -> 100,743 | S108: ='BP Financier'!$C$44*('BP Financier'!$C$16/('BP Financier'!$C$16+'BP Financier'!$C$19+'BP Financier'!$C$22))*$V108*AA108/(1-$W108) -> 12,447 | T108: ='BP Financier'!$C$44*('BP Financier'!$C$16/('BP Financier'!$C$16+'BP Financier'!$C$19+'BP Financier'!$C$22))*$V108*AB108/(1-$W108) -> 5,957 | V108: 0.50% | W108: =Actif!$E$28/100 -> 28.90% | X108: =Actif!$E$30/100 -> 9.05% | Y108: =Actif!$E$31/100 -> 6.05% | Z108: =Actif!$E$32/100 -> 47.35% | AA108: =Actif!$E$33/100 -> 5.85% | AB108: =Actif!$E$29/100 -> 2.80%
B109: #20 | C109: 37 | D109: 2026 | E109: H | F109: A_VIE | G109: 0.45 | H109: 0.39 | I109: 0.6 | J109: 0.6 | K109: 85 | L109: 0 | M109: =ROUND(Primes!$M$4*V109,0) -> 17 | N109: ='BP Financier'!$C$33*('BP Financier'!$C$16/('BP Financier'!$C$16+'BP Financier'!$C$19))*V109 -> 275,456 | O109: 151,274 | P109: ='BP Financier'!$C$44*('BP Financier'!$C$16/('BP Financier'!$C$16+'BP Financier'!$C$19+'BP Financier'!$C$22))*$V109*X109/(1-$W109) -> 19,255 | Q109: ='BP Financier'!$C$44*('BP Financier'!$C$16/('BP Financier'!$C$16+'BP Financier'!$C$19+'BP Financier'!$C$22))*$V109*Y109/(1-$W109) -> 12,872 | R109: ='BP Financier'!$C$44*('BP Financier'!$C$16/('BP Financier'!$C$16+'BP Financier'!$C$19+'BP Financier'!$C$22))*$V109*Z109/(1-$W109) -> 100,743 | S109: ='BP Financier'!$C$44*('BP Financier'!$C$16/('BP Financier'!$C$16+'BP Financier'!$C$19+'BP Financier'!$C$22))*$V109*AA109/(1-$W109) -> 12,447 | T109: ='BP Financier'!$C$44*('BP Financier'!$C$16/('BP Financier'!$C$16+'BP Financier'!$C$19+'BP Financier'!$C$22))*$V109*AB109/(1-$W109) -> 5,957 | V109: 0.50% | W109: =Actif!$E$28/100 -> 28.90% | X109: =Actif!$E$30/100 -> 9.05% | Y109: =Actif!$E$31/100 -> 6.05% | Z109: =Actif!$E$32/100 -> 47.35% | AA109: =Actif!$E$33/100 -> 5.85% | AB109: =Actif!$E$29/100 -> 2.80%
B110: #21 | C110: 38 | D110: 2026 | E110: F | F110: A_VIE | G110: 0.45 | H110: 0.39 | I110: 0.6 | J110: 0.6 | K110: 85 | L110: 0 | M110: =ROUND(Primes!$M$4*V110,0) -> 17 | N110: ='BP Financier'!$C$33*('BP Financier'!$C$16/('BP Financier'!$C$16+'BP Financier'!$C$19))*V110 -> 275,456 | O110: 151,274 | P110: ='BP Financier'!$C$44*('BP Financier'!$C$16/('BP Financier'!$C$16+'BP Financier'!$C$19+'BP Financier'!$C$22))*$V110*X110/(1-$W110) -> 19,255 | Q110: ='BP Financier'!$C$44*('BP Financier'!$C$16/('BP Financier'!$C$16+'BP Financier'!$C$19+'BP Financier'!$C$22))*$V110*Y110/(1-$W110) -> 12,872 | R110: ='BP Financier'!$C$44*('BP Financier'!$C$16/('BP Financier'!$C$16+'BP Financier'!$C$19+'BP Financier'!$C$22))*$V110*Z110/(1-$W110) -> 100,743 | S110: ='BP Financier'!$C$44*('BP Financier'!$C$16/('BP Financier'!$C$16+'BP Financier'!$C$19+'BP Financier'!$C$22))*$V110*AA110/(1-$W110) -> 12,447 | T110: ='BP Financier'!$C$44*('BP Financier'!$C$16/('BP Financier'!$C$16+'BP Financier'!$C$19+'BP Financier'!$C$22))*$V110*AB110/(1-$W110) -> 5,957 | V110: 0.50% | W110: =Actif!$E$28/100 -> 28.90% | X110: =Actif!$E$30/100 -> 9.05% | Y110: =Actif!$E$31/100 -> 6.05% | Z110: =Actif!$E$32/100 -> 47.35% | AA110: =Actif!$E$33/100 -> 5.85% | AB110: =Actif!$E$29/100 -> 2.80%
B111: #22 | C111: 39 | D111: 2026 | E111: H | F111: A_VIE | G111: 0.45 | H111: 0.39 | I111: 0.6 | J111: 0.6 | K111: 85 | L111: 0 | M111: =ROUND(Primes!$M$4*V111,0) -> 17 | N111: ='BP Financier'!$C$33*('BP Financier'!$C$16/('BP Financier'!$C$16+'BP Financier'!$C$19))*V111 -> 275,456 | O111: 151,274 | P111: ='BP Financier'!$C$44*('BP Financier'!$C$16/('BP Financier'!$C$16+'BP Financier'!$C$19+'BP Financier'!$C$22))*$V111*X111/(1-$W111) -> 19,255 | Q111: ='BP Financier'!$C$44*('BP Financier'!$C$16/('BP Financier'!$C$16+'BP Financier'!$C$19+'BP Financier'!$C$22))*$V111*Y111/(1-$W111) -> 12,872 | R111: ='BP Financier'!$C$44*('BP Financier'!$C$16/('BP Financier'!$C$16+'BP Financier'!$C$19+'BP Financier'!$C$22))*$V111*Z111/(1-$W111) -> 100,743 | S111: ='BP Financier'!$C$44*('BP Financier'!$C$16/('BP Financier'!$C$16+'BP Financier'!$C$19+'BP Financier'!$C$22))*$V111*AA111/(1-$W111) -> 12,447 | T111: ='BP Financier'!$C$44*('BP Financier'!$C$16/('BP Financier'!$C$16+'BP Financier'!$C$19+'BP Financier'!$C$22))*$V111*AB111/(1-$W111) -> 5,957 | V111: 0.50% | W111: =Actif!$E$28/100 -> 28.90% | X111: =Actif!$E$30/100 -> 9.05% | Y111: =Actif!$E$31/100 -> 6.05% | Z111: =Actif!$E$32/100 -> 47.35% | AA111: =Actif!$E$33/100 -> 5.85% | AB111: =Actif!$E$29/100 -> 2.80%
B112: #23 | C112: 40 | D112: 2026 | E112: H | F112: A_VIE | G112: 0.45 | H112: 0.39 | I112: 0.6 | J112: 0.6 | K112: 85 | L112: 0 | M112: =ROUND(Primes!$M$4*V112,0) -> 17 | N112: ='BP Financier'!$C$33*('BP Financier'!$C$16/('BP Financier'!$C$16+'BP Financier'!$C$19))*V112 -> 275,456 | O112: 151,274 | P112: ='BP Financier'!$C$44*('BP Financier'!$C$16/('BP Financier'!$C$16+'BP Financier'!$C$19+'BP Financier'!$C$22))*$V112*X112/(1-$W112) -> 19,255 | Q112: ='BP Financier'!$C$44*('BP Financier'!$C$16/('BP Financier'!$C$16+'BP Financier'!$C$19+'BP Financier'!$C$22))*$V112*Y112/(1-$W112) -> 12,872 | R112: ='BP Financier'!$C$44*('BP Financier'!$C$16/('BP Financier'!$C$16+'BP Financier'!$C$19+'BP Financier'!$C$22))*$V112*Z112/(1-$W112) -> 100,743 | S112: ='BP Financier'!$C$44*('BP Financier'!$C$16/('BP Financier'!$C$16+'BP Financier'!$C$19+'BP Financier'!$C$22))*$V112*AA112/(1-$W112) -> 12,447 | T112: ='BP Financier'!$C$44*('BP Financier'!$C$16/('BP Financier'!$C$16+'BP Financier'!$C$19+'BP Financier'!$C$22))*$V112*AB112/(1-$W112) -> 5,957 | V112: 0.50% | W112: =Actif!$E$28/100 -> 28.90% | X112: =Actif!$E$30/100 -> 9.05% | Y112: =Actif!$E$31/100 -> 6.05% | Z112: =Actif!$E$32/100 -> 47.35% | AA112: =Actif!$E$33/100 -> 5.85% | AB112: =Actif!$E$29/100 -> 2.80%
B113: #24 | C113: 41 | D113: 2026 | E113: F | F113: A_VIE | G113: 0.45 | H113: 0.39 | I113: 0.6 | J113: 0.6 | K113: 85 | L113: 0 | M113: =ROUND(Primes!$M$4*V113,0) -> 17 | N113: ='BP Financier'!$C$33*('BP Financier'!$C$16/('BP Financier'!$C$16+'BP Financier'!$C$19))*V113 -> 275,456 | O113: 151,274 | P113: ='BP Financier'!$C$44*('BP Financier'!$C$16/('BP Financier'!$C$16+'BP Financier'!$C$19+'BP Financier'!$C$22))*$V113*X113/(1-$W113) -> 19,255 | Q113: ='BP Financier'!$C$44*('BP Financier'!$C$16/('BP Financier'!$C$16+'BP Financier'!$C$19+'BP Financier'!$C$22))*$V113*Y113/(1-$W113) -> 12,872 | R113: ='BP Financier'!$C$44*('BP Financier'!$C$16/('BP Financier'!$C$16+'BP Financier'!$C$19+'BP Financier'!$C$22))*$V113*Z113/(1-$W113) -> 100,743 | S113: ='BP Financier'!$C$44*('BP Financier'!$C$16/('BP Financier'!$C$16+'BP Financier'!$C$19+'BP Financier'!$C$22))*$V113*AA113/(1-$W113) -> 12,447 | T113: ='BP Financier'!$C$44*('BP Financier'!$C$16/('BP Financier'!$C$16+'BP Financier'!$C$19+'BP Financier'!$C$22))*$V113*AB113/(1-$W113) -> 5,957 | V113: 0.50% | W113: =Actif!$E$28/100 -> 28.90% | X113: =Actif!$E$30/100 -> 9.05% | Y113: =Actif!$E$31/100 -> 6.05% | Z113: =Actif!$E$32/100 -> 47.35% | AA113: =Actif!$E$33/100 -> 5.85% | AB113: =Actif!$E$29/100 -> 2.80%
B114: #25 | C114: 42 | D114: 2026 | E114: H | F114: A_VIE | G114: 0.45 | H114: 0.39 | I114: 0.6 | J114: 0.6 | K114: 85 | L114: 0 | M114: =ROUND(Primes!$M$4*V114,0) -> 17 | N114: ='BP Financier'!$C$33*('BP Financier'!$C$16/('BP Financier'!$C$16+'BP Financier'!$C$19))*V114 -> 275,456 | O114: 151,274 | P114: ='BP Financier'!$C$44*('BP Financier'!$C$16/('BP Financier'!$C$16+'BP Financier'!$C$19+'BP Financier'!$C$22))*$V114*X114/(1-$W114) -> 19,255 | Q114: ='BP Financier'!$C$44*('BP Financier'!$C$16/('BP Financier'!$C$16+'BP Financier'!$C$19+'BP Financier'!$C$22))*$V114*Y114/(1-$W114) -> 12,872 | R114: ='BP Financier'!$C$44*('BP Financier'!$C$16/('BP Financier'!$C$16+'BP Financier'!$C$19+'BP Financier'!$C$22))*$V114*Z114/(1-$W114) -> 100,743 | S114: ='BP Financier'!$C$44*('BP Financier'!$C$16/('BP Financier'!$C$16+'BP Financier'!$C$19+'BP Financier'!$C$22))*$V114*AA114/(1-$W114) -> 12,447 | T114: ='BP Financier'!$C$44*('BP Financier'!$C$16/('BP Financier'!$C$16+'BP Financier'!$C$19+'BP Financier'!$C$22))*$V114*AB114/(1-$W114) -> 5,957 | V114: 0.50% | W114: =Actif!$E$28/100 -> 28.90% | X114: =Actif!$E$30/100 -> 9.05% | Y114: =Actif!$E$31/100 -> 6.05% | Z114: =Actif!$E$32/100 -> 47.35% | AA114: =Actif!$E$33/100 -> 5.85% | AB114: =Actif!$E$29/100 -> 2.80%
B115: #26 | C115: 43 | D115: 2026 | E115: H | F115: A_VIE | G115: 0.45 | H115: 0.39 | I115: 0.6 | J115: 0.6 | K115: 85 | L115: 0 | M115: =ROUND(Primes!$M$4*V115,0) -> 17 | N115: ='BP Financier'!$C$33*('BP Financier'!$C$16/('BP Financier'!$C$16+'BP Financier'!$C$19))*V115 -> 275,456 | O115: 151,274 | P115: ='BP Financier'!$C$44*('BP Financier'!$C$16/('BP Financier'!$C$16+'BP Financier'!$C$19+'BP Financier'!$C$22))*$V115*X115/(1-$W115) -> 19,255 | Q115: ='BP Financier'!$C$44*('BP Financier'!$C$16/('BP Financier'!$C$16+'BP Financier'!$C$19+'BP Financier'!$C$22))*$V115*Y115/(1-$W115) -> 12,872 | R115: ='BP Financier'!$C$44*('BP Financier'!$C$16/('BP Financier'!$C$16+'BP Financier'!$C$19+'BP Financier'!$C$22))*$V115*Z115/(1-$W115) -> 100,743 | S115: ='BP Financier'!$C$44*('BP Financier'!$C$16/('BP Financier'!$C$16+'BP Financier'!$C$19+'BP Financier'!$C$22))*$V115*AA115/(1-$W115) -> 12,447 | T115: ='BP Financier'!$C$44*('BP Financier'!$C$16/('BP Financier'!$C$16+'BP Financier'!$C$19+'BP Financier'!$C$22))*$V115*AB115/(1-$W115) -> 5,957 | V115: 0.50% | W115: =Actif!$E$28/100 -> 28.90% | X115: =Actif!$E$30/100 -> 9.05% | Y115: =Actif!$E$31/100 -> 6.05% | Z115: =Actif!$E$32/100 -> 47.35% | AA115: =Actif!$E$33/100 -> 5.85% | AB115: =Actif!$E$29/100 -> 2.80%
B116: #27 | C116: 44 | D116: 2026 | E116: F | F116: A_VIE | G116: 0.45 | H116: 0.39 | I116: 0.6 | J116: 0.6 | K116: 85 | L116: 0 | M116: =ROUND(Primes!$M$4*V116,0) -> 17 | N116: ='BP Financier'!$C$33*('BP Financier'!$C$16/('BP Financier'!$C$16+'BP Financier'!$C$19))*V116 -> 275,456 | O116: 151,274 | P116: ='BP Financier'!$C$44*('BP Financier'!$C$16/('BP Financier'!$C$16+'BP Financier'!$C$19+'BP Financier'!$C$22))*$V116*X116/(1-$W116) -> 19,255 | Q116: ='BP Financier'!$C$44*('BP Financier'!$C$16/('BP Financier'!$C$16+'BP Financier'!$C$19+'BP Financier'!$C$22))*$V116*Y116/(1-$W116) -> 12,872 | R116: ='BP Financier'!$C$44*('BP Financier'!$C$16/('BP Financier'!$C$16+'BP Financier'!$C$19+'BP Financier'!$C$22))*$V116*Z116/(1-$W116) -> 100,743 | S116: ='BP Financier'!$C$44*('BP Financier'!$C$16/('BP Financier'!$C$16+'BP Financier'!$C$19+'BP Financier'!$C$22))*$V116*AA116/(1-$W116) -> 12,447 | T116: ='BP Financier'!$C$44*('BP Financier'!$C$16/('BP Financier'!$C$16+'BP Financier'!$C$19+'BP Financier'!$C$22))*$V116*AB116/(1-$W116) -> 5,957 | V116: 0.50% | W116: =Actif!$E$28/100 -> 28.90% | X116: =Actif!$E$30/100 -> 9.05% | Y116: =Actif!$E$31/100 -> 6.05% | Z116: =Actif!$E$32/100 -> 47.35% | AA116: =Actif!$E$33/100 -> 5.85% | AB116: =Actif!$E$29/100 -> 2.80%
B117: #28 | C117: 45 | D117: 2026 | E117: H | F117: A_VIE | G117: 0.45 | H117: 0.39 | I117: 0.6 | J117: 0.6 | K117: 85 | L117: 0 | M117: =ROUND(Primes!$M$4*V117,0) -> 17 | N117: ='BP Financier'!$C$33*('BP Financier'!$C$16/('BP Financier'!$C$16+'BP Financier'!$C$19))*V117 -> 275,456 | O117: 151,274 | P117: ='BP Financier'!$C$44*('BP Financier'!$C$16/('BP Financier'!$C$16+'BP Financier'!$C$19+'BP Financier'!$C$22))*$V117*X117/(1-$W117) -> 19,255 | Q117: ='BP Financier'!$C$44*('BP Financier'!$C$16/('BP Financier'!$C$16+'BP Financier'!$C$19+'BP Financier'!$C$22))*$V117*Y117/(1-$W117) -> 12,872 | R117: ='BP Financier'!$C$44*('BP Financier'!$C$16/('BP Financier'!$C$16+'BP Financier'!$C$19+'BP Financier'!$C$22))*$V117*Z117/(1-$W117) -> 100,743 | S117: ='BP Financier'!$C$44*('BP Financier'!$C$16/('BP Financier'!$C$16+'BP Financier'!$C$19+'BP Financier'!$C$22))*$V117*AA117/(1-$W117) -> 12,447 | T117: ='BP Financier'!$C$44*('BP Financier'!$C$16/('BP Financier'!$C$16+'BP Financier'!$C$19+'BP Financier'!$C$22))*$V117*AB117/(1-$W117) -> 5,957 | V117: 0.50% | W117: =Actif!$E$28/100 -> 28.90% | X117: =Actif!$E$30/100 -> 9.05% | Y117: =Actif!$E$31/100 -> 6.05% | Z117: =Actif!$E$32/100 -> 47.35% | AA117: =Actif!$E$33/100 -> 5.85% | AB117: =Actif!$E$29/100 -> 2.80%
B118: #29 | C118: 46 | D118: 2026 | E118: H | F118: A_VIE | G118: 0.45 | H118: 0.39 | I118: 0.6 | J118: 0.6 | K118: 85 | L118: 0 | M118: =ROUND(Primes!$M$4*V118,0) -> 17 | N118: ='BP Financier'!$C$33*('BP Financier'!$C$16/('BP Financier'!$C$16+'BP Financier'!$C$19))*V118 -> 275,456 | O118: 151,274 | P118: ='BP Financier'!$C$44*('BP Financier'!$C$16/('BP Financier'!$C$16+'BP Financier'!$C$19+'BP Financier'!$C$22))*$V118*X118/(1-$W118) -> 19,255 | Q118: ='BP Financier'!$C$44*('BP Financier'!$C$16/('BP Financier'!$C$16+'BP Financier'!$C$19+'BP Financier'!$C$22))*$V118*Y118/(1-$W118) -> 12,872 | R118: ='BP Financier'!$C$44*('BP Financier'!$C$16/('BP Financier'!$C$16+'BP Financier'!$C$19+'BP Financier'!$C$22))*$V118*Z118/(1-$W118) -> 100,743 | S118: ='BP Financier'!$C$44*('BP Financier'!$C$16/('BP Financier'!$C$16+'BP Financier'!$C$19+'BP Financier'!$C$22))*$V118*AA118/(1-$W118) -> 12,447 | T118: ='BP Financier'!$C$44*('BP Financier'!$C$16/('BP Financier'!$C$16+'BP Financier'!$C$19+'BP Financier'!$C$22))*$V118*AB118/(1-$W118) -> 5,957 | V118: 0.50% | W118: =Actif!$E$28/100 -> 28.90% | X118: =Actif!$E$30/100 -> 9.05% | Y118: =Actif!$E$31/100 -> 6.05% | Z118: =Actif!$E$32/100 -> 47.35% | AA118: =Actif!$E$33/100 -> 5.85% | AB118: =Actif!$E$29/100 -> 2.80%
B119: #30 | C119: 47 | D119: 2026 | E119: F | F119: A_VIE | G119: 0.45 | H119: 0.39 | I119: 0.6 | J119: 0.6 | K119: 85 | L119: 0 | M119: =ROUND(Primes!$M$4*V119,0) -> 17 | N119: ='BP Financier'!$C$33*('BP Financier'!$C$16/('BP Financier'!$C$16+'BP Financier'!$C$19))*V119 -> 275,456 | O119: 151,274 | P119: ='BP Financier'!$C$44*('BP Financier'!$C$16/('BP Financier'!$C$16+'BP Financier'!$C$19+'BP Financier'!$C$22))*$V119*X119/(1-$W119) -> 19,255 | Q119: ='BP Financier'!$C$44*('BP Financier'!$C$16/('BP Financier'!$C$16+'BP Financier'!$C$19+'BP Financier'!$C$22))*$V119*Y119/(1-$W119) -> 12,872 | R119: ='BP Financier'!$C$44*('BP Financier'!$C$16/('BP Financier'!$C$16+'BP Financier'!$C$19+'BP Financier'!$C$22))*$V119*Z119/(1-$W119) -> 100,743 | S119: ='BP Financier'!$C$44*('BP Financier'!$C$16/('BP Financier'!$C$16+'BP Financier'!$C$19+'BP Financier'!$C$22))*$V119*AA119/(1-$W119) -> 12,447 | T119: ='BP Financier'!$C$44*('BP Financier'!$C$16/('BP Financier'!$C$16+'BP Financier'!$C$19+'BP Financier'!$C$22))*$V119*AB119/(1-$W119) -> 5,957 | V119: 0.50% | W119: =Actif!$E$28/100 -> 28.90% | X119: =Actif!$E$30/100 -> 9.05% | Y119: =Actif!$E$31/100 -> 6.05% | Z119: =Actif!$E$32/100 -> 47.35% | AA119: =Actif!$E$33/100 -> 5.85% | AB119: =Actif!$E$29/100 -> 2.80%
B120: #31 | C120: 48 | D120: 2026 | E120: H | F120: A_VIE | G120: 0.45 | H120: 0.39 | I120: 0.6 | J120: 0.6 | K120: 85 | L120: 0 | M120: =ROUND(Primes!$M$4*V120,0) -> 17 | N120: ='BP Financier'!$C$33*('BP Financier'!$C$16/('BP Financier'!$C$16+'BP Financier'!$C$19))*V120 -> 275,456 | O120: 151,274 | P120: ='BP Financier'!$C$44*('BP Financier'!$C$16/('BP Financier'!$C$16+'BP Financier'!$C$19+'BP Financier'!$C$22))*$V120*X120/(1-$W120) -> 19,255 | Q120: ='BP Financier'!$C$44*('BP Financier'!$C$16/('BP Financier'!$C$16+'BP Financier'!$C$19+'BP Financier'!$C$22))*$V120*Y120/(1-$W120) -> 12,872 | R120: ='BP Financier'!$C$44*('BP Financier'!$C$16/('BP Financier'!$C$16+'BP Financier'!$C$19+'BP Financier'!$C$22))*$V120*Z120/(1-$W120) -> 100,743 | S120: ='BP Financier'!$C$44*('BP Financier'!$C$16/('BP Financier'!$C$16+'BP Financier'!$C$19+'BP Financier'!$C$22))*$V120*AA120/(1-$W120) -> 12,447 | T120: ='BP Financier'!$C$44*('BP Financier'!$C$16/('BP Financier'!$C$16+'BP Financier'!$C$19+'BP Financier'!$C$22))*$V120*AB120/(1-$W120) -> 5,957 | V120: 0.50% | W120: =Actif!$E$28/100 -> 28.90% | X120: =Actif!$E$30/100 -> 9.05% | Y120: =Actif!$E$31/100 -> 6.05% | Z120: =Actif!$E$32/100 -> 47.35% | AA120: =Actif!$E$33/100 -> 5.85% | AB120: =Actif!$E$29/100 -> 2.80%
B121: #32 | C121: 49 | D121: 2026 | E121: H | F121: A_VIE | G121: 0.45 | H121: 0.39 | I121: 0.6 | J121: 0.6 | K121: 85 | L121: 0 | M121: =ROUND(Primes!$M$4*V121,0) -> 17 | N121: ='BP Financier'!$C$33*('BP Financier'!$C$16/('BP Financier'!$C$16+'BP Financier'!$C$19))*V121 -> 275,456 | O121: 151,274 | P121: ='BP Financier'!$C$44*('BP Financier'!$C$16/('BP Financier'!$C$16+'BP Financier'!$C$19+'BP Financier'!$C$22))*$V121*X121/(1-$W121) -> 19,255 | Q121: ='BP Financier'!$C$44*('BP Financier'!$C$16/('BP Financier'!$C$16+'BP Financier'!$C$19+'BP Financier'!$C$22))*$V121*Y121/(1-$W121) -> 12,872 | R121: ='BP Financier'!$C$44*('BP Financier'!$C$16/('BP Financier'!$C$16+'BP Financier'!$C$19+'BP Financier'!$C$22))*$V121*Z121/(1-$W121) -> 100,743 | S121: ='BP Financier'!$C$44*('BP Financier'!$C$16/('BP Financier'!$C$16+'BP Financier'!$C$19+'BP Financier'!$C$22))*$V121*AA121/(1-$W121) -> 12,447 | T121: ='BP Financier'!$C$44*('BP Financier'!$C$16/('BP Financier'!$C$16+'BP Financier'!$C$19+'BP Financier'!$C$22))*$V121*AB121/(1-$W121) -> 5,957 | V121: 0.50% | W121: =Actif!$E$28/100 -> 28.90% | X121: =Actif!$E$30/100 -> 9.05% | Y121: =Actif!$E$31/100 -> 6.05% | Z121: =Actif!$E$32/100 -> 47.35% | AA121: =Actif!$E$33/100 -> 5.85% | AB121: =Actif!$E$29/100 -> 2.80%
B122: #33 | C122: 50 | D122: 2026 | E122: F | F122: A_VIE | G122: =frais_gestion_Euro*100 -> 0.45 | H122: =frais_gestion_UC*100 -> 0.39 | I122: =frais_distribution_FG*100 -> 0.6 | J122: =frais_distribution_UC*100 -> 0.6 | K122: 85 | L122: 0 | M122: =ROUND(Primes!$M$4*V122,0) -> 100 | N122: ='BP Financier'!$C$33*('BP Financier'!$C$16/('BP Financier'!$C$16+'BP Financier'!$C$19))*V122 -> 1,652,734 | O122: 907,642 | P122: ='BP Financier'!$C$44*('BP Financier'!$C$16/('BP Financier'!$C$16+'BP Financier'!$C$19+'BP Financier'!$C$22))*$V122*X122/(1-$W122) -> 115,530 | Q122: ='BP Financier'!$C$44*('BP Financier'!$C$16/('BP Financier'!$C$16+'BP Financier'!$C$19+'BP Financier'!$C$22))*$V122*Y122/(1-$W122) -> 77,233 | R122: ='BP Financier'!$C$44*('BP Financier'!$C$16/('BP Financier'!$C$16+'BP Financier'!$C$19+'BP Financier'!$C$22))*$V122*Z122/(1-$W122) -> 604,457 | S122: ='BP Financier'!$C$44*('BP Financier'!$C$16/('BP Financier'!$C$16+'BP Financier'!$C$19+'BP Financier'!$C$22))*$V122*AA122/(1-$W122) -> 74,679 | T122: ='BP Financier'!$C$44*('BP Financier'!$C$16/('BP Financier'!$C$16+'BP Financier'!$C$19+'BP Financier'!$C$22))*$V122*AB122/(1-$W122) -> 35,744 | V122: 3.00% | W122: =Actif!$E$28/100 -> 28.90% | X122: =Actif!$E$30/100 -> 9.05% | Y122: =Actif!$E$31/100 -> 6.05% | Z122: =Actif!$E$32/100 -> 47.35% | AA122: =Actif!$E$33/100 -> 5.85% | AB122: =Actif!$E$29/100 -> 2.80%
B123: #34 | C123: 51 | D123: 2026 | E123: H | F123: A_VIE | G123: 0.45 | H123: 0.39 | I123: 0.6 | J123: 0.6 | K123: 85 | L123: 0 | M123: =ROUND(Primes!$M$4*V123,0) -> 100 | N123: ='BP Financier'!$C$33*('BP Financier'!$C$16/('BP Financier'!$C$16+'BP Financier'!$C$19))*V123 -> 1,652,734 | O123: 907,642 | P123: ='BP Financier'!$C$44*('BP Financier'!$C$16/('BP Financier'!$C$16+'BP Financier'!$C$19+'BP Financier'!$C$22))*$V123*X123/(1-$W123) -> 115,530 | Q123: ='BP Financier'!$C$44*('BP Financier'!$C$16/('BP Financier'!$C$16+'BP Financier'!$C$19+'BP Financier'!$C$22))*$V123*Y123/(1-$W123) -> 77,233 | R123: ='BP Financier'!$C$44*('BP Financier'!$C$16/('BP Financier'!$C$16+'BP Financier'!$C$19+'BP Financier'!$C$22))*$V123*Z123/(1-$W123) -> 604,457 | S123: ='BP Financier'!$C$44*('BP Financier'!$C$16/('BP Financier'!$C$16+'BP Financier'!$C$19+'BP Financier'!$C$22))*$V123*AA123/(1-$W123) -> 74,679 | T123: ='BP Financier'!$C$44*('BP Financier'!$C$16/('BP Financier'!$C$16+'BP Financier'!$C$19+'BP Financier'!$C$22))*$V123*AB123/(1-$W123) -> 35,744 | V123: 3.00% | W123: =Actif!$E$28/100 -> 28.90% | X123: =Actif!$E$30/100 -> 9.05% | Y123: =Actif!$E$31/100 -> 6.05% | Z123: =Actif!$E$32/100 -> 47.35% | AA123: =Actif!$E$33/100 -> 5.85% | AB123: =Actif!$E$29/100 -> 2.80%
B124: #35 | C124: 52 | D124: 2026 | E124: H | F124: A_VIE | G124: 0.45 | H124: 0.39 | I124: 0.6 | J124: 0.6 | K124: 85 | L124: 0 | M124: =ROUND(Primes!$M$4*V124,0) -> 100 | N124: ='BP Financier'!$C$33*('BP Financier'!$C$16/('BP Financier'!$C$16+'BP Financier'!$C$19))*V124 -> 1,652,734 | O124: 907,642 | P124: ='BP Financier'!$C$44*('BP Financier'!$C$16/('BP Financier'!$C$16+'BP Financier'!$C$19+'BP Financier'!$C$22))*$V124*X124/(1-$W124) -> 115,530 | Q124: ='BP Financier'!$C$44*('BP Financier'!$C$16/('BP Financier'!$C$16+'BP Financier'!$C$19+'BP Financier'!$C$22))*$V124*Y124/(1-$W124) -> 77,233 | R124: ='BP Financier'!$C$44*('BP Financier'!$C$16/('BP Financier'!$C$16+'BP Financier'!$C$19+'BP Financier'!$C$22))*$V124*Z124/(1-$W124) -> 604,457 | S124: ='BP Financier'!$C$44*('BP Financier'!$C$16/('BP Financier'!$C$16+'BP Financier'!$C$19+'BP Financier'!$C$22))*$V124*AA124/(1-$W124) -> 74,679 | T124: ='BP Financier'!$C$44*('BP Financier'!$C$16/('BP Financier'!$C$16+'BP Financier'!$C$19+'BP Financier'!$C$22))*$V124*AB124/(1-$W124) -> 35,744 | V124: 3.00% | W124: =Actif!$E$28/100 -> 28.90% | X124: =Actif!$E$30/100 -> 9.05% | Y124: =Actif!$E$31/100 -> 6.05% | Z124: =Actif!$E$32/100 -> 47.35% | AA124: =Actif!$E$33/100 -> 5.85% | AB124: =Actif!$E$29/100 -> 2.80%
B125: #36 | C125: 53 | D125: 2026 | E125: F | F125: A_VIE | G125: 0.45 | H125: 0.39 | I125: 0.6 | J125: 0.6 | K125: 85 | L125: 0 | M125: =ROUND(Primes!$M$4*V125,0) -> 100 | N125: ='BP Financier'!$C$33*('BP Financier'!$C$16/('BP Financier'!$C$16+'BP Financier'!$C$19))*V125 -> 1,652,734 | O125: 907,642 | P125: ='BP Financier'!$C$44*('BP Financier'!$C$16/('BP Financier'!$C$16+'BP Financier'!$C$19+'BP Financier'!$C$22))*$V125*X125/(1-$W125) -> 115,530 | Q125: ='BP Financier'!$C$44*('BP Financier'!$C$16/('BP Financier'!$C$16+'BP Financier'!$C$19+'BP Financier'!$C$22))*$V125*Y125/(1-$W125) -> 77,233 | R125: ='BP Financier'!$C$44*('BP Financier'!$C$16/('BP Financier'!$C$16+'BP Financier'!$C$19+'BP Financier'!$C$22))*$V125*Z125/(1-$W125) -> 604,457 | S125: ='BP Financier'!$C$44*('BP Financier'!$C$16/('BP Financier'!$C$16+'BP Financier'!$C$19+'BP Financier'!$C$22))*$V125*AA125/(1-$W125) -> 74,679 | T125: ='BP Financier'!$C$44*('BP Financier'!$C$16/('BP Financier'!$C$16+'BP Financier'!$C$19+'BP Financier'!$C$22))*$V125*AB125/(1-$W125) -> 35,744 | V125: 3.00% | W125: =Actif!$E$28/100 -> 28.90% | X125: =Actif!$E$30/100 -> 9.05% | Y125: =Actif!$E$31/100 -> 6.05% | Z125: =Actif!$E$32/100 -> 47.35% | AA125: =Actif!$E$33/100 -> 5.85% | AB125: =Actif!$E$29/100 -> 2.80%
B126: #37 | C126: 54 | D126: 2026 | E126: H | F126: A_VIE | G126: 0.45 | H126: 0.39 | I126: 0.6 | J126: 0.6 | K126: 85 | L126: 0 | M126: =ROUND(Primes!$M$4*V126,0) -> 100 | N126: ='BP Financier'!$C$33*('BP Financier'!$C$16/('BP Financier'!$C$16+'BP Financier'!$C$19))*V126 -> 1,652,734 | O126: 907,642 | P126: ='BP Financier'!$C$44*('BP Financier'!$C$16/('BP Financier'!$C$16+'BP Financier'!$C$19+'BP Financier'!$C$22))*$V126*X126/(1-$W126) -> 115,530 | Q126: ='BP Financier'!$C$44*('BP Financier'!$C$16/('BP Financier'!$C$16+'BP Financier'!$C$19+'BP Financier'!$C$22))*$V126*Y126/(1-$W126) -> 77,233 | R126: ='BP Financier'!$C$44*('BP Financier'!$C$16/('BP Financier'!$C$16+'BP Financier'!$C$19+'BP Financier'!$C$22))*$V126*Z126/(1-$W126) -> 604,457 | S126: ='BP Financier'!$C$44*('BP Financier'!$C$16/('BP Financier'!$C$16+'BP Financier'!$C$19+'BP Financier'!$C$22))*$V126*AA126/(1-$W126) -> 74,679 | T126: ='BP Financier'!$C$44*('BP Financier'!$C$16/('BP Financier'!$C$16+'BP Financier'!$C$19+'BP Financier'!$C$22))*$V126*AB126/(1-$W126) -> 35,744 | V126: 3.00% | W126: =Actif!$E$28/100 -> 28.90% | X126: =Actif!$E$30/100 -> 9.05% | Y126: =Actif!$E$31/100 -> 6.05% | Z126: =Actif!$E$32/100 -> 47.35% | AA126: =Actif!$E$33/100 -> 5.85% | AB126: =Actif!$E$29/100 -> 2.80%
B127: #38 | C127: 55 | D127: 2026 | E127: H | F127: A_VIE | G127: 0.45 | H127: 0.39 | I127: 0.6 | J127: 0.6 | K127: 85 | L127: 0 | M127: =ROUND(Primes!$M$4*V127,0) -> 100 | N127: ='BP Financier'!$C$33*('BP Financier'!$C$16/('BP Financier'!$C$16+'BP Financier'!$C$19))*V127 -> 1,652,734 | O127: 907,642 | P127: ='BP Financier'!$C$44*('BP Financier'!$C$16/('BP Financier'!$C$16+'BP Financier'!$C$19+'BP Financier'!$C$22))*$V127*X127/(1-$W127) -> 115,530 | Q127: ='BP Financier'!$C$44*('BP Financier'!$C$16/('BP Financier'!$C$16+'BP Financier'!$C$19+'BP Financier'!$C$22))*$V127*Y127/(1-$W127) -> 77,233 | R127: ='BP Financier'!$C$44*('BP Financier'!$C$16/('BP Financier'!$C$16+'BP Financier'!$C$19+'BP Financier'!$C$22))*$V127*Z127/(1-$W127) -> 604,457 | S127: ='BP Financier'!$C$44*('BP Financier'!$C$16/('BP Financier'!$C$16+'BP Financier'!$C$19+'BP Financier'!$C$22))*$V127*AA127/(1-$W127) -> 74,679 | T127: ='BP Financier'!$C$44*('BP Financier'!$C$16/('BP Financier'!$C$16+'BP Financier'!$C$19+'BP Financier'!$C$22))*$V127*AB127/(1-$W127) -> 35,744 | V127: 3.00% | W127: =Actif!$E$28/100 -> 28.90% | X127: =Actif!$E$30/100 -> 9.05% | Y127: =Actif!$E$31/100 -> 6.05% | Z127: =Actif!$E$32/100 -> 47.35% | AA127: =Actif!$E$33/100 -> 5.85% | AB127: =Actif!$E$29/100 -> 2.80%
B128: #39 | C128: 56 | D128: 2026 | E128: F | F128: A_VIE | G128: 0.45 | H128: 0.39 | I128: 0.6 | J128: 0.6 | K128: 85 | L128: 0 | M128: =ROUND(Primes!$M$4*V128,0) -> 100 | N128: ='BP Financier'!$C$33*('BP Financier'!$C$16/('BP Financier'!$C$16+'BP Financier'!$C$19))*V128 -> 1,652,734 | O128: 907,642 | P128: ='BP Financier'!$C$44*('BP Financier'!$C$16/('BP Financier'!$C$16+'BP Financier'!$C$19+'BP Financier'!$C$22))*$V128*X128/(1-$W128) -> 115,530 | Q128: ='BP Financier'!$C$44*('BP Financier'!$C$16/('BP Financier'!$C$16+'BP Financier'!$C$19+'BP Financier'!$C$22))*$V128*Y128/(1-$W128) -> 77,233 | R128: ='BP Financier'!$C$44*('BP Financier'!$C$16/('BP Financier'!$C$16+'BP Financier'!$C$19+'BP Financier'!$C$22))*$V128*Z128/(1-$W128) -> 604,457 | S128: ='BP Financier'!$C$44*('BP Financier'!$C$16/('BP Financier'!$C$16+'BP Financier'!$C$19+'BP Financier'!$C$22))*$V128*AA128/(1-$W128) -> 74,679 | T128: ='BP Financier'!$C$44*('BP Financier'!$C$16/('BP Financier'!$C$16+'BP Financier'!$C$19+'BP Financier'!$C$22))*$V128*AB128/(1-$W128) -> 35,744 | V128: 3.00% | W128: =Actif!$E$28/100 -> 28.90% | X128: =Actif!$E$30/100 -> 9.05% | Y128: =Actif!$E$31/100 -> 6.05% | Z128: =Actif!$E$32/100 -> 47.35% | AA128: =Actif!$E$33/100 -> 5.85% | AB128: =Actif!$E$29/100 -> 2.80%
B129: #40 | C129: 57 | D129: 2026 | E129: H | F129: A_VIE | G129: 0.45 | H129: 0.39 | I129: 0.6 | J129: 0.6 | K129: 85 | L129: 0 | M129: =ROUND(Primes!$M$4*V129,0) -> 100 | N129: ='BP Financier'!$C$33*('BP Financier'!$C$16/('BP Financier'!$C$16+'BP Financier'!$C$19))*V129 -> 1,652,734 | O129: 907,642 | P129: ='BP Financier'!$C$44*('BP Financier'!$C$16/('BP Financier'!$C$16+'BP Financier'!$C$19+'BP Financier'!$C$22))*$V129*X129/(1-$W129) -> 115,530 | Q129: ='BP Financier'!$C$44*('BP Financier'!$C$16/('BP Financier'!$C$16+'BP Financier'!$C$19+'BP Financier'!$C$22))*$V129*Y129/(1-$W129) -> 77,233 | R129: ='BP Financier'!$C$44*('BP Financier'!$C$16/('BP Financier'!$C$16+'BP Financier'!$C$19+'BP Financier'!$C$22))*$V129*Z129/(1-$W129) -> 604,457 | S129: ='BP Financier'!$C$44*('BP Financier'!$C$16/('BP Financier'!$C$16+'BP Financier'!$C$19+'BP Financier'!$C$22))*$V129*AA129/(1-$W129) -> 74,679 | T129: ='BP Financier'!$C$44*('BP Financier'!$C$16/('BP Financier'!$C$16+'BP Financier'!$C$19+'BP Financier'!$C$22))*$V129*AB129/(1-$W129) -> 35,744 | V129: 3.00% | W129: =Actif!$E$28/100 -> 28.90% | X129: =Actif!$E$30/100 -> 9.05% | Y129: =Actif!$E$31/100 -> 6.05% | Z129: =Actif!$E$32/100 -> 47.35% | AA129: =Actif!$E$33/100 -> 5.85% | AB129: =Actif!$E$29/100 -> 2.80%
B130: #41 | C130: 58 | D130: 2026 | E130: H | F130: A_VIE | G130: 0.45 | H130: 0.39 | I130: 0.6 | J130: 0.6 | K130: 85 | L130: 0 | M130: =ROUND(Primes!$M$4*V130,0) -> 100 | N130: ='BP Financier'!$C$33*('BP Financier'!$C$16/('BP Financier'!$C$16+'BP Financier'!$C$19))*V130 -> 1,652,734 | O130: 907,642 | P130: ='BP Financier'!$C$44*('BP Financier'!$C$16/('BP Financier'!$C$16+'BP Financier'!$C$19+'BP Financier'!$C$22))*$V130*X130/(1-$W130) -> 115,530 | Q130: ='BP Financier'!$C$44*('BP Financier'!$C$16/('BP Financier'!$C$16+'BP Financier'!$C$19+'BP Financier'!$C$22))*$V130*Y130/(1-$W130) -> 77,233 | R130: ='BP Financier'!$C$44*('BP Financier'!$C$16/('BP Financier'!$C$16+'BP Financier'!$C$19+'BP Financier'!$C$22))*$V130*Z130/(1-$W130) -> 604,457 | S130: ='BP Financier'!$C$44*('BP Financier'!$C$16/('BP Financier'!$C$16+'BP Financier'!$C$19+'BP Financier'!$C$22))*$V130*AA130/(1-$W130) -> 74,679 | T130: ='BP Financier'!$C$44*('BP Financier'!$C$16/('BP Financier'!$C$16+'BP Financier'!$C$19+'BP Financier'!$C$22))*$V130*AB130/(1-$W130) -> 35,744 | V130: 3.00% | W130: =Actif!$E$28/100 -> 28.90% | X130: =Actif!$E$30/100 -> 9.05% | Y130: =Actif!$E$31/100 -> 6.05% | Z130: =Actif!$E$32/100 -> 47.35% | AA130: =Actif!$E$33/100 -> 5.85% | AB130: =Actif!$E$29/100 -> 2.80%
B131: #42 | C131: 59 | D131: 2026 | E131: F | F131: A_VIE | G131: 0.45 | H131: 0.39 | I131: 0.6 | J131: 0.6 | K131: 85 | L131: 0 | M131: =ROUND(Primes!$M$4*V131,0) -> 100 | N131: ='BP Financier'!$C$33*('BP Financier'!$C$16/('BP Financier'!$C$16+'BP Financier'!$C$19))*V131 -> 1,652,734 | O131: 907,642 | P131: ='BP Financier'!$C$44*('BP Financier'!$C$16/('BP Financier'!$C$16+'BP Financier'!$C$19+'BP Financier'!$C$22))*$V131*X131/(1-$W131) -> 115,530 | Q131: ='BP Financier'!$C$44*('BP Financier'!$C$16/('BP Financier'!$C$16+'BP Financier'!$C$19+'BP Financier'!$C$22))*$V131*Y131/(1-$W131) -> 77,233 | R131: ='BP Financier'!$C$44*('BP Financier'!$C$16/('BP Financier'!$C$16+'BP Financier'!$C$19+'BP Financier'!$C$22))*$V131*Z131/(1-$W131) -> 604,457 | S131: ='BP Financier'!$C$44*('BP Financier'!$C$16/('BP Financier'!$C$16+'BP Financier'!$C$19+'BP Financier'!$C$22))*$V131*AA131/(1-$W131) -> 74,679 | T131: ='BP Financier'!$C$44*('BP Financier'!$C$16/('BP Financier'!$C$16+'BP Financier'!$C$19+'BP Financier'!$C$22))*$V131*AB131/(1-$W131) -> 35,744 | V131: 3.00% | W131: =Actif!$E$28/100 -> 28.90% | X131: =Actif!$E$30/100 -> 9.05% | Y131: =Actif!$E$31/100 -> 6.05% | Z131: =Actif!$E$32/100 -> 47.35% | AA131: =Actif!$E$33/100 -> 5.85% | AB131: =Actif!$E$29/100 -> 2.80%
B132: #43 | C132: 60 | D132: 2026 | E132: H | F132: A_VIE | G132: 0.45 | H132: 0.39 | I132: 0.6 | J132: 0.6 | K132: 85 | L132: 0 | M132: =ROUND(Primes!$M$4*V132,0) -> 167 | N132: ='BP Financier'!$C$33*('BP Financier'!$C$16/('BP Financier'!$C$16+'BP Financier'!$C$19))*V132 -> 2,754,556 | O132: 1,512,737 | P132: ='BP Financier'!$C$44*('BP Financier'!$C$16/('BP Financier'!$C$16+'BP Financier'!$C$19+'BP Financier'!$C$22))*$V132*X132/(1-$W132) -> 192,550 | Q132: ='BP Financier'!$C$44*('BP Financier'!$C$16/('BP Financier'!$C$16+'BP Financier'!$C$19+'BP Financier'!$C$22))*$V132*Y132/(1-$W132) -> 128,721 | R132: ='BP Financier'!$C$44*('BP Financier'!$C$16/('BP Financier'!$C$16+'BP Financier'!$C$19+'BP Financier'!$C$22))*$V132*Z132/(1-$W132) -> 1,007,428 | S132: ='BP Financier'!$C$44*('BP Financier'!$C$16/('BP Financier'!$C$16+'BP Financier'!$C$19+'BP Financier'!$C$22))*$V132*AA132/(1-$W132) -> 124,466 | T132: ='BP Financier'!$C$44*('BP Financier'!$C$16/('BP Financier'!$C$16+'BP Financier'!$C$19+'BP Financier'!$C$22))*$V132*AB132/(1-$W132) -> 59,573 | V132: 5.00% | W132: =Actif!$E$28/100 -> 28.90% | X132: =Actif!$E$30/100 -> 9.05% | Y132: =Actif!$E$31/100 -> 6.05% | Z132: =Actif!$E$32/100 -> 47.35% | AA132: =Actif!$E$33/100 -> 5.85% | AB132: =Actif!$E$29/100 -> 2.80%
B133: #44 | C133: 61 | D133: 2026 | E133: H | F133: A_VIE | G133: 0.45 | H133: 0.39 | I133: 0.6 | J133: 0.6 | K133: 85 | L133: 0 | M133: =ROUND(Primes!$M$4*V133,0) -> 100 | N133: ='BP Financier'!$C$33*('BP Financier'!$C$16/('BP Financier'!$C$16+'BP Financier'!$C$19))*V133 -> 1,652,734 | O133: 907,642 | P133: ='BP Financier'!$C$44*('BP Financier'!$C$16/('BP Financier'!$C$16+'BP Financier'!$C$19+'BP Financier'!$C$22))*$V133*X133/(1-$W133) -> 115,530 | Q133: ='BP Financier'!$C$44*('BP Financier'!$C$16/('BP Financier'!$C$16+'BP Financier'!$C$19+'BP Financier'!$C$22))*$V133*Y133/(1-$W133) -> 77,233 | R133: ='BP Financier'!$C$44*('BP Financier'!$C$16/('BP Financier'!$C$16+'BP Financier'!$C$19+'BP Financier'!$C$22))*$V133*Z133/(1-$W133) -> 604,457 | S133: ='BP Financier'!$C$44*('BP Financier'!$C$16/('BP Financier'!$C$16+'BP Financier'!$C$19+'BP Financier'!$C$22))*$V133*AA133/(1-$W133) -> 74,679 | T133: ='BP Financier'!$C$44*('BP Financier'!$C$16/('BP Financier'!$C$16+'BP Financier'!$C$19+'BP Financier'!$C$22))*$V133*AB133/(1-$W133) -> 35,744 | V133: 3.00% | W133: =Actif!$E$28/100 -> 28.90% | X133: =Actif!$E$30/100 -> 9.05% | Y133: =Actif!$E$31/100 -> 6.05% | Z133: =Actif!$E$32/100 -> 47.35% | AA133: =Actif!$E$33/100 -> 5.85% | AB133: =Actif!$E$29/100 -> 2.80%
B134: #45 | C134: 62 | D134: 2026 | E134: F | F134: A_VIE | G134: 0.45 | H134: 0.39 | I134: 0.6 | J134: 0.6 | K134: 85 | L134: 0 | M134: =ROUND(Primes!$M$4*V134,0) -> 100 | N134: ='BP Financier'!$C$33*('BP Financier'!$C$16/('BP Financier'!$C$16+'BP Financier'!$C$19))*V134 -> 1,652,734 | O134: 907,642 | P134: ='BP Financier'!$C$44*('BP Financier'!$C$16/('BP Financier'!$C$16+'BP Financier'!$C$19+'BP Financier'!$C$22))*$V134*X134/(1-$W134) -> 115,530 | Q134: ='BP Financier'!$C$44*('BP Financier'!$C$16/('BP Financier'!$C$16+'BP Financier'!$C$19+'BP Financier'!$C$22))*$V134*Y134/(1-$W134) -> 77,233 | R134: ='BP Financier'!$C$44*('BP Financier'!$C$16/('BP Financier'!$C$16+'BP Financier'!$C$19+'BP Financier'!$C$22))*$V134*Z134/(1-$W134) -> 604,457 | S134: ='BP Financier'!$C$44*('BP Financier'!$C$16/('BP Financier'!$C$16+'BP Financier'!$C$19+'BP Financier'!$C$22))*$V134*AA134/(1-$W134) -> 74,679 | T134: ='BP Financier'!$C$44*('BP Financier'!$C$16/('BP Financier'!$C$16+'BP Financier'!$C$19+'BP Financier'!$C$22))*$V134*AB134/(1-$W134) -> 35,744 | V134: 3.00% | W134: =Actif!$E$28/100 -> 28.90% | X134: =Actif!$E$30/100 -> 9.05% | Y134: =Actif!$E$31/100 -> 6.05% | Z134: =Actif!$E$32/100 -> 47.35% | AA134: =Actif!$E$33/100 -> 5.85% | AB134: =Actif!$E$29/100 -> 2.80%
B135: #46 | C135: 63 | D135: 2026 | E135: H | F135: A_VIE | G135: 0.45 | H135: 0.39 | I135: 0.6 | J135: 0.6 | K135: 85 | L135: 0 | M135: =ROUND(Primes!$M$4*V135,0) -> 100 | N135: ='BP Financier'!$C$33*('BP Financier'!$C$16/('BP Financier'!$C$16+'BP Financier'!$C$19))*V135 -> 1,652,734 | O135: 907,642 | P135: ='BP Financier'!$C$44*('BP Financier'!$C$16/('BP Financier'!$C$16+'BP Financier'!$C$19+'BP Financier'!$C$22))*$V135*X135/(1-$W135) -> 115,530 | Q135: ='BP Financier'!$C$44*('BP Financier'!$C$16/('BP Financier'!$C$16+'BP Financier'!$C$19+'BP Financier'!$C$22))*$V135*Y135/(1-$W135) -> 77,233 | R135: ='BP Financier'!$C$44*('BP Financier'!$C$16/('BP Financier'!$C$16+'BP Financier'!$C$19+'BP Financier'!$C$22))*$V135*Z135/(1-$W135) -> 604,457 | S135: ='BP Financier'!$C$44*('BP Financier'!$C$16/('BP Financier'!$C$16+'BP Financier'!$C$19+'BP Financier'!$C$22))*$V135*AA135/(1-$W135) -> 74,679 | T135: ='BP Financier'!$C$44*('BP Financier'!$C$16/('BP Financier'!$C$16+'BP Financier'!$C$19+'BP Financier'!$C$22))*$V135*AB135/(1-$W135) -> 35,744 | V135: 3.00% | W135: =Actif!$E$28/100 -> 28.90% | X135: =Actif!$E$30/100 -> 9.05% | Y135: =Actif!$E$31/100 -> 6.05% | Z135: =Actif!$E$32/100 -> 47.35% | AA135: =Actif!$E$33/100 -> 5.85% | AB135: =Actif!$E$29/100 -> 2.80%
B136: #47 | C136: 64 | D136: 2026 | E136: H | F136: A_VIE | G136: 0.45 | H136: 0.39 | I136: 0.6 | J136: 0.6 | K136: 85 | L136: 0 | M136: =ROUND(Primes!$M$4*V136,0) -> 100 | N136: ='BP Financier'!$C$33*('BP Financier'!$C$16/('BP Financier'!$C$16+'BP Financier'!$C$19))*V136 -> 1,652,734 | O136: 907,642 | P136: ='BP Financier'!$C$44*('BP Financier'!$C$16/('BP Financier'!$C$16+'BP Financier'!$C$19+'BP Financier'!$C$22))*$V136*X136/(1-$W136) -> 115,530 | Q136: ='BP Financier'!$C$44*('BP Financier'!$C$16/('BP Financier'!$C$16+'BP Financier'!$C$19+'BP Financier'!$C$22))*$V136*Y136/(1-$W136) -> 77,233 | R136: ='BP Financier'!$C$44*('BP Financier'!$C$16/('BP Financier'!$C$16+'BP Financier'!$C$19+'BP Financier'!$C$22))*$V136*Z136/(1-$W136) -> 604,457 | S136: ='BP Financier'!$C$44*('BP Financier'!$C$16/('BP Financier'!$C$16+'BP Financier'!$C$19+'BP Financier'!$C$22))*$V136*AA136/(1-$W136) -> 74,679 | T136: ='BP Financier'!$C$44*('BP Financier'!$C$16/('BP Financier'!$C$16+'BP Financier'!$C$19+'BP Financier'!$C$22))*$V136*AB136/(1-$W136) -> 35,744 | V136: 3.00% | W136: =Actif!$E$28/100 -> 28.90% | X136: =Actif!$E$30/100 -> 9.05% | Y136: =Actif!$E$31/100 -> 6.05% | Z136: =Actif!$E$32/100 -> 47.35% | AA136: =Actif!$E$33/100 -> 5.85% | AB136: =Actif!$E$29/100 -> 2.80%
B137: #48 | C137: 65 | D137: 2026 | E137: F | F137: A_VIE | G137: 0.45 | H137: 0.39 | I137: 0.6 | J137: 0.6 | K137: 85 | L137: 0 | M137: =ROUND(Primes!$M$4*V137,0) -> 100 | N137: ='BP Financier'!$C$33*('BP Financier'!$C$16/('BP Financier'!$C$16+'BP Financier'!$C$19))*V137 -> 1,652,734 | O137: 907,642 | P137: ='BP Financier'!$C$44*('BP Financier'!$C$16/('BP Financier'!$C$16+'BP Financier'!$C$19+'BP Financier'!$C$22))*$V137*X137/(1-$W137) -> 115,530 | Q137: ='BP Financier'!$C$44*('BP Financier'!$C$16/('BP Financier'!$C$16+'BP Financier'!$C$19+'BP Financier'!$C$22))*$V137*Y137/(1-$W137) -> 77,233 | R137: ='BP Financier'!$C$44*('BP Financier'!$C$16/('BP Financier'!$C$16+'BP Financier'!$C$19+'BP Financier'!$C$22))*$V137*Z137/(1-$W137) -> 604,457 | S137: ='BP Financier'!$C$44*('BP Financier'!$C$16/('BP Financier'!$C$16+'BP Financier'!$C$19+'BP Financier'!$C$22))*$V137*AA137/(1-$W137) -> 74,679 | T137: ='BP Financier'!$C$44*('BP Financier'!$C$16/('BP Financier'!$C$16+'BP Financier'!$C$19+'BP Financier'!$C$22))*$V137*AB137/(1-$W137) -> 35,744 | V137: 3.00% | W137: =Actif!$E$28/100 -> 28.90% | X137: =Actif!$E$30/100 -> 9.05% | Y137: =Actif!$E$31/100 -> 6.05% | Z137: =Actif!$E$32/100 -> 47.35% | AA137: =Actif!$E$33/100 -> 5.85% | AB137: =Actif!$E$29/100 -> 2.80%
B138: #49 | C138: 70 | D138: 2026 | E138: H | F138: A_VIE | G138: 0.45 | H138: 0.39 | I138: 0.6 | J138: 0.6 | K138: 85 | L138: 0 | M138: =ROUND(Primes!$M$4*V138,0) -> 17 | N138: ='BP Financier'!$C$33*('BP Financier'!$C$16/('BP Financier'!$C$16+'BP Financier'!$C$19))*V138 -> 275,456 | O138: 151,274 | P138: ='BP Financier'!$C$44*('BP Financier'!$C$16/('BP Financier'!$C$16+'BP Financier'!$C$19+'BP Financier'!$C$22))*$V138*X138/(1-$W138) -> 19,255 | Q138: ='BP Financier'!$C$44*('BP Financier'!$C$16/('BP Financier'!$C$16+'BP Financier'!$C$19+'BP Financier'!$C$22))*$V138*Y138/(1-$W138) -> 12,872 | R138: ='BP Financier'!$C$44*('BP Financier'!$C$16/('BP Financier'!$C$16+'BP Financier'!$C$19+'BP Financier'!$C$22))*$V138*Z138/(1-$W138) -> 100,743 | S138: ='BP Financier'!$C$44*('BP Financier'!$C$16/('BP Financier'!$C$16+'BP Financier'!$C$19+'BP Financier'!$C$22))*$V138*AA138/(1-$W138) -> 12,447 | T138: ='BP Financier'!$C$44*('BP Financier'!$C$16/('BP Financier'!$C$16+'BP Financier'!$C$19+'BP Financier'!$C$22))*$V138*AB138/(1-$W138) -> 5,957 | V138: 0.50% | W138: =Actif!$E$28/100 -> 28.90% | X138: =Actif!$E$30/100 -> 9.05% | Y138: =Actif!$E$31/100 -> 6.05% | Z138: =Actif!$E$32/100 -> 47.35% | AA138: =Actif!$E$33/100 -> 5.85% | AB138: =Actif!$E$29/100 -> 2.80%
B139: #50 | C139: 75 | D139: 2026 | E139: H | F139: A_VIE | G139: 0.45 | H139: 0.39 | I139: 0.6 | J139: 0.6 | K139: 85 | L139: 0 | M139: =ROUND(Primes!$M$4*V139,0) -> 17 | N139: ='BP Financier'!$C$33*('BP Financier'!$C$16/('BP Financier'!$C$16+'BP Financier'!$C$19))*V139 -> 275,456 | O139: 151,274 | P139: ='BP Financier'!$C$44*('BP Financier'!$C$16/('BP Financier'!$C$16+'BP Financier'!$C$19+'BP Financier'!$C$22))*$V139*X139/(1-$W139) -> 19,255 | Q139: ='BP Financier'!$C$44*('BP Financier'!$C$16/('BP Financier'!$C$16+'BP Financier'!$C$19+'BP Financier'!$C$22))*$V139*Y139/(1-$W139) -> 12,872 | R139: ='BP Financier'!$C$44*('BP Financier'!$C$16/('BP Financier'!$C$16+'BP Financier'!$C$19+'BP Financier'!$C$22))*$V139*Z139/(1-$W139) -> 100,743 | S139: ='BP Financier'!$C$44*('BP Financier'!$C$16/('BP Financier'!$C$16+'BP Financier'!$C$19+'BP Financier'!$C$22))*$V139*AA139/(1-$W139) -> 12,447 | T139: ='BP Financier'!$C$44*('BP Financier'!$C$16/('BP Financier'!$C$16+'BP Financier'!$C$19+'BP Financier'!$C$22))*$V139*AB139/(1-$W139) -> 5,957 | V139: 0.50% | W139: =Actif!$E$28/100 -> 28.90% | X139: =Actif!$E$30/100 -> 9.05% | Y139: =Actif!$E$31/100 -> 6.05% | Z139: =Actif!$E$32/100 -> 47.35% | AA139: =Actif!$E$33/100 -> 5.85% | AB139: =Actif!$E$29/100 -> 2.80%
B140: #51 | C140: 80 | D140: 2026 | E140: F | F140: A_VIE | G140: 0.45 | H140: 0.39 | I140: 0.6 | J140: 0.6 | K140: 85 | L140: 0 | M140: =ROUND(Primes!$M$4*V140,0) -> 17 | N140: ='BP Financier'!$C$33*('BP Financier'!$C$16/('BP Financier'!$C$16+'BP Financier'!$C$19))*V140 -> 275,456 | O140: 151,274 | P140: ='BP Financier'!$C$44*('BP Financier'!$C$16/('BP Financier'!$C$16+'BP Financier'!$C$19+'BP Financier'!$C$22))*$V140*X140/(1-$W140) -> 19,255 | Q140: ='BP Financier'!$C$44*('BP Financier'!$C$16/('BP Financier'!$C$16+'BP Financier'!$C$19+'BP Financier'!$C$22))*$V140*Y140/(1-$W140) -> 12,872 | R140: ='BP Financier'!$C$44*('BP Financier'!$C$16/('BP Financier'!$C$16+'BP Financier'!$C$19+'BP Financier'!$C$22))*$V140*Z140/(1-$W140) -> 100,743 | S140: ='BP Financier'!$C$44*('BP Financier'!$C$16/('BP Financier'!$C$16+'BP Financier'!$C$19+'BP Financier'!$C$22))*$V140*AA140/(1-$W140) -> 12,447 | T140: ='BP Financier'!$C$44*('BP Financier'!$C$16/('BP Financier'!$C$16+'BP Financier'!$C$19+'BP Financier'!$C$22))*$V140*AB140/(1-$W140) -> 5,957 | V140: 0.50% | W140: =Actif!$E$28/100 -> 28.90% | X140: =Actif!$E$30/100 -> 9.05% | Y140: =Actif!$E$31/100 -> 6.05% | Z140: =Actif!$E$32/100 -> 47.35% | AA140: =Actif!$E$33/100 -> 5.85% | AB140: =Actif!$E$29/100 -> 2.80%
B141: #52 | C141: 85 | D141: 2026 | E141: H | F141: A_VIE | G141: 0.45 | H141: 0.39 | I141: 0.6 | J141: 0.6 | K141: 85 | L141: 0 | M141: =ROUND(Primes!$M$4*V141,0) -> 8 | N141: ='BP Financier'!$C$33*('BP Financier'!$C$16/('BP Financier'!$C$16+'BP Financier'!$C$19))*V141 -> 137,728 | O141: 75,637 | P141: ='BP Financier'!$C$44*('BP Financier'!$C$16/('BP Financier'!$C$16+'BP Financier'!$C$19+'BP Financier'!$C$22))*$V141*X141/(1-$W141) -> 9,627 | Q141: ='BP Financier'!$C$44*('BP Financier'!$C$16/('BP Financier'!$C$16+'BP Financier'!$C$19+'BP Financier'!$C$22))*$V141*Y141/(1-$W141) -> 6,436 | R141: ='BP Financier'!$C$44*('BP Financier'!$C$16/('BP Financier'!$C$16+'BP Financier'!$C$19+'BP Financier'!$C$22))*$V141*Z141/(1-$W141) -> 50,371 | S141: ='BP Financier'!$C$44*('BP Financier'!$C$16/('BP Financier'!$C$16+'BP Financier'!$C$19+'BP Financier'!$C$22))*$V141*AA141/(1-$W141) -> 6,223 | T141: ='BP Financier'!$C$44*('BP Financier'!$C$16/('BP Financier'!$C$16+'BP Financier'!$C$19+'BP Financier'!$C$22))*$V141*AB141/(1-$W141) -> 2,979 | V141: 0.25% | W141: =Actif!$E$28/100 -> 28.90% | X141: =Actif!$E$30/100 -> 9.05% | Y141: =Actif!$E$31/100 -> 6.05% | Z141: =Actif!$E$32/100 -> 47.35% | AA141: =Actif!$E$33/100 -> 5.85% | AB141: =Actif!$E$29/100 -> 2.80%
B142: #53 | C142: 90 | D142: 2026 | E142: H | F142: A_VIE | G142: 0.45 | H142: 0.39 | I142: 0.6 | J142: 0.6 | K142: 85 | L142: 0 | M142: =ROUND(Primes!$M$4*V142,0) -> 8 | N142: ='BP Financier'!$C$33*('BP Financier'!$C$16/('BP Financier'!$C$16+'BP Financier'!$C$19))*V142 -> 137,728 | O142: 75,637 | P142: ='BP Financier'!$C$44*('BP Financier'!$C$16/('BP Financier'!$C$16+'BP Financier'!$C$19+'BP Financier'!$C$22))*$V142*X142/(1-$W142) -> 9,627 | Q142: ='BP Financier'!$C$44*('BP Financier'!$C$16/('BP Financier'!$C$16+'BP Financier'!$C$19+'BP Financier'!$C$22))*$V142*Y142/(1-$W142) -> 6,436 | R142: ='BP Financier'!$C$44*('BP Financier'!$C$16/('BP Financier'!$C$16+'BP Financier'!$C$19+'BP Financier'!$C$22))*$V142*Z142/(1-$W142) -> 50,371 | S142: ='BP Financier'!$C$44*('BP Financier'!$C$16/('BP Financier'!$C$16+'BP Financier'!$C$19+'BP Financier'!$C$22))*$V142*AA142/(1-$W142) -> 6,223 | T142: ='BP Financier'!$C$44*('BP Financier'!$C$16/('BP Financier'!$C$16+'BP Financier'!$C$19+'BP Financier'!$C$22))*$V142*AB142/(1-$W142) -> 2,979 | V142: 0.25% | W142: =Actif!$E$28/100 -> 28.90% | X142: =Actif!$E$30/100 -> 9.05% | Y142: =Actif!$E$31/100 -> 6.05% | Z142: =Actif!$E$32/100 -> 47.35% | AA142: =Actif!$E$33/100 -> 5.85% | AB142: =Actif!$E$29/100 -> 2.80%
B143: #54 | C143: 18 | D143: 2026 | E143: H | F143: A_CAPI | G143: 0.45 | H143: 0.39 | I143: 0.6 | J143: 0.6 | K143: 85 | L143: 0 | M143: =ROUND(Primes!$M$10*V143,2) -> 0.05 | N143: 0 | O143: 701.2690031 | P143: ='BP Financier'!$C$44*('BP Financier'!$C$22/('BP Financier'!$C$16+'BP Financier'!$C$19+'BP Financier'!$C$22))*$V143*X143/(1-$W143) -> 89.26138506 | Q143: ='BP Financier'!$C$44*('BP Financier'!$C$22/('BP Financier'!$C$16+'BP Financier'!$C$19+'BP Financier'!$C$22))*$V143*Y143/(1-$W143) -> 59.67197565 | R143: ='BP Financier'!$C$44*('BP Financier'!$C$22/('BP Financier'!$C$16+'BP Financier'!$C$19+'BP Financier'!$C$22))*$V143*Z143/(1-$W143) -> 467.0195119 | S143: ='BP Financier'!$C$44*('BP Financier'!$C$22/('BP Financier'!$C$16+'BP Financier'!$C$19+'BP Financier'!$C$22))*$V143*AA143/(1-$W143) -> 57.69934835 | T143: ='BP Financier'!$C$44*('BP Financier'!$C$22/('BP Financier'!$C$16+'BP Financier'!$C$19+'BP Financier'!$C$22))*$V143*AB143/(1-$W143) -> 27.61678212 | V143: 0.50% | W143: =Actif!$E$28/100 -> 28.90% | X143: =Actif!$E$30/100 -> 9.05% | Y143: =Actif!$E$31/100 -> 6.05% | Z143: =Actif!$E$32/100 -> 47.35% | AA143: =Actif!$E$33/100 -> 5.85% | AB143: =Actif!$E$29/100 -> 2.80%
B144: #55 | C144: 19 | D144: 2026 | E144: H | F144: A_CAPI | G144: 0.45 | H144: 0.39 | I144: 0.6 | J144: 0.6 | K144: 85 | L144: 0 | M144: =ROUND(Primes!$M$10*V144,2) -> 0.05 | N144: 0 | O144: 701.2690031 | P144: ='BP Financier'!$C$44*('BP Financier'!$C$22/('BP Financier'!$C$16+'BP Financier'!$C$19+'BP Financier'!$C$22))*$V144*X144/(1-$W144) -> 89.26138506 | Q144: ='BP Financier'!$C$44*('BP Financier'!$C$22/('BP Financier'!$C$16+'BP Financier'!$C$19+'BP Financier'!$C$22))*$V144*Y144/(1-$W144) -> 59.67197565 | R144: ='BP Financier'!$C$44*('BP Financier'!$C$22/('BP Financier'!$C$16+'BP Financier'!$C$19+'BP Financier'!$C$22))*$V144*Z144/(1-$W144) -> 467.0195119 | S144: ='BP Financier'!$C$44*('BP Financier'!$C$22/('BP Financier'!$C$16+'BP Financier'!$C$19+'BP Financier'!$C$22))*$V144*AA144/(1-$W144) -> 57.69934835 | T144: ='BP Financier'!$C$44*('BP Financier'!$C$22/('BP Financier'!$C$16+'BP Financier'!$C$19+'BP Financier'!$C$22))*$V144*AB144/(1-$W144) -> 27.61678212 | V144: 0.50% | W144: =Actif!$E$28/100 -> 28.90% | X144: =Actif!$E$30/100 -> 9.05% | Y144: =Actif!$E$31/100 -> 6.05% | Z144: =Actif!$E$32/100 -> 47.35% | AA144: =Actif!$E$33/100 -> 5.85% | AB144: =Actif!$E$29/100 -> 2.80%
B145: #56 | C145: 20 | D145: 2026 | E145: F | F145: A_CAPI | G145: 0.45 | H145: 0.39 | I145: 0.6 | J145: 0.6 | K145: 85 | L145: 0 | M145: =ROUND(Primes!$M$10*V145,2) -> 0.10 | N145: 0 | O145: 1402.538006 | P145: ='BP Financier'!$C$44*('BP Financier'!$C$22/('BP Financier'!$C$16+'BP Financier'!$C$19+'BP Financier'!$C$22))*$V145*X145/(1-$W145) -> 178.5227701 | Q145: ='BP Financier'!$C$44*('BP Financier'!$C$22/('BP Financier'!$C$16+'BP Financier'!$C$19+'BP Financier'!$C$22))*$V145*Y145/(1-$W145) -> 119.3439513 | R145: ='BP Financier'!$C$44*('BP Financier'!$C$22/('BP Financier'!$C$16+'BP Financier'!$C$19+'BP Financier'!$C$22))*$V145*Z145/(1-$W145) -> 934.0390238 | S145: ='BP Financier'!$C$44*('BP Financier'!$C$22/('BP Financier'!$C$16+'BP Financier'!$C$19+'BP Financier'!$C$22))*$V145*AA145/(1-$W145) -> 115.3986967 | T145: ='BP Financier'!$C$44*('BP Financier'!$C$22/('BP Financier'!$C$16+'BP Financier'!$C$19+'BP Financier'!$C$22))*$V145*AB145/(1-$W145) -> 55.23356424 | V145: 1.00% | W145: =Actif!$E$28/100 -> 28.90% | X145: =Actif!$E$30/100 -> 9.05% | Y145: =Actif!$E$31/100 -> 6.05% | Z145: =Actif!$E$32/100 -> 47.35% | AA145: =Actif!$E$33/100 -> 5.85% | AB145: =Actif!$E$29/100 -> 2.80%
B146: #57 | C146: 21 | D146: 2026 | E146: H | F146: A_CAPI | G146: 0.45 | H146: 0.39 | I146: 0.6 | J146: 0.6 | K146: 85 | L146: 0 | M146: =ROUND(Primes!$M$10*V146,2) -> 0.10 | N146: 0 | O146: 1402.538006 | P146: ='BP Financier'!$C$44*('BP Financier'!$C$22/('BP Financier'!$C$16+'BP Financier'!$C$19+'BP Financier'!$C$22))*$V146*X146/(1-$W146) -> 178.5227701 | Q146: ='BP Financier'!$C$44*('BP Financier'!$C$22/('BP Financier'!$C$16+'BP Financier'!$C$19+'BP Financier'!$C$22))*$V146*Y146/(1-$W146) -> 119.3439513 | R146: ='BP Financier'!$C$44*('BP Financier'!$C$22/('BP Financier'!$C$16+'BP Financier'!$C$19+'BP Financier'!$C$22))*$V146*Z146/(1-$W146) -> 934.0390238 | S146: ='BP Financier'!$C$44*('BP Financier'!$C$22/('BP Financier'!$C$16+'BP Financier'!$C$19+'BP Financier'!$C$22))*$V146*AA146/(1-$W146) -> 115.3986967 | T146: ='BP Financier'!$C$44*('BP Financier'!$C$22/('BP Financier'!$C$16+'BP Financier'!$C$19+'BP Financier'!$C$22))*$V146*AB146/(1-$W146) -> 55.23356424 | V146: 1.00% | W146: =Actif!$E$28/100 -> 28.90% | X146: =Actif!$E$30/100 -> 9.05% | Y146: =Actif!$E$31/100 -> 6.05% | Z146: =Actif!$E$32/100 -> 47.35% | AA146: =Actif!$E$33/100 -> 5.85% | AB146: =Actif!$E$29/100 -> 2.80%
B147: #58 | C147: 22 | D147: 2026 | E147: H | F147: A_CAPI | G147: 0.45 | H147: 0.39 | I147: 0.6 | J147: 0.6 | K147: 85 | L147: 0 | M147: =ROUND(Primes!$M$10*V147,2) -> 0.10 | N147: 0 | O147: 1402.538006 | P147: ='BP Financier'!$C$44*('BP Financier'!$C$22/('BP Financier'!$C$16+'BP Financier'!$C$19+'BP Financier'!$C$22))*$V147*X147/(1-$W147) -> 178.5227701 | Q147: ='BP Financier'!$C$44*('BP Financier'!$C$22/('BP Financier'!$C$16+'BP Financier'!$C$19+'BP Financier'!$C$22))*$V147*Y147/(1-$W147) -> 119.3439513 | R147: ='BP Financier'!$C$44*('BP Financier'!$C$22/('BP Financier'!$C$16+'BP Financier'!$C$19+'BP Financier'!$C$22))*$V147*Z147/(1-$W147) -> 934.0390238 | S147: ='BP Financier'!$C$44*('BP Financier'!$C$22/('BP Financier'!$C$16+'BP Financier'!$C$19+'BP Financier'!$C$22))*$V147*AA147/(1-$W147) -> 115.3986967 | T147: ='BP Financier'!$C$44*('BP Financier'!$C$22/('BP Financier'!$C$16+'BP Financier'!$C$19+'BP Financier'!$C$22))*$V147*AB147/(1-$W147) -> 55.23356424 | V147: 1.00% | W147: =Actif!$E$28/100 -> 28.90% | X147: =Actif!$E$30/100 -> 9.05% | Y147: =Actif!$E$31/100 -> 6.05% | Z147: =Actif!$E$32/100 -> 47.35% | AA147: =Actif!$E$33/100 -> 5.85% | AB147: =Actif!$E$29/100 -> 2.80%
B148: #59 | C148: 23 | D148: 2026 | E148: F | F148: A_CAPI | G148: 0.45 | H148: 0.39 | I148: 0.6 | J148: 0.6 | K148: 85 | L148: 0 | M148: =ROUND(Primes!$M$10*V148,2) -> 0.10 | N148: 0 | O148: 1402.538006 | P148: ='BP Financier'!$C$44*('BP Financier'!$C$22/('BP Financier'!$C$16+'BP Financier'!$C$19+'BP Financier'!$C$22))*$V148*X148/(1-$W148) -> 178.5227701 | Q148: ='BP Financier'!$C$44*('BP Financier'!$C$22/('BP Financier'!$C$16+'BP Financier'!$C$19+'BP Financier'!$C$22))*$V148*Y148/(1-$W148) -> 119.3439513 | R148: ='BP Financier'!$C$44*('BP Financier'!$C$22/('BP Financier'!$C$16+'BP Financier'!$C$19+'BP Financier'!$C$22))*$V148*Z148/(1-$W148) -> 934.0390238 | S148: ='BP Financier'!$C$44*('BP Financier'!$C$22/('BP Financier'!$C$16+'BP Financier'!$C$19+'BP Financier'!$C$22))*$V148*AA148/(1-$W148) -> 115.3986967 | T148: ='BP Financier'!$C$44*('BP Financier'!$C$22/('BP Financier'!$C$16+'BP Financier'!$C$19+'BP Financier'!$C$22))*$V148*AB148/(1-$W148) -> 55.23356424 | V148: 1.00% | W148: =Actif!$E$28/100 -> 28.90% | X148: =Actif!$E$30/100 -> 9.05% | Y148: =Actif!$E$31/100 -> 6.05% | Z148: =Actif!$E$32/100 -> 47.35% | AA148: =Actif!$E$33/100 -> 5.85% | AB148: =Actif!$E$29/100 -> 2.80%
B149: #60 | C149: 24 | D149: 2026 | E149: H | F149: A_CAPI | G149: 0.45 | H149: 0.39 | I149: 0.6 | J149: 0.6 | K149: 85 | L149: 0 | M149: =ROUND(Primes!$M$10*V149,2) -> 0.10 | N149: 0 | O149: 1402.538006 | P149: ='BP Financier'!$C$44*('BP Financier'!$C$22/('BP Financier'!$C$16+'BP Financier'!$C$19+'BP Financier'!$C$22))*$V149*X149/(1-$W149) -> 178.5227701 | Q149: ='BP Financier'!$C$44*('BP Financier'!$C$22/('BP Financier'!$C$16+'BP Financier'!$C$19+'BP Financier'!$C$22))*$V149*Y149/(1-$W149) -> 119.3439513 | R149: ='BP Financier'!$C$44*('BP Financier'!$C$22/('BP Financier'!$C$16+'BP Financier'!$C$19+'BP Financier'!$C$22))*$V149*Z149/(1-$W149) -> 934.0390238 | S149: ='BP Financier'!$C$44*('BP Financier'!$C$22/('BP Financier'!$C$16+'BP Financier'!$C$19+'BP Financier'!$C$22))*$V149*AA149/(1-$W149) -> 115.3986967 | T149: ='BP Financier'!$C$44*('BP Financier'!$C$22/('BP Financier'!$C$16+'BP Financier'!$C$19+'BP Financier'!$C$22))*$V149*AB149/(1-$W149) -> 55.23356424 | V149: 1.00% | W149: =Actif!$E$28/100 -> 28.90% | X149: =Actif!$E$30/100 -> 9.05% | Y149: =Actif!$E$31/100 -> 6.05% | Z149: =Actif!$E$32/100 -> 47.35% | AA149: =Actif!$E$33/100 -> 5.85% | AB149: =Actif!$E$29/100 -> 2.80%
B150: #61 | C150: 25 | D150: 2026 | E150: H | F150: A_CAPI | G150: 0.45 | H150: 0.39 | I150: 0.6 | J150: 0.6 | K150: 85 | L150: 0 | M150: =ROUND(Primes!$M$10*V150,2) -> 0.50 | N150: 0 | O150: 7012.690031 | P150: ='BP Financier'!$C$44*('BP Financier'!$C$22/('BP Financier'!$C$16+'BP Financier'!$C$19+'BP Financier'!$C$22))*$V150*X150/(1-$W150) -> 892.6138506 | Q150: ='BP Financier'!$C$44*('BP Financier'!$C$22/('BP Financier'!$C$16+'BP Financier'!$C$19+'BP Financier'!$C$22))*$V150*Y150/(1-$W150) -> 596.7197565 | R150: ='BP Financier'!$C$44*('BP Financier'!$C$22/('BP Financier'!$C$16+'BP Financier'!$C$19+'BP Financier'!$C$22))*$V150*Z150/(1-$W150) -> 4670.195119 | S150: ='BP Financier'!$C$44*('BP Financier'!$C$22/('BP Financier'!$C$16+'BP Financier'!$C$19+'BP Financier'!$C$22))*$V150*AA150/(1-$W150) -> 576.9934835 | T150: ='BP Financier'!$C$44*('BP Financier'!$C$22/('BP Financier'!$C$16+'BP Financier'!$C$19+'BP Financier'!$C$22))*$V150*AB150/(1-$W150) -> 276.1678212 | V150: 5.00% | W150: =Actif!$E$28/100 -> 28.90% | X150: =Actif!$E$30/100 -> 9.05% | Y150: =Actif!$E$31/100 -> 6.05% | Z150: =Actif!$E$32/100 -> 47.35% | AA150: =Actif!$E$33/100 -> 5.85% | AB150: =Actif!$E$29/100 -> 2.80%
B151: #62 | C151: 26 | D151: 2026 | E151: F | F151: A_CAPI | G151: 0.45 | H151: 0.39 | I151: 0.6 | J151: 0.6 | K151: 85 | L151: 0 | M151: =ROUND(Primes!$M$10*V151,2) -> 0.30 | N151: 0 | O151: 4207.614018 | P151: ='BP Financier'!$C$44*('BP Financier'!$C$22/('BP Financier'!$C$16+'BP Financier'!$C$19+'BP Financier'!$C$22))*$V151*X151/(1-$W151) -> 535.5683104 | Q151: ='BP Financier'!$C$44*('BP Financier'!$C$22/('BP Financier'!$C$16+'BP Financier'!$C$19+'BP Financier'!$C$22))*$V151*Y151/(1-$W151) -> 358.0318539 | R151: ='BP Financier'!$C$44*('BP Financier'!$C$22/('BP Financier'!$C$16+'BP Financier'!$C$19+'BP Financier'!$C$22))*$V151*Z151/(1-$W151) -> 2802.117071 | S151: ='BP Financier'!$C$44*('BP Financier'!$C$22/('BP Financier'!$C$16+'BP Financier'!$C$19+'BP Financier'!$C$22))*$V151*AA151/(1-$W151) -> 346.1960901 | T151: ='BP Financier'!$C$44*('BP Financier'!$C$22/('BP Financier'!$C$16+'BP Financier'!$C$19+'BP Financier'!$C$22))*$V151*AB151/(1-$W151) -> 165.7006927 | V151: 3.00% | W151: =Actif!$E$28/100 -> 28.90% | X151: =Actif!$E$30/100 -> 9.05% | Y151: =Actif!$E$31/100 -> 6.05% | Z151: =Actif!$E$32/100 -> 47.35% | AA151: =Actif!$E$33/100 -> 5.85% | AB151: =Actif!$E$29/100 -> 2.80%
B152: #63 | C152: 27 | D152: 2026 | E152: H | F152: A_CAPI | G152: 0.45 | H152: 0.39 | I152: 0.6 | J152: 0.6 | K152: 85 | L152: 0 | M152: =ROUND(Primes!$M$10*V152,2) -> 0.30 | N152: 0 | O152: 4207.614018 | P152: ='BP Financier'!$C$44*('BP Financier'!$C$22/('BP Financier'!$C$16+'BP Financier'!$C$19+'BP Financier'!$C$22))*$V152*X152/(1-$W152) -> 535.5683104 | Q152: ='BP Financier'!$C$44*('BP Financier'!$C$22/('BP Financier'!$C$16+'BP Financier'!$C$19+'BP Financier'!$C$22))*$V152*Y152/(1-$W152) -> 358.0318539 | R152: ='BP Financier'!$C$44*('BP Financier'!$C$22/('BP Financier'!$C$16+'BP Financier'!$C$19+'BP Financier'!$C$22))*$V152*Z152/(1-$W152) -> 2802.117071 | S152: ='BP Financier'!$C$44*('BP Financier'!$C$22/('BP Financier'!$C$16+'BP Financier'!$C$19+'BP Financier'!$C$22))*$V152*AA152/(1-$W152) -> 346.1960901 | T152: ='BP Financier'!$C$44*('BP Financier'!$C$22/('BP Financier'!$C$16+'BP Financier'!$C$19+'BP Financier'!$C$22))*$V152*AB152/(1-$W152) -> 165.7006927 | V152: 3.00% | W152: =Actif!$E$28/100 -> 28.90% | X152: =Actif!$E$30/100 -> 9.05% | Y152: =Actif!$E$31/100 -> 6.05% | Z152: =Actif!$E$32/100 -> 47.35% | AA152: =Actif!$E$33/100 -> 5.85% | AB152: =Actif!$E$29/100 -> 2.80%
B153: #64 | C153: 28 | D153: 2026 | E153: H | F153: A_CAPI | G153: 0.45 | H153: 0.39 | I153: 0.6 | J153: 0.6 | K153: 85 | L153: 0 | M153: =ROUND(Primes!$M$10*V153,2) -> 0.30 | N153: 0 | O153: 4207.614018 | P153: ='BP Financier'!$C$44*('BP Financier'!$C$22/('BP Financier'!$C$16+'BP Financier'!$C$19+'BP Financier'!$C$22))*$V153*X153/(1-$W153) -> 535.5683104 | Q153: ='BP Financier'!$C$44*('BP Financier'!$C$22/('BP Financier'!$C$16+'BP Financier'!$C$19+'BP Financier'!$C$22))*$V153*Y153/(1-$W153) -> 358.0318539 | R153: ='BP Financier'!$C$44*('BP Financier'!$C$22/('BP Financier'!$C$16+'BP Financier'!$C$19+'BP Financier'!$C$22))*$V153*Z153/(1-$W153) -> 2802.117071 | S153: ='BP Financier'!$C$44*('BP Financier'!$C$22/('BP Financier'!$C$16+'BP Financier'!$C$19+'BP Financier'!$C$22))*$V153*AA153/(1-$W153) -> 346.1960901 | T153: ='BP Financier'!$C$44*('BP Financier'!$C$22/('BP Financier'!$C$16+'BP Financier'!$C$19+'BP Financier'!$C$22))*$V153*AB153/(1-$W153) -> 165.7006927 | V153: 3.00% | W153: =Actif!$E$28/100 -> 28.90% | X153: =Actif!$E$30/100 -> 9.05% | Y153: =Actif!$E$31/100 -> 6.05% | Z153: =Actif!$E$32/100 -> 47.35% | AA153: =Actif!$E$33/100 -> 5.85% | AB153: =Actif!$E$29/100 -> 2.80%
B154: #65 | C154: 29 | D154: 2026 | E154: F | F154: A_CAPI | G154: =frais_gestion_Euro*100 -> 0.45 | H154: =frais_gestion_UC*100 -> 0.39 | I154: =frais_distribution_FG*100 -> 0.6 | J154: =frais_distribution_UC*100 -> 0.6 | K154: 85 | L154: 0 | M154: =ROUND(Primes!$M$10*V154,2) -> 0.30 | N154: 0 | O154: 4207.614018 | P154: ='BP Financier'!$C$44*('BP Financier'!$C$22/('BP Financier'!$C$16+'BP Financier'!$C$19+'BP Financier'!$C$22))*$V154*X154/(1-$W154) -> 535.5683104 | Q154: ='BP Financier'!$C$44*('BP Financier'!$C$22/('BP Financier'!$C$16+'BP Financier'!$C$19+'BP Financier'!$C$22))*$V154*Y154/(1-$W154) -> 358.0318539 | R154: ='BP Financier'!$C$44*('BP Financier'!$C$22/('BP Financier'!$C$16+'BP Financier'!$C$19+'BP Financier'!$C$22))*$V154*Z154/(1-$W154) -> 2802.117071 | S154: ='BP Financier'!$C$44*('BP Financier'!$C$22/('BP Financier'!$C$16+'BP Financier'!$C$19+'BP Financier'!$C$22))*$V154*AA154/(1-$W154) -> 346.1960901 | T154: ='BP Financier'!$C$44*('BP Financier'!$C$22/('BP Financier'!$C$16+'BP Financier'!$C$19+'BP Financier'!$C$22))*$V154*AB154/(1-$W154) -> 165.7006927 | V154: 3.00% | W154: =Actif!$E$28/100 -> 28.90% | X154: =Actif!$E$30/100 -> 9.05% | Y154: =Actif!$E$31/100 -> 6.05% | Z154: =Actif!$E$32/100 -> 47.35% | AA154: =Actif!$E$33/100 -> 5.85% | AB154: =Actif!$E$29/100 -> 2.80%
B155: #66 | C155: 30 | D155: 2026 | E155: H | F155: A_CAPI | G155: 0.45 | H155: 0.39 | I155: 0.6 | J155: 0.6 | K155: 85 | L155: 0 | M155: =ROUND(Primes!$M$10*V155,2) -> 0.30 | N155: 0 | O155: =SUM(P155:T155) -> 4207.614018 | P155: ='BP Financier'!$C$44*('BP Financier'!$C$22/('BP Financier'!$C$16+'BP Financier'!$C$19+'BP Financier'!$C$22))*$V155*X155/(1-$W155) -> 535.5683104 | Q155: ='BP Financier'!$C$44*('BP Financier'!$C$22/('BP Financier'!$C$16+'BP Financier'!$C$19+'BP Financier'!$C$22))*$V155*Y155/(1-$W155) -> 358.0318539 | R155: ='BP Financier'!$C$44*('BP Financier'!$C$22/('BP Financier'!$C$16+'BP Financier'!$C$19+'BP Financier'!$C$22))*$V155*Z155/(1-$W155) -> 2802.117071 | S155: ='BP Financier'!$C$44*('BP Financier'!$C$22/('BP Financier'!$C$16+'BP Financier'!$C$19+'BP Financier'!$C$22))*$V155*AA155/(1-$W155) -> 346.1960901 | T155: ='BP Financier'!$C$44*('BP Financier'!$C$22/('BP Financier'!$C$16+'BP Financier'!$C$19+'BP Financier'!$C$22))*$V155*AB155/(1-$W155) -> 165.7006927 | V155: 3.00% | W155: =Actif!$E$28/100 -> 28.90% | X155: =Actif!$E$30/100 -> 9.05% | Y155: =Actif!$E$31/100 -> 6.05% | Z155: =Actif!$E$32/100 -> 47.35% | AA155: =Actif!$E$33/100 -> 5.85% | AB155: =Actif!$E$29/100 -> 2.80%
B156: #67 | C156: 31 | D156: 2026 | E156: H | F156: A_CAPI | G156: 0.45 | H156: 0.39 | I156: 0.6 | J156: 0.6 | K156: 85 | L156: 0 | M156: =ROUND(Primes!$M$10*V156,2) -> 0.30 | N156: 0 | O156: 4207.614018 | P156: ='BP Financier'!$C$44*('BP Financier'!$C$22/('BP Financier'!$C$16+'BP Financier'!$C$19+'BP Financier'!$C$22))*$V156*X156/(1-$W156) -> 535.5683104 | Q156: ='BP Financier'!$C$44*('BP Financier'!$C$22/('BP Financier'!$C$16+'BP Financier'!$C$19+'BP Financier'!$C$22))*$V156*Y156/(1-$W156) -> 358.0318539 | R156: ='BP Financier'!$C$44*('BP Financier'!$C$22/('BP Financier'!$C$16+'BP Financier'!$C$19+'BP Financier'!$C$22))*$V156*Z156/(1-$W156) -> 2802.117071 | S156: ='BP Financier'!$C$44*('BP Financier'!$C$22/('BP Financier'!$C$16+'BP Financier'!$C$19+'BP Financier'!$C$22))*$V156*AA156/(1-$W156) -> 346.1960901 | T156: ='BP Financier'!$C$44*('BP Financier'!$C$22/('BP Financier'!$C$16+'BP Financier'!$C$19+'BP Financier'!$C$22))*$V156*AB156/(1-$W156) -> 165.7006927 | V156: 3.00% | W156: =Actif!$E$28/100 -> 28.90% | X156: =Actif!$E$30/100 -> 9.05% | Y156: =Actif!$E$31/100 -> 6.05% | Z156: =Actif!$E$32/100 -> 47.35% | AA156: =Actif!$E$33/100 -> 5.85% | AB156: =Actif!$E$29/100 -> 2.80%
B157: #68 | C157: 32 | D157: 2026 | E157: F | F157: A_CAPI | G157: 0.45 | H157: 0.39 | I157: 0.6 | J157: 0.6 | K157: 85 | L157: 0 | M157: =ROUND(Primes!$M$10*V157,2) -> 0.30 | N157: 0 | O157: 4207.614018 | P157: ='BP Financier'!$C$44*('BP Financier'!$C$22/('BP Financier'!$C$16+'BP Financier'!$C$19+'BP Financier'!$C$22))*$V157*X157/(1-$W157) -> 535.5683104 | Q157: ='BP Financier'!$C$44*('BP Financier'!$C$22/('BP Financier'!$C$16+'BP Financier'!$C$19+'BP Financier'!$C$22))*$V157*Y157/(1-$W157) -> 358.0318539 | R157: ='BP Financier'!$C$44*('BP Financier'!$C$22/('BP Financier'!$C$16+'BP Financier'!$C$19+'BP Financier'!$C$22))*$V157*Z157/(1-$W157) -> 2802.117071 | S157: ='BP Financier'!$C$44*('BP Financier'!$C$22/('BP Financier'!$C$16+'BP Financier'!$C$19+'BP Financier'!$C$22))*$V157*AA157/(1-$W157) -> 346.1960901 | T157: ='BP Financier'!$C$44*('BP Financier'!$C$22/('BP Financier'!$C$16+'BP Financier'!$C$19+'BP Financier'!$C$22))*$V157*AB157/(1-$W157) -> 165.7006927 | V157: 3.00% | W157: =Actif!$E$28/100 -> 28.90% | X157: =Actif!$E$30/100 -> 9.05% | Y157: =Actif!$E$31/100 -> 6.05% | Z157: =Actif!$E$32/100 -> 47.35% | AA157: =Actif!$E$33/100 -> 5.85% | AB157: =Actif!$E$29/100 -> 2.80%
B158: #69 | C158: 33 | D158: 2026 | E158: H | F158: A_CAPI | G158: 0.45 | H158: 0.39 | I158: 0.6 | J158: 0.6 | K158: 85 | L158: 0 | M158: =ROUND(Primes!$M$10*V158,2) -> 0.30 | N158: 0 | O158: 4207.614018 | P158: ='BP Financier'!$C$44*('BP Financier'!$C$22/('BP Financier'!$C$16+'BP Financier'!$C$19+'BP Financier'!$C$22))*$V158*X158/(1-$W158) -> 535.5683104 | Q158: ='BP Financier'!$C$44*('BP Financier'!$C$22/('BP Financier'!$C$16+'BP Financier'!$C$19+'BP Financier'!$C$22))*$V158*Y158/(1-$W158) -> 358.0318539 | R158: ='BP Financier'!$C$44*('BP Financier'!$C$22/('BP Financier'!$C$16+'BP Financier'!$C$19+'BP Financier'!$C$22))*$V158*Z158/(1-$W158) -> 2802.117071 | S158: ='BP Financier'!$C$44*('BP Financier'!$C$22/('BP Financier'!$C$16+'BP Financier'!$C$19+'BP Financier'!$C$22))*$V158*AA158/(1-$W158) -> 346.1960901 | T158: ='BP Financier'!$C$44*('BP Financier'!$C$22/('BP Financier'!$C$16+'BP Financier'!$C$19+'BP Financier'!$C$22))*$V158*AB158/(1-$W158) -> 165.7006927 | V158: 3.00% | W158: =Actif!$E$28/100 -> 28.90% | X158: =Actif!$E$30/100 -> 9.05% | Y158: =Actif!$E$31/100 -> 6.05% | Z158: =Actif!$E$32/100 -> 47.35% | AA158: =Actif!$E$33/100 -> 5.85% | AB158: =Actif!$E$29/100 -> 2.80%
B159: #70 | C159: 34 | D159: 2026 | E159: H | F159: A_CAPI | G159: 0.45 | H159: 0.39 | I159: 0.6 | J159: 0.6 | K159: 85 | L159: 0 | M159: =ROUND(Primes!$M$10*V159,2) -> 0.30 | N159: 0 | O159: 4207.614018 | P159: ='BP Financier'!$C$44*('BP Financier'!$C$22/('BP Financier'!$C$16+'BP Financier'!$C$19+'BP Financier'!$C$22))*$V159*X159/(1-$W159) -> 535.5683104 | Q159: ='BP Financier'!$C$44*('BP Financier'!$C$22/('BP Financier'!$C$16+'BP Financier'!$C$19+'BP Financier'!$C$22))*$V159*Y159/(1-$W159) -> 358.0318539 | R159: ='BP Financier'!$C$44*('BP Financier'!$C$22/('BP Financier'!$C$16+'BP Financier'!$C$19+'BP Financier'!$C$22))*$V159*Z159/(1-$W159) -> 2802.117071 | S159: ='BP Financier'!$C$44*('BP Financier'!$C$22/('BP Financier'!$C$16+'BP Financier'!$C$19+'BP Financier'!$C$22))*$V159*AA159/(1-$W159) -> 346.1960901 | T159: ='BP Financier'!$C$44*('BP Financier'!$C$22/('BP Financier'!$C$16+'BP Financier'!$C$19+'BP Financier'!$C$22))*$V159*AB159/(1-$W159) -> 165.7006927 | V159: 3.00% | W159: =Actif!$E$28/100 -> 28.90% | X159: =Actif!$E$30/100 -> 9.05% | Y159: =Actif!$E$31/100 -> 6.05% | Z159: =Actif!$E$32/100 -> 47.35% | AA159: =Actif!$E$33/100 -> 5.85% | AB159: =Actif!$E$29/100 -> 2.80%
B160: #71 | C160: 35 | D160: 2026 | E160: F | F160: A_CAPI | G160: 0.45 | H160: 0.39 | I160: 0.6 | J160: 0.6 | K160: 85 | L160: 0 | M160: =ROUND(Primes!$M$10*V160,2) -> 0.30 | N160: 0 | O160: 4207.614018 | P160: ='BP Financier'!$C$44*('BP Financier'!$C$22/('BP Financier'!$C$16+'BP Financier'!$C$19+'BP Financier'!$C$22))*$V160*X160/(1-$W160) -> 535.5683104 | Q160: ='BP Financier'!$C$44*('BP Financier'!$C$22/('BP Financier'!$C$16+'BP Financier'!$C$19+'BP Financier'!$C$22))*$V160*Y160/(1-$W160) -> 358.0318539 | R160: ='BP Financier'!$C$44*('BP Financier'!$C$22/('BP Financier'!$C$16+'BP Financier'!$C$19+'BP Financier'!$C$22))*$V160*Z160/(1-$W160) -> 2802.117071 | S160: ='BP Financier'!$C$44*('BP Financier'!$C$22/('BP Financier'!$C$16+'BP Financier'!$C$19+'BP Financier'!$C$22))*$V160*AA160/(1-$W160) -> 346.1960901 | T160: ='BP Financier'!$C$44*('BP Financier'!$C$22/('BP Financier'!$C$16+'BP Financier'!$C$19+'BP Financier'!$C$22))*$V160*AB160/(1-$W160) -> 165.7006927 | V160: 3.00% | W160: =Actif!$E$28/100 -> 28.90% | X160: =Actif!$E$30/100 -> 9.05% | Y160: =Actif!$E$31/100 -> 6.05% | Z160: =Actif!$E$32/100 -> 47.35% | AA160: =Actif!$E$33/100 -> 5.85% | AB160: =Actif!$E$29/100 -> 2.80%
B161: #72 | C161: 36 | D161: 2026 | E161: H | F161: A_CAPI | G161: 0.45 | H161: 0.39 | I161: 0.6 | J161: 0.6 | K161: 85 | L161: 0 | M161: =ROUND(Primes!$M$10*V161,2) -> 0.05 | N161: 0 | O161: 701.2690031 | P161: ='BP Financier'!$C$44*('BP Financier'!$C$22/('BP Financier'!$C$16+'BP Financier'!$C$19+'BP Financier'!$C$22))*$V161*X161/(1-$W161) -> 89.26138506 | Q161: ='BP Financier'!$C$44*('BP Financier'!$C$22/('BP Financier'!$C$16+'BP Financier'!$C$19+'BP Financier'!$C$22))*$V161*Y161/(1-$W161) -> 59.67197565 | R161: ='BP Financier'!$C$44*('BP Financier'!$C$22/('BP Financier'!$C$16+'BP Financier'!$C$19+'BP Financier'!$C$22))*$V161*Z161/(1-$W161) -> 467.0195119 | S161: ='BP Financier'!$C$44*('BP Financier'!$C$22/('BP Financier'!$C$16+'BP Financier'!$C$19+'BP Financier'!$C$22))*$V161*AA161/(1-$W161) -> 57.69934835 | T161: ='BP Financier'!$C$44*('BP Financier'!$C$22/('BP Financier'!$C$16+'BP Financier'!$C$19+'BP Financier'!$C$22))*$V161*AB161/(1-$W161) -> 27.61678212 | V161: 0.50% | W161: =Actif!$E$28/100 -> 28.90% | X161: =Actif!$E$30/100 -> 9.05% | Y161: =Actif!$E$31/100 -> 6.05% | Z161: =Actif!$E$32/100 -> 47.35% | AA161: =Actif!$E$33/100 -> 5.85% | AB161: =Actif!$E$29/100 -> 2.80%
B162: #73 | C162: 37 | D162: 2026 | E162: H | F162: A_CAPI | G162: 0.45 | H162: 0.39 | I162: 0.6 | J162: 0.6 | K162: 85 | L162: 0 | M162: =ROUND(Primes!$M$10*V162,2) -> 0.05 | N162: 0 | O162: 701.2690031 | P162: ='BP Financier'!$C$44*('BP Financier'!$C$22/('BP Financier'!$C$16+'BP Financier'!$C$19+'BP Financier'!$C$22))*$V162*X162/(1-$W162) -> 89.26138506 | Q162: ='BP Financier'!$C$44*('BP Financier'!$C$22/('BP Financier'!$C$16+'BP Financier'!$C$19+'BP Financier'!$C$22))*$V162*Y162/(1-$W162) -> 59.67197565 | R162: ='BP Financier'!$C$44*('BP Financier'!$C$22/('BP Financier'!$C$16+'BP Financier'!$C$19+'BP Financier'!$C$22))*$V162*Z162/(1-$W162) -> 467.0195119 | S162: ='BP Financier'!$C$44*('BP Financier'!$C$22/('BP Financier'!$C$16+'BP Financier'!$C$19+'BP Financier'!$C$22))*$V162*AA162/(1-$W162) -> 57.69934835 | T162: ='BP Financier'!$C$44*('BP Financier'!$C$22/('BP Financier'!$C$16+'BP Financier'!$C$19+'BP Financier'!$C$22))*$V162*AB162/(1-$W162) -> 27.61678212 | V162: 0.50% | W162: =Actif!$E$28/100 -> 28.90% | X162: =Actif!$E$30/100 -> 9.05% | Y162: =Actif!$E$31/100 -> 6.05% | Z162: =Actif!$E$32/100 -> 47.35% | AA162: =Actif!$E$33/100 -> 5.85% | AB162: =Actif!$E$29/100 -> 2.80%
B163: #74 | C163: 38 | D163: 2026 | E163: F | F163: A_CAPI | G163: 0.45 | H163: 0.39 | I163: 0.6 | J163: 0.6 | K163: 85 | L163: 0 | M163: =ROUND(Primes!$M$10*V163,2) -> 0.05 | N163: 0 | O163: 701.2690031 | P163: ='BP Financier'!$C$44*('BP Financier'!$C$22/('BP Financier'!$C$16+'BP Financier'!$C$19+'BP Financier'!$C$22))*$V163*X163/(1-$W163) -> 89.26138506 | Q163: ='BP Financier'!$C$44*('BP Financier'!$C$22/('BP Financier'!$C$16+'BP Financier'!$C$19+'BP Financier'!$C$22))*$V163*Y163/(1-$W163) -> 59.67197565 | R163: ='BP Financier'!$C$44*('BP Financier'!$C$22/('BP Financier'!$C$16+'BP Financier'!$C$19+'BP Financier'!$C$22))*$V163*Z163/(1-$W163) -> 467.0195119 | S163: ='BP Financier'!$C$44*('BP Financier'!$C$22/('BP Financier'!$C$16+'BP Financier'!$C$19+'BP Financier'!$C$22))*$V163*AA163/(1-$W163) -> 57.69934835 | T163: ='BP Financier'!$C$44*('BP Financier'!$C$22/('BP Financier'!$C$16+'BP Financier'!$C$19+'BP Financier'!$C$22))*$V163*AB163/(1-$W163) -> 27.61678212 | V163: 0.50% | W163: =Actif!$E$28/100 -> 28.90% | X163: =Actif!$E$30/100 -> 9.05% | Y163: =Actif!$E$31/100 -> 6.05% | Z163: =Actif!$E$32/100 -> 47.35% | AA163: =Actif!$E$33/100 -> 5.85% | AB163: =Actif!$E$29/100 -> 2.80%
B164: #75 | C164: 39 | D164: 2026 | E164: H | F164: A_CAPI | G164: 0.45 | H164: 0.39 | I164: 0.6 | J164: 0.6 | K164: 85 | L164: 0 | M164: =ROUND(Primes!$M$10*V164,2) -> 0.05 | N164: 0 | O164: 701.2690031 | P164: ='BP Financier'!$C$44*('BP Financier'!$C$22/('BP Financier'!$C$16+'BP Financier'!$C$19+'BP Financier'!$C$22))*$V164*X164/(1-$W164) -> 89.26138506 | Q164: ='BP Financier'!$C$44*('BP Financier'!$C$22/('BP Financier'!$C$16+'BP Financier'!$C$19+'BP Financier'!$C$22))*$V164*Y164/(1-$W164) -> 59.67197565 | R164: ='BP Financier'!$C$44*('BP Financier'!$C$22/('BP Financier'!$C$16+'BP Financier'!$C$19+'BP Financier'!$C$22))*$V164*Z164/(1-$W164) -> 467.0195119 | S164: ='BP Financier'!$C$44*('BP Financier'!$C$22/('BP Financier'!$C$16+'BP Financier'!$C$19+'BP Financier'!$C$22))*$V164*AA164/(1-$W164) -> 57.69934835 | T164: ='BP Financier'!$C$44*('BP Financier'!$C$22/('BP Financier'!$C$16+'BP Financier'!$C$19+'BP Financier'!$C$22))*$V164*AB164/(1-$W164) -> 27.61678212 | V164: 0.50% | W164: =Actif!$E$28/100 -> 28.90% | X164: =Actif!$E$30/100 -> 9.05% | Y164: =Actif!$E$31/100 -> 6.05% | Z164: =Actif!$E$32/100 -> 47.35% | AA164: =Actif!$E$33/100 -> 5.85% | AB164: =Actif!$E$29/100 -> 2.80%
B165: #76 | C165: 40 | D165: 2026 | E165: H | F165: A_CAPI | G165: 0.45 | H165: 0.39 | I165: 0.6 | J165: 0.6 | K165: 85 | L165: 0 | M165: =ROUND(Primes!$M$10*V165,2) -> 0.05 | N165: 0 | O165: 701.2690031 | P165: ='BP Financier'!$C$44*('BP Financier'!$C$22/('BP Financier'!$C$16+'BP Financier'!$C$19+'BP Financier'!$C$22))*$V165*X165/(1-$W165) -> 89.26138506 | Q165: ='BP Financier'!$C$44*('BP Financier'!$C$22/('BP Financier'!$C$16+'BP Financier'!$C$19+'BP Financier'!$C$22))*$V165*Y165/(1-$W165) -> 59.67197565 | R165: ='BP Financier'!$C$44*('BP Financier'!$C$22/('BP Financier'!$C$16+'BP Financier'!$C$19+'BP Financier'!$C$22))*$V165*Z165/(1-$W165) -> 467.0195119 | S165: ='BP Financier'!$C$44*('BP Financier'!$C$22/('BP Financier'!$C$16+'BP Financier'!$C$19+'BP Financier'!$C$22))*$V165*AA165/(1-$W165) -> 57.69934835 | T165: ='BP Financier'!$C$44*('BP Financier'!$C$22/('BP Financier'!$C$16+'BP Financier'!$C$19+'BP Financier'!$C$22))*$V165*AB165/(1-$W165) -> 27.61678212 | V165: 0.50% | W165: =Actif!$E$28/100 -> 28.90% | X165: =Actif!$E$30/100 -> 9.05% | Y165: =Actif!$E$31/100 -> 6.05% | Z165: =Actif!$E$32/100 -> 47.35% | AA165: =Actif!$E$33/100 -> 5.85% | AB165: =Actif!$E$29/100 -> 2.80%
B166: #77 | C166: 41 | D166: 2026 | E166: F | F166: A_CAPI | G166: 0.45 | H166: 0.39 | I166: 0.6 | J166: 0.6 | K166: 85 | L166: 0 | M166: =ROUND(Primes!$M$10*V166,2) -> 0.05 | N166: 0 | O166: 701.2690031 | P166: ='BP Financier'!$C$44*('BP Financier'!$C$22/('BP Financier'!$C$16+'BP Financier'!$C$19+'BP Financier'!$C$22))*$V166*X166/(1-$W166) -> 89.26138506 | Q166: ='BP Financier'!$C$44*('BP Financier'!$C$22/('BP Financier'!$C$16+'BP Financier'!$C$19+'BP Financier'!$C$22))*$V166*Y166/(1-$W166) -> 59.67197565 | R166: ='BP Financier'!$C$44*('BP Financier'!$C$22/('BP Financier'!$C$16+'BP Financier'!$C$19+'BP Financier'!$C$22))*$V166*Z166/(1-$W166) -> 467.0195119 | S166: ='BP Financier'!$C$44*('BP Financier'!$C$22/('BP Financier'!$C$16+'BP Financier'!$C$19+'BP Financier'!$C$22))*$V166*AA166/(1-$W166) -> 57.69934835 | T166: ='BP Financier'!$C$44*('BP Financier'!$C$22/('BP Financier'!$C$16+'BP Financier'!$C$19+'BP Financier'!$C$22))*$V166*AB166/(1-$W166) -> 27.61678212 | V166: 0.50% | W166: =Actif!$E$28/100 -> 28.90% | X166: =Actif!$E$30/100 -> 9.05% | Y166: =Actif!$E$31/100 -> 6.05% | Z166: =Actif!$E$32/100 -> 47.35% | AA166: =Actif!$E$33/100 -> 5.85% | AB166: =Actif!$E$29/100 -> 2.80%
B167: #78 | C167: 42 | D167: 2026 | E167: H | F167: A_CAPI | G167: 0.45 | H167: 0.39 | I167: 0.6 | J167: 0.6 | K167: 85 | L167: 0 | M167: =ROUND(Primes!$M$10*V167,2) -> 0.05 | N167: 0 | O167: 701.2690031 | P167: ='BP Financier'!$C$44*('BP Financier'!$C$22/('BP Financier'!$C$16+'BP Financier'!$C$19+'BP Financier'!$C$22))*$V167*X167/(1-$W167) -> 89.26138506 | Q167: ='BP Financier'!$C$44*('BP Financier'!$C$22/('BP Financier'!$C$16+'BP Financier'!$C$19+'BP Financier'!$C$22))*$V167*Y167/(1-$W167) -> 59.67197565 | R167: ='BP Financier'!$C$44*('BP Financier'!$C$22/('BP Financier'!$C$16+'BP Financier'!$C$19+'BP Financier'!$C$22))*$V167*Z167/(1-$W167) -> 467.0195119 | S167: ='BP Financier'!$C$44*('BP Financier'!$C$22/('BP Financier'!$C$16+'BP Financier'!$C$19+'BP Financier'!$C$22))*$V167*AA167/(1-$W167) -> 57.69934835 | T167: ='BP Financier'!$C$44*('BP Financier'!$C$22/('BP Financier'!$C$16+'BP Financier'!$C$19+'BP Financier'!$C$22))*$V167*AB167/(1-$W167) -> 27.61678212 | V167: 0.50% | W167: =Actif!$E$28/100 -> 28.90% | X167: =Actif!$E$30/100 -> 9.05% | Y167: =Actif!$E$31/100 -> 6.05% | Z167: =Actif!$E$32/100 -> 47.35% | AA167: =Actif!$E$33/100 -> 5.85% | AB167: =Actif!$E$29/100 -> 2.80%
B168: #79 | C168: 43 | D168: 2026 | E168: H | F168: A_CAPI | G168: 0.45 | H168: 0.39 | I168: 0.6 | J168: 0.6 | K168: 85 | L168: 0 | M168: =ROUND(Primes!$M$10*V168,2) -> 0.05 | N168: 0 | O168: 701.2690031 | P168: ='BP Financier'!$C$44*('BP Financier'!$C$22/('BP Financier'!$C$16+'BP Financier'!$C$19+'BP Financier'!$C$22))*$V168*X168/(1-$W168) -> 89.26138506 | Q168: ='BP Financier'!$C$44*('BP Financier'!$C$22/('BP Financier'!$C$16+'BP Financier'!$C$19+'BP Financier'!$C$22))*$V168*Y168/(1-$W168) -> 59.67197565 | R168: ='BP Financier'!$C$44*('BP Financier'!$C$22/('BP Financier'!$C$16+'BP Financier'!$C$19+'BP Financier'!$C$22))*$V168*Z168/(1-$W168) -> 467.0195119 | S168: ='BP Financier'!$C$44*('BP Financier'!$C$22/('BP Financier'!$C$16+'BP Financier'!$C$19+'BP Financier'!$C$22))*$V168*AA168/(1-$W168) -> 57.69934835 | T168: ='BP Financier'!$C$44*('BP Financier'!$C$22/('BP Financier'!$C$16+'BP Financier'!$C$19+'BP Financier'!$C$22))*$V168*AB168/(1-$W168) -> 27.61678212 | V168: 0.50% | W168: =Actif!$E$28/100 -> 28.90% | X168: =Actif!$E$30/100 -> 9.05% | Y168: =Actif!$E$31/100 -> 6.05% | Z168: =Actif!$E$32/100 -> 47.35% | AA168: =Actif!$E$33/100 -> 5.85% | AB168: =Actif!$E$29/100 -> 2.80%
B169: #80 | C169: 44 | D169: 2026 | E169: F | F169: A_CAPI | G169: 0.45 | H169: 0.39 | I169: 0.6 | J169: 0.6 | K169: 85 | L169: 0 | M169: =ROUND(Primes!$M$10*V169,2) -> 0.05 | N169: 0 | O169: 701.2690031 | P169: ='BP Financier'!$C$44*('BP Financier'!$C$22/('BP Financier'!$C$16+'BP Financier'!$C$19+'BP Financier'!$C$22))*$V169*X169/(1-$W169) -> 89.26138506 | Q169: ='BP Financier'!$C$44*('BP Financier'!$C$22/('BP Financier'!$C$16+'BP Financier'!$C$19+'BP Financier'!$C$22))*$V169*Y169/(1-$W169) -> 59.67197565 | R169: ='BP Financier'!$C$44*('BP Financier'!$C$22/('BP Financier'!$C$16+'BP Financier'!$C$19+'BP Financier'!$C$22))*$V169*Z169/(1-$W169) -> 467.0195119 | S169: ='BP Financier'!$C$44*('BP Financier'!$C$22/('BP Financier'!$C$16+'BP Financier'!$C$19+'BP Financier'!$C$22))*$V169*AA169/(1-$W169) -> 57.69934835 | T169: ='BP Financier'!$C$44*('BP Financier'!$C$22/('BP Financier'!$C$16+'BP Financier'!$C$19+'BP Financier'!$C$22))*$V169*AB169/(1-$W169) -> 27.61678212 | V169: 0.50% | W169: =Actif!$E$28/100 -> 28.90% | X169: =Actif!$E$30/100 -> 9.05% | Y169: =Actif!$E$31/100 -> 6.05% | Z169: =Actif!$E$32/100 -> 47.35% | AA169: =Actif!$E$33/100 -> 5.85% | AB169: =Actif!$E$29/100 -> 2.80%
B170: #81 | C170: 45 | D170: 2026 | E170: H | F170: A_CAPI | G170: 0.45 | H170: 0.39 | I170: 0.6 | J170: 0.6 | K170: 85 | L170: 0 | M170: =ROUND(Primes!$M$10*V170,2) -> 0.05 | N170: 0 | O170: 701.2690031 | P170: ='BP Financier'!$C$44*('BP Financier'!$C$22/('BP Financier'!$C$16+'BP Financier'!$C$19+'BP Financier'!$C$22))*$V170*X170/(1-$W170) -> 89.26138506 | Q170: ='BP Financier'!$C$44*('BP Financier'!$C$22/('BP Financier'!$C$16+'BP Financier'!$C$19+'BP Financier'!$C$22))*$V170*Y170/(1-$W170) -> 59.67197565 | R170: ='BP Financier'!$C$44*('BP Financier'!$C$22/('BP Financier'!$C$16+'BP Financier'!$C$19+'BP Financier'!$C$22))*$V170*Z170/(1-$W170) -> 467.0195119 | S170: ='BP Financier'!$C$44*('BP Financier'!$C$22/('BP Financier'!$C$16+'BP Financier'!$C$19+'BP Financier'!$C$22))*$V170*AA170/(1-$W170) -> 57.69934835 | T170: ='BP Financier'!$C$44*('BP Financier'!$C$22/('BP Financier'!$C$16+'BP Financier'!$C$19+'BP Financier'!$C$22))*$V170*AB170/(1-$W170) -> 27.61678212 | V170: 0.50% | W170: =Actif!$E$28/100 -> 28.90% | X170: =Actif!$E$30/100 -> 9.05% | Y170: =Actif!$E$31/100 -> 6.05% | Z170: =Actif!$E$32/100 -> 47.35% | AA170: =Actif!$E$33/100 -> 5.85% | AB170: =Actif!$E$29/100 -> 2.80%
B171: #82 | C171: 46 | D171: 2026 | E171: H | F171: A_CAPI | G171: 0.45 | H171: 0.39 | I171: 0.6 | J171: 0.6 | K171: 85 | L171: 0 | M171: =ROUND(Primes!$M$10*V171,2) -> 0.05 | N171: 0 | O171: 701.2690031 | P171: ='BP Financier'!$C$44*('BP Financier'!$C$22/('BP Financier'!$C$16+'BP Financier'!$C$19+'BP Financier'!$C$22))*$V171*X171/(1-$W171) -> 89.26138506 | Q171: ='BP Financier'!$C$44*('BP Financier'!$C$22/('BP Financier'!$C$16+'BP Financier'!$C$19+'BP Financier'!$C$22))*$V171*Y171/(1-$W171) -> 59.67197565 | R171: ='BP Financier'!$C$44*('BP Financier'!$C$22/('BP Financier'!$C$16+'BP Financier'!$C$19+'BP Financier'!$C$22))*$V171*Z171/(1-$W171) -> 467.0195119 | S171: ='BP Financier'!$C$44*('BP Financier'!$C$22/('BP Financier'!$C$16+'BP Financier'!$C$19+'BP Financier'!$C$22))*$V171*AA171/(1-$W171) -> 57.69934835 | T171: ='BP Financier'!$C$44*('BP Financier'!$C$22/('BP Financier'!$C$16+'BP Financier'!$C$19+'BP Financier'!$C$22))*$V171*AB171/(1-$W171) -> 27.61678212 | V171: 0.50% | W171: =Actif!$E$28/100 -> 28.90% | X171: =Actif!$E$30/100 -> 9.05% | Y171: =Actif!$E$31/100 -> 6.05% | Z171: =Actif!$E$32/100 -> 47.35% | AA171: =Actif!$E$33/100 -> 5.85% | AB171: =Actif!$E$29/100 -> 2.80%
B172: #83 | C172: 47 | D172: 2026 | E172: F | F172: A_CAPI | G172: 0.45 | H172: 0.39 | I172: 0.6 | J172: 0.6 | K172: 85 | L172: 0 | M172: =ROUND(Primes!$M$10*V172,2) -> 0.05 | N172: 0 | O172: 701.2690031 | P172: ='BP Financier'!$C$44*('BP Financier'!$C$22/('BP Financier'!$C$16+'BP Financier'!$C$19+'BP Financier'!$C$22))*$V172*X172/(1-$W172) -> 89.26138506 | Q172: ='BP Financier'!$C$44*('BP Financier'!$C$22/('BP Financier'!$C$16+'BP Financier'!$C$19+'BP Financier'!$C$22))*$V172*Y172/(1-$W172) -> 59.67197565 | R172: ='BP Financier'!$C$44*('BP Financier'!$C$22/('BP Financier'!$C$16+'BP Financier'!$C$19+'BP Financier'!$C$22))*$V172*Z172/(1-$W172) -> 467.0195119 | S172: ='BP Financier'!$C$44*('BP Financier'!$C$22/('BP Financier'!$C$16+'BP Financier'!$C$19+'BP Financier'!$C$22))*$V172*AA172/(1-$W172) -> 57.69934835 | T172: ='BP Financier'!$C$44*('BP Financier'!$C$22/('BP Financier'!$C$16+'BP Financier'!$C$19+'BP Financier'!$C$22))*$V172*AB172/(1-$W172) -> 27.61678212 | V172: 0.50% | W172: =Actif!$E$28/100 -> 28.90% | X172: =Actif!$E$30/100 -> 9.05% | Y172: =Actif!$E$31/100 -> 6.05% | Z172: =Actif!$E$32/100 -> 47.35% | AA172: =Actif!$E$33/100 -> 5.85% | AB172: =Actif!$E$29/100 -> 2.80%
B173: #84 | C173: 48 | D173: 2026 | E173: H | F173: A_CAPI | G173: 0.45 | H173: 0.39 | I173: 0.6 | J173: 0.6 | K173: 85 | L173: 0 | M173: =ROUND(Primes!$M$10*V173,2) -> 0.05 | N173: 0 | O173: 701.2690031 | P173: ='BP Financier'!$C$44*('BP Financier'!$C$22/('BP Financier'!$C$16+'BP Financier'!$C$19+'BP Financier'!$C$22))*$V173*X173/(1-$W173) -> 89.26138506 | Q173: ='BP Financier'!$C$44*('BP Financier'!$C$22/('BP Financier'!$C$16+'BP Financier'!$C$19+'BP Financier'!$C$22))*$V173*Y173/(1-$W173) -> 59.67197565 | R173: ='BP Financier'!$C$44*('BP Financier'!$C$22/('BP Financier'!$C$16+'BP Financier'!$C$19+'BP Financier'!$C$22))*$V173*Z173/(1-$W173) -> 467.0195119 | S173: ='BP Financier'!$C$44*('BP Financier'!$C$22/('BP Financier'!$C$16+'BP Financier'!$C$19+'BP Financier'!$C$22))*$V173*AA173/(1-$W173) -> 57.69934835 | T173: ='BP Financier'!$C$44*('BP Financier'!$C$22/('BP Financier'!$C$16+'BP Financier'!$C$19+'BP Financier'!$C$22))*$V173*AB173/(1-$W173) -> 27.61678212 | V173: 0.50% | W173: =Actif!$E$28/100 -> 28.90% | X173: =Actif!$E$30/100 -> 9.05% | Y173: =Actif!$E$31/100 -> 6.05% | Z173: =Actif!$E$32/100 -> 47.35% | AA173: =Actif!$E$33/100 -> 5.85% | AB173: =Actif!$E$29/100 -> 2.80%
B174: #85 | C174: 49 | D174: 2026 | E174: H | F174: A_CAPI | G174: 0.45 | H174: 0.39 | I174: 0.6 | J174: 0.6 | K174: 85 | L174: 0 | M174: =ROUND(Primes!$M$10*V174,2) -> 0.05 | N174: 0 | O174: 701.2690031 | P174: ='BP Financier'!$C$44*('BP Financier'!$C$22/('BP Financier'!$C$16+'BP Financier'!$C$19+'BP Financier'!$C$22))*$V174*X174/(1-$W174) -> 89.26138506 | Q174: ='BP Financier'!$C$44*('BP Financier'!$C$22/('BP Financier'!$C$16+'BP Financier'!$C$19+'BP Financier'!$C$22))*$V174*Y174/(1-$W174) -> 59.67197565 | R174: ='BP Financier'!$C$44*('BP Financier'!$C$22/('BP Financier'!$C$16+'BP Financier'!$C$19+'BP Financier'!$C$22))*$V174*Z174/(1-$W174) -> 467.0195119 | S174: ='BP Financier'!$C$44*('BP Financier'!$C$22/('BP Financier'!$C$16+'BP Financier'!$C$19+'BP Financier'!$C$22))*$V174*AA174/(1-$W174) -> 57.69934835 | T174: ='BP Financier'!$C$44*('BP Financier'!$C$22/('BP Financier'!$C$16+'BP Financier'!$C$19+'BP Financier'!$C$22))*$V174*AB174/(1-$W174) -> 27.61678212 | V174: 0.50% | W174: =Actif!$E$28/100 -> 28.90% | X174: =Actif!$E$30/100 -> 9.05% | Y174: =Actif!$E$31/100 -> 6.05% | Z174: =Actif!$E$32/100 -> 47.35% | AA174: =Actif!$E$33/100 -> 5.85% | AB174: =Actif!$E$29/100 -> 2.80%
B175: #86 | C175: 50 | D175: 2026 | E175: F | F175: A_CAPI | G175: 0.45 | H175: 0.39 | I175: 0.6 | J175: 0.6 | K175: 85 | L175: 0 | M175: =ROUND(Primes!$M$10*V175,2) -> 0.30 | N175: 0 | O175: 4207.614018 | P175: ='BP Financier'!$C$44*('BP Financier'!$C$22/('BP Financier'!$C$16+'BP Financier'!$C$19+'BP Financier'!$C$22))*$V175*X175/(1-$W175) -> 535.5683104 | Q175: ='BP Financier'!$C$44*('BP Financier'!$C$22/('BP Financier'!$C$16+'BP Financier'!$C$19+'BP Financier'!$C$22))*$V175*Y175/(1-$W175) -> 358.0318539 | R175: ='BP Financier'!$C$44*('BP Financier'!$C$22/('BP Financier'!$C$16+'BP Financier'!$C$19+'BP Financier'!$C$22))*$V175*Z175/(1-$W175) -> 2802.117071 | S175: ='BP Financier'!$C$44*('BP Financier'!$C$22/('BP Financier'!$C$16+'BP Financier'!$C$19+'BP Financier'!$C$22))*$V175*AA175/(1-$W175) -> 346.1960901 | T175: ='BP Financier'!$C$44*('BP Financier'!$C$22/('BP Financier'!$C$16+'BP Financier'!$C$19+'BP Financier'!$C$22))*$V175*AB175/(1-$W175) -> 165.7006927 | V175: 3.00% | W175: =Actif!$E$28/100 -> 28.90% | X175: =Actif!$E$30/100 -> 9.05% | Y175: =Actif!$E$31/100 -> 6.05% | Z175: =Actif!$E$32/100 -> 47.35% | AA175: =Actif!$E$33/100 -> 5.85% | AB175: =Actif!$E$29/100 -> 2.80%
B176: #87 | C176: 51 | D176: 2026 | E176: H | F176: A_CAPI | G176: 0.45 | H176: 0.39 | I176: 0.6 | J176: 0.6 | K176: 85 | L176: 0 | M176: =ROUND(Primes!$M$10*V176,2) -> 0.30 | N176: 0 | O176: 4207.614018 | P176: ='BP Financier'!$C$44*('BP Financier'!$C$22/('BP Financier'!$C$16+'BP Financier'!$C$19+'BP Financier'!$C$22))*$V176*X176/(1-$W176) -> 535.5683104 | Q176: ='BP Financier'!$C$44*('BP Financier'!$C$22/('BP Financier'!$C$16+'BP Financier'!$C$19+'BP Financier'!$C$22))*$V176*Y176/(1-$W176) -> 358.0318539 | R176: ='BP Financier'!$C$44*('BP Financier'!$C$22/('BP Financier'!$C$16+'BP Financier'!$C$19+'BP Financier'!$C$22))*$V176*Z176/(1-$W176) -> 2802.117071 | S176: ='BP Financier'!$C$44*('BP Financier'!$C$22/('BP Financier'!$C$16+'BP Financier'!$C$19+'BP Financier'!$C$22))*$V176*AA176/(1-$W176) -> 346.1960901 | T176: ='BP Financier'!$C$44*('BP Financier'!$C$22/('BP Financier'!$C$16+'BP Financier'!$C$19+'BP Financier'!$C$22))*$V176*AB176/(1-$W176) -> 165.7006927 | V176: 3.00% | W176: =Actif!$E$28/100 -> 28.90% | X176: =Actif!$E$30/100 -> 9.05% | Y176: =Actif!$E$31/100 -> 6.05% | Z176: =Actif!$E$32/100 -> 47.35% | AA176: =Actif!$E$33/100 -> 5.85% | AB176: =Actif!$E$29/100 -> 2.80%
B177: #88 | C177: 52 | D177: 2026 | E177: H | F177: A_CAPI | G177: 0.45 | H177: 0.39 | I177: 0.6 | J177: 0.6 | K177: 85 | L177: 0 | M177: =ROUND(Primes!$M$10*V177,2) -> 0.30 | N177: 0 | O177: 4207.614018 | P177: ='BP Financier'!$C$44*('BP Financier'!$C$22/('BP Financier'!$C$16+'BP Financier'!$C$19+'BP Financier'!$C$22))*$V177*X177/(1-$W177) -> 535.5683104 | Q177: ='BP Financier'!$C$44*('BP Financier'!$C$22/('BP Financier'!$C$16+'BP Financier'!$C$19+'BP Financier'!$C$22))*$V177*Y177/(1-$W177) -> 358.0318539 | R177: ='BP Financier'!$C$44*('BP Financier'!$C$22/('BP Financier'!$C$16+'BP Financier'!$C$19+'BP Financier'!$C$22))*$V177*Z177/(1-$W177) -> 2802.117071 | S177: ='BP Financier'!$C$44*('BP Financier'!$C$22/('BP Financier'!$C$16+'BP Financier'!$C$19+'BP Financier'!$C$22))*$V177*AA177/(1-$W177) -> 346.1960901 | T177: ='BP Financier'!$C$44*('BP Financier'!$C$22/('BP Financier'!$C$16+'BP Financier'!$C$19+'BP Financier'!$C$22))*$V177*AB177/(1-$W177) -> 165.7006927 | V177: 3.00% | W177: =Actif!$E$28/100 -> 28.90% | X177: =Actif!$E$30/100 -> 9.05% | Y177: =Actif!$E$31/100 -> 6.05% | Z177: =Actif!$E$32/100 -> 47.35% | AA177: =Actif!$E$33/100 -> 5.85% | AB177: =Actif!$E$29/100 -> 2.80%
B178: #89 | C178: 53 | D178: 2026 | E178: F | F178: A_CAPI | G178: 0.45 | H178: 0.39 | I178: 0.6 | J178: 0.6 | K178: 85 | L178: 0 | M178: =ROUND(Primes!$M$10*V178,2) -> 0.30 | N178: 0 | O178: 4207.614018 | P178: ='BP Financier'!$C$44*('BP Financier'!$C$22/('BP Financier'!$C$16+'BP Financier'!$C$19+'BP Financier'!$C$22))*$V178*X178/(1-$W178) -> 535.5683104 | Q178: ='BP Financier'!$C$44*('BP Financier'!$C$22/('BP Financier'!$C$16+'BP Financier'!$C$19+'BP Financier'!$C$22))*$V178*Y178/(1-$W178) -> 358.0318539 | R178: ='BP Financier'!$C$44*('BP Financier'!$C$22/('BP Financier'!$C$16+'BP Financier'!$C$19+'BP Financier'!$C$22))*$V178*Z178/(1-$W178) -> 2802.117071 | S178: ='BP Financier'!$C$44*('BP Financier'!$C$22/('BP Financier'!$C$16+'BP Financier'!$C$19+'BP Financier'!$C$22))*$V178*AA178/(1-$W178) -> 346.1960901 | T178: ='BP Financier'!$C$44*('BP Financier'!$C$22/('BP Financier'!$C$16+'BP Financier'!$C$19+'BP Financier'!$C$22))*$V178*AB178/(1-$W178) -> 165.7006927 | V178: 3.00% | W178: =Actif!$E$28/100 -> 28.90% | X178: =Actif!$E$30/100 -> 9.05% | Y178: =Actif!$E$31/100 -> 6.05% | Z178: =Actif!$E$32/100 -> 47.35% | AA178: =Actif!$E$33/100 -> 5.85% | AB178: =Actif!$E$29/100 -> 2.80%
B179: #90 | C179: 54 | D179: 2026 | E179: H | F179: A_CAPI | G179: 0.45 | H179: 0.39 | I179: 0.6 | J179: 0.6 | K179: 85 | L179: 0 | M179: =ROUND(Primes!$M$10*V179,2) -> 0.30 | N179: 0 | O179: 4207.614018 | P179: ='BP Financier'!$C$44*('BP Financier'!$C$22/('BP Financier'!$C$16+'BP Financier'!$C$19+'BP Financier'!$C$22))*$V179*X179/(1-$W179) -> 535.5683104 | Q179: ='BP Financier'!$C$44*('BP Financier'!$C$22/('BP Financier'!$C$16+'BP Financier'!$C$19+'BP Financier'!$C$22))*$V179*Y179/(1-$W179) -> 358.0318539 | R179: ='BP Financier'!$C$44*('BP Financier'!$C$22/('BP Financier'!$C$16+'BP Financier'!$C$19+'BP Financier'!$C$22))*$V179*Z179/(1-$W179) -> 2802.117071 | S179: ='BP Financier'!$C$44*('BP Financier'!$C$22/('BP Financier'!$C$16+'BP Financier'!$C$19+'BP Financier'!$C$22))*$V179*AA179/(1-$W179) -> 346.1960901 | T179: ='BP Financier'!$C$44*('BP Financier'!$C$22/('BP Financier'!$C$16+'BP Financier'!$C$19+'BP Financier'!$C$22))*$V179*AB179/(1-$W179) -> 165.7006927 | V179: 3.00% | W179: =Actif!$E$28/100 -> 28.90% | X179: =Actif!$E$30/100 -> 9.05% | Y179: =Actif!$E$31/100 -> 6.05% | Z179: =Actif!$E$32/100 -> 47.35% | AA179: =Actif!$E$33/100 -> 5.85% | AB179: =Actif!$E$29/100 -> 2.80%
B180: #91 | C180: 55 | D180: 2026 | E180: H | F180: A_CAPI | G180: 0.45 | H180: 0.39 | I180: 0.6 | J180: 0.6 | K180: 85 | L180: 0 | M180: =ROUND(Primes!$M$10*V180,2) -> 0.30 | N180: 0 | O180: 4207.614018 | P180: ='BP Financier'!$C$44*('BP Financier'!$C$22/('BP Financier'!$C$16+'BP Financier'!$C$19+'BP Financier'!$C$22))*$V180*X180/(1-$W180) -> 535.5683104 | Q180: ='BP Financier'!$C$44*('BP Financier'!$C$22/('BP Financier'!$C$16+'BP Financier'!$C$19+'BP Financier'!$C$22))*$V180*Y180/(1-$W180) -> 358.0318539 | R180: ='BP Financier'!$C$44*('BP Financier'!$C$22/('BP Financier'!$C$16+'BP Financier'!$C$19+'BP Financier'!$C$22))*$V180*Z180/(1-$W180) -> 2802.117071 | S180: ='BP Financier'!$C$44*('BP Financier'!$C$22/('BP Financier'!$C$16+'BP Financier'!$C$19+'BP Financier'!$C$22))*$V180*AA180/(1-$W180) -> 346.1960901 | T180: ='BP Financier'!$C$44*('BP Financier'!$C$22/('BP Financier'!$C$16+'BP Financier'!$C$19+'BP Financier'!$C$22))*$V180*AB180/(1-$W180) -> 165.7006927 | V180: 3.00% | W180: =Actif!$E$28/100 -> 28.90% | X180: =Actif!$E$30/100 -> 9.05% | Y180: =Actif!$E$31/100 -> 6.05% | Z180: =Actif!$E$32/100 -> 47.35% | AA180: =Actif!$E$33/100 -> 5.85% | AB180: =Actif!$E$29/100 -> 2.80%
B181: #92 | C181: 56 | D181: 2026 | E181: F | F181: A_CAPI | G181: 0.45 | H181: 0.39 | I181: 0.6 | J181: 0.6 | K181: 85 | L181: 0 | M181: =ROUND(Primes!$M$10*V181,2) -> 0.30 | N181: 0 | O181: 4207.614018 | P181: ='BP Financier'!$C$44*('BP Financier'!$C$22/('BP Financier'!$C$16+'BP Financier'!$C$19+'BP Financier'!$C$22))*$V181*X181/(1-$W181) -> 535.5683104 | Q181: ='BP Financier'!$C$44*('BP Financier'!$C$22/('BP Financier'!$C$16+'BP Financier'!$C$19+'BP Financier'!$C$22))*$V181*Y181/(1-$W181) -> 358.0318539 | R181: ='BP Financier'!$C$44*('BP Financier'!$C$22/('BP Financier'!$C$16+'BP Financier'!$C$19+'BP Financier'!$C$22))*$V181*Z181/(1-$W181) -> 2802.117071 | S181: ='BP Financier'!$C$44*('BP Financier'!$C$22/('BP Financier'!$C$16+'BP Financier'!$C$19+'BP Financier'!$C$22))*$V181*AA181/(1-$W181) -> 346.1960901 | T181: ='BP Financier'!$C$44*('BP Financier'!$C$22/('BP Financier'!$C$16+'BP Financier'!$C$19+'BP Financier'!$C$22))*$V181*AB181/(1-$W181) -> 165.7006927 | V181: 3.00% | W181: =Actif!$E$28/100 -> 28.90% | X181: =Actif!$E$30/100 -> 9.05% | Y181: =Actif!$E$31/100 -> 6.05% | Z181: =Actif!$E$32/100 -> 47.35% | AA181: =Actif!$E$33/100 -> 5.85% | AB181: =Actif!$E$29/100 -> 2.80%
B182: #93 | C182: 57 | D182: 2026 | E182: H | F182: A_CAPI | G182: 0.45 | H182: 0.39 | I182: 0.6 | J182: 0.6 | K182: 85 | L182: 0 | M182: =ROUND(Primes!$M$10*V182,2) -> 0.30 | N182: 0 | O182: 4207.614018 | P182: ='BP Financier'!$C$44*('BP Financier'!$C$22/('BP Financier'!$C$16+'BP Financier'!$C$19+'BP Financier'!$C$22))*$V182*X182/(1-$W182) -> 535.5683104 | Q182: ='BP Financier'!$C$44*('BP Financier'!$C$22/('BP Financier'!$C$16+'BP Financier'!$C$19+'BP Financier'!$C$22))*$V182*Y182/(1-$W182) -> 358.0318539 | R182: ='BP Financier'!$C$44*('BP Financier'!$C$22/('BP Financier'!$C$16+'BP Financier'!$C$19+'BP Financier'!$C$22))*$V182*Z182/(1-$W182) -> 2802.117071 | S182: ='BP Financier'!$C$44*('BP Financier'!$C$22/('BP Financier'!$C$16+'BP Financier'!$C$19+'BP Financier'!$C$22))*$V182*AA182/(1-$W182) -> 346.1960901 | T182: ='BP Financier'!$C$44*('BP Financier'!$C$22/('BP Financier'!$C$16+'BP Financier'!$C$19+'BP Financier'!$C$22))*$V182*AB182/(1-$W182) -> 165.7006927 | V182: 3.00% | W182: =Actif!$E$28/100 -> 28.90% | X182: =Actif!$E$30/100 -> 9.05% | Y182: =Actif!$E$31/100 -> 6.05% | Z182: =Actif!$E$32/100 -> 47.35% | AA182: =Actif!$E$33/100 -> 5.85% | AB182: =Actif!$E$29/100 -> 2.80%
B183: #94 | C183: 58 | D183: 2026 | E183: H | F183: A_CAPI | G183: 0.45 | H183: 0.39 | I183: 0.6 | J183: 0.6 | K183: 85 | L183: 0 | M183: =ROUND(Primes!$M$10*V183,2) -> 0.30 | N183: 0 | O183: 4207.614018 | P183: ='BP Financier'!$C$44*('BP Financier'!$C$22/('BP Financier'!$C$16+'BP Financier'!$C$19+'BP Financier'!$C$22))*$V183*X183/(1-$W183) -> 535.5683104 | Q183: ='BP Financier'!$C$44*('BP Financier'!$C$22/('BP Financier'!$C$16+'BP Financier'!$C$19+'BP Financier'!$C$22))*$V183*Y183/(1-$W183) -> 358.0318539 | R183: ='BP Financier'!$C$44*('BP Financier'!$C$22/('BP Financier'!$C$16+'BP Financier'!$C$19+'BP Financier'!$C$22))*$V183*Z183/(1-$W183) -> 2802.117071 | S183: ='BP Financier'!$C$44*('BP Financier'!$C$22/('BP Financier'!$C$16+'BP Financier'!$C$19+'BP Financier'!$C$22))*$V183*AA183/(1-$W183) -> 346.1960901 | T183: ='BP Financier'!$C$44*('BP Financier'!$C$22/('BP Financier'!$C$16+'BP Financier'!$C$19+'BP Financier'!$C$22))*$V183*AB183/(1-$W183) -> 165.7006927 | V183: 3.00% | W183: =Actif!$E$28/100 -> 28.90% | X183: =Actif!$E$30/100 -> 9.05% | Y183: =Actif!$E$31/100 -> 6.05% | Z183: =Actif!$E$32/100 -> 47.35% | AA183: =Actif!$E$33/100 -> 5.85% | AB183: =Actif!$E$29/100 -> 2.80%
B184: #95 | C184: 59 | D184: 2026 | E184: F | F184: A_CAPI | G184: 0.45 | H184: 0.39 | I184: 0.6 | J184: 0.6 | K184: 85 | L184: 0 | M184: =ROUND(Primes!$M$10*V184,2) -> 0.30 | N184: 0 | O184: 4207.614018 | P184: ='BP Financier'!$C$44*('BP Financier'!$C$22/('BP Financier'!$C$16+'BP Financier'!$C$19+'BP Financier'!$C$22))*$V184*X184/(1-$W184) -> 535.5683104 | Q184: ='BP Financier'!$C$44*('BP Financier'!$C$22/('BP Financier'!$C$16+'BP Financier'!$C$19+'BP Financier'!$C$22))*$V184*Y184/(1-$W184) -> 358.0318539 | R184: ='BP Financier'!$C$44*('BP Financier'!$C$22/('BP Financier'!$C$16+'BP Financier'!$C$19+'BP Financier'!$C$22))*$V184*Z184/(1-$W184) -> 2802.117071 | S184: ='BP Financier'!$C$44*('BP Financier'!$C$22/('BP Financier'!$C$16+'BP Financier'!$C$19+'BP Financier'!$C$22))*$V184*AA184/(1-$W184) -> 346.1960901 | T184: ='BP Financier'!$C$44*('BP Financier'!$C$22/('BP Financier'!$C$16+'BP Financier'!$C$19+'BP Financier'!$C$22))*$V184*AB184/(1-$W184) -> 165.7006927 | V184: 3.00% | W184: =Actif!$E$28/100 -> 28.90% | X184: =Actif!$E$30/100 -> 9.05% | Y184: =Actif!$E$31/100 -> 6.05% | Z184: =Actif!$E$32/100 -> 47.35% | AA184: =Actif!$E$33/100 -> 5.85% | AB184: =Actif!$E$29/100 -> 2.80%
B185: #96 | C185: 60 | D185: 2026 | E185: H | F185: A_CAPI | G185: 0.45 | H185: 0.39 | I185: 0.6 | J185: 0.6 | K185: 85 | L185: 0 | M185: =ROUND(Primes!$M$10*V185,2) -> 0.50 | N185: 0 | O185: 7012.690031 | P185: ='BP Financier'!$C$44*('BP Financier'!$C$22/('BP Financier'!$C$16+'BP Financier'!$C$19+'BP Financier'!$C$22))*$V185*X185/(1-$W185) -> 892.6138506 | Q185: ='BP Financier'!$C$44*('BP Financier'!$C$22/('BP Financier'!$C$16+'BP Financier'!$C$19+'BP Financier'!$C$22))*$V185*Y185/(1-$W185) -> 596.7197565 | R185: ='BP Financier'!$C$44*('BP Financier'!$C$22/('BP Financier'!$C$16+'BP Financier'!$C$19+'BP Financier'!$C$22))*$V185*Z185/(1-$W185) -> 4670.195119 | S185: ='BP Financier'!$C$44*('BP Financier'!$C$22/('BP Financier'!$C$16+'BP Financier'!$C$19+'BP Financier'!$C$22))*$V185*AA185/(1-$W185) -> 576.9934835 | T185: ='BP Financier'!$C$44*('BP Financier'!$C$22/('BP Financier'!$C$16+'BP Financier'!$C$19+'BP Financier'!$C$22))*$V185*AB185/(1-$W185) -> 276.1678212 | V185: 5.00% | W185: =Actif!$E$28/100 -> 28.90% | X185: =Actif!$E$30/100 -> 9.05% | Y185: =Actif!$E$31/100 -> 6.05% | Z185: =Actif!$E$32/100 -> 47.35% | AA185: =Actif!$E$33/100 -> 5.85% | AB185: =Actif!$E$29/100 -> 2.80%
B186: #97 | C186: 61 | D186: 2026 | E186: H | F186: A_CAPI | G186: =frais_gestion_Euro*100 -> 0.45 | H186: =frais_gestion_UC*100 -> 0.39 | I186: =frais_distribution_FG*100 -> 0.6 | J186: =frais_distribution_UC*100 -> 0.6 | K186: 85 | L186: 0 | M186: =ROUND(Primes!$M$10*V186,2) -> 0.30 | N186: 0 | O186: 4207.614018 | P186: ='BP Financier'!$C$44*('BP Financier'!$C$22/('BP Financier'!$C$16+'BP Financier'!$C$19+'BP Financier'!$C$22))*$V186*X186/(1-$W186) -> 535.5683104 | Q186: ='BP Financier'!$C$44*('BP Financier'!$C$22/('BP Financier'!$C$16+'BP Financier'!$C$19+'BP Financier'!$C$22))*$V186*Y186/(1-$W186) -> 358.0318539 | R186: ='BP Financier'!$C$44*('BP Financier'!$C$22/('BP Financier'!$C$16+'BP Financier'!$C$19+'BP Financier'!$C$22))*$V186*Z186/(1-$W186) -> 2802.117071 | S186: ='BP Financier'!$C$44*('BP Financier'!$C$22/('BP Financier'!$C$16+'BP Financier'!$C$19+'BP Financier'!$C$22))*$V186*AA186/(1-$W186) -> 346.1960901 | T186: ='BP Financier'!$C$44*('BP Financier'!$C$22/('BP Financier'!$C$16+'BP Financier'!$C$19+'BP Financier'!$C$22))*$V186*AB186/(1-$W186) -> 165.7006927 | V186: 3.00% | W186: =Actif!$E$28/100 -> 28.90% | X186: =Actif!$E$30/100 -> 9.05% | Y186: =Actif!$E$31/100 -> 6.05% | Z186: =Actif!$E$32/100 -> 47.35% | AA186: =Actif!$E$33/100 -> 5.85% | AB186: =Actif!$E$29/100 -> 2.80%
B187: #98 | C187: 62 | D187: 2026 | E187: F | F187: A_CAPI | G187: 0.45 | H187: 0.39 | I187: 0.6 | J187: 0.6 | K187: 85 | L187: 0 | M187: =ROUND(Primes!$M$10*V187,2) -> 0.30 | N187: 0 | O187: 4207.614018 | P187: ='BP Financier'!$C$44*('BP Financier'!$C$22/('BP Financier'!$C$16+'BP Financier'!$C$19+'BP Financier'!$C$22))*$V187*X187/(1-$W187) -> 535.5683104 | Q187: ='BP Financier'!$C$44*('BP Financier'!$C$22/('BP Financier'!$C$16+'BP Financier'!$C$19+'BP Financier'!$C$22))*$V187*Y187/(1-$W187) -> 358.0318539 | R187: ='BP Financier'!$C$44*('BP Financier'!$C$22/('BP Financier'!$C$16+'BP Financier'!$C$19+'BP Financier'!$C$22))*$V187*Z187/(1-$W187) -> 2802.117071 | S187: ='BP Financier'!$C$44*('BP Financier'!$C$22/('BP Financier'!$C$16+'BP Financier'!$C$19+'BP Financier'!$C$22))*$V187*AA187/(1-$W187) -> 346.1960901 | T187: ='BP Financier'!$C$44*('BP Financier'!$C$22/('BP Financier'!$C$16+'BP Financier'!$C$19+'BP Financier'!$C$22))*$V187*AB187/(1-$W187) -> 165.7006927 | V187: 3.00% | W187: =Actif!$E$28/100 -> 28.90% | X187: =Actif!$E$30/100 -> 9.05% | Y187: =Actif!$E$31/100 -> 6.05% | Z187: =Actif!$E$32/100 -> 47.35% | AA187: =Actif!$E$33/100 -> 5.85% | AB187: =Actif!$E$29/100 -> 2.80%
B188: #99 | C188: 63 | D188: 2026 | E188: H | F188: A_CAPI | G188: 0.45 | H188: 0.39 | I188: 0.6 | J188: 0.6 | K188: 85 | L188: 0 | M188: =ROUND(Primes!$M$10*V188,2) -> 0.30 | N188: 0 | O188: 4207.614018 | P188: ='BP Financier'!$C$44*('BP Financier'!$C$22/('BP Financier'!$C$16+'BP Financier'!$C$19+'BP Financier'!$C$22))*$V188*X188/(1-$W188) -> 535.5683104 | Q188: ='BP Financier'!$C$44*('BP Financier'!$C$22/('BP Financier'!$C$16+'BP Financier'!$C$19+'BP Financier'!$C$22))*$V188*Y188/(1-$W188) -> 358.0318539 | R188: ='BP Financier'!$C$44*('BP Financier'!$C$22/('BP Financier'!$C$16+'BP Financier'!$C$19+'BP Financier'!$C$22))*$V188*Z188/(1-$W188) -> 2802.117071 | S188: ='BP Financier'!$C$44*('BP Financier'!$C$22/('BP Financier'!$C$16+'BP Financier'!$C$19+'BP Financier'!$C$22))*$V188*AA188/(1-$W188) -> 346.1960901 | T188: ='BP Financier'!$C$44*('BP Financier'!$C$22/('BP Financier'!$C$16+'BP Financier'!$C$19+'BP Financier'!$C$22))*$V188*AB188/(1-$W188) -> 165.7006927 | V188: 3.00% | W188: =Actif!$E$28/100 -> 28.90% | X188: =Actif!$E$30/100 -> 9.05% | Y188: =Actif!$E$31/100 -> 6.05% | Z188: =Actif!$E$32/100 -> 47.35% | AA188: =Actif!$E$33/100 -> 5.85% | AB188: =Actif!$E$29/100 -> 2.80%
B189: #100 | C189: 64 | D189: 2026 | E189: H | F189: A_CAPI | G189: 0.45 | H189: 0.39 | I189: 0.6 | J189: 0.6 | K189: 85 | L189: 0 | M189: =ROUND(Primes!$M$10*V189,2) -> 0.30 | N189: 0 | O189: 4207.614018 | P189: ='BP Financier'!$C$44*('BP Financier'!$C$22/('BP Financier'!$C$16+'BP Financier'!$C$19+'BP Financier'!$C$22))*$V189*X189/(1-$W189) -> 535.5683104 | Q189: ='BP Financier'!$C$44*('BP Financier'!$C$22/('BP Financier'!$C$16+'BP Financier'!$C$19+'BP Financier'!$C$22))*$V189*Y189/(1-$W189) -> 358.0318539 | R189: ='BP Financier'!$C$44*('BP Financier'!$C$22/('BP Financier'!$C$16+'BP Financier'!$C$19+'BP Financier'!$C$22))*$V189*Z189/(1-$W189) -> 2802.117071 | S189: ='BP Financier'!$C$44*('BP Financier'!$C$22/('BP Financier'!$C$16+'BP Financier'!$C$19+'BP Financier'!$C$22))*$V189*AA189/(1-$W189) -> 346.1960901 | T189: ='BP Financier'!$C$44*('BP Financier'!$C$22/('BP Financier'!$C$16+'BP Financier'!$C$19+'BP Financier'!$C$22))*$V189*AB189/(1-$W189) -> 165.7006927 | V189: 3.00% | W189: =Actif!$E$28/100 -> 28.90% | X189: =Actif!$E$30/100 -> 9.05% | Y189: =Actif!$E$31/100 -> 6.05% | Z189: =Actif!$E$32/100 -> 47.35% | AA189: =Actif!$E$33/100 -> 5.85% | AB189: =Actif!$E$29/100 -> 2.80%
B190: #101 | C190: 65 | D190: 2026 | E190: F | F190: A_CAPI | G190: 0.45 | H190: 0.39 | I190: 0.6 | J190: 0.6 | K190: 85 | L190: 0 | M190: =ROUND(Primes!$M$10*V190,2) -> 0.30 | N190: 0 | O190: 4207.614018 | P190: ='BP Financier'!$C$44*('BP Financier'!$C$22/('BP Financier'!$C$16+'BP Financier'!$C$19+'BP Financier'!$C$22))*$V190*X190/(1-$W190) -> 535.5683104 | Q190: ='BP Financier'!$C$44*('BP Financier'!$C$22/('BP Financier'!$C$16+'BP Financier'!$C$19+'BP Financier'!$C$22))*$V190*Y190/(1-$W190) -> 358.0318539 | R190: ='BP Financier'!$C$44*('BP Financier'!$C$22/('BP Financier'!$C$16+'BP Financier'!$C$19+'BP Financier'!$C$22))*$V190*Z190/(1-$W190) -> 2802.117071 | S190: ='BP Financier'!$C$44*('BP Financier'!$C$22/('BP Financier'!$C$16+'BP Financier'!$C$19+'BP Financier'!$C$22))*$V190*AA190/(1-$W190) -> 346.1960901 | T190: ='BP Financier'!$C$44*('BP Financier'!$C$22/('BP Financier'!$C$16+'BP Financier'!$C$19+'BP Financier'!$C$22))*$V190*AB190/(1-$W190) -> 165.7006927 | V190: 3.00% | W190: =Actif!$E$28/100 -> 28.90% | X190: =Actif!$E$30/100 -> 9.05% | Y190: =Actif!$E$31/100 -> 6.05% | Z190: =Actif!$E$32/100 -> 47.35% | AA190: =Actif!$E$33/100 -> 5.85% | AB190: =Actif!$E$29/100 -> 2.80%
B191: #102 | C191: 70 | D191: 2026 | E191: H | F191: A_CAPI | G191: 0.45 | H191: 0.39 | I191: 0.6 | J191: 0.6 | K191: 85 | L191: 0 | M191: =ROUND(Primes!$M$10*V191,2) -> 0.05 | N191: 0 | O191: 701.2690031 | P191: ='BP Financier'!$C$44*('BP Financier'!$C$22/('BP Financier'!$C$16+'BP Financier'!$C$19+'BP Financier'!$C$22))*$V191*X191/(1-$W191) -> 89.26138506 | Q191: ='BP Financier'!$C$44*('BP Financier'!$C$22/('BP Financier'!$C$16+'BP Financier'!$C$19+'BP Financier'!$C$22))*$V191*Y191/(1-$W191) -> 59.67197565 | R191: ='BP Financier'!$C$44*('BP Financier'!$C$22/('BP Financier'!$C$16+'BP Financier'!$C$19+'BP Financier'!$C$22))*$V191*Z191/(1-$W191) -> 467.0195119 | S191: ='BP Financier'!$C$44*('BP Financier'!$C$22/('BP Financier'!$C$16+'BP Financier'!$C$19+'BP Financier'!$C$22))*$V191*AA191/(1-$W191) -> 57.69934835 | T191: ='BP Financier'!$C$44*('BP Financier'!$C$22/('BP Financier'!$C$16+'BP Financier'!$C$19+'BP Financier'!$C$22))*$V191*AB191/(1-$W191) -> 27.61678212 | V191: 0.50% | W191: =Actif!$E$28/100 -> 28.90% | X191: =Actif!$E$30/100 -> 9.05% | Y191: =Actif!$E$31/100 -> 6.05% | Z191: =Actif!$E$32/100 -> 47.35% | AA191: =Actif!$E$33/100 -> 5.85% | AB191: =Actif!$E$29/100 -> 2.80%
B192: #103 | C192: 75 | D192: 2026 | E192: H | F192: A_CAPI | G192: 0.45 | H192: 0.39 | I192: 0.6 | J192: 0.6 | K192: 85 | L192: 0 | M192: =ROUND(Primes!$M$10*V192,2) -> 0.05 | N192: 0 | O192: 701.2690031 | P192: ='BP Financier'!$C$44*('BP Financier'!$C$22/('BP Financier'!$C$16+'BP Financier'!$C$19+'BP Financier'!$C$22))*$V192*X192/(1-$W192) -> 89.26138506 | Q192: ='BP Financier'!$C$44*('BP Financier'!$C$22/('BP Financier'!$C$16+'BP Financier'!$C$19+'BP Financier'!$C$22))*$V192*Y192/(1-$W192) -> 59.67197565 | R192: ='BP Financier'!$C$44*('BP Financier'!$C$22/('BP Financier'!$C$16+'BP Financier'!$C$19+'BP Financier'!$C$22))*$V192*Z192/(1-$W192) -> 467.0195119 | S192: ='BP Financier'!$C$44*('BP Financier'!$C$22/('BP Financier'!$C$16+'BP Financier'!$C$19+'BP Financier'!$C$22))*$V192*AA192/(1-$W192) -> 57.69934835 | T192: ='BP Financier'!$C$44*('BP Financier'!$C$22/('BP Financier'!$C$16+'BP Financier'!$C$19+'BP Financier'!$C$22))*$V192*AB192/(1-$W192) -> 27.61678212 | V192: 0.50% | W192: =Actif!$E$28/100 -> 28.90% | X192: =Actif!$E$30/100 -> 9.05% | Y192: =Actif!$E$31/100 -> 6.05% | Z192: =Actif!$E$32/100 -> 47.35% | AA192: =Actif!$E$33/100 -> 5.85% | AB192: =Actif!$E$29/100 -> 2.80%
B193: #104 | C193: 80 | D193: 2026 | E193: F | F193: A_CAPI | G193: 0.45 | H193: 0.39 | I193: 0.6 | J193: 0.6 | K193: 85 | L193: 0 | M193: =ROUND(Primes!$M$10*V193,2) -> 0.05 | N193: 0 | O193: 701.2690031 | P193: ='BP Financier'!$C$44*('BP Financier'!$C$22/('BP Financier'!$C$16+'BP Financier'!$C$19+'BP Financier'!$C$22))*$V193*X193/(1-$W193) -> 89.26138506 | Q193: ='BP Financier'!$C$44*('BP Financier'!$C$22/('BP Financier'!$C$16+'BP Financier'!$C$19+'BP Financier'!$C$22))*$V193*Y193/(1-$W193) -> 59.67197565 | R193: ='BP Financier'!$C$44*('BP Financier'!$C$22/('BP Financier'!$C$16+'BP Financier'!$C$19+'BP Financier'!$C$22))*$V193*Z193/(1-$W193) -> 467.0195119 | S193: ='BP Financier'!$C$44*('BP Financier'!$C$22/('BP Financier'!$C$16+'BP Financier'!$C$19+'BP Financier'!$C$22))*$V193*AA193/(1-$W193) -> 57.69934835 | T193: ='BP Financier'!$C$44*('BP Financier'!$C$22/('BP Financier'!$C$16+'BP Financier'!$C$19+'BP Financier'!$C$22))*$V193*AB193/(1-$W193) -> 27.61678212 | V193: 0.50% | W193: =Actif!$E$28/100 -> 28.90% | X193: =Actif!$E$30/100 -> 9.05% | Y193: =Actif!$E$31/100 -> 6.05% | Z193: =Actif!$E$32/100 -> 47.35% | AA193: =Actif!$E$33/100 -> 5.85% | AB193: =Actif!$E$29/100 -> 2.80%
B194: #105 | C194: 85 | D194: 2026 | E194: H | F194: A_CAPI | G194: 0.45 | H194: 0.39 | I194: 0.6 | J194: 0.6 | K194: 85 | L194: 0 | M194: =ROUND(Primes!$M$10*V194,2) -> 0.03 | N194: 0 | O194: 350.6345015 | P194: ='BP Financier'!$C$44*('BP Financier'!$C$22/('BP Financier'!$C$16+'BP Financier'!$C$19+'BP Financier'!$C$22))*$V194*X194/(1-$W194) -> 44.63069253 | Q194: ='BP Financier'!$C$44*('BP Financier'!$C$22/('BP Financier'!$C$16+'BP Financier'!$C$19+'BP Financier'!$C$22))*$V194*Y194/(1-$W194) -> 29.83598782 | R194: ='BP Financier'!$C$44*('BP Financier'!$C$22/('BP Financier'!$C$16+'BP Financier'!$C$19+'BP Financier'!$C$22))*$V194*Z194/(1-$W194) -> 233.5097559 | S194: ='BP Financier'!$C$44*('BP Financier'!$C$22/('BP Financier'!$C$16+'BP Financier'!$C$19+'BP Financier'!$C$22))*$V194*AA194/(1-$W194) -> 28.84967418 | T194: ='BP Financier'!$C$44*('BP Financier'!$C$22/('BP Financier'!$C$16+'BP Financier'!$C$19+'BP Financier'!$C$22))*$V194*AB194/(1-$W194) -> 13.80839106 | V194: 0.25% | W194: =Actif!$E$28/100 -> 28.90% | X194: =Actif!$E$30/100 -> 9.05% | Y194: =Actif!$E$31/100 -> 6.05% | Z194: =Actif!$E$32/100 -> 47.35% | AA194: =Actif!$E$33/100 -> 5.85% | AB194: =Actif!$E$29/100 -> 2.80%
B195: #106 | C195: 90 | D195: 2026 | E195: H | F195: A_CAPI | G195: 0.45 | H195: 0.39 | I195: 0.6 | J195: 0.6 | K195: 85 | L195: 0 | M195: =ROUND(Primes!$M$10*V195,2) -> 0.03 | N195: 0 | O195: 350.6345015 | P195: ='BP Financier'!$C$44*('BP Financier'!$C$22/('BP Financier'!$C$16+'BP Financier'!$C$19+'BP Financier'!$C$22))*$V195*X195/(1-$W195) -> 44.63069253 | Q195: ='BP Financier'!$C$44*('BP Financier'!$C$22/('BP Financier'!$C$16+'BP Financier'!$C$19+'BP Financier'!$C$22))*$V195*Y195/(1-$W195) -> 29.83598782 | R195: ='BP Financier'!$C$44*('BP Financier'!$C$22/('BP Financier'!$C$16+'BP Financier'!$C$19+'BP Financier'!$C$22))*$V195*Z195/(1-$W195) -> 233.5097559 | S195: ='BP Financier'!$C$44*('BP Financier'!$C$22/('BP Financier'!$C$16+'BP Financier'!$C$19+'BP Financier'!$C$22))*$V195*AA195/(1-$W195) -> 28.84967418 | T195: ='BP Financier'!$C$44*('BP Financier'!$C$22/('BP Financier'!$C$16+'BP Financier'!$C$19+'BP Financier'!$C$22))*$V195*AB195/(1-$W195) -> 13.80839106 | V195: 0.25% | W195: =Actif!$E$28/100 -> 28.90% | X195: =Actif!$E$30/100 -> 9.05% | Y195: =Actif!$E$31/100 -> 6.05% | Z195: =Actif!$E$32/100 -> 47.35% | AA195: =Actif!$E$33/100 -> 5.85% | AB195: =Actif!$E$29/100 -> 2.80%
B196: #107
B197: #108
B198: #109
B199: #110
B200: #111
B201: #112
B202: #113
B203: #114
B204: #115
B205: #116
B206: #117
B207: #118
B208: #119
B209: #120
B210: #121
B211: #122
B212: #123
B213: #124
... 9894 more rows

Sheet SCR_Op
B2: I) Inputs pour SCR Opérationnel
L4: =SUM(L6:L8) -> 100.0% | M4: =SUM(M6:M8) -> 100.0% | N4: 100.0% | O4: 100.0% | P4: 100.0%
B5: AVIE + CAPI + PER | D5: 2027-12-31 | K5: UC | L5: 2027 | M5: 2028 | N5: 2029 | O5: 2030 | P5: 2031
B6: Flux | C6: Euro | D6: UC | K6: Poids AVIE (primes) | L6: =(Primes!$M$6/Primes!$M$15) -> 92.5% | M6: =((Primes!$M$6+Primes!$N$6)/(Primes!$M$15+Primes!$N$15)) -> 92.2% | N6: =((Primes!$M$6+Primes!$N$6+Primes!$O$6)/(Primes!$M$15+Primes!$N$15+Primes!$O$15)) -> 91.4% | O6: =((Primes!$M$6+Primes!$N$6+Primes!$O$6+Primes!$P$6)/(Primes!$M$15+Primes!$N$15+Primes!$O$15+Primes!$P$15)) -> 90.7% | P6: =((Primes!$M$6+Primes!$N$6+Primes!$O$6+Primes!$P$6+Primes!$Q$6)/(Primes!$M$15+Primes!$N$15+Primes!$O$15+Primes!$P$15+Primes!$Q$15)) -> 90.0%
B7: Primes acquises pour les 12 derniers mois VIE UC (N) - Earn life-ul | C7: - | D7: =(Primes!$M$6)*(1-Actif!$E$28/100)+Primes!$M$12+D16 -> 69,756,720 | K7: Poids PER (primes) | L7: =(Primes!$M$9/Primes!$M$15) -> 7.1% | M7: =((Primes!$M$9+Primes!$N$9)/(Primes!$M$15+Primes!$N$15)) -> 7.4% | N7: =((Primes!$M$9+Primes!$N$9+Primes!$O$9)/(Primes!$M$15+Primes!$N$15+Primes!$O$15)) -> 8.0% | O7: =((Primes!$M$9+Primes!$N$9+Primes!$O$9+Primes!$P$9)/(Primes!$M$15+Primes!$N$15+Primes!$O$15+Primes!$P$15)) -> 8.5% | P7: =((Primes!$M$9+Primes!$N$9+Primes!$O$9+Primes!$P$9+Primes!$Q$9)/(Primes!$M$15+Primes!$N$15+Primes!$O$15+Primes!$P$15+Primes!$Q$15)) -> 9.0%
B8: Primes acquises pour les 12 derniers mois VIE Euros (N) - Earn life | C8: =Primes!$M$6*(Actif!$E$28/100)+C17 -> 28,183,280 | D8: - | K8: Poids CAPI (primes) | L8: =(Primes!$M$12/Primes!$M$15) -> 0.4% | M8: =((Primes!$M$12+Primes!$N$12)/(Primes!$M$15+Primes!$N$15)) -> 0.4% | N8: =((Primes!$M$12+Primes!$N$12+Primes!$O$12)/(Primes!$M$15+Primes!$N$15+Primes!$O$15)) -> 0.6% | O8: =((Primes!$M$12+Primes!$N$12+Primes!$O$12+Primes!$P$12)/(Primes!$M$15+Primes!$N$15+Primes!$O$15+Primes!$P$15)) -> 0.8% | P8: =((Primes!$M$12+Primes!$N$12+Primes!$O$12+Primes!$P$12+Primes!$Q$12)/(Primes!$M$15+Primes!$N$15+Primes!$O$15+Primes!$P$15+Primes!$Q$15)) -> 1.0%
B9: Primes acquises sur les 12 mois précédents les 12 derniers mois VIE UC (N-1) - pEarn life-ul | C9: - | D9: 0
B10: Primes acquises sur les 12 mois précédents les 12 derniers mois VIE Euros (N-1) - pEarn life | C10: 0 | D10: - | L10: =SUM(L12:L14) -> 100.0% | M10: =SUM(M12:M14) -> 100.0% | N10: =SUM(N12:N14) -> 100.0% | O10: =SUM(O12:O14) -> 100.0% | P10: =SUM(P12:P14) -> 100.0%
B11: Montant de frais engagé au titre des contrats UC (12 derniers mois) (Expul) | C11: - | D11: =((-'BP Assurance'!$B$24)*$L$12+(-'BP Assurance'!$B$27-'BP Assurance'!$B$32)*$L$12-'BP Assurance'!$B$17*$L$12)*(1-Actif!$E$28/100)+D20 -> 1,615,660 | E11: répartition au regard du mix Euro / UC (idem split collecte) - yc comm distribution | K11: EURO | L11: 2027 | M11: 2028 | N11: 2029 | O11: 2030 | P11: 2031
B12: Montant de frais engagé au titre des contrats euros (12 derniers mois) | C12: =((-'BP Assurance'!$B$24)*$L$12+(-'BP Assurance'!$B$27-'BP Assurance'!$B$32)*$L$12-'BP Assurance'!$B$17*$L$12)*(Actif!$E$28/100)+C21 -> 656,717 | D12: - | E12: répartition au regard du mix Euro / UC (idem split collecte) - yc comm distribution | K12: Poids AVIE (primes) | L12: =(Primes!$M$6/(Primes!$M$15-Primes!$M$12)) -> 92.9% | M12: =((Primes!$M$6+Primes!$N$6)/(Primes!$M$15+Primes!$N$15-Primes!$M$12-Primes!$N$12)) -> 92.6% | N12: =((Primes!$M$6+Primes!$N$6+Primes!$O$6)/(Primes!$M$15+Primes!$N$15+Primes!$O$15-Primes!$M$12-Primes!$N$12-Primes!$O$12)) -> 92.0% | O12: =((Primes!$M$6+Primes!$N$6+Primes!$O$6+Primes!$P$6)/(Primes!$M$15+Primes!$N$15+Primes!$O$15+Primes!$P$15-Primes!$M$12-Primes!$N$12-Primes!$O$12-Primes!$P$12)) -> 91.4% | P12: =((Primes!$M$6+Primes!$N$6+Primes!$O$6+Primes!$P$6+Primes!$Q$6)/(Primes!$M$15+Primes!$N$15+Primes!$O$15+Primes!$P$15+Primes!$Q$15-Primes!$M$12-Primes!$N$12-Primes!$O$12-Primes!$P$12-Primes!$Q$12)) -> 90.9%
K13: Poids PER (primes) | L13: =(Primes!$M$9/(Primes!$M$15-Primes!$M$12)) -> 7.1% | M13: =((Primes!$M$9+Primes!$N$9)/(Primes!$M$15+Primes!$N$15-Primes!$M$12-Primes!$N$12)) -> 7.4% | N13: =((Primes!$M$9+Primes!$N$9+Primes!$O$9)/(Primes!$M$15+Primes!$N$15+Primes!$O$15-Primes!$M$12-Primes!$N$12-Primes!$O$12)) -> 8.0% | O13: =((Primes!$M$9+Primes!$N$9+Primes!$O$9+Primes!$P$9)/(Primes!$M$15+Primes!$N$15+Primes!$O$15+Primes!$P$15-Primes!$M$12-Primes!$N$12-Primes!$O$12-Primes!$P$12)) -> 8.6% | P13: =((Primes!$M$9+Primes!$N$9+Primes!$O$9+Primes!$P$9+Primes!$Q$9)/(Primes!$M$15+Primes!$N$15+Primes!$O$15+Primes!$P$15+Primes!$Q$15-Primes!$M$12-Primes!$N$12-Primes!$O$12-Primes!$P$12-Primes!$Q$12)) -> 9.1%
B14: PER isolé | D14: 2027-12-31 | K14: Poids CAPI (primes)
B15: Flux | C15: Euro | D15: UC
B16: Primes acquises pour les 12 derniers mois VIE UC (N) - Earn life-ul | C16: - | D16: =Primes!$M$9*(1-Actif!$E$28/100) -> 4,920,120
B17: Primes acquises pour les 12 derniers mois VIE Euros (N) - Earn life | C17: =Primes!$M$9*(Actif!$E$28/100) -> 1,999,880 | D17: -
B18: Primes acquises sur les 12 mois précédents les 12 derniers mois VIE UC (N-1) - pEarn life-ul | C18: - | D18: 0
B19: Primes acquises sur les 12 mois précédents les 12 derniers mois VIE Euros (N-1) - pEarn life | C19: 0 | D19: -
B20: Montant de frais engagé au titre des contrats UC (12 derniers mois) (Expul) | C20: - | D20: =((-'BP Assurance'!$B$24)*$L$13+(-'BP Assurance'!$B$27-'BP Assurance'!$B$32)*$L$13-'BP Assurance'!$B$17*$L$13)*(1-Actif!$E$28/100) -> 114,647 | E20: répartition au regard du mix Euro / UC (idem split collecte) - yc comm distribution + il manque les FGSI
B21: Montant de frais engagé au titre des contrats euros (12 derniers mois) | C21: =((-'BP Assurance'!$B$24)*$L$13+(-'BP Assurance'!$B$27-'BP Assurance'!$B$32)*$L$13-'BP Assurance'!$B$17*$L$13)*(Actif!$E$28/100) -> 46,601 | D21: - | E21: répartition au regard du mix Euro / UC (idem split collecte) - yc comm distribution + il manque les FGSI
B23: AVIE + CAPI + PER | D23: 2028-12-31
B24: Flux | C24: Euro | D24: UC
B25: Primes acquises pour les 12 derniers mois VIE UC (N) - Earn life-ul | C25: - | D25: =Primes!$N$6*(1-Actif!$E$28/100)+Primes!$N$12+D34 -> 94,679,290
B26: Primes acquises pour les 12 derniers mois VIE Euros (N) - Earn life | C26: =Primes!$N$6*(Actif!$E$28/100)+C35 -> 38,260,710 | D26: -
B27: Primes acquises sur les 12 mois précédents les 12 derniers mois VIE UC (N-1) - pEarn life-ul | C27: - | D27: =D7 -> 69,756,720
B28: Primes acquises sur les 12 mois précédents les 12 derniers mois VIE Euros (N-1) - pEarn life | C28: =C8 -> 28,183,280 | D28: -
B29: Montant de frais engagé au titre des contrats UC (12 derniers mois) (Expul) | C29: - | D29: =((-'BP Assurance'!$C$24)*$M$12+(-'BP Assurance'!$C$27-'BP Assurance'!$C$32)*$M$12-'BP Assurance'!$C$17*$M$12)*(1-Actif!$E$28/100)+D38 -> 2,054,585 | E29: répartition au regard du mix Euro / UC (idem split collecte) - yc comm distribution
B30: Montant de frais engagé au titre des contrats euros (12 derniers mois) | C30: =((-'BP Assurance'!$C$24)*$M$12+(-'BP Assurance'!$C$27-'BP Assurance'!$C$32)*$M$12-'BP Assurance'!$C$17*$M$12)*(Actif!$E$28/100)+C39 -> 835,127 | D30: - | E30: répartition au regard du mix Euro / UC (idem split collecte) - yc comm distribution
B32: PER isolé | D32: 2028-12-31
B33: Flux | C33: Euro | D33: UC
B34: Primes acquises pour les 12 derniers mois VIE UC (N) - Earn life-ul | C34: - | D34: =Primes!$N$9*(1-Actif!$E$28/100) -> 7,209,540
B35: Primes acquises pour les 12 derniers mois VIE Euros (N) - Earn life | C35: =Primes!$N$9*(Actif!$E$28/100) -> 2,930,460 | D35: -
B36: Primes acquises sur les 12 mois précédents les 12 derniers mois VIE UC (N-1) - pEarn life-ul | C36: - | D36: =D16 -> 4,920,120
B37: Primes acquises sur les 12 mois précédents les 12 derniers mois VIE Euros (N-1) - pEarn life | C37: =C17 -> 1,999,880 | D37: -
B38: Montant de frais engagé au titre des contrats UC (12 derniers mois) (Expul) | C38: - | D38: =((-'BP Assurance'!$C$24)*$M$13+(-'BP Assurance'!$C$27-'BP Assurance'!$C$32)*$M$13-'BP Assurance'!$C$17*$M$13)*(1-Actif!$E$28/100) -> 152,456 | E38: répartition au regard du mix Euro / UC (idem split collecte) - yc comm distribution + il manque les FGSI
B39: Montant de frais engagé au titre des contrats euros (12 derniers mois) | C39: =((-'BP Assurance'!$C$24)*$M$13+(-'BP Assurance'!$C$27-'BP Assurance'!$C$32)*$M$13-'BP Assurance'!$C$17*$M$13)*(Actif!$E$28/100) -> 61,969 | D39: - | E39: répartition au regard du mix Euro / UC (idem split collecte) - yc comm distribution + il manque les FGSI
B41: AVIE + CAPI + PER | D41: 2029-12-31
B42: Flux | C42: Euro | D42: UC
B43: Primes acquises pour les 12 derniers mois VIE UC (N) - Earn life-ul | C43: - | D43: =Primes!$O$6*(1-Actif!$E$28/100)+Primes!$O$12+D52 -> 147,262,800
B44: Primes acquises pour les 12 derniers mois VIE Euros (N) - Earn life | C44: =Primes!$O$6*(Actif!$E$28/100)+C53 -> 59,187,200 | D44: -
B45: Primes acquises sur les 12 mois précédents les 12 derniers mois VIE UC (N-1) - pEarn life-ul | C45: - | D45: =D25 -> 94,679,290
B46: Primes acquises sur les 12 mois précédents les 12 derniers mois VIE Euros (N-1) - pEarn life | C46: =C26 -> 38,260,710 | D46: -
B47: Montant de frais engagé au titre des contrats UC (12 derniers mois) (Expul) | C47: - | D47: =((-'BP Assurance'!$D$24)*$N$12+(-'BP Assurance'!$D$27-'BP Assurance'!$D$32)*$N$12-'BP Assurance'!$D$17*$N$12)*(1-Actif!$E$28/100)+D56 -> 3,055,284
B48: Montant de frais engagé au titre des contrats euros (12 derniers mois) | C48: =((-'BP Assurance'!$D$24)*$N$12+(-'BP Assurance'!$D$27-'BP Assurance'!$D$32)*$N$12-'BP Assurance'!$D$17*$N$12)*(Actif!$E$28/100)+C57 -> 1,241,881 | D48: -
B50: PER isolé | D50: 2029-12-31
B51: Flux | C51: Euro | D51: UC
B52: Primes acquises pour les 12 derniers mois VIE UC (N) - Earn life-ul | C52: - | D52: =Primes!$O$9*(1-Actif!$E$28/100) -> 12,655,800
B53: Primes acquises pour les 12 derniers mois VIE Euros (N) - Earn life | C53: =Primes!$O$9*(Actif!$E$28/100) -> 5,144,200 | D53: -
B54: Primes acquises sur les 12 mois précédents les 12 derniers mois VIE UC (N-1) - pEarn life-ul | C54: - | D54: =D34 -> 7,209,540
B55: Primes acquises sur les 12 mois précédents les 12 derniers mois VIE Euros (N-1) - pEarn life | C55: =C35 -> 2,930,460 | D55: -
B56: Montant de frais engagé au titre des contrats UC (12 derniers mois) (Expul) | C56: - | D56: =((-'BP Assurance'!$D$24)*$N$13+(-'BP Assurance'!$D$27-'BP Assurance'!$D$32)*$N$13-'BP Assurance'!$D$17*$N$13)*(1-Actif!$E$28/100) -> 245,008
B57: Montant de frais engagé au titre des contrats euros (12 derniers mois) | C57: =((-'BP Assurance'!$D$24)*$N$13+(-'BP Assurance'!$D$27-'BP Assurance'!$D$32)*$N$13-'BP Assurance'!$D$17*$N$13)*(Actif!$E$28/100) -> 99,588 | D57: -
B59: AVIE + CAPI + PER | D59: 2030-12-31
B60: Flux | C60: Euro | D60: UC
B61: Primes acquises pour les 12 derniers mois VIE UC (N) - Earn life-ul | C61: - | D61: =Primes!$P$6*(1-Actif!$E$28/100)+Primes!$P$12+D70 -> 208,238,640
B62: Primes acquises pour les 12 derniers mois VIE Euros (N) - Earn life | C62: =Primes!$P$6*(Actif!$E$28/100)+C71 -> 83,301,360 | D62: -
B63: Primes acquises sur les 12 mois précédents les 12 derniers mois VIE UC (N-1) - pEarn life-ul | C63: - | D63: =D43 -> 147,262,800
B64: Primes acquises sur les 12 mois précédents les 12 derniers mois VIE Euros (N-1) - pEarn life | C64: =C44 -> 59,187,200 | D64: -
B65: Montant de frais engagé au titre des contrats UC (12 derniers mois) (Expul) | C65: - | D65: =((-'BP Assurance'!$E$24)*$N$12+(-'BP Assurance'!$E$27-'BP Assurance'!$E$32)*$N$12-'BP Assurance'!$E$17*$N$12)*(1-Actif!$E$28/100)+D74 -> 4,509,000
B66: Montant de frais engagé au titre des contrats euros (12 derniers mois) | C66: =((-'BP Assurance'!$E$24)*$N$12+(-'BP Assurance'!$E$27-'BP Assurance'!$E$32)*$N$12-'BP Assurance'!$E$17*$N$12)*(Actif!$E$28/100)+C75 -> 1,832,772 | D66: -
B68: PER isolé | D68: 2030-12-31
B69: Flux | C69: Euro | D69: UC
B70: Primes acquises pour les 12 derniers mois VIE UC (N) - Earn life-ul | C70: - | D70: =Primes!$P$9*(1-Actif!$E$28/100) -> 19,225,440
B71: Primes acquises pour les 12 derniers mois VIE Euros (N) - Earn life | C71: =Primes!$P$9*(Actif!$E$28/100) -> 7,814,560 | D71: -
B72: Primes acquises sur les 12 mois précédents les 12 derniers mois VIE UC (N-1) - pEarn life-ul | C72: - | D72: =D52 -> 12,655,800
B73: Primes acquises sur les 12 mois précédents les 12 derniers mois VIE Euros (N-1) - pEarn life | C73: =C53 -> 5,144,200 | D73: -
B74: Montant de frais engagé au titre des contrats UC (12 derniers mois) (Expul) | C74: - | D74: =((-'BP Assurance'!$E$24)*$N$13+(-'BP Assurance'!$E$27-'BP Assurance'!$E$32)*$N$13-'BP Assurance'!$E$17*$N$13)*(1-Actif!$E$28/100) -> 361,583
B75: Montant de frais engagé au titre des contrats euros (12 derniers mois) | C75: =((-'BP Assurance'!$E$24)*$N$13+(-'BP Assurance'!$E$27-'BP Assurance'!$E$32)*$N$13-'BP Assurance'!$E$17*$N$13)*(Actif!$E$28/100) -> 146,973 | D75: -
B77: AVIE + CAPI + PER | D77: 2031-12-31
B78: Flux | C78: Euro | D78: UC
B79: Primes acquises pour les 12 derniers mois VIE UC (N) - Earn life-ul | C79: - | D79: =Primes!$Q$6*(1-Actif!$E$28/100)+Primes!$Q$12+D88 -> 256,508,680
B80: Primes acquises pour les 12 derniers mois VIE Euros (N) - Earn life | C80: =Primes!$Q$6*(Actif!$E$28/100)+C89 -> 102,271,320 | D80: -
B81: Primes acquises sur les 12 mois précédents les 12 derniers mois VIE UC (N-1) - pEarn life-ul | C81: - | D81: =D61 -> 208,238,640
B82: Primes acquises sur les 12 mois précédents les 12 derniers mois VIE Euros (N-1) - pEarn life | C82: =C62 -> 83,301,360 | D82: -
B83: Montant de frais engagé au titre des contrats UC (12 derniers mois) (Expul) | C83: - | D83: =((-'BP Assurance'!$F$24)*$N$12+(-'BP Assurance'!$F$27-'BP Assurance'!$F$32)*$N$12-'BP Assurance'!$F$17*$N$12)*(1-Actif!$E$28/100)+D92 -> 5,884,517
B84: Montant de frais engagé au titre des contrats euros (12 derniers mois) | C84: =((-'BP Assurance'!$F$24)*$N$12+(-'BP Assurance'!$F$27-'BP Assurance'!$F$32)*$N$12-'BP Assurance'!$F$17*$N$12)*(Actif!$E$28/100)+C93 -> 2,391,878 | D84: -
B86: PER isolé | D86: 2031-12-31
B87: Flux | C87: Euro | D87: UC
B88: Primes acquises pour les 12 derniers mois VIE UC (N) - Earn life-ul | C88: - | D88: =Primes!$Q$9*(1-Actif!$E$28/100) -> 25,510,680
